Workbook

Sheet RESUMO OPEX
B2: RESUMO GERAL OPEX
B3: APRESENTAÇÃO DOS CUSTOS DEMANDA - PARQUES POA
B4: Localização | C4: Porto Alegre / RS | F4: DATA: | G4: =TODAY() -> 2022-05-05 | J4: REVISAO 08
B5: ITEM | C5: DESCRIÇÃO PARQUE | F5: PARQUE FARROUPILHA | G5: PARQUE MOINHOS DE VENTO | H5: PARQUE ORLA DO GUAÌBA | I5: PARQUE MARINHA DO BRASIL | J5: LAMI
B6: AREA (M2) = | F6: 375000 | G6: 115000 | H6: 150000 | I6: 710000 | J6: 33000
B7: 1 | C7: ='OPEX - Farroupilha'!C4 -> CUSTOS AMBIENTAIS | D7: 1 | E7: vb | F7: =VLOOKUP(B7,'OPEX - Farroupilha'!$B:$J,7,FALSE) -> 16389 | G7: =VLOOKUP(B7,'OPEX - Moinhos'!$B:$J,7,FALSE) -> 15014 | H7: =VLOOKUP(B7,'OPEX - Trecho 3'!$B:$J,7,FALSE) -> 1389 | I7: =VLOOKUP(B7,'OPEX - Marinha'!$B:$J,7,FALSE) -> 1389 | J7: =VLOOKUP(B7,'OPEX - LAMI'!$B:$J,7,FALSE) -> 1389
B8: 2 | C8: ='OPEX - Farroupilha'!C9 -> SEGURANÇA | D8: 1 | E8: vb | F8: =VLOOKUP(B8,'OPEX - Farroupilha'!$B:$J,7,FALSE) -> 369429 | G8: =VLOOKUP(B8,'OPEX - Moinhos'!$B:$J,7,FALSE) -> 116729 | H8: =VLOOKUP(B8,'OPEX - Trecho 3'!$B:$J,7,FALSE) -> 149550 | I8: =VLOOKUP(B8,'OPEX - Marinha'!$B:$J,7,FALSE) -> 683574 | J8: =VLOOKUP(B8,'OPEX - LAMI'!$B:$J,7,FALSE) -> 8888
B9: 3 | C9: ='OPEX - Farroupilha'!C14 -> LIMPEZA | D9: 1 | E9: vb | F9: =VLOOKUP(B9,'OPEX - Farroupilha'!$B:$J,7,FALSE) -> 87950 | G9: =VLOOKUP(B9,'OPEX - Moinhos'!$B:$J,7,FALSE) -> 46087 | H9: =VLOOKUP(B9,'OPEX - Trecho 3'!$B:$J,7,FALSE) -> 45087 | I9: =VLOOKUP(B9,'OPEX - Marinha'!$B:$J,7,FALSE) -> 138036 | J9: =VLOOKUP(B9,'OPEX - LAMI'!$B:$J,7,FALSE) -> 9322
B10: 4 | C10: ='OPEX - Farroupilha'!C20 -> MANUTENÇÃO DE ÁREAS VERDES | D10: 1 | E10: vb | F10: =VLOOKUP(B10,'OPEX - Farroupilha'!$B:$J,7,FALSE) -> 278913.555 | G10: =VLOOKUP(B10,'OPEX - Moinhos'!$B:$J,7,FALSE) -> 87841.865 | H10: =VLOOKUP(B10,'OPEX - Trecho 3'!$B:$J,7,FALSE) -> 30248 | I10: =VLOOKUP(B10,'OPEX - Marinha'!$B:$J,7,FALSE) -> 449598.89 | J10: =VLOOKUP(B10,'OPEX - LAMI'!$B:$J,7,FALSE) -> 55505.42
B11: 5 | C11: ='OPEX - Farroupilha'!C31 -> MANUTENÇÃO CIVIL E PREDIAL | D11: 1 | E11: vb | F11: =VLOOKUP(B11,'OPEX - Farroupilha'!$B:$J,7,FALSE) -> 60682 | G11: =VLOOKUP(B11,'OPEX - Moinhos'!$B:$J,7,FALSE) -> 44171 | H11: =VLOOKUP(B11,'OPEX - Trecho 3'!$B:$J,7,FALSE) -> 26331 | I11: =VLOOKUP(B11,'OPEX - Marinha'!$B:$J,7,FALSE) -> 130504 | J11: =VLOOKUP(B11,'OPEX - LAMI'!$B:$J,7,FALSE) -> 30
B12: 6 | C12: ='OPEX - Farroupilha'!C41 -> CEEE - ENERGIA ELÉTRICA | D12: 1 | E12: vb | F12: =VLOOKUP(B12,'OPEX - Farroupilha'!$B:$J,7,FALSE) -> 12000 | G12: =VLOOKUP(B12,'OPEX - Moinhos'!$B:$J,7,FALSE) -> 8000 | H12: =VLOOKUP(B12,'OPEX - Trecho 3'!$B:$J,7,FALSE) -> 5000 | I12: =VLOOKUP(B12,'OPEX - Marinha'!$B:$J,7,FALSE) -> 16000 | J12: =VLOOKUP(B12,'OPEX - LAMI'!$B:$J,7,FALSE) -> 200
B13: 7 | C13: ='OPEX - Farroupilha'!C44 -> TELEFONICA FIXA / INTERNET / SISTEMAS / MKT | D13: 1 | E13: vb | F13: =VLOOKUP(B13,'OPEX - Farroupilha'!$B:$J,7,FALSE) -> 9680 | G13: =VLOOKUP(B13,'OPEX - Moinhos'!$B:$J,7,FALSE) -> 8680 | H13: =VLOOKUP(B13,'OPEX - Trecho 3'!$B:$J,7,FALSE) -> 9680 | I13: =VLOOKUP(B13,'OPEX - Marinha'!$B:$J,7,FALSE) -> 11860 | J13: =VLOOKUP(B13,'OPEX - LAMI'!$B:$J,7,FALSE) -> 6000
B14: 8 | C14: ='OPEX - Farroupilha'!C50 -> AGUA / DMAE | D14: 1 | E14: vb | F14: =VLOOKUP(B14,'OPEX - Farroupilha'!$B:$J,7,FALSE) -> 15000 | G14: =VLOOKUP(B14,'OPEX - Moinhos'!$B:$J,7,FALSE) -> 10000 | H14: =VLOOKUP(B14,'OPEX - Trecho 3'!$B:$J,7,FALSE) -> 7500 | I14: =VLOOKUP(B14,'OPEX - Marinha'!$B:$J,7,FALSE) -> 20000 | J14: =VLOOKUP(B14,'OPEX - LAMI'!$B:$J,7,FALSE) -> 300
B15: 9 | C15: ='OPEX - Farroupilha'!C53 -> MATERIAIS DIVERSOS MANUTENÇÃO | D15: 1 | E15: vb | F15: =VLOOKUP(B15,'OPEX - Farroupilha'!$B:$J,7,FALSE) -> 82808 | G15: =VLOOKUP(B15,'OPEX - Moinhos'!$B:$J,7,FALSE) -> 67115 | H15: =VLOOKUP(B15,'OPEX - Trecho 3'!$B:$J,7,FALSE) -> 47327 | I15: =VLOOKUP(B15,'OPEX - Marinha'!$B:$J,7,FALSE) -> 98912 | J15: =VLOOKUP(B15,'OPEX - LAMI'!$B:$J,7,FALSE) -> 27970
B16: 10 | C16: ='OPEX - Farroupilha'!C105 -> LOCAÇÕES VEICULOS / EQUIPAMENTOS | D16: 1 | E16: vb | F16: =VLOOKUP(B16,'OPEX - Farroupilha'!$B:$J,7,FALSE) -> 64659 | G16: =VLOOKUP(B16,'OPEX - Moinhos'!$B:$J,7,FALSE) -> 25180 | H16: =VLOOKUP(B16,'OPEX - Trecho 3'!$B:$J,7,FALSE) -> 32359 | I16: =VLOOKUP(B16,'OPEX - Marinha'!$B:$J,7,FALSE) -> 64659 | J16: =VLOOKUP(B16,'OPEX - LAMI'!$B:$J,7,FALSE) -> 10394
B17: 11 | C17: ='OPEX - Farroupilha'!C112 -> COMBUSTIVEL | D17: 1 | E17: vb | F17: =VLOOKUP(B17,'OPEX - Farroupilha'!$B:$J,7,FALSE) -> 10668 | G17: =VLOOKUP(B17,'OPEX - Moinhos'!$B:$J,7,FALSE) -> 6641 | H17: =VLOOKUP(B17,'OPEX - Trecho 3'!$B:$J,7,FALSE) -> 0 | I17: =VLOOKUP(B17,'OPEX - Marinha'!$B:$J,7,FALSE) -> 10668 | J17: =VLOOKUP(B17,'OPEX - LAMI'!$B:$J,7,FALSE) -> 0
B18: 12 | C18: ='OPEX - Farroupilha'!C116 -> SUSEPE | D18: 1 | E18: vb | F18: =VLOOKUP(B18,'OPEX - Farroupilha'!$B:$J,7,FALSE) -> 16053 | G18: =VLOOKUP(B18,'OPEX - Moinhos'!$B:$J,7,FALSE) -> 6422 | H18: =VLOOKUP(B18,'OPEX - Trecho 3'!$B:$J,7,FALSE) -> 0 | I18: =VLOOKUP(B18,'OPEX - Marinha'!$B:$J,7,FALSE) -> 16053 | J18: =VLOOKUP(B18,'OPEX - LAMI'!$B:$J,7,FALSE) -> 0
B19: 13 | C19: ='OPEX - Farroupilha'!C120 -> SEGURO | D19: 1 | E19: vb | F19: =VLOOKUP(B19,'OPEX - Farroupilha'!$B:$J,7,FALSE) -> 1162 | G19: =VLOOKUP(B19,'OPEX - Moinhos'!$B:$J,7,FALSE) -> 619 | H19: =VLOOKUP(B19,'OPEX - Trecho 3'!$B:$J,7,FALSE) -> 461 | I19: =VLOOKUP(B19,'OPEX - Marinha'!$B:$J,7,FALSE) -> 1707 | J19: =VLOOKUP(B19,'OPEX - LAMI'!$B:$J,7,FALSE) -> 200
B20: 14 | C20: ='OPEX - Farroupilha'!C126 -> DESPESA DE PESSOAL - ADMINISTRAÇÃO | D20: 1 | E20: vb | F20: =VLOOKUP(B20,'OPEX - Farroupilha'!$B:$J,7,FALSE) -> 37572.39 | G20: =VLOOKUP(B20,'OPEX - Moinhos'!$B:$J,7,FALSE) -> 19481.98 | H20: =VLOOKUP(B20,'OPEX - Trecho 3'!$B:$J,7,FALSE) -> 18090.41 | I20: =VLOOKUP(B20,'OPEX - Marinha'!$B:$J,7,FALSE) -> 57054.37 | J20: =VLOOKUP(B20,'OPEX - LAMI'!$B:$J,7,FALSE) -> 6957.85
B21: 15 | C21: ='OPEX - Farroupilha'!C135 -> DESPESA DE MANUTENÇÃO OBRA DE ARTE | D21: 1 | E21: vb | F21: =VLOOKUP(B21,'OPEX - Farroupilha'!$B:$J,7,FALSE) -> 5000 | G21: =VLOOKUP(B21,'OPEX - Moinhos'!$B:$J,7,FALSE) -> 0 | H21: =VLOOKUP(B21,'OPEX - Trecho 3'!$B:$J,7,FALSE) -> 0 | I21: =VLOOKUP(B21,'OPEX - Marinha'!$B:$J,7,FALSE) -> 3000 | J21: =VLOOKUP(B21,'OPEX - LAMI'!$B:$J,7,FALSE) -> 0 | Q21: Peso OPEX
B22: TOTAL POR MÊS = | F22: =SUM(F7:F21) -> 1067965.945 | G22: 461981.845 | H22: 373022.41 | I22: 1703015.26 | J22: 127156.27 | L22: =SUM(F22:J22) -> 3733141.73 | N22: =('OPEX - Farroupilha'!H139+'OPEX - Moinhos'!H140+'OPEX - Trecho 3'!H138+'OPEX - Marinha'!H138+'OPEX - LAMI'!H139)=L22 -> TRUE | Q22: =+F22/$L$22 -> 0.2860769888 | R22: =+G22/$L$22 -> 0.1237514883 | S22: =+H22/$L$22 -> 0.09992184519 | T22: =+I22/$L$22 -> 0.4561882144 | U22: =+J22/$L$22 -> 0.03406146329
Q23: 27 | R23: 14 | S23: 13 | T23: 41 | U23: 5
B24: TOTAL POR 1 ANO = | F24: =F22*12 -> 12815591.34 | G24: 5543782.14 | H24: 4476268.92 | I24: 20436183.12 | J24: 1525875.24 | L24: =SUM(F24:J24) -> 44797700.76
B26: TOTAL EM 30 ANOS = | F26: =F24*30 -> 384467740.2 | G26: 166313464.2 | H26: 134288067.6 | I26: 613085493.6 | J26: 45776257.2 | L26: =SUM(F26:J26) -> 1343931023
B204: RESUMO GERAL OPEX
B206: CUSTOS DE DEMANDA E PROPOSIÇÃO - PARQUES POA
B208: Localização | C208: Porto Alegre / RS | D208: REVISÃO 08 | E208: DATA: | F208: =TODAY() -> 2022-05-05
B209: ITEM | C209: DESCRIÇÃO PARQUE | D209: QUANTIDADE | E209: UNID. | F209: PREÇO TOTAL
B210: 1 | C210: PARQUE FARROUPILHA | D210: 1 | E210: vb | F210: =F26 -> 384467740.2
B211: 2 | C211: PARQUE MOINHOS DE VENTO | D211: 1 | E211: vb | F211: =G26 -> 166313464.2
B212: 3 | C212: PARQUE ORLA DO GUAÍBA | D212: 1 | E212: vb | F212: =H26 -> 134288067.6
B213: 4 | C213: PARQUE MARINHA DO BRASIL | D213: 1 | E213: vb | F213: =I26 -> 613085493.6
B214: 5 | C214: CALÇADÃO DO LAMI | D214: 1 | E214: vb | F214: =J26 -> 45776257.2
C216: TOTAL DA CONCESSÃO - 30 ANOS | F216: =SUM(F210:F215) -> 1343931023

Sheet OPEX (hidden)
B2: RESUMO GERAL OPEX
B3: APRESENTAÇÃO DOS CUSTOS DEMANDA - PARQUES POA
B6: Localização | C6: Porto Alegre / RS | F6: DATA: | G6: 2022-04-02
B7: ITEM | C7: DESCRIÇÃO PARQUE | D7: QUANTIDADE | E7: UNID. | F7: PREÇO POR ANO | G7: PREÇO TOTAL EM 30 ANOS
B8: 1 | C8: PARQUE FARROUPILHA | D8: 1 | E8: vb | F8: =(G8/30) -> 21135131.65 | G8: =+G34 -> 634053949.6
B9: 2 | C9: PARQUE MOINHOS DE VENTO | D9: 1 | E9: vb | F9: 8137107.694 | G9: =+G54 -> 244113230.8
B10: 3 | C10: PARQUE ORLA DO GUAÌBA | D10: 1 | E10: vb | F10: 8445029.443 | G10: =+G74 -> 253350883.3
B11: 4 | C11: PARQUE MARINHA DO BRASIL | D11: 1 | E11: vb | F11: 17714825.05 | G11: =+G94 -> 531444751.4
B12: 5 | C12: PARQUE CALÇADÃO DO LAMI | D12: 1 | E12: vb | F12: =G12/30 -> 10401514.84 | G12: =+G114 -> 312045445.3
D14: TOTAL: | F14: =SUM(F8:F12) -> 65833608.68 | G14: 1975008260
B16: OPEX - PARQUE FARROUPILHA
B17: ITEM | C17: DESCRIÇÃO PARQUE | D17: QUANTIDADE | E17: UNID. | F17: PREÇO POR ANO | G17: PREÇO TOTAL EM 30 ANOS
B18: 1 | C18: CUSTOS AMBIENTAIS | D18: 1 | E18: vb | F18: =G18/30 -> 196666.6667 | G18: 5900000
B19: 2 | C19: VGILÂNCIA | D19: 1 | E19: vb | F19: 516482.1429 | G19: 15494464.29
B20: 3 | C20: LIMPEZA | D20: 1 | E20: vb | F20: 1150556.865 | G20: 34516705.94
B21: 4 | C21: MANUTENÇÃO DE ÁREAS VERDES | D21: 1 | E21: vb | F21: 1220455.943 | G21: 36613678.28
B22: 5 | C22: MANUTENÇÃO CIVIL E PREDIAL | D22: 1 | E22: vb | F22: 228870.9016 | G22: 6866127.049
B23: 6 | C23: OUTROS | D23: 1 | E23: vb | F23: 142040.9836 | G23: 4261229.508
B24: 7 | C24: UTILIDADES | D24: 1 | E24: vb | F24: 792540.4713 | G24: 23776214.14
B25: 8 | C25: CEEE | D25: 0 | E25: vb | F25: 0 | G25: =4017967.2*0 -> 0
B26: 9 | C26: TELEFONICA FIXA | D26: 0 | E26: vb | F26: 0 | G26: =737766*0 -> 0
B27: 10 | C27: AGUA / CORSAN | D27: 0 | E27: vb | F27: 0 | G27: 0
B28: 11 | C28: MATERIAIS DIVERSOS MANUTENÇÃO | D28: 0 | E28: vb | F28: 0 | G28: =4048628.4*0 -> 0 | K28: 1 mês | L28: 1 ano | M28: 30 anos
B29: 12 | C29: LOCAÇÕES VEICULOS / EQUIPAMENTOS | D29: 1 | E29: vb | F29: 384000 | G29: =20*1600*12*30 -> 11520000 | I29: Alugando 20 carros - R$ 1.600/mês | K29: =20*1500 -> 30000 | L29: =K29*12 -> 360000 | M29: =L29*30 -> 10800000
B30: 13 | C30: COMBUSTIVEL | D30: 1 | E30: vb | F30: 168624 | G30: 5058720
B31: 14 | C31: SUSEPE | D31: 1 | E31: vb | F31: 0
B32: 15 | C32: DESPESA DE PESSOAL | D32: 1 | E32: vb | F32: 16334893.68 | G32: 490046810.4
D34: TOTAL: | F34: =SUM(F18:F32) -> 21135131.65 | G34: 634053949.6
B36: OPEX - PARQUE MOINHOS DE VENTO
B37: ITEM | C37: DESCRIÇÃO PARQUE | D37: QUANTIDADE | E37: UNID. | F37: PREÇO POR ANO | G37: PREÇO TOTAL EM 30 ANOS
B38: 1 | C38: CUSTOS AMBIENTAIS | D38: 1 | E38: vb | F38: =G38/30 -> 120166.6667 | G38: 3605000
B39: 2 | C39: VGILÂNCIA | D39: 1 | E39: vb | F39: 158387.8571 | G39: 4751635.714
B40: 3 | C40: LIMPEZA | D40: 1 | E40: vb | F40: 352837.4385 | G40: 10585123.16
B41: 4 | C41: MANUTENÇÃO DE ÁREAS VERDES | D41: 1 | E41: vb | F41: 374273.1557 | G41: 11228194.67
B42: 5 | C42: MANUTENÇÃO CIVIL E PREDIAL | D42: 1 | E42: vb | F42: 70187.0765 | G42: 2105612.295
B43: 6 | C43: OUTROS | D43: 1 | E43: vb | F43: 43559.23497 | G43: 1306777.049
B44: 7 | C44: UTILIDADES | D44: 1 | E44: vb | F44: 243045.7445 | G44: 7291372.336
B45: 8 | C45: CEEE | D45: 0 | E45: vb | F45: 0 | G45: =2128744.8*0 -> 0
B46: 9 | C46: TELEFONICA FIXA | D46: 0 | E46: vb | F46: 0 | G46: =133506*0 -> 0
B47: 10 | C47: AGUA / CORSAN | D47: 0 | E47: vb | F47: 0 | G47: 0
B48: 11 | C48: MATERIAIS DIVERSOS MANUTENÇÃO | D48: 0 | E48: vb | F48: 0 | G48: =307072.8*0 -> 0
B49: 12 | C49: LOCAÇÕES VEICULOS / EQUIPAMENTOS | D49: 1 | E49: vb | F49: 0 | G49: 0
B50: 13 | C50: COMBUSTIVEL | D50: 1 | E50: vb | F50: 43200 | G50: 1296000
B51: 14 | C51: SUSEPE | D51: 0 | E51: vb | F51: 0 | G51: 0
B52: 15 | C52: DESPESA DE PESSOAL | D52: 1 | E52: vb | F52: 6731450.52 | G52: 201943515.6
D54: TOTAL: | F54: =SUM(F38:F52) -> 8137107.694 | G54: 244113230.8
B56: OPEX - PARQUE ORLA DO GUAÍBA
B57: ITEM | C57: DESCRIÇÃO PARQUE | D57: QUANTIDADE | E57: UNID. | F57: PREÇO POR ANO | G57: PREÇO TOTAL EM 30 ANOS
B58: 1 | C58: CUSTOS AMBIENTAIS | D58: 1 | E58: vb | F58: =G58/30 -> 50000 | G58: 1500000
B59: 2 | C59: VGILÂNCIA | D59: 1 | E59: vb | F59: 206592.8571 | G59: 6197785.714
B60: 3 | C60: LIMPEZA | D60: 1 | E60: vb | F60: 460222.7459 | G60: 13806682.38
B61: 4 | C61: MANUTENÇÃO DE ÁREAS VERDES | D61: 1 | E61: vb | F61: 488182.377 | G61: 14645471.31
B62: 5 | C62: MANUTENÇÃO CIVIL E PREDIAL | D62: 1 | E62: vb | F62: 91548.36066 | G62: 2746450.82
B63: 6 | C63: OUTROS | D63: 1 | E63: vb | F63: 56816.39344 | G63: 1704491.803
B64: 7 | C64: UTILIDADES | D64: 1 | E64: vb | F64: 317016.1885 | G64: 9510485.656
B65: 8 | C65: CEEE | D65: 0 | E65: vb | F65: 0 | G65: =2128744.8*0 -> 0
B66: 9 | C66: TELEFONICA FIXA | D66: 0 | E66: vb | F66: 0 | G66: =133506*0 -> 0
B67: 10 | C67: AGUA / CORSAN | D67: 0 | E67: vb | F67: 0 | G67: 0
B68: 11 | C68: MATERIAIS DIVERSOS MANUTENÇÃO | D68: 0 | E68: vb | F68: 0 | G68: =307072.8*0 -> 0
B69: 12 | C69: LOCAÇÕES VEICULOS / EQUIPAMENTOS | D69: 1 | E69: vb | F69: 0 | G69: 0
B70: 13 | C70: COMBUSTIVEL | D70: 1 | E70: vb | F70: 43200 | G70: 1296000
B71: 14 | C71: SUSEPE | D71: 0 | E71: vb | F71: 0 | G71: 0
B72: 15 | C72: DESPESA DE PESSOAL | D72: 1 | E72: vb | F72: 6731450.52 | G72: 201943515.6
D74: TOTAL: | F74: =SUM(F58:F72) -> 8445029.443 | G74: 253350883.3
B76: OPEX - PARQUE MARINHA DO BRASIL
B77: ITEM | C77: DESCRIÇÃO PARQUE | D77: QUANTIDADE | E77: UNID. | F77: PREÇO POR ANO | G77: PREÇO TOTAL EM 30 ANOS
B78: 1 | C78: CUSTOS AMBIENTAIS | D78: 1 | E78: vb | F78: =G78/30 -> 50000 | G78: 1500000
B79: 2 | C79: VGILÂNCIA | D79: 1 | E79: vb | F79: 977872.8571 | G79: 29336185.71
B80: 3 | C80: LIMPEZA | D80: 1 | E80: vb | F80: 2178387.664 | G80: 65351629.92
B81: 4 | C81: MANUTENÇÃO DE ÁREAS VERDES | D81: 1 | E81: vb | F81: 2310729.918 | G81: 69321897.54
B82: 5 | C82: MANUTENÇÃO CIVIL E PREDIAL | D82: 1 | E82: vb | F82: 433328.9071 | G82: 12999867.21
B83: 6 | C83: OUTROS | D83: 1 | E83: vb | F83: 268930.929 | G83: 8067927.869
B84: 7 | C84: UTILIDADES | D84: 1 | E84: vb | F84: 1500543.292 | G84: 45016298.77
B85: 8 | C85: CEEE | D85: 0 | E85: vb | F85: 0 | G85: =2021731.2*0 -> 0
B86: 9 | C86: TELEFONICA FIXA | D86: 0 | E86: vb | F86: 0 | G86: =299818.8*0 -> 0
B87: 10 | C87: AGUA / CORSAN | D87: 0 | E87: vb | F87: 0 | G87: 0
B88: 11 | C88: MATERIAIS DIVERSOS MANUTENÇÃO | D88: 0 | E88: vb | F88: 0 | G88: =1933117.2*0 -> 0
B89: 12 | C89: LOCAÇÕES VEICULOS / EQUIPAMENTOS | D89: 1 | E89: vb | F89: 164765.16 | G89: 4942954.8
B90: 13 | C90: COMBUSTIVEL | D90: 1 | E90: vb | F90: 186978.84 | G90: 5609365.2
B91: 14 | C91: SUSEPE | D91: 0 | E91: vb | F91: 0 | G91: 0
B92: 15 | C92: DESPESA DE PESSOAL | D92: 1 | E92: vb | F92: 9643287.48 | G92: 289298624.4
D94: TOTAL: | F94: =SUM(F78:F92) -> 17714825.05 | G94: 531444751.4
B96: OPEX - CALÇADÃO DO LAMI
B97: ITEM | C97: DESCRIÇÃO PARQUE | D97: QUANTIDADE | E97: UNID. | F97: PREÇO POR ANO | G97: PREÇO TOTAL EM 30 ANOS
B98: 1 | C98: CUSTOS AMBIENTAIS | D98: 1 | E98: vb | F98: =G98/30 -> 50000 | G98: 1500000
B99: 2 | C99: VGILÂNCIA | D99: 1 | E99: vb | F99: 45450.42857 | G99: 1363512.857
B100: 3 | C100: LIMPEZA | D100: 1 | E100: vb | F100: 101249.0041 | G100: 3037470.123
B101: 4 | C101: MANUTENÇÃO DE ÁREAS VERDES | D101: 1 | E101: vb | F101: 107400.123 | G101: 3222003.689
B102: 5 | C102: MANUTENÇÃO CIVIL E PREDIAL | D102: 1 | E102: vb | F102: 20140.63934 | G102: 604219.1803
B103: 6 | C103: OUTROS | D103: 1 | E103: vb | F103: 12499.60656 | G103: 374988.1967
B104: 7 | C104: UTILIDADES | D104: 1 | E104: vb | F104: 69743.56148 | G104: 2092306.844
B105: 8 | C105: CEEE | D105: 0 | E105: vb | F105: 0 | G105: =2021731.2*0 -> 0
B106: 9 | C106: TELEFONICA FIXA | D106: 0 | E106: vb | F106: 0 | G106: =299818.8*0 -> 0
B107: 10 | C107: AGUA / CORSAN | D107: 0 | E107: vb | F107: 0 | G107: 0
B108: 11 | C108: MATERIAIS DIVERSOS MANUTENÇÃO | D108: 0 | E108: vb | F108: 0 | G108: =1933117.2*0 -> 0
B109: 12 | C109: LOCAÇÕES VEICULOS / EQUIPAMENTOS | D109: 1 | E109: vb | F109: 164765.16 | G109: 4942954.8
B110: 13 | C110: COMBUSTIVEL | D110: 1 | E110: vb | F110: 186978.84 | G110: 5609365.2
B111: 14 | C111: SUSEPE | D111: 0 | E111: vb | F111: 0 | G111: 0
B112: 15 | C112: DESPESA DE PESSOAL | D112: 1 | E112: vb | F112: 9643287.48 | G112: 289298624.4
D114: TOTAL: | F114: =SUM(F98:F112) -> 10401514.84 | G114: 312045445.3

Sheet OPEX Detalhado (hidden)
B2: RESUMO GERAL OPEX
B3: APRESENTAÇÃO DOS CUSTOS DEMANDA - PARQUES POA
B6: Localização | C6: Porto Alegre / RS | G6: DATA: | H6: 2022-04-02
B7: ITEM | C7: DESCRIÇÃO PARQUE | E7: QUANTIDADE | F7: UNID. | G7: PREÇO POR ANO | H7: PREÇO TOTAL EM 30 ANOS
B8: 1 | C8: PARQUE FARROUPILHA | E8: 1 | F8: vb | G8: =(H8/30) -> 21135131.65 | H8: =+H38 -> 634053949.6
B9: 2 | C9: PARQUE MOINHOS DE VENTO | E9: 1 | F9: vb | G9: 8137107.694 | H9: =+H58 -> 244113230.8
B10: 3 | C10: PARQUE ORLA DO GUAÌBA | E10: 1 | F10: vb | G10: 8445029.443 | H10: =+H78 -> 253350883.3
B11: 4 | C11: PARQUE MARINHA DO BRASIL | E11: 1 | F11: vb | G11: 17714825.05 | H11: =+H98 -> 531444751.4
B12: 5 | C12: PARQUE CALÇADÃO DO LAMI | E12: 1 | F12: vb | G12: =H12/30 -> 10401514.84 | H12: =+H118 -> 312045445.3
E14: TOTAL: | G14: =SUM(G8:G12) -> 65833608.68 | H14: 1975008260
B16: OPEX - PARQUE FARROUPILHA
B17: ITEM | C17: DESCRIÇÃO PARQUE | E17: QUANTIDADE | F17: UNID. | G17: PREÇO POR ANO | H17: PREÇO TOTAL EM 30 ANOS
B18: 1 | C18: CUSTOS AMBIENTAIS | E18: 1 | F18: vb | G18: =H18/30 -> 196666.6667 | H18: 5900000
B19: 2022-01-01
B20: 2022-02-01
B21: 2022-03-01
B23: 2 | C23: VGILÂNCIA | E23: 1 | F23: vb | G23: =H23/30 -> 516482.1429 | H23: 15494464.29
B24: 3 | C24: LIMPEZA | E24: 1 | F24: vb | G24: 1150556.865 | H24: 34516705.94
B25: 4 | C25: MANUTENÇÃO DE ÁREAS VERDES | E25: 1 | F25: vb | G25: 1220455.943 | H25: 36613678.28
B26: 5 | C26: MANUTENÇÃO CIVIL E PREDIAL | E26: 1 | F26: vb | G26: 228870.9016 | H26: 6866127.049
B27: 6 | C27: OUTROS | E27: 1 | F27: vb | G27: 142040.9836 | H27: 4261229.508
B28: 7 | C28: UTILIDADES | E28: 1 | F28: vb | G28: 792540.4713 | H28: 23776214.14
B29: 8 | C29: CEEE | E29: 0 | F29: vb | G29: 0 | H29: =4017967.2*0 -> 0
B30: 9 | C30: TELEFONICA FIXA | E30: 0 | F30: vb | G30: 0 | H30: =737766*0 -> 0
B31: 10 | C31: AGUA / CORSAN | E31: 0 | F31: vb | G31: 0 | H31: 0
B32: 11 | C32: MATERIAIS DIVERSOS MANUTENÇÃO | E32: 0 | F32: vb | G32: 0 | H32: =4048628.4*0 -> 0 | L32: 1 mês | M32: 1 ano | N32: 30 anos
B33: 12 | C33: LOCAÇÕES VEICULOS / EQUIPAMENTOS | E33: 1 | F33: vb | G33: 384000 | H33: =20*1600*12*30 -> 11520000 | J33: Alugando 20 carros - R$ 1.600/mês | L33: =20*1500 -> 30000 | M33: =L33*12 -> 360000 | N33: =M33*30 -> 10800000
B34: 13 | C34: COMBUSTIVEL | E34: 1 | F34: vb | G34: 168624 | H34: 5058720
B35: 14 | C35: SUSEPE | E35: 1 | F35: vb | G35: 0
B36: 15 | C36: DESPESA DE PESSOAL | E36: 1 | F36: vb | G36: 16334893.68 | H36: 490046810.4
E38: TOTAL: | G38: =SUM(G18:G36) -> 21135131.65 | H38: 634053949.6
B40: OPEX - PARQUE MOINHOS DE VENTO
B41: ITEM | C41: DESCRIÇÃO PARQUE | E41: QUANTIDADE | F41: UNID. | G41: PREÇO POR ANO | H41: PREÇO TOTAL EM 30 ANOS
B42: 1 | C42: CUSTOS AMBIENTAIS | E42: 1 | F42: vb | G42: =H42/30 -> 120166.6667 | H42: 3605000
B43: 2 | C43: VGILÂNCIA | E43: 1 | F43: vb | G43: 158387.8571 | H43: 4751635.714
B44: 3 | C44: LIMPEZA | E44: 1 | F44: vb | G44: 352837.4385 | H44: 10585123.16
B45: 4 | C45: MANUTENÇÃO DE ÁREAS VERDES | E45: 1 | F45: vb | G45: 374273.1557 | H45: 11228194.67
B46: 5 | C46: MANUTENÇÃO CIVIL E PREDIAL | E46: 1 | F46: vb | G46: 70187.0765 | H46: 2105612.295
B47: 6 | C47: OUTROS | E47: 1 | F47: vb | G47: 43559.23497 | H47: 1306777.049
B48: 7 | C48: UTILIDADES | E48: 1 | F48: vb | G48: 243045.7445 | H48: 7291372.336
B49: 8 | C49: CEEE | E49: 0 | F49: vb | G49: 0 | H49: =2128744.8*0 -> 0
B50: 9 | C50: TELEFONICA FIXA | E50: 0 | F50: vb | G50: 0 | H50: =133506*0 -> 0
B51: 10 | C51: AGUA / CORSAN | E51: 0 | F51: vb | G51: 0 | H51: 0
B52: 11 | C52: MATERIAIS DIVERSOS MANUTENÇÃO | E52: 0 | F52: vb | G52: 0 | H52: =307072.8*0 -> 0
B53: 12 | C53: LOCAÇÕES VEICULOS / EQUIPAMENTOS | E53: 1 | F53: vb | G53: 0 | H53: 0
B54: 13 | C54: COMBUSTIVEL | E54: 1 | F54: vb | G54: 43200 | H54: 1296000
B55: 14 | C55: SUSEPE | E55: 0 | F55: vb | G55: 0 | H55: 0
B56: 15 | C56: DESPESA DE PESSOAL | E56: 1 | F56: vb | G56: 6731450.52 | H56: 201943515.6
E58: TOTAL: | G58: =SUM(G42:G56) -> 8137107.694 | H58: 244113230.8
B60: OPEX - PARQUE ORLA DO GUAÍBA
B61: ITEM | C61: DESCRIÇÃO PARQUE | E61: QUANTIDADE | F61: UNID. | G61: PREÇO POR ANO | H61: PREÇO TOTAL EM 30 ANOS
B62: 1 | C62: CUSTOS AMBIENTAIS | E62: 1 | F62: vb | G62: =H62/30 -> 50000 | H62: 1500000
B63: 2 | C63: VGILÂNCIA | E63: 1 | F63: vb | G63: 206592.8571 | H63: 6197785.714
B64: 3 | C64: LIMPEZA | E64: 1 | F64: vb | G64: 460222.7459 | H64: 13806682.38
B65: 4 | C65: MANUTENÇÃO DE ÁREAS VERDES | E65: 1 | F65: vb | G65: 488182.377 | H65: 14645471.31
B66: 5 | C66: MANUTENÇÃO CIVIL E PREDIAL | E66: 1 | F66: vb | G66: 91548.36066 | H66: 2746450.82
B67: 6 | C67: OUTROS | E67: 1 | F67: vb | G67: 56816.39344 | H67: 1704491.803
B68: 7 | C68: UTILIDADES | E68: 1 | F68: vb | G68: 317016.1885 | H68: 9510485.656
B69: 8 | C69: CEEE | E69: 0 | F69: vb | G69: 0 | H69: =2128744.8*0 -> 0
B70: 9 | C70: TELEFONICA FIXA | E70: 0 | F70: vb | G70: 0 | H70: =133506*0 -> 0
B71: 10 | C71: AGUA / CORSAN | E71: 0 | F71: vb | G71: 0 | H71: 0
B72: 11 | C72: MATERIAIS DIVERSOS MANUTENÇÃO | E72: 0 | F72: vb | G72: 0 | H72: =307072.8*0 -> 0
B73: 12 | C73: LOCAÇÕES VEICULOS / EQUIPAMENTOS | E73: 1 | F73: vb | G73: 0 | H73: 0
B74: 13 | C74: COMBUSTIVEL | E74: 1 | F74: vb | G74: 43200 | H74: 1296000
B75: 14 | C75: SUSEPE | E75: 0 | F75: vb | G75: 0 | H75: 0
B76: 15 | C76: DESPESA DE PESSOAL | E76: 1 | F76: vb | G76: 6731450.52 | H76: 201943515.6
E78: TOTAL: | G78: =SUM(G62:G76) -> 8445029.443 | H78: 253350883.3
B80: OPEX - PARQUE MARINHA DO BRASIL
B81: ITEM | C81: DESCRIÇÃO PARQUE | E81: QUANTIDADE | F81: UNID. | G81: PREÇO POR ANO | H81: PREÇO TOTAL EM 30 ANOS
B82: 1 | C82: CUSTOS AMBIENTAIS | E82: 1 | F82: vb | G82: =H82/30 -> 50000 | H82: 1500000
B83: 2 | C83: VGILÂNCIA | E83: 1 | F83: vb | G83: 977872.8571 | H83: 29336185.71
B84: 3 | C84: LIMPEZA | E84: 1 | F84: vb | G84: 2178387.664 | H84: 65351629.92
B85: 4 | C85: MANUTENÇÃO DE ÁREAS VERDES | E85: 1 | F85: vb | G85: 2310729.918 | H85: 69321897.54
B86: 5 | C86: MANUTENÇÃO CIVIL E PREDIAL | E86: 1 | F86: vb | G86: 433328.9071 | H86: 12999867.21
B87: 6 | C87: OUTROS | E87: 1 | F87: vb | G87: 268930.929 | H87: 8067927.869
B88: 7 | C88: UTILIDADES | E88: 1 | F88: vb | G88: 1500543.292 | H88: 45016298.77
B89: 8 | C89: CEEE | E89: 0 | F89: vb | G89: 0 | H89: =2021731.2*0 -> 0
B90: 9 | C90: TELEFONICA FIXA | E90: 0 | F90: vb | G90: 0 | H90: =299818.8*0 -> 0
B91: 10 | C91: AGUA / CORSAN | E91: 0 | F91: vb | G91: 0 | H91: 0
B92: 11 | C92: MATERIAIS DIVERSOS MANUTENÇÃO | E92: 0 | F92: vb | G92: 0 | H92: =1933117.2*0 -> 0
B93: 12 | C93: LOCAÇÕES VEICULOS / EQUIPAMENTOS | E93: 1 | F93: vb | G93: 164765.16 | H93: 4942954.8
B94: 13 | C94: COMBUSTIVEL | E94: 1 | F94: vb | G94: 186978.84 | H94: 5609365.2
B95: 14 | C95: SUSEPE | E95: 0 | F95: vb | G95: 0 | H95: 0
B96: 15 | C96: DESPESA DE PESSOAL | E96: 1 | F96: vb | G96: 9643287.48 | H96: 289298624.4
E98: TOTAL: | G98: =SUM(G82:G96) -> 17714825.05 | H98: 531444751.4
B100: OPEX - CALÇADÃO DO LAMI
B101: ITEM | C101: DESCRIÇÃO PARQUE | E101: QUANTIDADE | F101: UNID. | G101: PREÇO POR ANO | H101: PREÇO TOTAL EM 30 ANOS
B102: 1 | C102: CUSTOS AMBIENTAIS | E102: 1 | F102: vb | G102: =H102/30 -> 50000 | H102: 1500000
B103: 2 | C103: VGILÂNCIA | E103: 1 | F103: vb | G103: 45450.42857 | H103: 1363512.857
B104: 3 | C104: LIMPEZA | E104: 1 | F104: vb | G104: 101249.0041 | H104: 3037470.123
B105: 4 | C105: MANUTENÇÃO DE ÁREAS VERDES | E105: 1 | F105: vb | G105: 107400.123 | H105: 3222003.689
B106: 5 | C106: MANUTENÇÃO CIVIL E PREDIAL | E106: 1 | F106: vb | G106: 20140.63934 | H106: 604219.1803
B107: 6 | C107: OUTROS | E107: 1 | F107: vb | G107: 12499.60656 | H107: 374988.1967
B108: 7 | C108: UTILIDADES | E108: 1 | F108: vb | G108: 69743.56148 | H108: 2092306.844
B109: 8 | C109: CEEE | E109: 0 | F109: vb | G109: 0 | H109: =2021731.2*0 -> 0
B110: 9 | C110: TELEFONICA FIXA | E110: 0 | F110: vb | G110: 0 | H110: =299818.8*0 -> 0
B111: 10 | C111: AGUA / CORSAN | E111: 0 | F111: vb | G111: 0 | H111: 0
B112: 11 | C112: MATERIAIS DIVERSOS MANUTENÇÃO | E112: 0 | F112: vb | G112: 0 | H112: =1933117.2*0 -> 0
B113: 12 | C113: LOCAÇÕES VEICULOS / EQUIPAMENTOS | E113: 1 | F113: vb | G113: 164765.16 | H113: 4942954.8
B114: 13 | C114: COMBUSTIVEL | E114: 1 | F114: vb | G114: 186978.84 | H114: 5609365.2
B115: 14 | C115: SUSEPE | E115: 0 | F115: vb | G115: 0 | H115: 0
B116: 15 | C116: DESPESA DE PESSOAL | E116: 1 | F116: vb | G116: 9643287.48 | H116: 289298624.4
E118: TOTAL: | G118: =SUM(G102:G116) -> 10401514.84 | H118: 312045445.3

Sheet OPEX - Farroupilha
B2: OPEX - PARQUE FARROUPILHA Área = 375.000 m²
B3: ITEM | C3: DESCRIÇÃO PARQUE | D3: PREMISSAS | E3: UNID. | F3: QUANTIDADE | G3: VALOR UNITÁRIO | H3: VALOR TOTAL MENSAL | I3: PESO (%) | J3: OBSERVAÇÃO | M3: QUANTIDADE | N3: VALOR UNITÁRIO
B4: 1 | C4: CUSTOS AMBIENTAIS | H4: =SUM(H5:H7) -> 16389 | I4: =H4/$H$139 -> 0.01534599495
B5: 1.1 | C5: Árvores | D5: Recuperação de perdas, conforme planilha Para o período de 30 anos | E5: mês | F5: =ROUNDUP(M5,0) -> 1 | G5: =ROUNDUP(N5,0) -> 139 | H5: =F5*G5 -> 139 | I5: 0.0001301539629 | M5: 1 | N5: 138.8888889
B6: 1.2 | C6: Biólogo / Eng. Ambiental / Eng. Agrônomo | D6: 1 Responsável técnico por relatórios, monitoramentos, contratações. Fixo - Mensal - Valor anual (x 30) | E6: mês | F6: =ROUNDUP(M6,0) -> 1 | G6: =ROUNDUP(N6,0) -> 15000 | H6: =F6*G6 -> 15000 | I6: 0.01404539168 | M6: 1 | N6: 15000
B7: 1.3 | C7: Material Educação Ambiental | D7: Folder, insumos, material geral (15 mil ano, p/ 30 anos) | E7: mês | F7: 1 | G7: 1250 | H7: 1250 | I7: 0.001170449307 | M7: 1 | N7: 1250
F8: 0 | G8: 0 | I8: 0
B9: 2 | C9: SEGURANÇA | F9: 0 | G9: 0 | H9: =SUM(H10:H13) -> 369429 | I9: 0.3459183336
B10: 2.1 | C10: Portaria 24 horas | D10: Considerado portaria 24 horas - Equipe com turnos de 12 horas (incluso folguistas) - 6 funcionários | E10: mês | F10: 0 | G10: 26946 | H10: =F10*G10 -> 0 | I10: 0 | M10: 0 | N10: 26945.22
B11: 2.2 | C11: Vigilância - Líder | D11: 2 funcionários | E11: mês | F11: 1 | G11: 17775 | H11: =F11*G11 -> 17775 | I11: 0.01664378914 | M11: 1 | N11: 17774.6
B12: 2.3 | C12: Vigilância - Ronda Diurna | D12: 1 vigia a cada 10.000m², apenas no período diurno - 38 vigias | E12: mês | F12: 1 | G12: 351654 | H12: 351654 | I12: 0.3292745444 | J12: Relação de áreas com base no Vila Lobos | M12: 1 | N12: 351654
F13: 0 | G13: 0 | I13: 0
B14: 3 | C14: LIMPEZA | F14: 0 | G14: 0 | H14: =SUM(H15:H18) -> 87950 | I14: 0.08235281323
B15: 3.1 | C15: Material - Limpeza | D15: Custo mensal com materiais: produtos de limpeza | E15: mês | F15: 1 | G15: 8000 | H15: =F15*G15 -> 8000 | I15: 0.007490875563 | M15: 1 | N15: 8000
B16: 3.2 | C16: Equipe de Limpeza | D16: Encarregado de Limpeza - 1 funcionário | E16: mês | F16: 1 | G16: 4222 | H16: 4222 | I16: 0.003953309579 | M16: 1 | N16: 4221.78
B17: 3.3 | C17: Equipe de Limpeza | D17: Auxiliar de Limpeza - 10 funcionários | E17: mês | F17: 1 | G17: 42999 | H17: 42999 | I17: 0.04026251979 | M17: 1 | N17: 42999
B18: 3.4 | C18: Equipe de Limpeza | D18: Coletor de Lixo - 10 funcionários | E18: mês | F18: 1 | G18: 32729 | H18: 32729 | I18: 0.03064610829 | M18: 1 | N18: 32728.6
F19: 0 | G19: 0 | I19: 0
B20: 4 | C20: MANUTENÇÃO DE ÁREAS VERDES | F20: 0 | G20: 0 | H20: =SUM(H21:H30) -> 278913.555 | I20: 0.2611633417
B21: 4.1 | C21: Roçada / capina dos gramados | D21: 1 x mês - inverno / outono 2 x mês - primavera / verão | E21: m² | F21: 192337 | G21: =N21 -> 0.375 | H21: =G21*F21 -> 72126.375 | I21: 0.0675362125 | M21: 192336.61 | N21: 0.375
B22: 4.2 | C22: Jardinagem - Trabalho Diário | D22: Coleta de detritos em pátios e áreas verdes – frequência diária (em ha) | E22: mês | F22: 20 | G22: 370 | H22: 7400 | I22: 0.006929059896 | J22: CADTERC (BEC.SP) | M22: =192336.61/10000 -> 19.233661 | N22: 370
B23: 4.3 | C23: Poda | D23: Poda com supressão - Estimativa Contrato Atual | E23: mês | F23: 184000 | G23: =N23 -> 0.62 | H23: 114080 | I23: 0.1068198855 | J23: CADTERC (BEC.SP) | M23: 184000 | N23: 0.62
B24: 4.4 | C24: Encarregado de Jardinagem | D24: 2 funcionários | E24: mês | F24: 1 | G24: 7258 | H24: 7258 | I24: 0.006796096855 | M24: 1 | N24: 7257.1
B25: 4.5 | C25: Operador de Equipamentos | D25: 2 funcionários | E25: mês | F25: 1 | G25: 8265 | H25: 8265 | I25: 0.007739010816 | M25: 1 | N25: 8264.82
B26: 4.6 | C26: Trabalhos com Varrição | D26: 2 funcionários | E26: mês | F26: 192337 | G26: =N26 -> 0.14 | H26: 26927.18 | I26: 0.02521351933 | J26: CADTERC (BEC.SP) | M26: 192336.61 | N26: 0.14
B27: 4.7 | C27: Transbordo do lixo | D27: Incluso viagem + motorista + 2 operadores - 1x semana | E27: mês | F27: 1 | G27: 6000 | H27: 6000 | I27: 0.005618156673 | M27: 1 | N27: 6000
B28: 4.8 | C28: Limpeza de Lagos | D28: Tratamento de água, resíduos e efluentes, operação, limpeza e manutenção de espelhos d'água, imunização e controle de pragas, análises laboratoriais - programa água/icmbio, limpeza e higiene das caixas d'água e cisternas. | E28: mês | F28: 1 | G28: 34657 | H28: 34657 | I28: 0.0324514093 | J28: Ref. Cataratas 2019 (+30%) | M28: 1 | N28: 34656.7
B29: 4.9 | C29: Limpeza de Espelhos D´Água | D29: Estimado - ref. tratamento químico de piscina - 4 limpezas x mês | E29: mês | F29: 1 | G29: 2200 | H29: 2200 | I29: 0.00205999078 | M29: 1 | N29: 2200
F30: 0 | G30: 0 | H30: 0 | I30: 0
B31: 5 | C31: MANUTENÇÃO CIVIL E PREDIAL | F31: 0 | G31: 0 | H31: =SUM(H32:H39) -> 60682 | I31: 0.05682016387
B32: 5.1 | C32: Equipe de manutenção Civil | D32: Pedreiro - 2 funcionários | E32: mês | F32: 1 | G32: 8156 | H32: =F32*G32 -> 8156 | I32: 0.007636947637 | M32: 1 | N32: 8155.16
B33: 5.2 | C33: Equipe de manutenção Civil | D33: Ajudante de Pedreiro - 4 funcionários | E33: mês | F33: 1 | G33: 15252 | H33: 15252 | I33: 0.01428135426 | M33: 1 | N33: 15251.64
B34: 5.3 | C34: Equipe de manutenção Civil | D34: Pintor - 2 funcionários | E34: mês | F34: 1 | G34: 7615 | H34: 7615 | I34: 0.007130377177 | M34: 1 | N34: 7614.06
B35: 5.4 | C35: Bombeiro Civil | D35: 2 funcionários | E35: mês | F35: 1 | G35: 8470 | H35: 8470 | I35: 0.007930964503 | M35: 1 | N35: 8469.12
B36: 5.5 | C36: Bombeiro Hidráulico | D36: 2 funcionários | E36: mês | F36: 1 | G36: 8470 | H36: 8470 | I36: =H36/$H$139 -> 0.007930964503 | M36: 1 | N36: 8469.12
B37: 5.6 | C37: Eletricista | D37: 2 funcionários | E37: mês | F37: 1 | G37: 5140 | H37: 5140 | I37: 0.00481288755 | M37: 1 | N37: 5139.6
B38: 5.7 | C38: Técnico Eletromecânico | D38: 2 funcionários | E38: mês | F38: 1 | G38: 4079 | H38: 4079 | I38: 0.003819410178 | M38: 1 | N38: 4078.49
B39: 5.8 | C39: EPI's e EPC's | D39: verba mensal | E39: mês | F39: 1 | G39: 3500 | H39: 3500 | I39: 0.003277258059 | M39: 1 | N39: 3500
F40: 0 | G40: 0 | H40: =G40*F40 -> 0 | I40: 0
B41: 6 | C41: CEEE - ENERGIA ELÉTRICA | F41: 0 | G41: 0 | H41: =SUM(H42) -> 12000 | I41: 0.01123631335
B42: 6.1 | C42: Despesa mensal com Energia Elétrica | E42: mês | F42: 1 | G42: 12000 | H42: =G42*F42 -> 12000 | I42: 0.01123631335 | M42: 1 | N42: 12000
F43: 0 | G43: 0 | H43: 0 | I43: 0
B44: 7 | C44: TELEFONICA FIXA / INTERNET / SISTEMAS / MKT | F44: 0 | G44: 0 | H44: =SUM(H45:H49) -> 9680 | I44: 0.009063959432
B45: 7.1 | C45: Despesa mensal com Telefone | E45: mês | F45: 1 | G45: 3000 | H45: =G45*F45 -> 3000 | I45: 0.002809078336 | M45: 1 | N45: 3000
B46: 7.2 | C46: Despesa mensal com Wi-fi | E46: mês | F46: 1 | G46: 180 | H46: 180 | I46: 0.0001685447002 | M46: 1 | N46: 180
B47: 7.3 | C47: Suprimentos e insumos informática | E47: mês | F47: 1 | G47: 500 | H47: 500 | I47: 0.0004681797227 | M47: 1 | N47: 500
B48: 7.4 | C48: Manutenção de comunicação visual e estratégia de Marketing | D48: Considerado contrato de R$ 20.000 - dividido pelos 5 parques | E48: mês | F48: 1 | G48: 6000 | H48: 6000 | I48: 0.005618156673 | M48: 1 | N48: 6000
F49: 0 | G49: 0 | H49: 0 | I49: 0
B50: 8 | C50: AGUA / DMAE | F50: 0 | G50: 0 | H50: =SUM(H51) -> 15000 | I50: 0.01404539168
B51: 8.1 | C51: Despesa Mensal com Água e Esgoto | E51: mês | F51: 1 | G51: 15000 | H51: =G51*F51 -> 15000 | I51: 0.01404539168 | M51: 1 | N51: 15000
F52: 0 | G52: 0 | H52: 0 | I52: 0
B53: 9 | C53: MATERIAIS DIVERSOS MANUTENÇÃO | F53: 0 | G53: 0 | H53: =SUM(H54:H104) -> 82808 | I53: 0.07753805296
B54: 9.1 | C54: Colas químicas (estoque para manutenção anual) | E54: tubo | F54: 2 | G54: 350 | H54: =F54*G54 -> 700 | I54: 0.0006554516118 | M54: 2 | N54: 350
B55: 9.2 | C55: Fechaduras e ferragens * (substituição de 2 unidades cada 6 meses) | E55: conj. | F55: 1 | G55: 125 | H55: 125 | I55: 0.0001170449307 | M55: 0.3333333333 | N55: 125
B56: 9.3 | C56: Corda ancoradouro e boias (substituição total em 36 meses) | E56: conj. | F56: 1 | G56: 247 | H56: 247 | I56: 0.000231280783 | M56: 0.02777777778 | N56: 247
B57: 9.4 | C57: Boias de flutuação (estoque para substituição a partir do 3° ano) | E57: unid | F57: 2 | G57: 480 | H57: 960 | I57: 0.0008989050676 | M57: 2 | N57: 480
B58: 9.5 | C58: Placas de gesso (estoque para manutenções periódicas) | E58: unid | F58: 4 | G58: 167 | H58: 668 | I58: 0.0006254881095 | M58: 4 | N58: 167
B59: 9.6 | C59: Espelhos e vidros * (substituição por quebra de 1 unidade cada 6 meses) | E59: unid | F59: 1 | G59: 300 | H59: 300 | I59: 0.0002809078336 | M59: 0.1666666667 | N59: 300
B60: 9.7 | C60: Lâmpadas, reatores, luminárias (estoque para manutenções periódicas) | E60: conj. | F60: 2 | G60: 250 | H60: 500 | I60: 0.0004681797227 | M60: 2 | N60: 250
B61: 9.8 | C61: Tintas, vernizes e selador acrílico (estoque para manutenção periódica) | E61: lata | F61: 4 | G61: 1350 | H61: 5400 | I61: 0.005056341005 | M61: 4 | N61: 1350
B62: 9.9 | C62: Pesticidas (produtos para a equipe de jardinagem em seu plano de Controle de Pragas) | E62: litro | F62: 6 | G62: 930 | H62: 5580 | I62: 0.005224885706 | M62: 6 | N62: 930
B63: 9.10 | C63: Eletrobombas (verba para compra de peças e manutenções ao longo do tempo) | E63: verba | F63: 1 | G63: 234 | H63: 234 | I63: 0.0002191081102 | M63: 1 | N63: 234
B64: 9.11 | C64: Areia e Saibro rosa (estoque para a substituição quando necessário) | E64: m3 | F64: 12 | G64: 298 | H64: 3576 | I64: 0.003348421377 | M64: 12 | N64: 298
B65: 9.12 | C65: Piso podotátil (estoque para substituição periódica) | E65: unid | F65: 3 | G65: 90 | H65: 270 | I65: 0.0002528170503 | M65: 3 | N65: 90
B66: 9.13 | C66: Blocos autônomos * - iluminação de emergência (substituição de 1 unid. cada 4 meses) | E66: unid | F66: 1 | G66: 54 | H66: 54 | I66: 5.056341005e-05 | M66: 0.25 | N66: 54
B67: 9.14 | C67: Chuveiros, fios e cabos elétricos * (2 chuveiros, disjuntores, fios e resistências semestralmente) | E67: verba | F67: 1 | G67: 275 | H67: 275 | I67: 0.0002574988475 | M67: 1 | N67: 275
B68: 9.15 | C68: Granitos de pias * (substituição por quebra de 1 unidade cada 2 anos) | E68: unid | F68: 1 | G68: 103 | H68: 103 | I68: =H68/$H$139 -> 9.644502288e-05 | M68: 0.04166666667 | N68: 103
B69: 9.16 | C69: Consumíveis dos sanitários - papeis e sabonetes (pela população diária média de 500 pessoas) | E69: verba | F69: 1 | G69: 4670 | H69: 4670 | I69: 0.00437279861 | M69: 1 | N69: 4670
B70: 9.17 | C70: Divisórias Sanitárias de Granito * (substituição por quebra de 1 unidade cada 2 anos) | E70: unid | F70: =ROUNDUP(M70,0) -> 1 | G70: =ROUNDUP(N70,0) -> 96 | H70: 96 | I70: 8.989050676e-05 | M70: 0.04166666667 | N70: 96
B71: 9.18 | C71: Portas de madeira completas * (substituição cada 6 meses de 2 unidades) | E71: unid | F71: 1 | G71: 194 | H71: 194 | I71: 0.0001816537324 | M71: 0.3333333333 | N71: 194
B72: 9.19 | C72: Barras de apoio PNE's * (substituição cada 12 meses de 1 unidade) | E72: unid | F72: 1 | G72: 89 | H72: 89 | I72: 8.333599064e-05 | M72: 0.08333333333 | N72: 89
B73: 9.20 | C73: Vidro temperado * (substituição de uma peça cada 6 meses) | E73: unid | F73: 1 | G73: 233 | H73: 233 | I73: 0.0002181717508 | M73: 0.1666666667 | N73: 233
B74: 9.21 | C74: Pastilhas de vidro para reposição de revestimento (estoque para manutenção periódica) | E74: verba | F74: 1 | G74: 74 | H74: 74 | I74: 6.929059896e-05 | M74: 1 | N74: 74
B75: 9.22 | C75: Torneiras , ferragens e metais de sanitários * (substituição de 2 unidades cada 6 meses) | E75: conj. | F75: 1 | G75: 650 | H75: 650 | I75: 0.0006086336395 | M75: 0.3333333333 | N75: 650
B76: 9.23 | C76: Borracha clorada (estoque para manutenção periódica) | E76: verba | F76: 1 | G76: 836 | H76: 836 | I76: 0.0007827964964 | M76: 1 | N76: 836
B77: 9.24 | C77: Bebedouros - purificadores de água | E77: unit. | F77: 5 | G77: 650 | H77: 3250 | I77: 0.003043168198 | M77: 5 | N77: 650
B78: 9.25 | C78: EPI´s e EPC´s (conjuntos das equipes com equipamentos de proteção individual e coletiva) | E78: verba | F78: 1 | G78: 2150 | H78: 2150 | I78: 0.002013172808 | M78: 1 | N78: 2150
B79: 9.26 | C79: Maquinas corte de grama e podas de árvores (aquisição, estoque - manutenção e substituição) | E79: verba | F79: 1 | G79: 798 | H79: 798 | I79: 0.0007472148375 | M79: 1 | N79: 798
B80: 9.27 | C80: Maquina limpeza: praias, quadras de vôlei e parquinhos (aquisição, estoque - manut e substituição) | E80: unit. | F80: 1 | G80: 634 | H80: 634 | I80: 0.0005936518884 | M80: 1 | N80: 634
B81: 9.28 | C81: Dispensers dos sanitários - porta papéis e sabonetes (aquisição, estoque - manut e substituição) | E81: verba | F81: 1 | G81: 424 | H81: 424 | I81: 0.0003970164049 | M81: 1 | N81: 424
B82: 9.29 | C82: Lixeiras de reposição (aquisição, estoque - manut e substituição) | E82: verba | F82: 1 | G82: 375 | H82: 375 | I82: 0.000351134792 | M82: 1 | N82: 375
B83: 9.30 | C83: Trator com reboque para carrinho e roçadeira (custo de aquisição, manutenção e substituição) | E83: unit. | F83: 1 | G83: 1384 | H83: 1384 | I83: 0.001295921472 | M83: 1 | N83: 1384
B84: 9.31 | C84: Ferramental das equipes de manutenção, limpeza, jardinagem e vigilância | E84: verba | F84: 1 | G84: 2707 | H84: 2707 | I84: 0.002534725019 | M84: 1 | N84: 2706.5
B85: 9.32 | C85: Equipamentos das equipes de manutenção, limpeza, jardinagem e vigilância | E85: verba | F85: 1 | G85: 2997 | H85: 2997 | I85: 0.002806269258 | M85: 1 | N85: 2996.75
B86: 9.33 | C86: Assentos das bacias sanitárias * (estoque para substituição) | E86: verba | F86: 1 | G86: 239 | H86: 239 | I86: 0.0002237899075 | M86: 1 | N86: 239
B87: 9.34 | C87: Máquina de Solda Mig-150 Eletrônica-V8 Brasil-Mig-150br - DUTRA MAQUINAS | E87: unit. | F87: 1 | G87: 759 | H87: 759 | I87: 0.0007106968191 | M87: 1 | N87: 758.1
B88: 9.35 | C88: Serra Policorte 12" Alumínio s/ Disco s/ Motor CH SCAP-120N - Motomil - RR MAQUINAS | E88: unit. | F88: 1 | G88: 1049 | H88: 1049 | I88: 0.0009822410583 | M88: 1 | N88: 1049
B89: 9.36 | C89: Serra Mármore Profissional 125mm 1500W c/ Kit Refrigeração,Disco e Maleta - BOSCH -GCD-151 | E89: unit. | F89: 1 | G89: 440 | H89: 440 | I89: 0.000411998156 | M89: 1 | N89: 439.9
B90: 9.37 | C90: Furadeira de Bancada 1/2HP 5/8 Fbm160t Motomil 220/380V - RR MAQUINAS | E90: unit. | F90: 1 | G90: 935 | H90: 935 | I90: 0.0008754960815 | M90: 1 | N90: 935
B91: 9.38 | C91: Serra Circular de Bancada 255mm 1650W | E91: unit. | F91: 1 | G91: 5253 | H91: 5253 | I91: 0.004918696167 | M91: 1 | N91: 5252.62
B92: 9.39 | C92: Furadeira Parafusadeira Impacto GSB 16 Re + Maleta - Bosch | E92: unit. | F92: 2 | G92: 329 | H92: 658 | I92: 0.0006161245151 | M92: 2 | N92: 329
B93: 9.40 | C93: Martelete Rompedor 0-5100imp 800W c/ Maleta 220V - GBH 2-24DF - Bosch | E93: unit. | F93: 1 | G93: 773 | H93: 773 | I93: 0.0007238058513 | M93: 1 | N93: 773
B94: 9.41 | C94: Gerador à Gasolina 6kva Trif Part. Elétrica - Nagano | E94: unit. | F94: 1 | G94: 2699 | H94: 2699 | I94: 0.002527234143 | M94: 1 | N94: 2699
B95: 9.42 | C95: Andaime - Torre de 10 m | E95: unit. | F95: 1 | G95: 950 | H95: 950 | I95: 0.0008895414732 | M95: 1 | N95: 950
B96: 9.43 | C96: Multímetro modelo 289 | E96: unit. | F96: 1 | G96: 5200 | H96: 5200 | I96: 0.004869069116 | M96: 1 | N96: 5200
B97: 9.44 | C97: Bancada c/ 3 Gavetas, Tampo Madeira Compensada 40mm 200 x 60 x 92 cm | E97: unit. | F97: 1 | G97: 880 | H97: 880 | I97: 0.000823996312 | M97: 1 | N97: 879.9
B98: 9.45 | C98: Carro de Ferramentas com 380 Peças e 7 Gavetas FG6100 | E98: unit. | F98: 1 | G98: 3666 | H98: 3666 | I98: 0.003432693727 | M98: 1 | N98: 3665.56
B99: 9.46 | C99: Caixa de ferramenta Marcenaria | E99: unit. | F99: 1 | G99: 2790 | H99: 2790 | I99: 0.002612442853 | M99: 1 | N99: 2790
B100: 9.47 | C100: Caixa de ferramenta Hidráulica | E100: unit. | F100: 1 | G100: 1300 | H100: 1300 | I100: =H100/$H$139 -> 0.001217267279 | M100: 1 | N100: 1300
B101: 9.48 | C101: Caixa de ferramenta Predial | E101: unit. | F101: 1 | G101: 2800 | H101: 2800 | I101: 0.002621806447 | M101: 1 | N101: 2800
B102: 9.49 | C102: Caixa de ferramenta Elétrica | E102: unit. | F102: 1 | G102: 1300 | H102: 1300 | I102: 0.001217267279 | M102: 1 | N102: 1300
B103: 9.50 | C103: Varredeira Urbana MC-50 | D103: Exceto Saibro. Utilizado em Passeios cimentados | E103: unit. | F103: 4 | G103: 2641 | H103: 10564 | I103: 0.009891701182 | M103: 4 | N103: 2640.9
F104: 0 | G104: 0 | I104: 0
B105: 10 | C105: LOCAÇÕES VEICULOS / EQUIPAMENTOS | F105: 0 | G105: 0 | H105: =SUM(H106:H111) -> 64659 | I105: 0.06054406538 | L105: Alugando 20 carros - R$ 1.600/mês | O105: =N105*12 -> 0 | P105: =O105*30 -> 0
B106: 10.1 | C106: Caminhão | D106: 1 caminhão | E106: mês | F106: 1 | G106: 6000 | H106: =G106*F106 -> 6000 | I106: 0.005618156673 | J106: Considerado para 5 parques | M106: =1/5 -> 0.2 | N106: 6000
B107: 10.2 | C107: Carro de passeio | D107: Aluguel mensal de Carro - 5 carros | E107: mês | F107: 1 | G107: 10000 | H107: 10000 | I107: 0.009363594454 | M107: 1 | N107: 10000
B108: 10.3 | C108: Motorista | D108: 6 funcionários | E108: mês | F108: 1 | G108: 26359 | H108: 26359 | I108: 0.02468149862 | M108: 1 | N108: 26358.42
B109: 10.4 | C109: Retroescavadeira | D109: Limpeza dos lagos - Aluguel estimado para os 5 parques | E109: mês | F109: 1 | G109: 18000 | H109: 18000 | I109: 0.01685447002 | M109: 0.2 | N109: 18000
B110: 10.5 | C110: Operador de Retroescavadeira | D110: Limpeza dos lagos - Aluguel estimado para os 5 parques | E110: mês | F110: 1 | G110: 4300 | H110: 4300 | I110: 0.004026345615 | M110: 0.2 | N110: 4300
F111: 0 | G111: 0 | I111: 0
B112: 11 | C112: COMBUSTIVEL | F112: 0 | G112: 0 | H112: =SUM(H113:H114) -> 10668 | I112: 0.009989082564
B113: 11.1 | C113: Combustível para Carros | D113: Ver composição - considerando 5 automóveis por mês | E113: mês | F113: 1 | G113: 10068 | H113: =F113*G113 -> 10068 | I113: 0.009427266897 | J113: Ref. Movida locadora | M113: 1 | N113: 10067.85714
B114: 11.2 | C114: Combustível para Equipamentos | D114: Diesel - escavadeiras, pás carregadeiras, retroescavadeiras, tratores de esteiras e gerador | E114: mês | F114: 1 | G114: 600 | H114: 600 | I114: 0.0005618156673 | M114: 1 | N114: 600
F115: 0 | G115: 0 | I115: 0
B116: 12 | C116: SUSEPE | F116: 0 | G116: 0 | H116: =SUM(H117:H118) -> 16053 | I116: 0.01503137818
B117: 12.1 | C117: Mão de obra de Apoio - Apenados | D117: Utilizar equipe dos Apenados para serviços gerais - Equipe com 15 pessoas | E117: mês | F117: 1 | G117: 15453 | H117: =G117*F117 -> 15453 | I117: 0.01446956251 | M117: 1 | N117: 15453
B118: 12.2 | C118: Alimentação | D118: Alimentação dos Apenados - Equipe com 15 pessoas | E118: mês | F118: 1 | G118: 600 | H118: 600 | I118: 0.0005618156673 | M118: 1 | N118: 600
F119: 0 | G119: 0 | I119: 0
B120: 13 | C120: SEGURO | F120: 0 | G120: 0 | H120: =SUM(H121:H124) -> 1162 | I120: 0.001088049676
B121: 13.1 | C121: Seguro Patrimonial | D121: (% do valor do patrimônio) - 5% | E121: mês | F121: 1 | G121: 726 | H121: =G121*F121 -> 726 | I121: 0.0006797969574 | L121: =H139 -> 1067965.945 | M121: 1 | N121: 725.94846
B122: 13.2 | C122: Responsabilidade Civil | D122: (% da receita) - 3% | E122: mês | F122: 1 | G122: 436 | H122: 436 | I122: 0.0004082527182 | M122: 1 | N122: 435.569076
B123: 13.3 | C123: Risco de Engenharia | D123: Obras - (% do valor da obra) - incluso CAPEX | E123: mês | F123: 1 | G123: 0 | H123: 0 | I123: 0 | J123: Incluso CAPEX | M123: 1 | N123: 0
B124: 13.4 | C124: Responsabilidade Civil | D124: Obras - (% do valor da obra) - incluso CAPEX | E124: mês | F124: 1 | G124: 0 | H124: 0 | I124: 0 | J124: Incluso CAPEX | M124: 1 | N124: 0
F125: 0 | G125: 0 | I125: 0
B126: 14 | C126: DESPESA DE PESSOAL - ADMINISTRAÇÃO | F126: 0 | G126: 0 | H126: =SUM(H127:H134) -> 37572.39 | I126: 0.03518126226
B127: 14.1 | C127: Gerente GERAL | D127: Considerado 1 funcionário - Ref. Cataratas | E127: mês | F127: =ROUNDUP(M127,0)*0.27 -> 0.27 | G127: 32987 | H127: =G127*F127 -> 8906.49 | I127: 0.008339676037 | J127: Rateado para os 5 parques | M127: 1 | N127: 32986.06
B128: 14.2 | C128: Assistente Financeiro | D128: Considerado 3 funcionários - Ref. Cataratas | E128: mês | F128: 0.27 | G128: 15707 | H128: 4240.89 | I128: 0.003970997409 | J128: Rateado para os 5 parques | M128: 1 | N128: 15706.95
B129: 14.3 | C129: Analista de RH | D129: Considerado 3 funcionário - Ref. Cataratas | E129: mês | F129: 0.27 | G129: =ROUNDUP(N129,0) -> 28944 | H129: 7814.88 | I129: 0.007317536703 | J129: Rateado para os 5 parques | M129: 1 | N129: 28943.7
B130: 14.4 | C130: Técnico Segurança do Trabalho | D130: Considerado 2 funcionários - Ref. Cataratas | E130: mês | F130: 0.27 | G130: 11490 | H130: 3102.3 | I130: 0.002904867908 | M130: 1 | N130: 11489.42
B131: 14.5 | C131: Analista de Marketing | D131: Considerado 2 funcionários - Ref. Cataratas | E131: mês | F131: 0.27 | G131: 10736 | H131: 2898.72 | I131: 0.002714243852 | J131: Rateado para os 5 parques | M131: 1 | N131: 10735.62
B132: 14.6 | C132: Jovem Aprendiz | D132: Considerado 10 funcionários - Ref. Cataratas | E132: mês | F132: 0.27 | G132: 6306 | H132: 1702.62 | I132: =H132/$H$139 -> 0.001594264319 | M132: 1 | N132: 6306
B133: 14.7 | C133: Gerente de Operações | D133: Considerado 1 funcionário - Ref. Cataratas | E133: mês | F133: 0.27 | G133: 32987 | H133: =G133*F133 -> 8906.49 | I133: 0.008339676037 | J133: Rateado para os 5 parques | M133: 1 | N133: =N127 -> 32986.06
F134: =ROUNDUP(M134,0) -> 0 | G134: 0 | H134: 0 | I134: 0
B135: 15 | C135: DESPESA DE MANUTENÇÃO OBRA DE ARTE | F135: 0 | G135: 0 | H135: =H136 -> 5000 | I135: 0.004681797227
B136: 15.1 | C136: Despesa com manutenção e limpeza de obra arte | D136: Para todos os bustos - iluminados, limpos e livre de depredação | E136: mês | F136: 1 | G136: 5000 | H136: =G136*F136 -> 5000 | I136: 0.004681797227 | M136: 1 | N136: 5000
J138: TOTAL/ M2
B139: TOTAL MENSAL: | H139: =SUM(H4:H137)/2 -> 1067965.945 | I139: =SUM(I4:I137)/2 -> 1 | J139: =H139/375000 -> 2.847909187
H140: =SUMPRODUCT(F4:F137,G4:G137)=H139 -> TRUE
B141: TOTAL POR ANO: | H141: =H139*12 -> 12815591.34
B143: TOTAL EM 30 ANOS: | H143: =H141*30 -> 384467740.2
C149: GÁS?
C150: CFTV?
C151: AMBULANCIA /POSTO ENFERMAGEM / ENFERMEIRO ?

Sheet OPEX - Moinhos
B2: OPEX - PARQUE MOINHOS DE VENTO Área = 115.000 m²
B3: ITEM | C3: DESCRIÇÃO PARQUE | D3: PREMISSAS | E3: UNID. | F3: QUANTIDADE | G3: VALOR UNITÁRIO | H3: VALOR TOTAL MENSAL | I3: PESO (%) | J3: OBSERVAÇÃO | M3: QUANTIDADE | N3: VALOR UNITÁRIO
B4: 1 | C4: CUSTOS AMBIENTAIS | H4: =SUM(H5:H8) -> 15014 | I4: =H4/$H$140 -> 0.0324991126
B5: 1.1 | C5: Árvores | D5: Recuperação de perdas, conforme planilha Para o período de 30 anos | E5: mês | F5: =ROUNDUP(M5,0) -> 1 | G5: =ROUNDUP(N5,0) -> 139 | H5: =F5*G5 -> 139 | I5: 0.0003008776243 | M5: 1 | N5: 138.8888889
B6: 1.2 | C6: Material Educação Ambiental | D6: Folder, insumos, material geral (15 mil ano, p/ 30 anos) | E6: mês | F6: =ROUNDUP(M6,0) -> 1 | G6: =ROUNDUP(N6,0) -> 1250 | H6: 1250 | I6: 0.002705734032 | M6: 1 | N6: 1250
B7: 1.3 | C7: Educador Ambiental | D7: 1 educador formado + 5 estagiários (clt + contrato de estágio) - fixo mensal | E7: mês | F7: 1 | G7: 13000 | H7: 13000 | I7: 0.02813963393 | M7: 1 | N7: 13000
B8: 1.4 | C8: Veterinários e Ajudantes | D8: Laudos anuais (R$ 1.500,00 p/dia, por 5 dias p/ano, p/ 30 anos) | E8: mês | F8: 1 | G8: 625 | H8: 625 | I8: 0.001352867016 | M8: 1 | N8: 625
F9: 0 | G9: 0 | I9: 0
B10: 2 | C10: SEGURANÇA | F10: 0 | G10: 0 | H10: =SUM(H11:H14) -> 116729 | I10: 0.2526701022
B11: 2.1 | C11: Portaria 24 horas | D11: Considerado portaria 24 horas - Equipe com turnos de 12 horas (incluso folguistas) - 6 funcionários | E11: mês | F11: 0 | G11: 26946 | H11: =F11*G11 -> 0 | I11: 0 | M11: 0 | N11: 26945.22
B12: 2.2 | C12: Vigilância - Líder | D12: 1 funcionário | E12: mês | F12: 1 | G12: 8888 | H12: 8888 | I12: 0.01923885126 | M12: 1 | N12: 8887.3
B13: 2.3 | C13: Vigilância - Ronda Diurna | D13: 1 vigia a cada 10.000m², apenas no período diurno - 12 funcionários | E13: mês | F13: 1 | G13: 107841 | H13: 107841 | I13: 0.233431251 | M13: 1 | N13: 107840.56
F14: 0 | G14: 0 | I14: 0
B15: 3 | C15: LIMPEZA | F15: 0 | G15: 0 | H15: =SUM(H16:H19) -> 46087 | I15: 0.09975933145
B16: 3.1 | C16: Material - Limpeza | D16: Custo mensal com materiais: produtos de limpeza | E16: mês | F16: 1 | G16: 4000 | H16: =F16*G16 -> 4000 | I16: 0.008658348901 | M16: 1 | N16: 4000
B17: 3.2 | C17: Equipe de Limpeza | D17: Encarregado de Limpeza - 1 funcionário | E17: mês | F17: 1 | G17: 4222 | H17: 4222 | I17: 0.009138887265 | M17: 1 | N17: 4221.78
B18: 3.3 | C18: Equipe de Limpeza | D18: Auxiliar de Limpeza - 5 funcionários | E18: mês | F18: 1 | G18: 21500 | H18: 21500 | I18: 0.04653862534 | M18: 1 | N18: 21499.5
B19: 3.4 | C19: Equipe de Limpeza | D19: Coletor de Lixo - 5 funcionários | E19: mês | F19: 1 | G19: 16365 | H19: 16365 | I19: 0.03542346994 | M19: 1 | N19: 16364.3
F20: 0 | G20: 0 | I20: 0
B21: 4 | C21: MANUTENÇÃO DE ÁREAS VERDES | F21: 0 | G21: 0 | H21: =SUM(H22:H31) -> 87841.865 | I21: 0.1901413788
B22: 4.1 | C22: Roçada / capina dos gramados | D22: 1 x mês - inverno / outono 2 x mês - primavera / verão | E22: m² | F22: 79891 | G22: =N22 -> 0.375 | H22: =G22*F22 -> 29959.125 | I22: 0.06484913926 | M22: 79890.57 | N22: 0.375
B23: 4.2 | C23: Jardinagem - Trabalho Diário (hectare) | D23: Coleta de detritos em pátios e áreas verdes – frequência diária (em ha) | E23: mês | F23: 8 | G23: 370 | H23: 2960 | I23: 0.006407178187 | J23: CADTERC (BEC.SP) | M23: =79890.57/10000 -> 7.989057 | N23: 370
B24: 4.3 | C24: Poda | D24: Poda com supressão - Estimativa Contrato Atual | E24: mês | F24: 44800 | G24: =N24 -> 0.62 | H24: 27776 | I24: 0.06012357477 | J24: CADTERC (BEC.SP) | M24: 44800 | N24: 0.62
B25: 4.4 | C25: Encarregado de Jardinagem | D25: 1 funcionário | E25: mês | F25: 1 | G25: 3629 | H25: 3629 | I25: 0.007855287041 | M25: 1 | N25: 3628.55
B26: 4.5 | C26: Operador de Equipamentos | D26: 1 funcionário | E26: mês | F26: 1 | G26: 4133 | H26: 4133 | I26: 0.008946239002 | M26: 1 | N26: 4132.41
B27: 4.6 | C27: Trabalhos com Varrição (baixa frequência) | D27: 1 funcionário | E27: mês | F27: 79891 | G27: =N27 -> 0.14 | H27: 11184.74 | I27: 0.02421034532 | J27: CADTERC (BEC.SP) | M27: 79890.57 | N27: 0.14
B28: 4.7 | C28: Transbordo do lixo | E28: mês | F28: 1 | G28: 6000 | H28: 6000 | I28: 0.01298752335 | J28: Incluso viagem + motorista + 2 operadores - 1x semana | M28: 1 | N28: 6000
B29: 4.8 | C29: Limpeza de Lagos | D29: Tratamento de água, resíduos e efluentes, operação, limpeza e manutenção de espelhos d'água, imunização e controle de pragas, análises laboratoriais - programa agua/icmbio, limpeza e higiene das caixas d'água e cisternas. | E29: mês | F29: 1 | G29: 0 | H29: 0 | I29: 0 | J29: Ref. Cataratas 2019 (+30%) | M29: 1 | N29: 0
B30: 4.9 | C30: Limpeza de Espelhos D´Água | E30: mês | F30: 1 | G30: 2200 | H30: 2200 | I30: 0.004762091896 | M30: 1 | N30: 2200
F31: 0 | G31: 0 | H31: 0 | I31: 0
B32: 5 | C32: MANUTENÇÃO CIVIL E PREDIAL | F32: 0 | G32: 0 | H32: =SUM(H33:H40) -> 44171 | I32: 0.09561198233
B33: 5.1 | C33: Equipe de manutenção Civil | D33: Pedreiro - 1 funcionário | E33: mês | F33: 1 | G33: 4078 | H33: =F33*G33 -> 4078 | I33: 0.008827186705 | M33: 1 | N33: 4077.58
B34: 5.2 | C34: Equipe de manutenção Civil | D34: Ajudante de Pedreiro - 2 funcionários | E34: mês | F34: 1 | G34: 7626 | H34: 7626 | I34: 0.01650714218 | M34: 1 | N34: 7625.82
B35: 5.3 | C35: Equipe de manutenção Civil | D35: Pintor - 1 funcionário | E35: mês | F35: 1 | G35: 3808 | H35: 3808 | I35: 0.008242748154 | M35: 1 | N35: 3807.03
B36: 5.4 | C36: Bombeiro Civil | D36: 1 funcionário | E36: mês | F36: 1 | G36: 8470 | H36: 8470 | I36: =H36/$H$140 -> 0.0183340538 | M36: 1 | N36: 8469.12
B37: 5.5 | C37: Bombeiro Hidráulico | D37: 1 funcionário | E37: mês | F37: 1 | G37: 8470 | H37: 8470 | I37: 0.0183340538 | M37: 1 | N37: 8469.12
B38: 5.6 | C38: Eletricista | D38: 1 funcionário | E38: mês | F38: 1 | G38: 5140 | H38: 5140 | I38: 0.01112597834 | M38: 1 | N38: 5139.6
B39: 5.7 | C39: Técnico Eletromecânico | D39: 1 funcionário | E39: mês | F39: 1 | G39: 4079 | H39: 4079 | I39: 0.008829351292 | M39: 1 | N39: 4078.49
B40: 5.8 | C40: EPI's e EPC's | D40: Verba mensal | E40: mês | F40: 1 | G40: 2500 | H40: 2500 | I40: 0.005411468063 | M40: 1 | N40: 2500
F41: 0 | G41: 0 | H41: =G41*F41 -> 0 | I41: 0
B42: 6 | C42: CEEE | F42: 0 | G42: 0 | H42: =SUM(H43) -> 8000 | I42: 0.0173166978
B43: 6.1 | C43: Despesa mensal com Energia Elétrica | E43: mês | F43: 1 | G43: 8000 | H43: =G43*F43 -> 8000 | I43: 0.0173166978 | M43: 1 | N43: 8000
F44: 0 | G44: 0 | H44: 0 | I44: 0
B45: 7 | C45: TELEFONICA FIXA / INTERNET / SISTEMAS / MARKETING | F45: 0 | G45: 0 | H45: =SUM(H46:H50) -> 8680 | I45: 0.01878861712
B46: 7.1 | C46: Despesa mensal com Telefone | E46: mês | F46: 1 | G46: 2000 | H46: =G46*F46 -> 2000 | I46: 0.004329174451 | M46: 1 | N46: 2000
B47: 7.2 | C47: Despesa mensal com Wi-fi | E47: mês | F47: 1 | G47: 180 | H47: 180 | I47: 0.0003896257006 | M47: 1 | N47: 180
B48: 7.3 | C48: Suprimentos e insumos informática | E48: mês | F48: 1 | G48: 500 | H48: 500 | I48: 0.001082293613 | M48: 1 | N48: 500
B49: 7.4 | C49: Manutenção de comunicação visual e estratégia de Marketing | D49: Considerado contrato de R$ 20.000 - dividido pelos 5 parques | E49: mês | F49: 1 | G49: 6000 | H49: 6000 | I49: 0.01298752335 | M49: 1 | N49: 6000
F50: 0 | G50: 0 | H50: 0 | I50: 0
B51: 8 | C51: AGUA / DMAE | F51: 0 | G51: 0 | H51: =SUM(H52) -> 10000 | I51: 0.02164587225
B52: 8.1 | C52: Despesa Mensal com Água e Esgoto | E52: mês | F52: 1 | G52: 10000 | H52: =G52*F52 -> 10000 | I52: 0.02164587225 | M52: 1 | N52: 10000
F53: 0 | G53: 0 | H53: 0 | I53: 0
B54: 9 | C54: MATERIAIS DIVERSOS MANUTENÇÃO | F54: 0 | G54: 0 | H54: =SUM(H55:H105) -> 67115 | I54: 0.1452762716 | O54: 1 ano | P54: 30 anos
B55: 9.1 | C55: Colas químicas (estoque para manutenção anual) | E55: tubo | F55: 1 | G55: 350 | H55: =F55*G55 -> 350 | I55: 0.0007576055288 | M55: 1 | N55: 350
B56: 9.2 | C56: Fechaduras e ferragens * (substituição de 2 unidades cada 6 meses) | E56: conj. | F56: 1 | G56: 125 | H56: 125 | I56: 0.0002705734032 | M56: 0.1666666667 | N56: 125
B57: 9.3 | C57: Corda ancoradouro e boias (substituição total em 36 meses) | E57: conj. | F57: 1 | G57: 247 | H57: 247 | I57: 0.0005346530446 | M57: 0.01388888889 | N57: 247
B58: 9.4 | C58: Boias de flutuação (estoque para substituição a partir do 3° ano) | E58: unid | F58: 1 | G58: 480 | H58: 480 | I58: 0.001039001868 | M58: 1 | N58: 480
B59: 9.5 | C59: Placas de gesso (estoque para manutenções periódicas) | E59: unid | F59: 2 | G59: 167 | H59: 334 | I59: 0.0007229721332 | M59: 2 | N59: 167
B60: 9.6 | C60: Espelhos e vidros * (substituição por quebra de 1 unidade cada 6 meses) | E60: unid | F60: 1 | G60: 300 | H60: 300 | I60: 0.0006493761676 | M60: 0.08333333333 | N60: 300
B61: 9.7 | C61: Lâmpadas, reatores, luminárias (estoque para manutenções periódicas) | E61: conj. | F61: 1 | G61: 250 | H61: 250 | I61: 0.0005411468063 | M61: 1 | N61: 250
B62: 9.8 | C62: Tintas, vernizes e selador acrílico (estoque para manutenção periódica) | E62: lata | F62: 2 | G62: 1350 | H62: 2700 | I62: 0.005844385508 | M62: 2 | N62: 1350
B63: 9.9 | C63: Pesticidas (produtos para a equipe de jardinagem em seu plano de Controle de Pragas) | E63: litro | F63: 3 | G63: 930 | H63: 2790 | I63: 0.006039198359 | M63: 3 | N63: 930
B64: 9.10 | C64: Eletrobombas (verba para compra de peças e manutenções ao longo do tempo) | E64: verba | F64: 1 | G64: 234 | H64: 234 | I64: 0.0005065134107 | M64: 0.5 | N64: 234
B65: 9.11 | C65: Areia e Saibro rosa (estoque para a substituição quando necessário) | E65: m3 | F65: 6 | G65: 298 | H65: 1788 | I65: 0.003870281959 | M65: 6 | N65: 298
B66: 9.12 | C66: Piso podotátil (estoque para substituição periódica) | E66: unid | F66: 2 | G66: 90 | H66: 180 | I66: 0.0003896257006 | M66: 1.5 | N66: 90
B67: 9.13 | C67: Blocos autônomos * - iluminação de emergência (substituição de 1 unid. cada 4 meses) | E67: unid | F67: 1 | G67: 54 | H67: 54 | I67: 0.0001168877102 | M67: 0.08333333333 | N67: 54
B68: 9.14 | C68: Chuveiros, fios e cabos elétricos * (2 chuveiros, disjuntores, fios e resistências semestralmente) | E68: verba | F68: 1 | G68: 275 | H68: 275 | I68: =H68/$H$140 -> 0.000595261487 | M68: 0.5 | N68: 275
B69: 9.15 | C69: Granitos de pias * (substituição por quebra de 1 unidade cada 2 anos) | E69: unid | F69: 1 | G69: 103 | H69: 103 | I69: 0.0002229524842 | M69: 0.02 | N69: 103
B70: 9.16 | C70: Consumíveis dos sanitários - papeis e sabonetes (pela população diária média de 500 pessoas) | E70: verba | F70: =ROUNDUP(M70,0) -> 1 | G70: =ROUNDUP(N70,0) -> 4670 | H70: 4670 | I70: 0.01010862234 | M70: 0.5 | N70: 4670
B71: 9.17 | C71: Divisórias Sanitárias de Granito * (substituição por quebra de 1 unidade cada 2 anos) | E71: unid | F71: 1 | G71: 96 | H71: 96 | I71: 0.0002078003736 | M71: 0.02 | N71: 96
B72: 9.18 | C72: Portas de madeira completas * (substituição cada 6 meses de 2 unidades) | E72: unid | F72: 1 | G72: 194 | H72: 194 | I72: 0.0004199299217 | M72: 0.165 | N72: 194
B73: 9.19 | C73: Barras de apoio PNE's * (substituição cada 12 meses de 1 unidade) | E73: unid | F73: 1 | G73: 89 | H73: 89 | I73: 0.0001926482631 | M73: 0.04 | N73: 89
B74: 9.20 | C74: Vidro temperado * (substituição de uma peça cada 6 meses) | E74: unid | F74: 1 | G74: 233 | H74: 233 | I74: 0.0005043488235 | M74: 0.085 | N74: 233
B75: 9.21 | C75: Pastilhas de vidro para reposição de revestimento (estoque para manutenção periódica) | E75: verba | F75: 1 | G75: 74 | H75: 74 | I75: 0.0001601794547 | M75: 0.5 | N75: 74
B76: 9.22 | C76: Torneiras , ferragens e metais de sanitários * (substituição de 2 unidades cada 6 meses) | E76: conj. | F76: 1 | G76: 650 | H76: 650 | I76: 0.001406981696 | M76: 0.165 | N76: 650
B77: 9.23 | C77: Borracha clorada (estoque para manutenção periódica) | E77: verba | F77: 1 | G77: 836 | H77: 836 | I77: 0.00180959492 | M77: 0.5 | N77: 836
B78: 9.24 | C78: Bebedouros - purificadores de água | E78: unit. | F78: 3 | G78: 650 | H78: 1950 | I78: 0.004220945089 | M78: 2.5 | N78: 650
B79: 9.25 | C79: EPI´s e EPC´s (conjuntos das equipes com equipamentos de proteção individual e coletiva) | E79: verba | F79: 1 | G79: 2150 | H79: 2150 | I79: 0.004653862534 | M79: 0.5 | N79: 2150
B80: 9.26 | C80: Maquinas corte de grama e podas de árvores (aquisição, estoque - manutenção e substituição) | E80: verba | F80: 1 | G80: 798 | H80: 798 | I80: 0.001727340606 | M80: 0.5 | N80: 798
B81: 9.27 | C81: Maquina limpeza: praias, quadras de vôlei e parquinhos (aquisição, estoque - manut e substituição) | E81: unit. | F81: 1 | G81: 634 | H81: 634 | I81: 0.001372348301 | M81: 0.5 | N81: 634
B82: 9.28 | C82: Dispensers dos sanitários - porta papéis e sabonetes (aquisição, estoque - manut e substituição) | E82: verba | F82: 1 | G82: 424 | H82: 424 | I82: 0.0009177849835 | M82: 0.5 | N82: 424
B83: 9.29 | C83: Lixeiras de reposição (aquisição, estoque - manut e substituição) | E83: verba | F83: 1 | G83: 375 | H83: 375 | I83: 0.0008117202095 | M83: 0.5 | N83: 375
B84: 9.30 | C84: Trator com reboque para carrinho e roçadeira (custo de aquisição, manutenção e substituição) | E84: unit. | F84: 1 | G84: 1384 | H84: 1384 | I84: 0.00299578872 | M84: 0.5 | N84: 1384
B85: 9.31 | C85: Ferramental das equipes de manutenção, limpeza, jardinagem e vigilância | E85: verba | F85: 1 | G85: 2707 | H85: 2707 | I85: 0.005859537619 | M85: 0.5 | N85: 2706.5
B86: 9.32 | C86: Equipamentos das equipes de manutenção, limpeza, jardinagem e vigilância | E86: verba | F86: 1 | G86: 2997 | H86: 2997 | I86: 0.006487267914 | M86: 0.5 | N86: 2996.75
B87: 9.33 | C87: Assentos das bacias sanitárias * (estoque para substituição) | E87: verba | F87: 1 | G87: 239 | H87: 239 | I87: 0.0005173363468 | M87: 0.5 | N87: 239
B88: 9.34 | C88: Máquina de Solda Mig-150 Eletrônica-V8 Brasil-Mig-150br - DUTRA MAQUINAS | E88: unit. | F88: 1 | G88: 759 | H88: 759 | I88: 0.001642921704 | M88: 0.5 | N88: 758.1
B89: 9.35 | C89: Serra Policorte 12" Alumínio s/ Disco s/ Motor CH SCAP-120N - Motomil - RR MAQUINAS | E89: unit. | F89: 1 | G89: 1049 | H89: 1049 | I89: 0.002270651999 | M89: 0.5 | N89: 1049
B90: 9.36 | C90: Serra Mármore Profissional 125mm 1500W c/ Kit Refrigeração,Disco e Maleta - BOSCH -GCD-151 | E90: unit. | F90: 1 | G90: 440 | H90: 440 | I90: 0.0009524183791 | M90: 0.5 | N90: 439.9
B91: 9.37 | C91: Furadeira de Bancada 1/2HP 5/8 Fbm160t Motomil 220/380V - RR MAQUINAS | E91: unit. | F91: 1 | G91: 935 | H91: 935 | I91: 0.002023889056 | M91: 0.5 | N91: 935
B92: 9.38 | C92: Serra Circular de Bancada 255mm 1650W | E92: unit. | F92: 1 | G92: 5253 | H92: 5253 | I92: 0.01137057669 | M92: 0.5 | N92: 5252.62
B93: 9.39 | C93: Furadeira Parafusadeira Impacto GSB 16 Re + Maleta - Bosch | E93: unit. | F93: 1 | G93: 329 | H93: 329 | I93: 0.0007121491971 | M93: 1 | N93: 329
B94: 9.40 | C94: Martelete Rompedor 0-5100imp 800W c/ Maleta 220V - GBH 2-24DF - Bosch | E94: unit. | F94: 1 | G94: 773 | H94: 773 | I94: 0.001673225925 | M94: 0.5 | N94: 773
B95: 9.41 | C95: Gerador à Gasolina 6kva Trif Part. Elétrica - Nagano | E95: unit. | F95: 1 | G95: 2699 | H95: 2699 | I95: 0.005842220921 | M95: 0.5 | N95: 2699
B96: 9.42 | C96: Andaime - Torre de 10 m | E96: unit. | F96: 1 | G96: 950 | H96: 950 | I96: 0.002056357864 | M96: 0.5 | N96: 950
B97: 9.43 | C97: Multímetro modelo 289 | E97: unit. | F97: 1 | G97: 5200 | H97: 5200 | I97: 0.01125585357 | M97: 0.5 | N97: 5200
B98: 9.44 | C98: Bancada c/ 3 Gavetas, Tampo Madeira Compensada 40mm 200 x 60 x 92 cm | E98: unit. | F98: 1 | G98: 880 | H98: 880 | I98: 0.001904836758 | M98: 0.5 | N98: 879.9
B99: 9.45 | C99: Carro de Ferramentas com 380 Peças e 7 Gavetas FG6100 | E99: unit. | F99: 1 | G99: 3666 | H99: 3666 | I99: 0.007935376768 | M99: 0.5 | N99: 3665.56
B100: 9.46 | C100: Caixa de ferramenta Marcenaria | E100: unit. | F100: 1 | G100: 2790 | H100: 2790 | I100: =H100/$H$140 -> 0.006039198359 | M100: 0.5 | N100: 2790
B101: 9.47 | C101: Caixa de ferramenta Hidráulica | E101: unit. | F101: 1 | G101: 1300 | H101: 1300 | I101: 0.002813963393 | M101: 0.5 | N101: 1300
B102: 9.48 | C102: Caixa de ferramenta Predial | E102: unit. | F102: 1 | G102: 2800 | H102: 2800 | I102: 0.006060844231 | M102: 0.5 | N102: 2800
B103: 9.49 | C103: Caixa de ferramenta Elétrica | E103: unit. | F103: 1 | G103: 1300 | H103: 1300 | I103: 0.002813963393 | M103: 0.5 | N103: 1300
B104: 9.50 | C104: Varredeira Urbana MC-50 | E104: unit. | F104: 2 | G104: 2641 | H104: 5282 | I104: 0.01143334972 | M104: 2 | N104: 2640.9
F105: 0 | G105: 0 | I105: 0
B106: 10 | C106: LOCAÇÕES VEICULOS / EQUIPAMENTOS | F106: 0 | G106: 0 | H106: =SUM(H107:H112) -> 25180 | I106: 0.05450430633 | L106: Alugando 20 carros - R$ 1.600/mês | O106: =N106*12 -> 0 | P106: =O106*30 -> 0
B107: 10.1 | C107: Caminhão | D107: 1 caminhão | E107: mês | F107: 1 | G107: 6000 | H107: =G107*F107 -> 6000 | I107: 0.01298752335 | J107: Considerado para 5 parques | M107: =1/5 -> 0.2 | N107: 6000
B108: 10.2 | C108: Carro de passeio | D108: Aluguel mensal de Carro - 3 carros | E108: mês | F108: 1 | G108: 6000 | H108: =G108*F108 -> 6000 | I108: 0.01298752335 | M108: 1 | N108: 6000
B109: 10.3 | C109: Motorista | D109: 3 funcionários | E109: mês | F109: 1 | G109: 13180 | H109: 13180 | I109: 0.02852925963 | M109: 1 | N109: 13179.21
B110: 10.4 | C110: Retroescavadeira | D110: Limpeza dos lagos | E110: mês | F110: 0 | G110: 18000 | H110: 0 | I110: 0 | J110: ALUGUEL | M110: 0 | N110: 18000
B111: 10.5 | C111: Operador de Retroescavadeira | E111: mês | F111: 0 | G111: 4300 | H111: 0 | I111: 0 | M111: 0 | N111: 4300
F112: 0 | G112: 0 | I112: 0
B113: 11 | C113: COMBUSTIVEL | F113: 0 | G113: 0 | H113: =SUM(H114:H115) -> 6641 | I113: 0.01437502376
B114: 11.1 | C114: Combustível para Carros | D114: Ver composição - considerando 3 automóveis por mês | E114: mês | F114: 1 | G114: 6041 | H114: =F114*G114 -> 6041 | I114: 0.01307627143 | M114: 1 | N114: 6040.714286
B115: 11.2 | C115: Combustível para Equipamentos | D115: Diesel - escavadeiras, pás carregadeiras, retroescavadeiras, tratores de esteiras e gerador | E115: mês | F115: 1 | G115: 600 | H115: 600 | I115: 0.001298752335 | M115: 1 | N115: 600
F116: 0 | G116: 0 | I116: 0
B117: 12 | C117: SUSEPE | F117: 0 | G117: 0 | H117: =SUM(H118:H119) -> 6422 | I117: 0.01390097916
B118: 12.1 | C118: Mão de obra de Apoio - Apenados | D118: Utilizar equipe dos Apenados para serviços gerais - Equipe com 6 pessoas | E118: mês | F118: 1 | G118: 6182 | H118: =G118*F118 -> 6182 | I118: 0.01338147823 | M118: 1 | N118: 6181.2
B119: 12.2 | C119: Alimentação | D119: Alimentação dos Apenados - Equipe com 6 pessoas | E119: mês | F119: 1 | G119: 240 | H119: 240 | I119: 0.0005195009341 | M119: 1 | N119: 240
F120: 0 | G120: 0 | I120: 0
B121: 13 | C121: SEGURO | F121: 0 | G121: 0 | H121: =SUM(H122:H125) -> 619 | I121: 0.001339879492
B122: 13.1 | C122: Seguro Patrimonial | D122: (% do valor do patrimônio) - 5% | E122: mês | F122: 1 | G122: 387 | H122: =G122*F122 -> 387 | I122: 0.0008376952562 | L122: =H140 -> 461981.845 | M122: 1 | N122: 386.286845
B123: 13.2 | C123: Responsabilidade Civil | D123: (% da receita) - 3% | E123: mês | F123: 1 | G123: 232 | H123: 232 | I123: 0.0005021842363 | M123: 1 | N123: 231.772107
B124: 13.3 | C124: Risco de Engenharia | D124: Obras - (% do valor da obra) - incluso CAPEX | E124: mês | F124: 1 | G124: 0 | H124: 0 | I124: 0 | J124: Incluso CAPEX | M124: 1 | N124: 0
B125: 13.4 | C125: Responsabilidade Civil | D125: Obras - (% do valor da obra) - incluso CAPEX | E125: mês | F125: 1 | G125: 0 | H125: 0 | I125: 0 | J125: Incluso CAPEX | M125: 1 | N125: 0
F126: 0 | G126: 0 | I126: 0
B127: 14 | C127: DESPESA DE PESSOAL - ADMINISTRAÇÃO | F127: 0 | G127: 0 | H127: =SUM(H128:H135) -> 19481.98 | I127: 0.04217044503
B128: 14.1 | C128: Gerente GERAL | D128: Considerado 1 funcionário - Ref. Cataratas | E128: mês | F128: =ROUNDUP(M128,0)*0.14 -> 0.14 | G128: 32987 | H128: =G128*F128 -> 4618.18 | I128: =H128/$H$140 -> 0.009996453432 | J128: Rateado para os 5 parques | M128: 1 | N128: 32986.06
B129: 14.2 | C129: Assistente Financeiro | D129: Considerado 3 funcionários - Ref. Cataratas | E129: mês | F129: 0.14 | G129: 15707 | H129: =G129*F129 -> 2198.98 | I129: 0.004759884017 | J129: Rateado para os 5 parques | M129: 1 | N129: 15706.95
B130: 14.3 | C130: Analista de RH | D130: Considerado 3 funcionário - Ref. Cataratas | E130: mês | F130: 0.14 | G130: 28944 | H130: 4052.16 | I130: 0.008771253771 | J130: Rateado para os 5 parques | M130: 1 | N130: 28943.7
B131: 14.4 | C131: Técnico Segurança do Trabalho | D131: Considerado 2 funcionários - Ref. Cataratas | E131: mês | F131: 0.14 | G131: 11490 | H131: 1608.6 | I131: 0.003481955011 | M131: 1 | N131: 11489.42
B132: 14.5 | C132: Analista de Marketing | D132: Considerado 2 funcionários - Ref. Cataratas | E132: mês | F132: 0.14 | G132: 10736 | H132: 1503.04 | I132: 0.003253461183 | J132: Rateado para os 5 parques | M132: 1 | N132: 10735.62
B133: 14.6 | C133: Jovem Aprendiz | D133: Considerado 10 funcionários - Ref. Cataratas | E133: mês | F133: 0.14 | G133: 6306 | H133: 882.84 | I133: 0.001910984186 | M133: 1 | N133: 6306
B134: 14.7 | C134: Gerente de Operações | D134: Considerado 1 funcionário - Ref. Cataratas | E134: mês | F134: 0.14 | G134: =ROUNDUP(N134,0) -> 32987 | H134: =G134*F134 -> 4618.18 | I134: 0.009996453432 | J134: Rateado para os 5 parques | M134: 1 | N134: =N128 -> 32986.06
F135: =ROUNDUP(M135,0) -> 0 | G135: =ROUNDUP(N135,0) -> 0 | H135: =G135*F135 -> 0 | I135: =H135/$H$140 -> 0
B136: 15 | C136: DESPESA DE MANUTENÇÃO OBRA DE ARTE | F136: 0 | G136: 0 | H136: =H137 -> 0 | I136: =H136/$H$140 -> 0
B137: 2022-01-15 | C137: Despesa com manutenção e limpeza de obra arte | E137: mês | F137: 0 | G137: 5000 | H137: =G137*F137 -> 0 | I137: =H137/$H$140 -> 0 | J137: Confirmar se no Moinhos têm obra de arte | M137: 0 | N137: 5000
F138: =ROUND(M138,0) -> 0 | G138: 0 | I138: =H138/$H$140 -> 0
J139: TOTAL/ M2
B140: TOTAL MENSAL: | H140: =SUM(H4:H138)/2 -> 461981.845 | I140: =SUM(I4:I138)/2 -> 1 | J140: =H140/115000 -> 4.017233435
H141: =SUMPRODUCT(F4:F138,G4:G138)=H140 -> TRUE
B142: TOTAL POR ANO: | H142: =H140*12 -> 5543782.14
B144: TOTAL EM 30 ANOS: | H144: =H142*30 -> 166313464.2
C150: GÁS?
C151: CFTV?
C152: AMBULANCIA /POSTO ENFERMAGEM / ENFERMEIRO ?

Sheet OPEX - Trecho 3
B2: OPEX - PARQUE ORLA DO GUAIBA (TRECHO 3) Área = 150.000 m²
B3: ITEM | C3: DESCRIÇÃO PARQUE | D3: PREMISSAS | E3: UNID. | F3: QUANTIDADE | G3: VALOR UNITÁRIO | H3: VALOR TOTAL MENSAL | I3: PESO (%) | J3: OBSERVAÇÃO | M3: QUANTIDADE | N3: VALOR UNITÁRIO
B4: 1 | C4: CUSTOS AMBIENTAIS | H4: =SUM(H5:H6) -> 1389 | I4: =H4/$H$138 -> 0.003723636872
B5: 1.1 | C5: Árvores | D5: Recuperação de perdas, conforme planilha Para o período de 30 anos | E5: mês | F5: =ROUNDUP(M5,0) -> 1 | G5: =ROUNDUP(N5,0) -> 139 | H5: =F5*G5 -> 139 | I5: 0.0003726317676 | M5: 1 | N5: 138.8888889
B6: 1.2 | C6: Material Educação Ambiental | D6: Folder, insumos, material geral (15 mil ano, p/ 30 anos) | E6: mês | F6: =ROUNDUP(M6,0) -> 1 | G6: =ROUNDUP(N6,0) -> 1250 | H6: 1250 | I6: 0.003351005104 | M6: 1 | N6: 1250
F7: 0 | G7: 0 | I7: 0
B8: 2 | C8: SEGURANÇA | F8: 0 | G8: 0 | H8: =SUM(H9:H12) -> 149550 | I8: 0.4009142507
B9: 2.1 | C9: Portaria 24 horas | D9: Considerado portaria 24 horas - Equipe com turnos de 12 horas (incluso folguistas) - 6 funcionários | E9: mês | F9: 0 | G9: 26946 | H9: =F9*G9 -> 0 | I9: 0 | M9: 0 | N9: 26945.22
B10: 2.2 | C10: Vigilância - Líder | D10: 1 funcionário | E10: mês | F10: 1 | G10: 8888 | H10: 8888 | I10: 0.02382698669 | M10: 1 | N10: 8887.3
B11: 2.3 | C11: Vigilância - Ronda Diurna | D11: 1 vigia a cada 10.000m², apenas no período diurno - 15 funcionários | E11: mês | F11: 1 | G11: 140662 | H11: 140662 | I11: 0.377087264 | M11: 1 | N11: 140661.6
F12: 0 | G12: 0 | I12: 0
B13: 3 | C13: LIMPEZA | F13: 0 | G13: 0 | H13: =SUM(H14:H17) -> 45087 | I13: 0.1208694137
B14: 3.1 | C14: Material - Limpeza | D14: Custo mensal com materiais: produtos de limpeza | E14: mês | F14: 1 | G14: 3000 | H14: =F14*G14 -> 3000 | I14: 0.008042412251 | M14: 1 | N14: 3000
B15: 3.2 | C15: Equipe de Limpeza | D15: Encarregado de Limpeza - 1 funcionário | E15: mês | F15: 1 | G15: 4222 | H15: 4222 | I15: 0.01131835484 | M15: 1 | N15: 4221.78
B16: 3.3 | C16: Equipe de Limpeza | D16: Auxiliar de Limpeza - 5 funcionários | E16: mês | F16: 1 | G16: 21500 | H16: 21500 | I16: 0.0576372878 | M16: 1 | N16: 21499.5
B17: 3.4 | C17: Equipe de Limpeza | D17: Coletor de Lixo - 5 funcionários | E17: mês | F17: 1 | G17: 16365 | H17: 16365 | I17: 0.04387135883 | M17: 1 | N17: 16364.3
F18: 0 | G18: 0 | I18: 0
B19: 4 | C19: MANUTENÇÃO DE ÁREAS VERDES | F19: 0 | G19: 0 | H19: =SUM(H20:H29) -> 30248 | I19: 0.08108896192
B20: 4.1 | C20: Roçada / capina dos gramados | D20: 1 x mês - inverno / outono 2 x mês - primavera / verão | E20: m² | F20: 0 | G20: =N20 -> 0.375 | H20: =G20*F20 -> 0 | I20: 0 | M20: 0 | N20: 0.375
B21: 4.2 | C21: Jardinagem - Trabalho Diário | D21: Auxiliar de Jardinagem - 1 funcionário a cada 50.000 m² | E21: mês | F21: 1 | G21: 10886 | H21: 10886 | I21: 0.02918323325 | M21: 1 | N21: 10885.65
B22: 4.3 | C22: Poda | D22: Poda com supressão - Estimativa Contrato Atual | E22: mês | F22: 0 | G22: 57996 | H22: 0 | I22: 0 | M22: 0 | N22: 57995.77223
B23: 4.4 | C23: Encarregado de Jardinagem | D23: 1 funcionário | E23: mês | F23: 1 | G23: 3629 | H23: 3629 | I23: 0.009728638019 | M23: 1 | N23: 3628.55
B24: 4.5 | C24: Operador de Equipamentos | D24: 1 funcionário | E24: mês | F24: 1 | G24: 4133 | H24: 4133 | I24: 0.01107976328 | M24: 1 | N24: 4132.41
B25: 4.6 | C25: Trabalhos com Varrição | D25: 2 funcionários | E25: mês | F25: 1 | G25: 8600 | H25: 8600 | I25: 0.02305491512 | M25: 1 | N25: 8599.8
B26: 4.7 | C26: Transbordo do lixo | E26: mês | F26: 1 | G26: 3000 | H26: 3000 | I26: 0.008042412251 | J26: Incluso viagem + motorista + 2 operadores - 1x semana | M26: 1 | N26: 3000
B27: 4.8 | C27: Limpeza de Lagos | D27: Tratamento de água, resíduos e efluentes, operação, limpeza e manutenção de espelhos d'água, imunização e controle de pragas, análises laboratoriais - programa agua/icmbio, limpeza e higiene das caixas d'água e cisternas. | E27: mês | F27: 1 | G27: 0 | H27: 0 | I27: 0 | J27: Ref. Cataratas 2019 (+30%) | M27: 1 | N27: 0
B28: 4.9 | C28: Limpeza de Espelhos D´Água | E28: mês | F28: 0 | G28: 2200 | H28: 0 | I28: 0 | M28: 0 | N28: 2200
F29: 0 | G29: 0 | H29: 0 | I29: 0
B30: 5 | C30: MANUTENÇÃO CIVIL E PREDIAL | F30: 0 | G30: 0 | H30: =SUM(H31:H38) -> 26331 | I30: 0.07058825233
B31: 5.1 | C31: Equipe de manutenção Civil | D31: Pedreiro - 1 funcionário | E31: mês | F31: 1 | G31: 4078 | H31: =F31*G31 -> 4078 | I31: 0.01093231905 | M31: 1 | N31: 4077.58
B32: 5.2 | C32: Equipe de manutenção Civil | D32: Ajudante de Pedreiro - 1 funcionário | E32: mês | F32: 1 | G32: 3813 | H32: 3813 | I32: 0.01022190597 | M32: 1 | N32: 3812.91
B33: 5.3 | C33: Equipe de manutenção Civil | D33: Pintor - 2 funcionários | E33: mês | F33: 0 | G33: 7615 | H33: 0 | I33: 0 | M33: 0 | N33: 7614.06
B34: 5.4 | C34: Bombeiro Civil | D34: 1 funcionário | E34: mês | F34: 1 | G34: 8470 | H34: 8470 | I34: 0.02270641059 | M34: 1 | N34: 8469.12
B35: 5.5 | C35: Bombeiro Hidráulico | D35: 1 funcionário | E35: mês | F35: 1 | G35: 8470 | H35: 8470 | I35: 0.02270641059 | M35: 1 | N35: 8469.12
B36: 5.6 | C36: Eletricista | D36: 2 funcionários | E36: mês | F36: 0 | G36: 5140 | H36: 0 | I36: =H36/$H$138 -> 0 | M36: 0 | N36: 5139.6
B37: 5.7 | C37: Técnico Eletromecânico | D37: 2 funcionários | E37: mês | F37: 0 | G37: 4079 | H37: 0 | I37: 0 | M37: 0 | N37: 4078.49
B38: 5.8 | C38: EPI's e EPC's | D38: verba mensal | E38: mês | F38: 1 | G38: 1500 | H38: 1500 | I38: 0.004021206125 | M38: 1 | N38: 1500
F39: 0 | G39: 0 | H39: =G39*F39 -> 0 | I39: 0
B40: 6 | C40: CEEE | F40: 0 | G40: 0 | H40: =SUM(H41) -> 5000 | I40: 0.01340402042
B41: 6.1 | C41: Despesa mensal com Energia Elétrica | E41: mês | F41: 1 | G41: 5000 | H41: =G41*F41 -> 5000 | I41: 0.01340402042 | M41: 1 | N41: 5000
F42: 0 | G42: 0 | H42: 0 | I42: 0
B43: 7 | C43: TELEFONICA FIXA / INTERNET / SISTEMAS / MARKETING | F43: 0 | G43: 0 | H43: =SUM(H44:H48) -> 9680 | I43: 0.02595018353
B44: 7.1 | C44: Despesa mensal com Telefone | E44: mês | F44: 1 | G44: 3000 | H44: =G44*F44 -> 3000 | I44: 0.008042412251 | M44: 1 | N44: 3000
B45: 7.2 | C45: Despesa mensal com Wi-fi | E45: mês | F45: 1 | G45: 180 | H45: 180 | I45: 0.000482544735 | M45: 1 | N45: 180
B46: 7.3 | C46: Suprimentos e insumos informática | E46: mês | F46: 1 | G46: 500 | H46: 500 | I46: 0.001340402042 | M46: 1 | N46: 500
B47: 7.4 | C47: Manutenção de comunicação visual e estratégia de Marketing | D47: Considerado contrato de R$ 20.000 - dividido pelos 5 parques | E47: mês | F47: 1 | G47: 6000 | H47: 6000 | I47: 0.0160848245 | M47: 1 | N47: 6000
F48: 0 | G48: 0 | H48: 0 | I48: 0
B49: 8 | C49: AGUA / DMAE | F49: 0 | G49: 0 | H49: =SUM(H50) -> 7500 | I49: 0.02010603063
B50: 8.1 | C50: Despesa Mensal com Água e Esgoto | E50: mês | F50: 1 | G50: 7500 | H50: =G50*F50 -> 7500 | I50: 0.02010603063 | M50: 1 | N50: 7500
F51: 0 | G51: 0 | H51: 0 | I51: 0
B52: 9 | C52: MATERIAIS DIVERSOS MANUTENÇÃO | F52: 0 | G52: 0 | H52: =SUM(H53:H103) -> 47327 | I52: 0.1268744149
B53: 9.1 | C53: Colas químicas (estoque para manutenção anual) | E53: tubo | F53: 1 | G53: 350 | H53: =F53*G53 -> 350 | I53: 0.0009382814293 | M53: 1 | N53: 350
B54: 9.2 | C54: Fechaduras e ferragens * (substituição de 2 unidades cada 6 meses) | E54: conj. | F54: 1 | G54: 125 | H54: 125 | I54: 0.0003351005104 | M54: 0.3333333333 | N54: 125
B55: 9.3 | C55: Corda ancoradouro e boias (substituição total em 36 meses) | E55: conj. | F55: 1 | G55: 247 | H55: 247 | I55: 0.0006621586086 | M55: 0.02777777778 | N55: 247
B56: 9.4 | C56: Boias de flutuação (estoque para substituição a partir do 3° ano) | E56: unid | F56: 2 | G56: 480 | H56: 960 | I56: 0.00257357192 | M56: 2 | N56: 480
B57: 9.5 | C57: Placas de gesso (estoque para manutenções periódicas) | E57: unid | F57: 4 | G57: 167 | H57: 668 | I57: 0.001790777128 | M57: 4 | N57: 167
B58: 9.6 | C58: Espelhos e vidros * (substituição por quebra de 1 unidade cada 6 meses) | E58: unid | F58: 1 | G58: 300 | H58: 300 | I58: 0.0008042412251 | M58: 0.1666666667 | N58: 300
B59: 9.7 | C59: Lâmpadas, reatores, luminárias (estoque para manutenções periódicas) | E59: conj. | F59: 2 | G59: 250 | H59: 500 | I59: 0.001340402042 | M59: 2 | N59: 250
B60: 9.8 | C60: Tintas, vernizes e selador acrílico (estoque para manutenção periódica) | E60: lata | F60: 2 | G60: 1350 | H60: 2700 | I60: 0.007238171026 | M60: 2 | N60: 1350
B61: 9.9 | C61: Pesticidas (produtos para a equipe de jardinagem em seu plano de Controle de Pragas) | E61: litro | F61: 3 | G61: 930 | H61: 2790 | I61: 0.007479443393 | M61: 3 | N61: 930
B62: 9.10 | C62: Eletrobombas (verba para compra de peças e manutenções ao longo do tempo) | E62: verba | F62: 1 | G62: 234 | H62: 234 | I62: 0.0006273081556 | M62: 1 | N62: 234
B63: 9.11 | C63: Areia e Saibro rosa (estoque para a substituição quando necessário) | E63: m3 | F63: 0 | G63: 298 | H63: 0 | I63: 0 | M63: 0 | N63: 298
B64: 9.12 | C64: Piso podotátil (estoque para substituição periódica) | E64: unid | F64: 0 | G64: 90 | H64: 0 | I64: 0 | M64: 0 | N64: 90
B65: 9.13 | C65: Blocos autônomos * - iluminação de emergência (substituição de 1 unid. cada 4 meses) | E65: unid | F65: 1 | G65: 54 | H65: 54 | I65: 0.0001447634205 | M65: 0.25 | N65: 54
B66: 9.14 | C66: Chuveiros, fios e cabos elétricos * (2 chuveiros, disjuntores, fios e resistências semestralmente) | E66: verba | F66: 1 | G66: 275 | H66: 275 | I66: 0.000737221123 | M66: 1 | N66: 275
B67: 9.15 | C67: Granitos de pias * (substituição por quebra de 1 unidade cada 2 anos) | E67: unid | F67: 0 | G67: 103 | H67: 0 | I67: 0 | M67: 0 | N67: 103
B68: 9.16 | C68: Consumíveis dos sanitários - papeis e sabonetes (pela população diária média de 500 pessoas) | E68: verba | F68: 1 | G68: 2335 | H68: 2335 | I68: =H68/$H$138 -> 0.006259677535 | M68: 1 | N68: 2335
B69: 9.17 | C69: Divisórias Sanitárias de Granito * (substituição por quebra de 1 unidade cada 2 anos) | E69: unid | F69: 1 | G69: 96 | H69: 96 | I69: 0.000257357192 | M69: 0.04166666667 | N69: 96
B70: 9.18 | C70: Portas de madeira completas * (substituição cada 6 meses de 2 unidades) | E70: unid | F70: =ROUNDUP(M70,0) -> 1 | G70: =ROUNDUP(N70,0) -> 194 | H70: 194 | I70: 0.0005200759922 | M70: 0.3333333333 | N70: 194
B71: 9.19 | C71: Barras de apoio PNE's * (substituição cada 12 meses de 1 unidade) | E71: unid | F71: 1 | G71: 89 | H71: 89 | I71: 0.0002385915634 | M71: 0.08333333333 | N71: 89
B72: 9.20 | C72: Vidro temperado * (substituição de uma peça cada 6 meses) | E72: unid | F72: 0 | G72: 233 | H72: 0 | I72: 0 | M72: 0 | N72: 233
B73: 9.21 | C73: Pastilhas de vidro para reposição de revestimento (estoque para manutenção periódica) | E73: verba | F73: 0 | G73: 74 | H73: 0 | I73: 0 | M73: 0 | N73: 74
B74: 9.22 | C74: Torneiras , ferragens e metais de sanitários * (substituição de 2 unidades cada 6 meses) | E74: conj. | F74: 1 | G74: 650 | H74: 650 | I74: 0.001742522654 | M74: 0.3333333333 | N74: 650
B75: 9.23 | C75: Borracha clorada (estoque para manutenção periódica) | E75: verba | F75: 1 | G75: 836 | H75: 836 | I75: 0.002241152214 | M75: 1 | N75: 836
B76: 9.24 | C76: Bebedouros - purificadores de água | E76: unit. | F76: 5 | G76: 650 | H76: 3250 | I76: 0.008712613272 | M76: 5 | N76: 650
B77: 9.25 | C77: EPI´s e EPC´s (conjuntos das equipes com equipamentos de proteção individual e coletiva) | E77: verba | F77: 1 | G77: 2150 | H77: 2150 | I77: 0.00576372878 | M77: 1 | N77: 2150
B78: 9.26 | C78: Maquinas corte de grama e podas de árvores (aquisição, estoque - manutenção e substituição) | E78: verba | F78: 1 | G78: 798 | H78: 798 | I78: 0.002139281659 | M78: 1 | N78: 798
B79: 9.27 | C79: Maquina limpeza: praias, quadras de vôlei e parquinhos (aquisição, estoque - manut e substituição) | E79: unit. | F79: 1 | G79: 634 | H79: 634 | I79: 0.001699629789 | M79: 1 | N79: 634
B80: 9.28 | C80: Dispensers dos sanitários - porta papéis e sabonetes (aquisição, estoque - manut e substituição) | E80: verba | F80: 1 | G80: 424 | H80: 424 | I80: 0.001136660931 | M80: 1 | N80: 424
B81: 9.29 | C81: Lixeiras de reposição (aquisição, estoque - manut e substituição) | E81: verba | F81: 1 | G81: 375 | H81: 375 | I81: 0.001005301531 | M81: 1 | N81: 375
B82: 9.30 | C82: Trator com reboque para carrinho e roçadeira (custo de aquisição, manutenção e substituição) | E82: unit. | F82: 0 | G82: 1384 | H82: 0 | I82: 0 | M82: 0 | N82: 1384
B83: 9.31 | C83: Ferramental das equipes de manutenção, limpeza, jardinagem e vigilância | E83: verba | F83: 1 | G83: 2707 | H83: 2707 | I83: 0.007256936654 | M83: 1 | N83: 2706.5
B84: 9.32 | C84: Equipamentos das equipes de manutenção, limpeza, jardinagem e vigilância | E84: verba | F84: 1 | G84: 2997 | H84: 2997 | I84: 0.008034369839 | M84: 1 | N84: 2996.75
B85: 9.33 | C85: Assentos das bacias sanitárias * (estoque para substituição) | E85: verba | F85: 1 | G85: 239 | H85: 239 | I85: 0.000640712176 | M85: 1 | N85: 239
B86: 9.34 | C86: Máquina de Solda Mig-150 Eletrônica-V8 Brasil-Mig-150br - DUTRA MAQUINAS | E86: unit. | F86: 0 | G86: 759 | H86: 0 | I86: 0 | M86: 0 | N86: 758.1
B87: 9.35 | C87: Serra Policorte 12" Alumínio s/ Disco s/ Motor CH SCAP-120N - Motomil - RR MAQUINAS | E87: unit. | F87: 0 | G87: 1049 | H87: 0 | I87: 0 | M87: 0 | N87: 1049
B88: 9.36 | C88: Serra Mármore Profissional 125mm 1500W c/ Kit Refrigeração,Disco e Maleta - BOSCH -GCD-151 | E88: unit. | F88: 0 | G88: 440 | H88: 0 | I88: 0 | M88: 0 | N88: 439.9
B89: 9.37 | C89: Furadeira de Bancada 1/2HP 5/8 Fbm160t Motomil 220/380V - RR MAQUINAS | E89: unit. | F89: 1 | G89: 935 | H89: 935 | I89: 0.002506551818 | M89: 1 | N89: 935
B90: 9.38 | C90: Serra Circular de Bancada 255mm 1650W | E90: unit. | F90: 0 | G90: 5253 | H90: 0 | I90: 0 | M90: 0 | N90: 5252.62
B91: 9.39 | C91: Furadeira Parafusadeira Impacto GSB 16 Re + Maleta - Bosch | E91: unit. | F91: 1 | G91: 329 | H91: 329 | I91: 0.0008819845435 | M91: 1 | N91: 329
B92: 9.40 | C92: Martelete Rompedor 0-5100imp 800W c/ Maleta 220V - GBH 2-24DF - Bosch | E92: unit. | F92: 1 | G92: 773 | H92: 773 | I92: 0.002072261557 | M92: 1 | N92: 773
B93: 9.41 | C93: Gerador à Gasolina 6kva Trif Part. Elétrica - Nagano | E93: unit. | F93: 1 | G93: 2699 | H93: 2699 | I93: 0.007235490222 | M93: 1 | N93: 2699
B94: 9.42 | C94: Andaime - Torre de 10 m | E94: unit. | F94: 1 | G94: 950 | H94: 950 | I94: 0.002546763879 | M94: 1 | N94: 950
B95: 9.43 | C95: Multímetro modelo 289 | E95: unit. | F95: 0 | G95: 5200 | H95: 0 | I95: 0 | M95: 0 | N95: 5200
B96: 9.44 | C96: Bancada c/ 3 Gavetas, Tampo Madeira Compensada 40mm 200 x 60 x 92 cm | E96: unit. | F96: 0 | G96: 880 | H96: 0 | I96: 0 | M96: 0 | N96: 879.9
B97: 9.45 | C97: Carro de Ferramentas com 380 Peças e 7 Gavetas FG6100 | E97: unit. | F97: 0 | G97: 3666 | H97: 0 | I97: 0 | M97: 0 | N97: 3665.56
B98: 9.46 | C98: Caixa de ferramenta Marcenaria | E98: unit. | F98: 0 | G98: 2790 | H98: 0 | I98: 0 | M98: 0 | N98: 2790
B99: 9.47 | C99: Caixa de ferramenta Hidráulica | E99: unit. | F99: 0 | G99: 1300 | H99: 0 | I99: 0 | M99: 0 | N99: 1300
B100: 9.48 | C100: Caixa de ferramenta Predial | E100: unit. | F100: 1 | G100: 2800 | H100: 2800 | I100: =H100/$H$138 -> 0.007506251434 | M100: 1 | N100: 2800
B101: 9.49 | C101: Caixa de ferramenta Elétrica | E101: unit. | F101: 1 | G101: 1300 | H101: 1300 | I101: 0.003485045309 | M101: 1 | N101: 1300
B102: 9.50 | C102: Varredeira Urbana MC-50 | E102: unit. | F102: 4 | G102: 2641 | H102: 10564 | I102: 0.02832001434 | M102: 4 | N102: 2640.9
F103: 0 | G103: 0 | I103: 0
B104: 10 | C104: LOCAÇÕES VEICULOS / EQUIPAMENTOS | F104: 0 | G104: 0 | H104: =SUM(H105:H110) -> 32359 | I104: 0.08674813934 | L104: Alugando 20 carros - R$ 1.600/mês | O104: =N104*12 -> 0 | P104: =O104*30 -> 0
B105: 10.1 | C105: Caminhão | D105: 1 caminhão | E105: mês | F105: 1 | G105: 6000 | H105: =G105*F105 -> 6000 | I105: 0.0160848245 | J105: Considerado para 5 parques | M105: =1/5 -> 0.2 | N105: 6000
B106: 10.2 | C106: Carro de passeio | D106: Aluguel mensal de Carro - 5 carros | E106: mês | F106: 0 | G106: 10000 | H106: =G106*F106 -> 0 | I106: 0 | N106: 10000
B107: 10.3 | C107: Motorista | D107: 6 funcionários | E107: mês | F107: 1 | G107: 26359 | H107: 26359 | I107: 0.07066331484 | M107: 1 | N107: 26358.42
B108: 10.4 | C108: Retroescavadeira | D108: Limpeza dos lagos | E108: mês | F108: 0 | G108: 18000 | H108: 0 | I108: 0 | J108: ALUGUEL | N108: 18000
B109: 10.5 | C109: Operador de Retroescavadeira | E109: mês | F109: 0 | G109: 4300 | H109: 0 | I109: 0 | N109: 4300
F110: 0 | G110: 0 | I110: 0
B111: 11 | C111: COMBUSTIVEL | F111: 0 | G111: 0 | H111: =SUM(H112:H113) -> 0 | I111: 0
B112: 11.1 | C112: Combustível para Carros | D112: Ver composição - considerando 5 automóveis por mês | E112: mês | F112: 0 | G112: 10068 | H112: =F112*G112 -> 0 | I112: 0 | M112: 0 | N112: 10067.85714
B113: 11.2 | C113: Combustível para Equipamentos | D113: Diesel - escavadeiras, pás carregadeiras, retroescavadeiras, tratores de esteiras e gerador | E113: mês | F113: 0 | G113: 600 | H113: 0 | I113: 0 | M113: 0 | N113: 600
F114: 0 | G114: 0 | I114: 0
B115: 12 | C115: SUSEPE | F115: 0 | G115: 0 | H115: =SUM(H116:H117) -> 0 | I115: 0
B116: 12.1 | C116: Mão de obra de Apoio - Apenados | D116: Utilizar equipe dos Apenados para serviços gerais - Equipe com 15 pessoas | E116: mês | F116: 0 | G116: 15453 | H116: =G116*F116 -> 0 | I116: 0 | M116: 0 | N116: 15453
B117: 12.2 | C117: Alimentação | D117: Alimentação dos Apenados - Equipe com 15 pessoas | E117: mês | F117: 0 | G117: 600 | H117: 0 | I117: 0 | M117: 0 | N117: 600
F118: 0 | G118: 0 | I118: 0
B119: 13 | C119: SEGURO | F119: 0 | G119: 0 | H119: =SUM(H120:H123) -> 461 | I119: 0.001235850683
B120: 13.1 | C120: Seguro Patrimonial | D120: (% do valor do patrimônio) - 5% | E120: mês | F120: 1 | G120: 288 | H120: =G120*F120 -> 288 | I120: 0.0007720715761 | L120: =H138 -> 373022.41 | M120: 1 | N120: 287.29742
B121: 13.2 | C121: Responsabilidade Civil | D121: (% da receita) - 3% | E121: mês | F121: 1 | G121: 173 | H121: 173 | I121: 0.0004637791065 | M121: 1 | N121: 172.378452
B122: 13.3 | C122: Risco de Engenharia | D122: Obras - (% do valor da obra) - incluso CAPEX | E122: mês | F122: 1 | G122: 0 | H122: 0 | I122: 0 | J122: Incluso CAPEX | M122: 1 | N122: 0
B123: 13.4 | C123: Responsabilidade Civil | D123: Obras - (% do valor da obra) - incluso CAPEX | E123: mês | F123: 1 | G123: 0 | H123: 0 | I123: 0 | J123: Incluso CAPEX | M123: 1 | N123: 0
F124: 0 | G124: 0 | I124: 0
B125: 14 | C125: DESPESA DE PESSOAL - ADMINISTRAÇÃO | F125: 0 | G125: 0 | H125: =SUM(H126:H133) -> 18090.41 | I125: 0.048496845
B126: 14.1 | C126: Gerente GERAL | D126: Considerado 1 funcionário - Ref. Cataratas | E126: mês | F126: =ROUNDUP(M126,0)*0.13 -> 0.13 | G126: 32987 | H126: =G126*F126 -> 4288.31 | I126: =H126/$H$138 -> 0.01149611896 | J126: Rateado para os 5 parques | M126: 1 | N126: 32986.06
B127: 14.2 | C127: Assistente Financeiro | D127: Considerado 3 funcionários - Ref. Cataratas | E127: mês | F127: 0.13 | G127: 15707 | H127: =G127*F127 -> 2041.91 | I127: 0.005473960666 | J127: Rateado para os 5 parques | M127: 1 | N127: 15706.95
B128: 14.3 | C128: Analista de RH | D128: Considerado 3 funcionário - Ref. Cataratas | E128: mês | F128: 0.13 | G128: 28944 | H128: 3762.72 | I128: 0.01008711514 | J128: Rateado para os 5 parques | M128: 1 | N128: 28943.7
B129: 14.4 | C129: Técnico Segurança do Trabalho | D129: Considerado 2 funcionários - Ref. Cataratas | E129: mês | F129: 0.13 | G129: 11490 | H129: 1493.7 | I129: 0.00400431706 | M129: 1 | N129: 11489.42
B130: 14.5 | C130: Analista de Marketing | D130: Considerado 2 funcionários - Ref. Cataratas | E130: mês | F130: 0.13 | G130: 10736 | H130: 1395.68 | I130: 0.003741544643 | J130: Rateado para os 5 parques | M130: 1 | N130: 10735.62
B131: 14.6 | C131: Jovem Aprendiz | D131: Considerado 10 funcionários - Ref. Cataratas | E131: mês | F131: 0.13 | G131: 6306 | H131: 819.78 | I131: 0.002197669572 | M131: 1 | N131: 6306
B132: 14.7 | C132: Gerente de Operações | D132: Considerado 1 funcionário - Ref. Cataratas | E132: mês | F132: 0.13 | G132: 32987 | H132: =G132*F132 -> 4288.31 | I132: 0.01149611896 | J132: Rateado para os 5 parques | M132: 1 | N132: =N126 -> 32986.06
F133: 0 | G133: =ROUNDUP(N133,0) -> 0 | H133: =G133*F133 -> 0 | I133: =H133/$H$138 -> 0
B134: 15 | C134: DESPESA DE MANUTENÇÃO OBRA DE ARTE | F134: =ROUNDUP(M134,0) -> 0 | G134: 0 | H134: =H135 -> 0 | I134: =H134/$H$138 -> 0
B135: 2022-01-15 | C135: Despesa com manutenção e limpeza de obra arte | E135: mês | F135: 1 | G135: 0 | H135: =G135*F135 -> 0 | I135: =H135/$H$138 -> 0 | M135: 1
F136: =ROUND(M136,0) -> 0 | G136: 0 | I136: =H136/$H$138 -> 0
J137: TOTAL/ M2
B138: TOTAL MENSAL: | H138: =SUM(H4:H136)/2 -> 373022.41 | I138: =SUM(I4:I136)/2 -> 1 | J138: =H138/150000 -> 2.486816067
H139: =SUMPRODUCT(F4:F136,G4:G136) -> 373022.41
B140: TOTAL POR ANO: | H140: =H138*12 -> 4476268.92
B142: TOTAL EM 30 ANOS: | H142: =H140*30 -> 134288067.6
C148: GÁS?
C149: CFTV?
C150: AMBULANCIA /POSTO ENFERMAGEM / ENFERMEIRO ?

Sheet OPEX - Marinha
B2: OPEX - PARQUE MARINHA DO BRASIL Área = 710.000 m²
B3: ITEM | C3: DESCRIÇÃO PARQUE | D3: PREMISSAS | E3: UNID. | F3: QUANTIDADE | G3: VALOR UNITÁRIO | H3: VALOR TOTAL MENSAL | I3: PESO (%) | J3: OBSERVAÇÃO | M3: QUANTIDADE | N3: VALOR UNITÁRIO
B4: 1 | C4: CUSTOS AMBIENTAIS | H4: =SUM(H5:H6) -> 1389 | I4: =H4/$H$138 -> 0.0008156121866
B5: 1.1 | C5: Árvores | D5: Recuperação de perdas, conforme planilha Para o período de 30 anos | E5: mês | F5: =ROUNDUP(M5,0) -> 1 | G5: =ROUNDUP(N5,0) -> 139 | H5: =F5*G5 -> 139 | I5: 8.161993804e-05 | M5: 1 | N5: 138.8888889
B6: 1.2 | C6: Material Educação Ambiental | D6: Folder, insumos, material geral (15 mil ano, p/ 30 anos) | E6: mês | F6: =ROUNDUP(M6,0) -> 1 | G6: =ROUNDUP(N6,0) -> 1250 | H6: 1250 | I6: 0.0007339922485 | M6: 1 | N6: 1250
F7: 0 | G7: 0 | I7: 0
B8: 2 | C8: SEGURANÇA | F8: 0 | G8: 0 | H8: =SUM(H9:H12) -> 683574 | I8: 0.4013904138
B9: 2.1 | C9: Portaria 24 horas | D9: Considerado portaria 24 horas - Equipe com turnos de 12 horas (incluso folguistas) - 6 funcionários | E9: mês | F9: 0 | G9: 26946 | H9: =F9*G9 -> 0 | I9: 0 | M9: 0 | N9: 26945.22
B10: 2.2 | C10: Vigilância - Líder | D10: 2 funcionários | E10: mês | F10: 1 | G10: 17775 | H10: 17775 | I10: 0.01043736977 | M10: 1 | N10: 17774.6
B11: 2.3 | C11: Vigilância - Ronda Diurna | D11: 1 vigia a cada 10.000m², apenas no período diurno | E11: mês | F11: 1 | G11: 665799 | H11: 665799 | I11: 0.3909530441 | M11: 1 | N11: 665798.24
F12: 0 | G12: 0 | I12: 0
B13: 3 | C13: LIMPEZA | F13: 0 | G13: 0 | H13: =SUM(H14:H17) -> 138036 | I13: 0.08105388322
B14: 3.1 | C14: Material - Limpeza | D14: Custo mensal com materiais: produtos de limpeza | E14: mês | F14: 1 | G14: 16000 | H14: =F14*G14 -> 16000 | I14: 0.009395100781 | M14: 1 | N14: 16000
B15: 3.2 | C15: Equipe de Limpeza | D15: Encarregado de Limpeza - 2 funcionários | E15: mês | F15: 1 | G15: 8444 | H15: 8444 | I15: 0.004958264437 | M15: 1 | N15: 8443.56
B16: 3.3 | C16: Equipe de Limpeza | D16: Auxiliar de Limpeza - 15 funcionários | E16: mês | F16: 1 | G16: 64499 | H16: 64499 | I16: 0.03787341283 | M16: 1 | N16: 64498.5
B17: 3.4 | C17: Equipe de Limpeza | D17: Coletor de Lixo - 15 funcionários | E17: mês | F17: 1 | G17: 49093 | H17: 49093 | I17: 0.02882710517 | M17: 1 | N17: 49092.9
F18: 0 | G18: 0 | I18: 0
B19: 4 | C19: MANUTENÇÃO DE ÁREAS VERDES | F19: 0 | G19: 0 | H19: =SUM(H20:H29) -> 449598.89 | I19: 0.2640016802
B20: 4.1 | C20: Roçada / capina dos gramados | D20: 1 x mês - inverno / outono 2 x mês - primavera / verão | E20: m² | F20: 376926 | G20: =N20 -> 0.375 | H20: =G20*F20 -> 141347.25 | I20: 0.08299822868 | M20: 376925.74 | N20: 0.375
B21: 4.2 | C21: Jardinagem - Trabalho Diário | D21: Coleta de detritos em pátios e áreas verdes – frequência diária (em ha) | E21: mês | F21: 38 | G21: 370 | H21: 14060 | I21: 0.008255944812 | J21: CADTERC (BEC.SP) | M21: =376925.74/10000 -> 37.692574 | N21: 370
B22: 4.3 | C22: Poda | D22: Poda com supressão - Estimativa Contrato Atual | E22: mês | F22: 200700 | G22: =N22 -> 0.62 | H22: 124434 | I22: 0.07306687316 | J22: CADTERC (BEC.SP) | M22: 200700 | N22: 0.62
B23: 4.4 | C23: Encarregado de Jardinagem | D23: 2 funcionários | E23: mês | F23: 1 | G23: 7258 | H23: 7258 | I23: 0.004261852592 | M23: 1 | N23: 7257.1
B24: 4.5 | C24: Operador de Equipamentos | D24: 4 funcionários | E24: mês | F24: 1 | G24: 16530 | H24: 16530 | I24: 0.009706313495 | M24: 1 | N24: 16529.64
B25: 4.6 | C25: Trabalhos com Varrição | D25: 4 funcionários | E25: mês | F25: 376926 | G25: =N25 -> 0.14 | H25: 52769.64 | I25: 0.03098600537 | J25: CADTERC (BEC.SP) | M25: 376925.74 | N25: 0.14
B26: 4.7 | C26: Transbordo do lixo | E26: mês | F26: 1 | G26: 6000 | H26: 6000 | I26: 0.003523162793 | J26: Incluso viagem + motorista + 2 operadores - 1x semana | M26: 1 | N26: 6000
B27: 4.8 | C27: Limpeza de Lagos | D27: Tratamento de água, resíduos e efluentes, operação, limpeza e manutenção de espelhos d'água, imunização e controle de pragas, análises laboratoriais - programa agua/icmbio, limpeza e higiene das caixas d'água e cisternas. | E27: mês | F27: 1 | G27: 85000 | H27: 85000 | I27: 0.0499114729 | J27: Ref. Cataratas 2019 (+30%) + Orientações BAUER | M27: 1 | N27: 85000
B28: 4.9 | C28: Limpeza de Espelhos D´Água | E28: mês | F28: 1 | G28: 2200 | H28: 2200 | I28: 0.001291826357 | M28: 1 | N28: 2200
F29: 0 | G29: 0 | H29: 0 | I29: 0
B30: 5 | C30: MANUTENÇÃO CIVIL E PREDIAL | F30: 0 | G30: 0 | H30: =SUM(H31:H38) -> 130504 | I30: 0.07663113952
B31: 5.1 | C31: Equipe de manutenção Civil | D31: Pedreiro - 3 funcionários | E31: mês | F31: 1 | G31: 12233 | H31: =F31*G31 -> 12233 | I31: 0.007183141741 | M31: 1 | N31: 12232.74
B32: 5.2 | C32: Equipe de manutenção Civil | D32: Ajudante de Pedreiro - 6 funcionários | E32: mês | F32: 1 | G32: 22878 | H32: 22878 | I32: 0.01343381973 | M32: 1 | N32: 22877.46
B33: 5.3 | C33: Equipe de manutenção Civil | D33: Pintor - 3 funcionários | E33: mês | F33: 1 | G33: 11422 | H33: 11422 | I33: 0.00670692757 | M33: 1 | N33: 11421.09
B34: 5.4 | C34: Bombeiro Civil | D34: 3 funcionários | E34: mês | F34: 1 | G34: 25408 | H34: 25408 | I34: 0.01491942004 | M34: 1 | N34: 25407.36
B35: 5.5 | C35: Bombeiro Hidráulico | D35: 3 funcionários | E35: mês | F35: 1 | G35: 25408 | H35: 25408 | I35: 0.01491942004 | M35: 1 | N35: 25407.36
B36: 5.6 | C36: Eletricista | D36: 3 funcionários | E36: mês | F36: 1 | G36: 15419 | H36: 15419 | I36: =H36/$H$138 -> 0.009053941184 | M36: 1 | N36: 15418.8
B37: 5.7 | C37: Técnico Eletromecânico | D37: 3 funcionários | E37: mês | F37: 1 | G37: 12236 | H37: 12236 | I37: 0.007184903323 | M37: 1 | N37: 12235.47
B38: 5.8 | C38: EPI's e EPC's | D38: verba mensal | E38: mês | F38: 1 | G38: 5500 | H38: 5500 | I38: 0.003229565894 | M38: 1 | N38: 5500
F39: 0 | G39: 0 | H39: =G39*F39 -> 0 | I39: 0
B40: 6 | C40: CEEE | F40: 0 | G40: 0 | H40: =SUM(H41) -> 16000 | I40: 0.009395100781
B41: 6.1 | C41: Despesa mensal com Energia Elétrica | E41: mês | F41: 1 | G41: 16000 | H41: =G41*F41 -> 16000 | I41: 0.009395100781 | M41: 1 | N41: 16000
F42: 0 | G42: 0 | H42: 0 | I42: 0
B43: 7 | C43: TELEFONICA FIXA / INTERNET / SISTEMAS / MARKETING | F43: 0 | G43: 0 | H43: =SUM(H44:H48) -> 11860 | I43: 0.006964118454
B44: 7.1 | C44: Despesa mensal com Telefone | E44: mês | F44: 1 | G44: 4500 | H44: =G44*F44 -> 4500 | I44: 0.002642372095 | M44: 1 | N44: 4500
B45: 7.2 | C45: Despesa mensal com Wi-fi | E45: mês | F45: 1 | G45: 360 | H45: 360 | I45: 0.0002113897676 | M45: 1 | N45: 360
B46: 7.3 | C46: Suprimentos e insumos informática | E46: mês | F46: 1 | G46: 1000 | H46: 1000 | I46: 0.0005871937988 | M46: 1 | N46: 1000
B47: 7.4 | C47: Manutenção de comunicação visual e estratégia de Marketing | D47: Considerado contrato de R$ 20.000 - dividido pelos 5 parques | E47: mês | F47: 1 | G47: 6000 | H47: 6000 | I47: 0.003523162793 | M47: 1 | N47: 6000
F48: 0 | G48: 0 | H48: 0 | I48: 0
B49: 8 | C49: AGUA / DMAE | F49: 0 | G49: 0 | H49: =SUM(H50) -> 20000 | I49: 0.01174387598
B50: 8.1 | C50: Despesa Mensal com Água e Esgoto | E50: mês | F50: 1 | G50: 20000 | H50: =G50*F50 -> 20000 | I50: 0.01174387598 | M50: 1 | N50: 20000
F51: 0 | G51: 0 | H51: 0 | I51: 0
B52: 9 | C52: MATERIAIS DIVERSOS MANUTENÇÃO | F52: 0 | G52: 0 | H52: =SUM(H53:H103) -> 98912 | I52: 0.05808051303
B53: 9.1 | C53: Colas químicas (estoque para manutenção anual) | E53: tubo | F53: 3 | G53: 350 | H53: =F53*G53 -> 1050 | I53: 0.0006165534888 | M53: 3 | N53: 350
B54: 9.2 | C54: Fechaduras e ferragens * (substituição de 2 unidades cada 6 meses) | E54: conj. | F54: 1 | G54: 125 | H54: 125 | I54: 7.339922485e-05 | M54: 0.495 | N54: 125
B55: 9.3 | C55: Corda ancoradouro e boias (substituição total em 36 meses) | E55: conj. | F55: 1 | G55: 247 | H55: 247 | I55: 0.0001450368683 | M55: 0.045 | N55: 247
B56: 9.4 | C56: Boias de flutuação (estoque para substituição a partir do 3° ano) | E56: unid | F56: 3 | G56: 480 | H56: 1440 | I56: 0.0008455590703 | M56: 3 | N56: 480
B57: 9.5 | C57: Placas de gesso (estoque para manutenções periódicas) | E57: unid | F57: 6 | G57: 167 | H57: 1002 | I57: 0.0005883681864 | M57: 6 | N57: 167
B58: 9.6 | C58: Espelhos e vidros * (substituição por quebra de 1 unidade cada 6 meses) | E58: unid | F58: 1 | G58: 300 | H58: 300 | I58: 0.0001761581397 | M58: 0.255 | N58: 300
B59: 9.7 | C59: Lâmpadas, reatores, luminárias (estoque para manutenções periódicas) | E59: conj. | F59: 3 | G59: 250 | H59: 750 | I59: 0.0004403953491 | M59: 3 | N59: 250
B60: 9.8 | C60: Tintas, vernizes e selador acrílico (estoque para manutenção periódica) | E60: lata | F60: 6 | G60: 1350 | H60: 8100 | I60: 0.004756269771 | M60: 6 | N60: 1350
B61: 9.9 | C61: Pesticidas (produtos para a equipe de jardinagem em seu plano de Controle de Pragas) | E61: litro | F61: 9 | G61: 930 | H61: 8370 | I61: 0.004914812096 | M61: 9 | N61: 930
B62: 9.10 | C62: Eletrobombas (verba para compra de peças e manutenções ao longo do tempo) | E62: verba | F62: 1 | G62: 234 | H62: 234 | I62: 0.0001374033489 | M62: 1 | N62: 234
B63: 9.11 | C63: Areia e Saibro rosa (estoque para a substituição quando necessário) | E63: m3 | F63: 18 | G63: 298 | H63: 5364 | I63: 0.003149707537 | M63: 18 | N63: 298
B64: 9.12 | C64: Piso podotátil (estoque para substituição periódica) | E64: unid | F64: 5 | G64: 90 | H64: 450 | I64: 0.0002642372095 | M64: 4.5 | N64: 90
B65: 9.13 | C65: Blocos autônomos * - iluminação de emergência (substituição de 1 unid. cada 4 meses) | E65: unid | F65: 1 | G65: 54 | H65: 54 | I65: 3.170846514e-05 | M65: 0.375 | N65: 54
B66: 9.14 | C66: Chuveiros, fios e cabos elétricos * (2 chuveiros, disjuntores, fios e resistências semestralmente) | E66: verba | F66: 1 | G66: 275 | H66: 275 | I66: 0.0001614782947 | M66: 1 | N66: 275
B67: 9.15 | C67: Granitos de pias * (substituição por quebra de 1 unidade cada 2 anos) | E67: unid | F67: 1 | G67: 103 | H67: 103 | I67: 6.048096128e-05 | M67: 0.06 | N67: 103
B68: 9.16 | C68: Consumíveis dos sanitários - papeis e sabonetes (pela população diária média de 500 pessoas) | E68: verba | F68: 1 | G68: 4670 | H68: 4670 | I68: =H68/$H$138 -> 0.002742195041 | M68: 1 | N68: 4670
B69: 9.17 | C69: Divisórias Sanitárias de Granito * (substituição por quebra de 1 unidade cada 2 anos) | E69: unid | F69: 1 | G69: 96 | H69: 96 | I69: 5.637060469e-05 | M69: 0.06 | N69: 96
B70: 9.18 | C70: Portas de madeira completas * (substituição cada 6 meses de 2 unidades) | E70: unid | F70: =ROUNDUP(M70,0) -> 1 | G70: =ROUNDUP(N70,0) -> 194 | H70: 194 | I70: 0.000113915597 | M70: 0.495 | N70: 194
B71: 9.19 | C71: Barras de apoio PNE's * (substituição cada 12 meses de 1 unidade) | E71: unid | F71: 1 | G71: 89 | H71: 89 | I71: 5.22602481e-05 | M71: 0.12 | N71: 89
B72: 9.20 | C72: Vidro temperado * (substituição de uma peça cada 6 meses) | E72: unid | F72: 1 | G72: 233 | H72: 233 | I72: 0.0001368161551 | M72: 0.255 | N72: 233
B73: 9.21 | C73: Pastilhas de vidro para reposição de revestimento (estoque para manutenção periódica) | E73: verba | F73: 1 | G73: 74 | H73: 74 | I73: 4.345234111e-05 | M73: 1 | N73: 74
B74: 9.22 | C74: Torneiras , ferragens e metais de sanitários * (substituição de 2 unidades cada 6 meses) | E74: conj. | F74: 1 | G74: 650 | H74: 650 | I74: 0.0003816759692 | M74: 0.495 | N74: 650
B75: 9.23 | C75: Borracha clorada (estoque para manutenção periódica) | E75: verba | F75: 1 | G75: 836 | H75: 836 | I75: 0.0004908940158 | M75: 1 | N75: 836
B76: 9.24 | C76: Bebedouros - purificadores de água | E76: unit. | F76: 8 | G76: 650 | H76: 5200 | I76: 0.003053407754 | M76: 7.5 | N76: 650
B77: 9.25 | C77: EPI´s e EPC´s (conjuntos das equipes com equipamentos de proteção individual e coletiva) | E77: verba | F77: 1 | G77: 2150 | H77: 2150 | I77: 0.001262466668 | M77: 1 | N77: 2150
B78: 9.26 | C78: Maquinas corte de grama e podas de árvores (aquisição, estoque - manutenção e substituição) | E78: verba | F78: 1 | G78: 798 | H78: 798 | I78: 0.0004685806515 | M78: 1 | N78: 798
B79: 9.27 | C79: Maquina limpeza: praias, quadras de vôlei e parquinhos (aquisição, estoque - manut e substituição) | E79: unit. | F79: 1 | G79: 634 | H79: 634 | I79: 0.0003722808685 | M79: 1 | N79: 634
B80: 9.28 | C80: Dispensers dos sanitários - porta papéis e sabonetes (aquisição, estoque - manut e substituição) | E80: verba | F80: 1 | G80: 424 | H80: 424 | I80: 0.0002489701707 | M80: 1 | N80: 424
B81: 9.29 | C81: Lixeiras de reposição (aquisição, estoque - manut e substituição) | E81: verba | F81: 1 | G81: 375 | H81: 375 | I81: 0.0002201976746 | M81: 1 | N81: 375
B82: 9.30 | C82: Trator com reboque para carrinho e roçadeira (custo de aquisição, manutenção e substituição) | E82: unit. | F82: 1 | G82: 1384 | H82: 1384 | I82: 0.0008126762176 | M82: 1 | N82: 1384
B83: 9.31 | C83: Ferramental das equipes de manutenção, limpeza, jardinagem e vigilância | E83: verba | F83: 1 | G83: 2707 | H83: 2707 | I83: 0.001589533613 | M83: 1 | N83: 2706.5
B84: 9.32 | C84: Equipamentos das equipes de manutenção, limpeza, jardinagem e vigilância | E84: verba | F84: 1 | G84: 2997 | H84: 2997 | I84: 0.001759819815 | M84: 1 | N84: 2996.75
B85: 9.33 | C85: Assentos das bacias sanitárias * (estoque para substituição) | E85: verba | F85: 1 | G85: 239 | H85: 239 | I85: 0.0001403393179 | M85: 1 | N85: 239
B86: 9.34 | C86: Máquina de Solda Mig-150 Eletrônica-V8 Brasil-Mig-150br - DUTRA MAQUINAS | E86: unit. | F86: 1 | G86: 759 | H86: 759 | I86: 0.0004456800933 | M86: 1 | N86: 758.1
B87: 9.35 | C87: Serra Policorte 12" Alumínio s/ Disco s/ Motor CH SCAP-120N - Motomil - RR MAQUINAS | E87: unit. | F87: 1 | G87: 1049 | H87: 1049 | I87: 0.000615966295 | M87: 1 | N87: 1049
B88: 9.36 | C88: Serra Mármore Profissional 125mm 1500W c/ Kit Refrigeração,Disco e Maleta - BOSCH -GCD-151 | E88: unit. | F88: 1 | G88: 440 | H88: 440 | I88: 0.0002583652715 | M88: 1 | N88: 439.9
B89: 9.37 | C89: Furadeira de Bancada 1/2HP 5/8 Fbm160t Motomil 220/380V - RR MAQUINAS | E89: unit. | F89: 1 | G89: 935 | H89: 935 | I89: 0.0005490262019 | M89: 1 | N89: 935
B90: 9.38 | C90: Serra Circular de Bancada 255mm 1650W | E90: unit. | F90: 1 | G90: 5253 | H90: 5253 | I90: 0.003084529025 | M90: 1 | N90: 5252.62
B91: 9.39 | C91: Furadeira Parafusadeira Impacto GSB 16 Re + Maleta - Bosch | E91: unit. | F91: 2 | G91: 329 | H91: 658 | I91: 0.0003863735196 | M91: 2 | N91: 329
B92: 9.40 | C92: Martelete Rompedor 0-5100imp 800W c/ Maleta 220V - GBH 2-24DF - Bosch | E92: unit. | F92: 1 | G92: 773 | H92: 773 | I92: 0.0004539008065 | M92: 1 | N92: 773
B93: 9.41 | C93: Gerador à Gasolina 6kva Trif Part. Elétrica - Nagano | E93: unit. | F93: 1 | G93: 2699 | H93: 2699 | I93: 0.001584836063 | M93: 1 | N93: 2699
B94: 9.42 | C94: Andaime - Torre de 10 m | E94: unit. | F94: 1 | G94: 950 | H94: 950 | I94: 0.0005578341089 | M94: 1 | N94: 950
B95: 9.43 | C95: Multímetro modelo 289 | E95: unit. | F95: 1 | G95: 5200 | H95: 5200 | I95: 0.003053407754 | M95: 1 | N95: 5200
B96: 9.44 | C96: Bancada c/ 3 Gavetas, Tampo Madeira Compensada 40mm 200 x 60 x 92 cm | E96: unit. | F96: 1 | G96: 880 | H96: 880 | I96: 0.000516730543 | M96: 1 | N96: 879.9
B97: 9.45 | C97: Carro de Ferramentas com 380 Peças e 7 Gavetas FG6100 | E97: unit. | F97: 1 | G97: 3666 | H97: 3666 | I97: 0.002152652467 | M97: 1 | N97: 3665.56
B98: 9.46 | C98: Caixa de ferramenta Marcenaria | E98: unit. | F98: 1 | G98: 2790 | H98: 2790 | I98: 0.001638270699 | M98: 1 | N98: 2790
B99: 9.47 | C99: Caixa de ferramenta Hidráulica | E99: unit. | F99: 1 | G99: 1300 | H99: 1300 | I99: 0.0007633519385 | M99: 1 | N99: 1300
B100: 9.48 | C100: Caixa de ferramenta Predial | E100: unit. | F100: 1 | G100: 2800 | H100: 2800 | I100: =H100/$H$138 -> 0.001644142637 | M100: 1 | N100: 2800
B101: 9.49 | C101: Caixa de ferramenta Elétrica | E101: unit. | F101: 1 | G101: 1300 | H101: 1300 | I101: 0.0007633519385 | M101: 1 | N101: 1300
B102: 9.50 | C102: Varredeira Urbana MC-50 | E102: unit. | F102: 6 | G102: 2641 | H102: 15846 | I102: 0.009304672936 | M102: 6 | N102: 2640.9
F103: 0 | G103: 0 | I103: 0
B104: 10 | C104: LOCAÇÕES VEICULOS / EQUIPAMENTOS | F104: 0 | G104: 0 | H104: =SUM(H105:H110) -> 64659 | I104: 0.03796736384 | L104: Alugando 20 carros - R$ 1.600/mês | O104: =N104*12 -> 0 | P104: =O104*30 -> 0
B105: 10.1 | C105: Caminhão | D105: 1 caminhão | E105: mês | F105: 1 | G105: 6000 | H105: =G105*F105 -> 6000 | I105: 0.003523162793 | J105: Considerado para 5 parques | M105: =1/5 -> 0.2 | N105: 6000
B106: 10.2 | C106: Carro de passeio | D106: Aluguel mensal de Carro - 5 carros | E106: mês | F106: 1 | G106: 10000 | H106: =G106*F106 -> 10000 | I106: 0.005871937988 | M106: 1 | N106: 10000
B107: 10.3 | C107: Motorista | D107: 6 funcionários | E107: mês | F107: 1 | G107: 26359 | H107: 26359 | I107: 0.01547784134 | M107: 1 | N107: 26358.42
B108: 10.4 | C108: Retroescavadeira | D108: Limpeza dos lagos | E108: mês | F108: 1 | G108: 18000 | H108: 18000 | I108: 0.01056948838 | J108: ALUGUEL | M108: 1 | N108: 18000
B109: 10.5 | C109: Operador de Retroescavadeira | E109: mês | F109: 1 | G109: 4300 | H109: 4300 | I109: 0.002524933335 | M109: 1 | N109: 4300
F110: 0 | G110: 0 | I110: 0
B111: 11 | C111: COMBUSTIVEL | F111: 0 | G111: 0 | H111: =SUM(H112:H113) -> 10668 | I111: 0.006264183446
B112: 11.1 | C112: Combustível para Carros | D112: Ver composição - considerando 5 automóveis por mês | E112: mês | F112: 1 | G112: 10068 | H112: =F112*G112 -> 10068 | I112: 0.005911867167 | M112: 1 | N112: 10067.85714
B113: 11.2 | C113: Combustível para Equipamentos | D113: Diesel - escavadeiras, pás carregadeiras, retroescavadeiras, tratores de esteiras e gerador | E113: mês | F113: 1 | G113: 600 | H113: 600 | I113: 0.0003523162793 | M113: 1 | N113: 600
F114: 0 | G114: 0 | I114: 0
B115: 12 | C115: SUSEPE | F115: 0 | G115: 0 | H115: =SUM(H116:H117) -> 16053 | I115: 0.009426222053
B116: 12.1 | C116: Mão de obra de Apoio - Apenados | D116: Utilizar equipe dos Apenados para serviços gerais - Equipe com 15 pessoas | E116: mês | F116: 1 | G116: 15453 | H116: =G116*F116 -> 15453 | I116: 0.009073905773 | M116: 1 | N116: 15453
B117: 12.2 | C117: Alimentação | D117: Alimentação dos Apenados - Equipe com 15 pessoas | E117: mês | F117: 1 | G117: 600 | H117: 600 | I117: 0.0003523162793 | M117: 1 | N117: 600
F118: 0 | G118: 0 | I118: 0
B119: 13 | C119: SEGURO | F119: 0 | G119: 0 | H119: =SUM(H120:H123) -> 1707 | I119: 0.001002339815
B120: 13.1 | C120: Seguro Patrimonial | D120: (% do valor do patrimônio) - 5% | E120: mês | F120: 1 | G120: 1067 | H120: =G120*F120 -> 1067 | I120: 0.0006265357834 | L120: =H138 -> 1703015.26 | M120: 1 | N120: 1066.209
B121: 13.2 | C121: Responsabilidade Civil | D121: (% da receita) - 3% | E121: mês | F121: 1 | G121: 640 | H121: 640 | I121: 0.0003758040313 | M121: 1 | N121: 639.7254
B122: 13.3 | C122: Risco de Engenharia | D122: Obras - (% do valor da obra) - incluso CAPEX | E122: mês | F122: 1 | G122: 0 | H122: 0 | I122: 0 | J122: Incluso CAPEX | M122: 1 | N122: 0
B123: 13.4 | C123: Responsabilidade Civil | D123: Obras - (% do valor da obra) - incluso CAPEX | E123: mês | F123: 1 | G123: 0 | H123: 0 | I123: 0 | J123: Incluso CAPEX | M123: 1 | N123: 0
F124: 0 | G124: 0 | I124: 0
B125: 14 | C125: DESPESA DE PESSOAL - ADMINISTRAÇÃO | F125: 0 | G125: 0 | H125: =SUM(H126:H133) -> 57054.37 | I125: 0.03350197226
B126: 14.1 | C126: Gerente GERAL | D126: Considerado 1 funcionário - Ref. Cataratas | E126: mês | F126: =ROUNDUP(M126,0)*0.41 -> 0.41 | G126: 32987 | H126: =G126*F126 -> 13524.67 | I126: =H126/$H$138 -> 0.007941602355 | J126: Rateado para os 5 parques | M126: 1 | N126: 32986.06
B127: 14.2 | C127: Assistente Financeiro | D127: Considerado 3 funcionários - Ref. Cataratas | E127: mês | F127: 0.41 | G127: 15707 | H127: =G127*F127 -> 6439.87 | I127: 0.003781451729 | J127: Rateado para os 5 parques | M127: 1 | N127: 15706.95
B128: 14.3 | C128: Analista de RH | D128: Considerado 3 funcionário - Ref. Cataratas | E128: mês | F128: 0.41 | G128: 28944 | H128: 11867.04 | I128: 0.006968252299 | J128: Rateado para os 5 parques | M128: 1 | N128: 28943.7
B129: 14.4 | C129: Técnico Segurança do Trabalho | D129: Considerado 2 funcionários - Ref. Cataratas | E129: mês | F129: 0.41 | G129: 11490 | H129: 4710.9 | I129: 0.002766211267 | M129: 1 | N129: 11489.42
B130: 14.5 | C130: Analista de Marketing | D130: Considerado 2 funcionários - Ref. Cataratas | E130: mês | F130: 0.41 | G130: 10736 | H130: 4401.76 | I130: 0.002584686176 | J130: Rateado para os 5 parques | M130: 1 | N130: 10735.62
B131: 14.6 | C131: Jovem Aprendiz | D131: Considerado 10 funcionários - Ref. Cataratas | E131: mês | F131: 0.41 | G131: 6306 | H131: 2585.46 | I131: 0.001518166079 | M131: 1 | N131: 6306
B132: 14.7 | C132: Gerente de Operações | D132: Considerado 1 funcionário - Ref. Cataratas | E132: mês | F132: 0.41 | G132: 32987 | H132: =G132*F132 -> 13524.67 | I132: 0.007941602355 | J132: Rateado para os 5 parques | M132: 1 | N132: =N126 -> 32986.06
F133: 0 | G133: =ROUNDUP(N133,0) -> 0 | H133: =G133*F133 -> 0 | I133: =H133/$H$138 -> 0
B134: 15 | C134: DESPESA DE MANUTENÇÃO OBRA DE ARTE | F134: =ROUNDUP(M134,0) -> 0 | G134: 0 | H134: =H135 -> 3000 | I134: =H134/$H$138 -> 0.001761581397
B135: 2022-01-15 | C135: Despesa com manutenção e limpeza de obra arte | E135: mês | F135: 1 | G135: 3000 | H135: =G135*F135 -> 3000 | I135: =H135/$H$138 -> 0.001761581397 | M135: 1 | N135: 3000
I136: =H136/$H$138 -> 0
J137: TOTAL/ M2
B138: TOTAL MENSAL: | H138: =SUM(H4:H136)/2 -> 1703015.26 | I138: =SUM(I4:I136)/2 -> 1 | J138: =H138/710000 -> 2.398613042
H139: =SUMPRODUCT(F4:F136,G4:G136) -> 1703015.26
B140: TOTAL POR ANO: | H140: =H138*12 -> 20436183.12
B142: TOTAL EM 30 ANOS: | H142: =H140*30 -> 613085493.6
C148: GÁS?
C149: CFTV?
C150: AMBULANCIA /POSTO ENFERMAGEM / ENFERMEIRO ?

Sheet OPEX - LAMI
B2: OPEX - CALÇADÃO DO LAMI Área = 33.000 m²
B3: ITEM | C3: DESCRIÇÃO PARQUE | D3: PREMISSAS | E3: UNID. | F3: QUANTIDADE | G3: VALOR UNITÁRIO | H3: VALOR TOTAL MENSAL | I3: PESO (%) | J3: OBSERVAÇÃO | M3: QUANTIDADE | N3: VALOR UNITÁRIO
B4: 1 | C4: CUSTOS AMBIENTAIS | H4: =SUM(H5:H6) -> 1389 | I4: =H4/$H$139 -> 0.01092356673
B5: 1.1 | C5: Árvores | D5: Recuperação de perdas, conforme planilha Para o período de 30 anos | E5: mês | F5: =ROUNDUP(M5,0) -> 1 | G5: =ROUNDUP(N5,0) -> 139 | H5: =F5*G5 -> 139 | I5: 0.001093143107 | M5: 1 | N5: 138.8888889
B6: 1.2 | C6: Material Educação Ambiental | D6: Folder, insumos, material geral (15 mil ano, p/ 30 anos) | E6: mês | F6: =ROUNDUP(M6,0) -> 1 | G6: =ROUNDUP(N6,0) -> 1250 | H6: 1250 | I6: 0.00983042362 | M6: 1 | N6: 1250
F7: 0 | G7: 0 | I7: 0
B8: 2 | C8: SEGURANÇA | F8: 0 | G8: 0 | H8: =SUM(H9:H13) -> 8888 | I8: 0.06989824411
B9: 2.1 | C9: Portaria 24 horas | D9: Considerado portaria 24 horas - Equipe com turnos de 12 horas (incluso folguistas) - 6 funcionários | E9: mês | F9: 0 | G9: 26946 | H9: =F9*G9 -> 0 | I9: 0 | J9: Não se aplica | N9: 26945.22
B10: 2.2 | C10: Vigilância - Líder | D10: 1 funcionário | E10: mês | F10: 0 | G10: 8888 | H10: 0 | I10: 0 | M10: 0 | N10: 8887.3
B11: 2.3 | C11: Vigilância - Ronda Diurna | D11: 1 vigia a cada 10.000m², apenas no período diurno | E11: mês | F11: 0 | G11: 30946 | H11: 0 | I11: 0 | J11: Não se aplica | N11: 30945.552
B12: 2.4 | C12: Salva-vidas | D12: - | E12: mês | F12: 1 | G12: 8888 | H12: 8888 | I12: 0.06989824411 | M12: 1 | N12: 8887.3
F13: 0 | G13: 0 | I13: 0
B14: 3 | C14: LIMPEZA | F14: 0 | G14: 0 | H14: =SUM(H15:H18) -> 9322 | I14: 0.07331136719
B15: 3.1 | C15: Material - Limpeza | D15: Custo mensal com materiais: produtos de limpeza | E15: mês | F15: 1 | G15: 800 | H15: =F15*G15 -> 800 | I15: 0.006291471117 | M15: 1 | N15: 800
B16: 3.2 | C16: Equipe de Limpeza | D16: Encarregado de Limpeza - 1 funcionário | E16: mês | F16: 1 | G16: 4222 | H16: 4222 | I16: 0.03320323882 | M16: 1 | N16: 4221.78
B17: 3.3 | C17: Equipe de Limpeza | D17: Auxiliar de Limpeza - 10 funcionários | E17: mês | F17: 1 | G17: 4300 | H17: 4300 | I17: 0.03381665725 | M17: 1 | N17: 4299.9
B18: 3.4 | C18: Equipe de Limpeza | D18: Coletor de Lixo - 10 funcionários | E18: mês | F18: 0 | G18: 3273 | H18: 0 | I18: 0 | N18: 3272.86
F19: 0 | G19: 0 | I19: 0
B20: 4 | C20: MANUTENÇÃO DE ÁREAS VERDES | F20: 0 | G20: 0 | H20: =SUM(H21:H30) -> 55505.42 | I20: 0.4365134334
B21: 4.1 | C21: Roçada / capina dos gramados | D21: 1 x mês - inverno / outono 2 x mês - primavera / verão | E21: m² | F21: 852 | G21: =N21 -> 0.375 | H21: =G21*F21 -> 319.5 | I21: 0.002512656277 | M21: 851.97 | N21: 0.375
B22: 4.2 | C22: Jardinagem - Trabalho Diário | D22: Auxiliar de Jardinagem - 1 funcionário a cada 50.000 m² | E22: mês | F22: 1 | G22: 370 | H22: 370 | I22: 0.002909805391 | J22: CADTERC (BEC.SP) | M22: =851.97/10000 -> 0.085197 | N22: 370
B23: 4.3 | C23: Poda | D23: Poda com supressão - Estimativa Contrato Atual | E23: mês | F23: 60972 | G23: =N23 -> 0.62 | H23: 37802.64 | I23: 0.2972927721 | J23: CADTERC (BEC.SP) | M23: 60971.2379 | N23: 0.62
B24: 4.4 | C24: Encarregado de Jardinagem | D24: 1 funcionário | E24: mês | F24: 1 | G24: 3629 | H24: 3629 | I24: 0.02853968585 | M24: 1 | N24: 3628.55
B25: 4.5 | C25: Operador de Equipamentos | D25: 2 funcionários | E25: mês | F25: 1 | G25: 8265 | H25: 8265 | I25: 0.06499876097 | M25: 1 | N25: 8264.82
B26: 4.6 | C26: Trabalhos com Varrição | D26: 1 funcionário | E26: mês | F26: 852 | G26: =N26 -> 0.14 | H26: 119.28 | I26: 0.0009380583435 | J26: CADTERC (BEC.SP) | M26: 851.97 | N26: 0.14
B27: 4.7 | C27: Transbordo do lixo | D27: Não se aplica | E27: mês | F27: 1 | G27: 0 | H27: 0 | I27: 0 | J27: Incluso viagem + motorista + 2 operadores - 3x semana | M27: 1 | N27: 0
B28: 4.8 | C28: Limpeza de Lagos | D28: Não se aplica | E28: mês | F28: 0 | G28: 0 | H28: 0 | I28: 0 | J28: Não se aplica | N28: 0
B29: 4.9 | C29: Manutenção e Conservação de Pier | D29: Aplicação de verniz náutico e manutenção | E29: mês | F29: 1 | G29: 5000 | H29: 5000 | I29: 0.03932169448 | M29: 1 | N29: 5000
F30: 0 | G30: 0 | H30: 0 | I30: 0
B31: 5 | C31: MANUTENÇÃO CIVIL E PREDIAL | F31: 0 | G31: 0 | H31: =SUM(H32:H39) -> 30 | I31: 0.0002359301669
B32: 5.1 | C32: Equipe de manutenção Civil | D32: Não se aplica | E32: mês | F32: 0 | G32: 8156 | H32: =F32*G32 -> 0 | I32: 0 | J32: Não se aplica | N32: 8155.16
B33: 5.2 | C33: Equipe de manutenção Civil | D33: Não se aplica | E33: mês | F33: 0 | G33: 15252 | H33: 0 | I33: 0 | J33: Não se aplica | N33: 15251.64
B34: 5.3 | C34: Equipe de manutenção Civil | D34: Não se aplica | E34: mês | F34: 0 | G34: 7615 | H34: 0 | I34: 0 | J34: Não se aplica | N34: 7614.06
B35: 5.4 | C35: Bombeiro Civil | D35: Não se aplica | E35: mês | F35: 0 | G35: 8470 | H35: 0 | I35: 0 | J35: Não se aplica | N35: 8469.12
B36: 5.5 | C36: Bombeiro Hidráulico | D36: Não se aplica | E36: mês | F36: 0 | G36: 8470 | H36: 0 | I36: =H36/$H$139 -> 0 | J36: Não se aplica | N36: 8469.12
B37: 5.6 | C37: Eletricista | D37: Não se aplica | E37: mês | F37: 0 | G37: 5140 | H37: 0 | I37: 0 | J37: Não se aplica | N37: 5139.6
B38: 5.7 | C38: Técnico Eletromecânico | D38: Não se aplica | E38: mês | F38: 0 | G38: 4079 | H38: 0 | I38: 0 | J38: Não se aplica | N38: 4078.49
B39: 5.8 | C39: EPI's e EPC's | D39: verba mensal | E39: mês | F39: 1 | G39: 30 | H39: 30 | I39: 0.0002359301669 | J39: Não se aplica | M39: 1 | N39: 30
F40: 0 | G40: 0 | H40: =G40*F40 -> 0 | I40: 0
B41: 6 | C41: CEEE | F41: 0 | G41: 0 | H41: =SUM(H42) -> 200 | I41: 0.001572867779
B42: 6.1 | C42: Despesa mensal com Energia Elétrica | E42: mês | F42: 1 | G42: 200 | H42: =G42*F42 -> 200 | I42: 0.001572867779 | M42: 1 | N42: 200
F43: 0 | G43: 0 | H43: 0 | I43: 0
B44: 7 | C44: TELEFONICA FIXA / INTERNET / SISTEMAS / MARKETING | F44: 0 | G44: 0 | H44: =SUM(H45:H49) -> 6000 | I44: 0.04718603337
B45: 7.1 | C45: Despesa mensal com Telefone | D45: Não se aplica | E45: mês | F45: 0 | G45: 200 | H45: =G45*F45 -> 0 | I45: 0 | J45: Não se aplica | N45: 200
B46: 7.2 | C46: Despesa mensal com Wi-fi | D46: Não se aplica | E46: mês | F46: 0 | G46: 180 | H46: 0 | I46: 0 | J46: Não se aplica | N46: 180
B47: 7.3 | C47: Suprimentos e insumos informática | D47: Não se aplica | E47: mês | F47: 0 | G47: 500 | H47: 0 | I47: 0 | J47: Não se aplica | N47: 500
B48: 7.4 | C48: Manutenção de comunicação visual e estratégia de Marketing | D48: Considerado contrato de R$ 20.000 - dividido pelos 5 parques | E48: mês | F48: 1 | G48: 6000 | H48: 6000 | I48: 0.04718603337 | M48: 1 | N48: 6000
F49: 0 | G49: 0 | H49: 0 | I49: 0
B50: 8 | C50: AGUA / DMAE | F50: 0 | G50: 0 | H50: =SUM(H51) -> 300 | I50: 0.002359301669
B51: 8.1 | C51: Despesa Mensal com Água e Esgoto | D51: Banheiro e Quiosque | E51: mês | F51: 1 | G51: 300 | H51: =G51*F51 -> 300 | I51: 0.002359301669 | M51: 1 | N51: 300
F52: 0 | G52: 0 | H52: 0 | I52: 0
B53: 9 | C53: MATERIAIS DIVERSOS MANUTENÇÃO | F53: 0 | G53: 0 | H53: =SUM(H54:H104) -> 27970 | I53: 0.2199655589
B54: 9.1 | C54: Colas químicas (estoque para manutenção anual) | E54: tubo | F54: 0 | G54: 350 | H54: =F54*G54 -> 0 | I54: 0 | N54: 350
B55: 9.2 | C55: Fechaduras e ferragens * (substituição de 2 unidades cada 6 meses) | E55: conj. | F55: 1 | G55: 125 | H55: 125 | I55: 0.000983042362 | M55: 0.1 | N55: 125
B56: 9.3 | C56: Corda ancoradouro e boias (substituição total em 36 meses) | E56: conj. | F56: 1 | G56: 247 | H56: 247 | I56: 0.001942491707 | M56: 0.02777777778 | N56: 247
B57: 9.4 | C57: Boias de flutuação (estoque para substituição a partir do 3° ano) | E57: unid | F57: 2 | G57: 480 | H57: 960 | I57: 0.00754976534 | M57: 2 | N57: 480
B58: 9.5 | C58: Placas de gesso (estoque para manutenções periódicas) | E58: unid | F58: 0 | G58: 167 | H58: 0 | I58: 0 | N58: 167
B59: 9.6 | C59: Espelhos e vidros * (substituição por quebra de 1 unidade cada 6 meses) | E59: unid | F59: 0 | G59: 300 | H59: 0 | I59: 0 | N59: 300
B60: 9.7 | C60: Lâmpadas, reatores, luminárias (estoque para manutenções periódicas) | E60: conj. | F60: 1 | G60: 250 | H60: 250 | I60: 0.001966084724 | M60: 1 | N60: 250
B61: 9.8 | C61: Tintas, vernizes e selador acrílico (estoque para manutenção periódica) | E61: lata | F61: 1 | G61: 1350 | H61: 1350 | I61: 0.01061685751 | M61: 1 | N61: 1350
B62: 9.9 | C62: Pesticidas (produtos para a equipe de jardinagem em seu plano de Controle de Pragas) | E62: litro | F62: 0 | G62: 930 | H62: 0 | I62: 0 | N62: 930
B63: 9.10 | C63: Eletrobombas (verba para compra de peças e manutenções ao longo do tempo) | E63: verba | F63: 0 | G63: 234 | H63: 0 | I63: 0 | N63: 234
B64: 9.11 | C64: Areia e Grama (estoque para a substituição quando necessário) | E64: m3 | F64: 20 | G64: 298 | H64: 5960 | I64: 0.04687145982 | M64: 20 | N64: 298
B65: 9.12 | C65: Piso podotátil (estoque para substituição periódica) | E65: unid | F65: 0 | G65: 90 | H65: 0 | I65: 0 | N65: 90
B66: 9.13 | C66: Blocos autônomos * - iluminação de emergência (substituição de 1 unid. cada 4 meses) | E66: unid | F66: 1 | G66: 54 | H66: 54 | I66: 0.0004246743004 | M66: 0.25 | N66: 54
B67: 9.14 | C67: Chuveiros, fios e cabos elétricos * (2 chuveiros, disjuntores, fios e resistências semestralmente) | E67: verba | F67: 1 | G67: 275 | H67: 275 | I67: 0.002162693196 | M67: 0.2 | N67: 275
B68: 9.15 | C68: Granitos de pias * (substituição por quebra de 1 unidade cada 2 anos) | E68: unid | F68: 0 | G68: 103 | H68: 0 | I68: =H68/$H$139 -> 0 | N68: 103
B69: 9.16 | C69: Consumíveis dos sanitários - papeis e sabonetes (pela população diária média de 500 pessoas) | E69: verba | F69: 1 | G69: 4670 | H69: 4670 | I69: 0.03672646264 | M69: 0.04166666667 | N69: 4670
B70: 9.17 | C70: Divisórias Sanitárias de Granito * (substituição por quebra de 1 unidade cada 2 anos) | E70: unid | F70: =ROUNDUP(M70,0) -> 0 | G70: =ROUNDUP(N70,0) -> 96 | H70: =F69*G70 -> 96 | I70: 0.000754976534 | N70: 96
B71: 9.18 | C71: Portas de madeira completas * (substituição cada 6 meses de 2 unidades) | E71: unid | F71: 0 | G71: 194 | H71: =F71*G71 -> 0 | I71: 0 | N71: 194
B72: 9.19 | C72: Barras de apoio PNE's * (substituição cada 12 meses de 1 unidade) | E72: unid | F72: 0 | G72: 89 | H72: 0 | I72: 0 | N72: 89
B73: 9.20 | C73: Vidro temperado * (substituição de uma peça cada 6 meses) | E73: unid | F73: 0 | G73: 233 | H73: 0 | I73: 0 | N73: 233
B74: 9.21 | C74: Pastilhas de vidro para reposição de revestimento (estoque para manutenção periódica) | E74: verba | F74: 0 | G74: 74 | H74: 0 | I74: 0 | N74: 74
B75: 9.22 | C75: Torneiras , ferragens e metais de sanitários * (substituição de 2 unidades cada 6 meses) | E75: conj. | F75: 1 | G75: 650 | H75: 650 | I75: 0.005111820282 | M75: 0.1 | N75: 650
B76: 9.23 | C76: Borracha clorada (estoque para manutenção periódica) | E76: verba | F76: 0 | G76: 836 | H76: 0 | I76: 0 | N76: 836
B77: 9.24 | C77: Bebedouros - purificadores de água | E77: unit. | F77: 0 | G77: 650 | H77: 0 | I77: 0 | N77: 650
B78: 9.25 | C78: EPI´s e EPC´s (conjuntos das equipes com equipamentos de proteção individual e coletiva) | E78: verba | F78: 1 | G78: 2150 | H78: 2150 | I78: 0.01690832863 | M78: 0.1 | N78: 2150
B79: 9.26 | C79: Maquinas corte de grama e podas de árvores (aquisição, estoque - manutenção e substituição) | E79: verba | F79: 1 | G79: 798 | H79: 798 | I79: 0.006275742439 | M79: 1 | N79: 798
B80: 9.27 | C80: Maquina limpeza: praias, quadras de vôlei e parquinhos (aquisição, estoque - manut e substituição) | E80: unit. | F80: 0 | G80: 634 | H80: 0 | I80: 0 | N80: 634
B81: 9.28 | C81: Dispensers dos sanitários - porta papéis e sabonetes (aquisição, estoque - manut e substituição) | E81: verba | F81: 1 | G81: 424 | H81: 424 | I81: 0.003334479692 | M81: 0.1 | N81: 424
B82: 9.29 | C82: Lixeiras de reposição (aquisição, estoque - manut e substituição) | E82: verba | F82: 1 | G82: 375 | H82: 375 | I82: 0.002949127086 | M82: 1 | N82: 375
B83: 9.30 | C83: Trator com reboque para carrinho e roçadeira (custo de aquisição, manutenção e substituição) | E83: unit. | F83: 0 | G83: 1384 | H83: 0 | I83: 0 | N83: 1384
B84: 9.31 | C84: Ferramental das equipes de manutenção, limpeza, jardinagem e vigilância | E84: verba | F84: 1 | G84: 2707 | H84: 2707 | I84: 0.02128876539 | M84: 0.1 | N84: 2706.5
B85: 9.32 | C85: Equipamentos das equipes de manutenção, limpeza, jardinagem e vigilância | E85: verba | F85: 0 | G85: 2997 | H85: 0 | I85: 0 | N85: 2996.75
B86: 9.33 | C86: Assentos das bacias sanitárias * (estoque para substituição) | E86: verba | F86: 1 | G86: 239 | H86: 239 | I86: 0.001879576996 | M86: 0.1 | N86: 239
B87: 9.34 | C87: Máquina de Solda Mig-150 Eletrônica-V8 Brasil-Mig-150br - DUTRA MAQUINAS | E87: unit. | F87: 0 | G87: 759 | H87: 0 | I87: 0 | N87: 758.1
B88: 9.35 | C88: Serra Policorte 12" Alumínio s/ Disco s/ Motor CH SCAP-120N - Motomil - RR MAQUINAS | E88: unit. | F88: 0 | G88: 1049 | H88: 0 | I88: 0 | N88: 1049
B89: 9.36 | C89: Serra Mármore Profissional 125mm 1500W c/ Kit Refrigeração,Disco e Maleta - BOSCH -GCD-151 | E89: unit. | F89: 0 | G89: 440 | H89: 0 | I89: 0 | N89: 439.9
B90: 9.37 | C90: Furadeira de Bancada 1/2HP 5/8 Fbm160t Motomil 220/380V - RR MAQUINAS | E90: unit. | F90: 0 | G90: 935 | H90: 0 | I90: 0 | N90: 935
B91: 9.38 | C91: Serra Circular de Bancada 255mm 1650W | E91: unit. | F91: 0 | G91: 5253 | H91: 0 | I91: 0 | N91: 5252.62
B92: 9.39 | C92: Furadeira Parafusadeira Impacto GSB 16 Re + Maleta - Bosch | E92: unit. | F92: 0 | G92: 329 | H92: 0 | I92: 0 | N92: 329
B93: 9.40 | C93: Martelete Rompedor 0-5100imp 800W c/ Maleta 220V - GBH 2-24DF - Bosch | E93: unit. | F93: 0 | G93: 773 | H93: 0 | I93: 0 | N93: 773
B94: 9.41 | C94: Gerador à Gasolina 6kva Trif Part. Elétrica - Nagano | E94: unit. | F94: 1 | G94: 2699 | H94: 2699 | I94: 0.02122585068 | M94: 1 | N94: 2699
B95: 9.42 | C95: Andaime - Torre de 10 m | E95: unit. | F95: 0 | G95: 950 | H95: 0 | I95: 0 | N95: 950
B96: 9.43 | C96: Multímetro modelo 289 | E96: unit. | F96: 0 | G96: 5200 | H96: 0 | I96: 0 | N96: 5200
B97: 9.44 | C97: Bancada c/ 3 Gavetas, Tampo Madeira Compensada 40mm 200 x 60 x 92 cm | E97: unit. | F97: 0 | G97: 880 | H97: 0 | I97: 0 | N97: 879.9
B98: 9.45 | C98: Carro de Ferramentas com 380 Peças e 7 Gavetas FG6100 | E98: unit. | F98: 0 | G98: 3666 | H98: 0 | I98: 0 | N98: 3665.56
B99: 9.46 | C99: Caixa de ferramenta Marcenaria | E99: unit. | F99: 0 | G99: 2790 | H99: 0 | I99: 0 | N99: 2790
B100: 9.47 | C100: Caixa de ferramenta Hidráulica | E100: unit. | F100: 0 | G100: 1300 | H100: 0 | I100: =H100/$H$139 -> 0 | N100: 1300
B101: 9.48 | C101: Caixa de ferramenta Predial | E101: unit. | F101: 0 | G101: 2800 | H101: 0 | I101: 0 | N101: 2800
B102: 9.49 | C102: Caixa de ferramenta Elétrica | E102: unit. | F102: 1 | G102: 1300 | H102: 1300 | I102: 0.01022364056 | M102: 1 | N102: 1300
B103: 9.50 | C103: Varredeira Urbana MC-50 | E103: unit. | F103: 1 | G103: 2641 | H103: 2641 | I103: 0.02076971902 | M103: 1 | N103: 2640.9
F104: 0 | G104: 0 | I104: 0
B105: 10 | C105: LOCAÇÕES VEICULOS / EQUIPAMENTOS | F105: 0 | G105: 0 | H105: =SUM(H106:H111) -> 10394 | I105: 0.08174193848 | L105: Alugando 20 carros - R$ 1.600/mês | O105: =N105*12 -> 0 | P105: =O105*30 -> 0
B106: 10.1 | C106: Caminhão | D106: 1 caminhão | E106: mês | F106: 1 | G106: 6000 | H106: =G106*F106 -> 6000 | I106: 0.04718603337 | J106: Considerado para 5 parques | M106: =1/5 -> 0.2 | N106: 6000
B107: 10.2 | C107: Carro de passeio | D107: Não se aplica | E107: mês | F107: 0 | G107: 10000 | H107: =G107*F107 -> 0 | I107: 0 | N107: 10000
B108: 10.3 | C108: Motorista | D108: 1 funcionários - caminhão | E108: mês | F108: 1 | G108: 4394 | H108: 4394 | I108: 0.03455590511 | M108: 1 | N108: 4393.07
B109: 10.4 | C109: Retroescavadeira | D109: Não se aplica | E109: mês | F109: 0 | G109: 18000 | H109: 0 | I109: 0 | N109: 18000
B110: 10.5 | C110: Operador de Retroescavadeira | D110: Não se aplica | E110: mês | F110: 0 | G110: 4300 | H110: 0 | I110: 0 | N110: 4300
F111: 0 | G111: 0 | I111: 0
B112: 11 | C112: COMBUSTIVEL | F112: 0 | G112: 0 | H112: =SUM(H113:H114) -> 0 | I112: 0
B113: 11.1 | C113: Combustível para Carros | D113: Não se aplica | E113: mês | F113: 0 | G113: 10068 | H113: =F113*G113 -> 0 | I113: 0 | N113: 10067.85714
B114: 11.2 | C114: Combustível para Equipamentos | D114: Não se aplica | E114: mês | F114: 0 | G114: 600 | H114: 0 | I114: 0 | N114: 600
F115: 0 | G115: 0 | I115: 0
B116: 12 | C116: SUSEPE | F116: 0 | G116: 0 | H116: =SUM(H117:H118) -> 0 | I116: 0
B117: 12.1 | C117: Mão de obra de Apoio - Apenados | D117: Não se aplica | E117: mês | F117: 0 | G117: 15453 | H117: =G117*F117 -> 0 | I117: 0 | N117: 15453
B118: 12.2 | C118: Alimentação | D118: Não se aplica | E118: mês | F118: 0 | G118: 600 | H118: 0 | I118: 0 | N118: 600
F119: 0 | G119: 0 | I119: 0
B120: 13 | C120: SEGURO | F120: 0 | G120: 0 | H120: =SUM(H121:H124) -> 200 | I120: 0.001572867779
B121: 13.1 | C121: Seguro Patrimonial | D121: (% do valor do patrimônio) - 5% | E121: mês | F121: 1 | G121: 125 | H121: =G121*F121 -> 125 | I121: 0.000983042362 | L121: =H139 -> 127156.27 | M121: 1 | N121: =248993*0.0005 -> 124.4965
B122: 13.2 | C122: Responsabilidade Civil | D122: (% da receita) - 3% | E122: mês | F122: 1 | G122: 75 | H122: 75 | I122: 0.0005898254172 | M122: 1 | N122: =248993*0.0003 -> 74.6979
B123: 13.3 | C123: Risco de Engenharia | D123: Obras - (% do valor da obra) - incluso CAPEX | E123: mês | F123: 1 | G123: 0 | H123: 0 | I123: 0 | J123: Incluso CAPEX | M123: 1 | N123: 0
B124: 13.4 | C124: Responsabilidade Civil | D124: Obras - (% do valor da obra) - incluso CAPEX | E124: mês | F124: 1 | G124: 0 | H124: 0 | I124: 0 | J124: Incluso CAPEX | M124: 1 | N124: 0
F125: 0 | G125: 0 | I125: 0
B126: 14 | C126: DESPESA DE PESSOAL - ADMINISTRAÇÃO | F126: 0 | G126: 0 | H126: =SUM(H127:H134) -> 6957.85 | I126: 0.05471889039
B127: 14.1 | C127: Gerente GERAL | D127: Considerado 1 funcionário - Ref. Cataratas | E127: mês | F127: =ROUNDUP(M127,0)*0.05 -> 0.05 | G127: 32987 | H127: =G127*F127 -> 1649.35 | I127: =H127/$H$139 -> 0.01297104736 | J127: Rateado para os 5 parques | M127: 1 | N127: 32986.06
B128: 14.2 | C128: Assistente Financeiro | D128: Considerado 3 funcionários - Ref. Cataratas | E128: mês | F128: 0.05 | G128: 15707 | H128: =G128*F128 -> 785.35 | I128: 0.006176258552 | J128: Rateado para os 5 parques | M128: 1 | N128: 15706.95
B129: 14.3 | C129: Analista de RH | D129: Considerado 3 funcionário - Ref. Cataratas | E129: mês | F129: 0.05 | G129: 28944 | H129: 1447.2 | I129: 0.01138127125 | J129: Rateado para os 5 parques | M129: 1 | N129: 28943.7
B130: 14.4 | C130: Técnico Segurança do Trabalho | D130: Considerado 2 funcionários - Ref. Cataratas | E130: mês | F130: 0.05 | G130: 11490 | H130: 574.5 | I130: 0.004518062696 | M130: 1 | N130: 11489.42
B131: 14.5 | C131: Analista de Marketing | D131: Considerado 2 funcionários - Ref. Cataratas | E131: mês | F131: 0.05 | G131: 10736 | H131: 536.8 | I131: 0.004221577119 | J131: Rateado para os 5 parques | M131: 1 | N131: 10735.62
B132: 14.6 | C132: Jovem Aprendiz | D132: Considerado 10 funcionários - Ref. Cataratas | E132: mês | F132: 0.05 | G132: 6306 | H132: 315.3 | I132: 0.002479626054 | M132: 1 | N132: 6306
B133: 14.7 | C133: Gerente de Operações | D133: Considerado 1 funcionário - Ref. Cataratas | E133: mês | F133: 0.05 | G133: 32987 | H133: =G133*F133 -> 1649.35 | I133: 0.01297104736 | J133: Rateado para os 5 parques | M133: 1 | N133: =N127 -> 32986.06
F134: =ROUNDUP(M134,0) -> 0 | G134: =ROUNDUP(N134,0) -> 0 | H134: =G134*F134 -> 0 | I134: =H134/$H$139 -> 0
B135: 15 | C135: DESPESA DE MANUTENÇÃO OBRA DE ARTE | F135: 0 | G135: 0 | H135: =H136 -> 0 | I135: =H135/$H$139 -> 0
B136: 2022-01-15 | C136: Despesa com manutenção e limpeza de obra arte | E136: mês | F136: 1 | G136: 0 | H136: =G136*F136 -> 0 | I136: =H136/$H$139 -> 0 | M136: 1
I137: =H137/$H$139 -> 0
J138: TOTAL/ M2
B139: TOTAL MENSAL: | H139: =SUM(H4:H137)/2 -> 127156.27 | I139: =SUM(I4:I137)/2 -> 1 | J139: =H139/33000 -> 3.853220303
H140: =SUMPRODUCT(F4:F137,G4:G137) -> 127060.27
B141: TOTAL POR ANO: | H141: =H139*12 -> 1525875.24
B143: TOTAL EM 30 ANOS: | H143: =H141*30 -> 45776257.2
C149: GÁS?
C150: CFTV?
C151: AMBULANCIA /POSTO ENFERMAGEM / ENFERMEIRO ?

Sheet CURVA ABC FARROUPILHA
B2: OPEX - CURVA ABC PARQUE FARROUPILHA
B3: ITEM | C3: DESCRIÇÃO PARQUE | D3: PREMISSAS | E3: UNID. | F3: QUANTIDADE | G3: VALOR UNIT. | H3: VALOR TOTAL | I3: % | O3: CURVA ABC OPEX - PARQUE FARROUPILHA
G4: TOTAL MENSAL: | H4: ='RESUMO OPEX'!F22 -> 1067965.945
B5: 2.3 | C5: Vigilância - Ronda Diurna | D5: 1 vigia a cada 10.000m², apenas no período diurno - 38 vigias | E5: mês | F5: 1 | G5: 351654 | H5: 351654 | I5: 0.2833875365
B6: 4.3 | C6: Poda | D6: Poda com supressão - Estimativa Contrato Atual | E6: mês | F6: 1 | G6: 144990 | H6: 144990 | I6: 0.1168431439
B7: 4.1 | C7: Roçada / capina dos gramados | D7: 1 x mês - inverno / outono 2 x mês - primavera / verão | E7: m² | F7: 192337 | G7: 0.375 | H7: 72126.375 | I7: 0.05812450798
B8: 3.3 | C8: Equipe de Limpeza | D8: Auxiliar de Limpeza - 10 funcionários | E8: mês | F8: 1 | G8: 42999 | H8: 42999 | I8: 0.03465161972
B9: 4.8 | C9: Limpeza de Lagos | D9: Tratamento de água, resíduos e efluentes, operação, limpeza e manutenção de espelhos d'água, imunização e controle de pragas, análises laboratoriais - programa água/icmbio, limpeza e higiene das caixas d'água e cisternas. | E9: mês | F9: 1 | G9: 34657 | H9: 34657 | I9: 0.02792904916
B10: 3.4 | C10: Equipe de Limpeza | D10: Coletor de Lixo - 10 funcionários | E10: mês | F10: 1 | G10: 32729 | H10: 32729 | I10: 0.02658324565
B11: 4.2 | C11: Jardinagem - Trabalho Diário | D11: Auxiliar de Jardinagem - 1 funcionário a cada 50.000 m² - 8 funcionários | E11: mês | F11: 1 | G11: 27215 | H11: 27215 | I11: 0.02658324565
B12: 2.1 | C12: Portaria 24 horas | D12: Considerado portaria 24 horas - Equipe com turnos de 12 horas (incluso folguistas) - 6 funcionários | E12: mês | F12: 1 | G12: 26946 | H12: 26946 | I12: 0.0263753311
B13: 10.3 | C13: Motorista | D13: 6 funcionários | E13: mês | F13: 1 | G13: 26359 | H13: 26359 | I13: 0.02332511178
B14: 4.7 | C14: Transbordo do lixo | D14: Incluso viagem + motorista + 2 operadores - 3x semana | E14: mês | F14: 1 | G14: 18000 | H14: 18000 | I14: 0.02193176192
B15: 10.4 | C15: Retroescavadeira | D15: Limpeza dos lagos - Aluguel estimado para os 5 parques | E15: mês | F15: 1 | G15: 18000 | H15: 18000 | I15: 0.02171498279
B16: 2.2 | C16: Vigilância - Líder | D16: 2 funcionários | E16: mês | F16: 1 | G16: 17775 | H16: 17775 | I16: 0.02124193689
B17: 12.1 | C17: Mão de obra de Apoio - Apenados | D17: Utilizar equipe dos Apenados para serviços gerais - Equipe com 15 pessoas | E17: mês | F17: 1 | G17: 15453 | H17: 15453 | I17: 0.01450566653
B18: 5.2 | C18: Equipe de manutenção Civil | D18: Ajudante de Pedreiro - 4 funcionários | E18: mês | F18: 1 | G18: 15252 | H18: 15252 | I18: 0.01450566653
B19: 1.2 | C19: Biólogo / Eng. Ambiental / Eng. Agrônomo | D19: 1 Responsável técnico por relatórios, monitoramentos, contratações. Fixo - Mensal - Valor anual (x 30) | E19: mês | F19: 1 | G19: 15000 | H19: 15000 | I19: 0.0143243457
B20: 8.1 | C20: Despesa Mensal com Água e Esgoto | E20: mês | F20: 1 | G20: 15000 | H20: 15000 | I20: 0.01265780579
B21: 6.1 | C21: Despesa mensal com Energia Elétrica | E21: mês | F21: 1 | G21: 12000 | H21: 12000 | I21: 0.01245311471
B22: 9.50 | C22: Varredeira Urbana MC-50 | D22: Exceto Saibro. Utilizado em Passeios cimentados | E22: unit. | F22: 4 | G22: 2641 | H22: 10564 | I22: 0.01229113477
B23: 11.1 | C23: Combustível para Carros | D23: Ver composição - considerando 5 automóveis por mês | E23: mês | F23: 1 | G23: 10068 | H23: 10068 | I23: 0.01208805544
B24: 10.2 | C24: Carro de passeio | D24: Aluguel mensal de Carro - 5 carros | E24: mês | F24: 1 | G24: 10000 | H24: 10000 | I24: 0.01208805544
B25: 14.1 | C25: Gerente GERAL | D25: Considerado 1 funcionário - Ref. Cataratas | E25: mês | F25: 0.27 | G25: 32987 | H25: 8906.49 | I25: 0.009670444352
B26: 14.7 | C26: Gerente de Operações | D26: Considerado 1 funcionário - Ref. Cataratas | E26: mês | F26: 0.27 | G26: 32987 | H26: 8906.49 | I26: 0.009259450467
B27: 4.6 | C27: Trabalhos com Varrição | D27: 2 funcionários | E27: mês | F27: 1 | G27: 8600 | H27: 8600 | I27: 0.008651824213
B28: 5.4 | C28: Bombeiro Civil | D28: 2 funcionários | E28: mês | F28: 1 | G28: 8470 | H28: 8470 | I28: 0.008513214511
B29: 5.5 | C29: Bombeiro Hidráulico | D29: 2 funcionários | E29: mês | F29: 1 | G29: 8470 | H29: 8470 | I29: 0.008113502811
B30: 4.5 | C30: Operador de Equipamentos | D30: 2 funcionários | E30: mês | F30: 1 | G30: 8265 | H30: 8265 | I30: 0.008058703627
B31: 5.1 | C31: Equipe de manutenção Civil | D31: Pedreiro - 2 funcionários | E31: mês | F31: 1 | G31: 8156 | H31: 8156 | I31: 0.006930485119
B32: 3.1 | C32: Material - Limpeza | D32: Custo mensal com materiais: produtos de limpeza | E32: mês | F32: 1 | G32: 8000 | H32: 8000 | I32: 0.006825721972
B33: 14.3 | C33: Analista de RH | D33: Considerado 3 funcionário - Ref. Cataratas | E33: mês | F33: 0.27 | G33: 28944 | H33: 7814.88 | I33: 0.006825721972
B34: 5.3 | C34: Equipe de manutenção Civil | D34: Pintor - 2 funcionários | E34: mês | F34: 1 | G34: 7615 | H34: 7615 | I34: 0.006660518547
B35: 4.4 | C35: Encarregado de Jardinagem | D35: 2 funcionários | E35: mês | F35: 1 | G35: 7258 | H35: 7258 | I35: 0.006572678678
B36: 7.4 | C36: Manutenção de comunicação visual e estratégia de Marketing | D36: Considerado contrato de R$ 20.000 - dividido pelos 5 parques | E36: mês | F36: 1 | G36: 6000 | H36: 6000 | I36: 0.006446962901
B37: 10.1 | C37: Caminhão | D37: 1 caminhão | E37: mês | F37: 1 | G37: 6000 | H37: 6000 | I37: 0.006136702812
B38: 9.9 | C38: Pesticidas (produtos para a equipe de jardinagem em seu plano de Controle de Pragas) | E38: litro | F38: 6 | G38: 930 | H38: 5580 | I38: 0.005849007092
B39: 9.8 | C39: Tintas, vernizes e selador acrílico (estoque para manutenção periódica) | E39: lata | F39: 4 | G39: 1350 | H39: 5400 | I39: 0.005081818507
B40: 9.38 | C40: Serra Circular de Bancada 255mm 1650W | E40: unit. | F40: 1 | G40: 5253 | H40: 5253 | I40: 0.004835222176
B41: 9.43 | C41: Multímetro modelo 289 | E41: unit. | F41: 1 | G41: 5200 | H41: 5200 | I41: 0.004835222176
B42: 5.6 | C42: Eletricista | D42: 2 funcionários | E42: mês | F42: 1 | G42: 5140 | H42: 5140 | I42: 0.004496756624
B43: 15.1 | C43: Despesa com manutenção e limpeza de obra arte | D43: Para todos os bustos - iluminados, limpos e livre de depredação | E43: mês | F43: 1 | G43: 5000 | H43: 5000 | I43: 0.004351699958
B44: 9.16 | C44: Consumíveis dos sanitários - papeis e sabonetes (pela população diária média de 500 pessoas) | E44: verba | F44: 1 | G44: 4670 | H44: 4670 | I44: 0.004233237015
B45: 10.5 | C45: Operador de Retroescavadeira | D45: Limpeza dos lagos - Aluguel estimado para os 5 parques | E45: mês | F45: 1 | G45: 4300 | H45: 4300 | I45: 0.004190525886
B46: 14.2 | C46: Assistente Financeiro | D46: Considerado 3 funcionários - Ref. Cataratas | E46: mês | F46: 0.27 | G46: 15707 | H46: 4240.89 | I46: 0.004142173664
B47: 3.2 | C47: Equipe de Limpeza | D47: Encarregado de Limpeza - 1 funcionário | E47: mês | F47: 1 | G47: 4222 | H47: 4222 | I47: 0.004029351813
B48: 5.7 | C48: Técnico Eletromecânico | D48: 2 funcionários | E48: mês | F48: 1 | G48: 4079 | H48: 4079 | I48: 0.003763414594
B49: 9.45 | C49: Carro de Ferramentas com 380 Peças e 7 Gavetas FG6100 | E49: unit. | F49: 1 | G49: 3666 | H49: 3666 | I49: 0.003465242559
B50: 9.11 | C50: Areia e Saibro rosa (estoque para a substituição quando necessário) | E50: m3 | F50: 12 | G50: 298 | H50: 3576 | I50: 0.003402384671
B51: 5.8 | C51: EPI's e EPC's | D51: verba mensal | E51: mês | F51: 1 | G51: 3500 | H51: 3500 | I51: 0.003287145209
B52: 9.24 | C52: Bebedouros - purificadores de água | E52: unit. | F52: 5 | G52: 650 | H52: 3250 | I52: 0.002954320749
B53: 14.4 | C53: Técnico Segurança do Trabalho | D53: Considerado 2 funcionários - Ref. Cataratas | E53: mês | F53: 0.27 | G53: 11490 | H53: 3102.3 | I53: 0.002881792417
B54: 7.1 | C54: Despesa mensal com Telefone | E54: mês | F54: 1 | G54: 3000 | H54: 3000 | I54: 0.002820546269
B55: 9.32 | C55: Equipamentos das equipes de manutenção, limpeza, jardinagem e vigilância | E55: verba | F55: 1 | G55: 2997 | H55: 2997 | I55: 0.002619078679
B56: 14.5 | C56: Analista de Marketing | D56: Considerado 2 funcionários - Ref. Cataratas | E56: mês | F56: 0.27 | G56: 10736 | H56: 2898.72 | I56: 0.002417611088
B57: 9.48 | C57: Caixa de ferramenta Predial | E57: unit. | F57: 1 | G57: 2800 | H57: 2800 | I57: 0.002415193477
B58: 9.46 | C58: Caixa de ferramenta Marcenaria | E58: unit. | F58: 1 | G58: 2790 | H58: 2790 | I58: 0.002256437015
B59: 9.31 | C59: Ferramental das equipes de manutenção, limpeza, jardinagem e vigilância | E59: verba | F59: 1 | G59: 2707 | H59: 2707 | I59: 0.002248378312
B60: 9.41 | C60: Gerador à Gasolina 6kva Trif Part. Elétrica - Nagano | E60: unit. | F60: 1 | G60: 2699 | H60: 2699 | I60: 0.002181491072
B61: 4.9 | C61: Limpeza de Espelhos D´Água | D61: Estimado - ref. tratamento químico de piscina - 4 limpezas x mês | E61: mês | F61: 1 | G61: 2200 | H61: 2200 | I61: 0.002175044109
B62: 9.25 | C62: EPI´s e EPC´s (conjuntos das equipes com equipamentos de proteção individual e coletiva) | E62: verba | F62: 1 | G62: 2150 | H62: 2150 | I62: 0.001772914798
B63: 14.6 | C63: Jovem Aprendiz | D63: Considerado 10 funcionários - Ref. Cataratas | E63: mês | F63: 0.27 | G63: 6306 | H63: 1702.62 | I63: 0.00173262128
B64: 9.30 | C64: Trator com reboque para carrinho e roçadeira (custo de aquisição, manutenção e substituição) | E64: unit. | F64: 1 | G64: 1384 | H64: 1384 | I64: 0.001115324582
B65: 9.47 | C65: Caixa de ferramenta Hidráulica | E65: unit. | F65: 1 | G65: 1300 | H65: 1300 | I65: 0.001047631471
B66: 9.49 | C66: Caixa de ferramenta Elétrica | E66: unit. | F66: 1 | G66: 1300 | H66: 1300 | I66: 0.001047631471
B67: 1.3 | C67: Material Educação Ambiental | D67: Folder, insumos, material geral (15 mil ano, p/ 30 anos) | E67: mês | F67: 1 | G67: 1250 | H67: 1250 | I67: 0.001007337953
B68: 9.35 | C68: Serra Policorte 12" Alumínio s/ Disco s/ Motor CH SCAP-120N - Motomil - RR MAQUINAS | E68: unit. | F68: 1 | G68: 1049 | H68: 1049 | I68: 0.0008453580104
B69: 9.4 | C69: Boias de flutuação (estoque para substituição a partir do 3° ano) | E69: unid | F69: 2 | G69: 480 | H69: 960 | I69: 0.0007736355482
B70: 9.42 | C70: Andaime - Torre de 10 m | E70: unit. | F70: 1 | G70: 950 | H70: 950 | I70: 0.0007655768445
B71: 9.37 | C71: Furadeira de Bancada 1/2HP 5/8 Fbm160t Motomil 220/380V - RR MAQUINAS | E71: unit. | F71: 1 | G71: 935 | H71: 935 | I71: 0.0007534887891
B72: 9.44 | C72: Bancada c/ 3 Gavetas, Tampo Madeira Compensada 40mm 200 x 60 x 92 cm | E72: unit. | F72: 1 | G72: 880 | H72: 880 | I72: 0.0007091659191
B73: 9.23 | C73: Borracha clorada (estoque para manutenção periódica) | E73: verba | F73: 1 | G73: 836 | H73: 836 | I73: 0.0006737076232
B74: 9.26 | C74: Maquinas corte de grama e podas de árvores (aquisição, estoque - manutenção e substituição) | E74: verba | F74: 1 | G74: 798 | H74: 798 | I74: 0.0006430845494
B75: 9.40 | C75: Martelete Rompedor 0-5100imp 800W c/ Maleta 220V - GBH 2-24DF - Bosch | E75: unit. | F75: 1 | G75: 773 | H75: 773 | I75: 0.0006229377903
B76: 9.34 | C76: Máquina de Solda Mig-150 Eletrônica-V8 Brasil-Mig-150br - DUTRA MAQUINAS | E76: unit. | F76: 1 | G76: 759 | H76: 759 | I76: 0.0006116556053
B77: 13.1 | C77: Seguro Patrimonial | D77: (% do valor do patrimônio) - 5% | E77: mês | F77: 1 | G77: 726 | H77: 726 | I77: 0.0005850618833
B78: 9.1 | C78: Colas químicas (estoque para manutenção anual) | E78: tubo | F78: 2 | G78: 350 | H78: 700 | I78: 0.0005641092539
B79: 9.5 | C79: Placas de gesso (estoque para manutenções periódicas) | E79: unid | F79: 4 | G79: 167 | H79: 668 | I79: 0.0005383214023
B80: 9.39 | C80: Furadeira Parafusadeira Impacto GSB 16 Re + Maleta - Bosch | E80: unit. | F80: 2 | G80: 329 | H80: 658 | I80: 0.0005302626986
B81: 9.22 | C81: Torneiras , ferragens e metais de sanitários * (substituição de 2 unidades cada 6 meses) | E81: conj. | F81: 1 | G81: 650 | H81: 650 | I81: 0.0005238157357
B82: 9.27 | C82: Maquina limpeza: praias, quadras de vôlei e parquinhos (aquisição, estoque - manut e substituição) | E82: unit. | F82: 1 | G82: 634 | H82: 634 | I82: 0.0005109218099
B83: 11.2 | C83: Combustível para Equipamentos | D83: Diesel - escavadeiras, pás carregadeiras, retroescavadeiras, tratores de esteiras e gerador | E83: mês | F83: 1 | G83: 600 | H83: 600 | I83: 0.0004835222176
B84: 12.2 | C84: Alimentação | D84: Alimentação dos Apenados - Equipe com 15 pessoas | E84: mês | F84: 1 | G84: 600 | H84: 600 | I84: 0.0004835222176
B85: 7.3 | C85: Suprimentos e insumos informática | E85: mês | F85: 1 | G85: 500 | H85: 500 | I85: 0.0004029351813
B86: 9.7 | C86: Lâmpadas, reatores, luminárias (estoque para manutenções periódicas) | E86: conj. | F86: 2 | G86: 250 | H86: 500 | I86: 0.0004029351813
B87: 9.36 | C87: Serra Mármore Profissional 125mm 1500W c/ Kit Refrigeração,Disco e Maleta - BOSCH -GCD-151 | E87: unit. | F87: 1 | G87: 440 | H87: 440 | I87: 0.0003545829596
B88: 13.2 | C88: Responsabilidade Civil | D88: (% da receita) - 3% | E88: mês | F88: 1 | G88: 436 | H88: 436 | I88: 0.0003513594781
B89: 9.28 | C89: Dispensers dos sanitários - porta papéis e sabonetes (aquisição, estoque - manut e substituição) | E89: verba | F89: 1 | G89: 424 | H89: 424 | I89: 0.0003416890338
B90: 9.29 | C90: Lixeiras de reposição (aquisição, estoque - manut e substituição) | E90: verba | F90: 1 | G90: 375 | H90: 375 | I90: 0.000302201386
B91: 9.6 | C91: Espelhos e vidros * (substituição por quebra de 1 unidade cada 6 meses) | E91: unid | F91: 1 | G91: 300 | H91: 300 | I91: 0.0002417611088
B92: 9.14 | C92: Chuveiros, fios e cabos elétricos * (2 chuveiros, disjuntores, fios e resistências semestralmente) | E92: verba | F92: 1 | G92: 275 | H92: 275 | I92: 0.0002216143497
B93: 9.12 | C93: Piso podotátil (estoque para substituição periódica) | E93: unid | F93: 3 | G93: 90 | H93: 270 | I93: 0.0002175849979
B94: 9.3 | C94: Corda ancoradouro e boias (substituição total em 36 meses) | E94: conj. | F94: 1 | G94: 247 | H94: 247 | I94: 0.0001990499796
B95: 9.33 | C95: Assentos das bacias sanitárias * (estoque para substituição) | E95: verba | F95: 1 | G95: 239 | H95: 239 | I95: 0.0001926030167
B96: 9.10 | C96: Eletrobombas (verba para compra de peças e manutenções ao longo do tempo) | E96: verba | F96: 1 | G96: 234 | H96: 234 | I96: 0.0001885736649
B97: 9.20 | C97: Vidro temperado * (substituição de uma peça cada 6 meses) | E97: unid | F97: 1 | G97: 233 | H97: 233 | I97: 0.0001877677945
B98: 9.18 | C98: Portas de madeira completas * (substituição cada 6 meses de 2 unidades) | E98: unid | F98: 1 | G98: 194 | H98: 194 | I98: 0.0001563388504
B99: 7.2 | C99: Despesa mensal com Wi-fi | E99: mês | F99: 1 | G99: 180 | H99: 180 | I99: 0.0001450566653
B100: 1.1 | C100: Árvores | D100: Recuperação de perdas, conforme planilha Para o período de 30 anos | E100: mês | F100: 1 | G100: 139 | H100: 139 | I100: 0.0001120159804
B101: 9.2 | C101: Fechaduras e ferragens * (substituição de 2 unidades cada 6 meses) | E101: conj. | F101: 1 | G101: 125 | H101: 125 | I101: 0.0001007337953
B102: 9.15 | C102: Granitos de pias * (substituição por quebra de 1 unidade cada 2 anos) | E102: unid | F102: 1 | G102: 103 | H102: 103 | I102: 8.300464735e-05
B103: 9.17 | C103: Divisórias Sanitárias de Granito * (substituição por quebra de 1 unidade cada 2 anos) | E103: unid | F103: 1 | G103: 96 | H103: 96 | I103: 7.736355482e-05
B104: 9.19 | C104: Barras de apoio PNE's * (substituição cada 12 meses de 1 unidade) | E104: unid | F104: 1 | G104: 89 | H104: 89 | I104: 7.172246228e-05
B105: 9.21 | C105: Pastilhas de vidro para reposição de revestimento (estoque para manutenção periódica) | E105: verba | F105: 1 | G105: 74 | H105: 74 | I105: 5.963440684e-05
B106: 9.13 | C106: Blocos autônomos * - iluminação de emergência (substituição de 1 unid. cada 4 meses) | E106: unid | F106: 1 | G106: 54 | H106: 54 | I106: 4.351699958e-05
C107: Outros | E107: vb | F107: 1 | G107: 0 | H107: =SUM(H17:H106) -> 325859.39 | I107: =SUM(I17:I106) -> 0.311308527

Sheet CURVA ABC MOINHOS
B2: OPEX - CURVA ABC PARQUE MOINHOS DE VENTO
B3: ITEM | C3: DESCRIÇÃO PARQUE | D3: PREMISSAS | E3: UNID. | F3: QUANTIDADE | G3: VALOR UNIT. | H3: VALOR TOTAL | I3: % | N3: CURVA ABC OPEX - PARQUE MOINHOS DE VENTO
G4: TOTAL MENSAL: | H4: ='RESUMO OPEX'!G22 -> 461981.845
B5: 2.3 | C5: Vigilância - Ronda Diurna | D5: 1 vigia a cada 10.000m², apenas no período diurno - 12 funcionários | E5: mês | F5: 1 | G5: 107841 | H5: 107841 | I5: 0.1696167596
B6: 4.3 | C6: Poda | D6: Poda com supressão - Estimativa Contrato Atual | E6: mês | F6: 1 | G6: 44464 | H6: 44464 | I6: 0.0699348077
B7: 4.1 | C7: Roçada / capina dos gramados | D7: 1 x mês - inverno / outono 2 x mês - primavera / verão | E7: m² | F7: 79891 | G7: 0.375 | H7: 29959.125 | I7: 0.05188331013
B8: 2.1 | C8: Portaria 24 horas | D8: Considerado portaria 24 horas - Equipe com turnos de 12 horas (incluso folguistas) - 6 funcionários | E8: mês | F8: 1 | G8: 26946 | H8: 26946 | I8: 0.05188331013
B9: 3.3 | C9: Equipe de Limpeza | D9: Auxiliar de Limpeza - 5 funcionários | E9: mês | F9: 1 | G9: 21500 | H9: 21500 | I9: 0.04712094381
B10: 4.7 | C10: Transbordo do lixo | E10: mês | F10: 1 | G10: 18000 | H10: 18000 | I10: 0.04552431347
B11: 3.4 | C11: Equipe de Limpeza | D11: Coletor de Lixo - 5 funcionários | E11: mês | F11: 1 | G11: 16365 | H11: 16365 | I11: 0.04238177691
B12: 10.3 | C12: Motorista | D12: 3 funcionários | E12: mês | F12: 1 | G12: 13180 | H12: 13180 | I12: 0.03381608415
B13: 1.3 | C13: Educador Ambiental | D13: 1 educador formado + 5 estagiários (clt + contrato de estágio) - fixo mensal | E13: mês | F13: 1 | G13: 13000 | H13: 13000 | I13: 0.02831114022
B14: 8.1 | C14: Despesa Mensal com Água e Esgoto | E14: mês | F14: 1 | G14: 10000 | H14: 10000 | I14: 0.02573954498
B15: 2.2 | C15: Vigilância - Líder | D15: 1 funcionário | E15: mês | F15: 1 | G15: 8888 | H15: 8888 | I15: 0.02470461552
B16: 5.4 | C16: Bombeiro Civil | D16: 1 funcionário | E16: mês | F16: 1 | G16: 8470 | H16: 8470 | I16: 0.020730046
B17: 5.5 | C17: Bombeiro Hidráulico | D17: 1 funcionário | E17: mês | F17: 1 | G17: 8470 | H17: 8470 | I17: 0.0204469346
B18: 4.2 | C18: Jardinagem - Trabalho Diário | D18: Auxiliar de Jardinagem - 1 funcionário a cada 50.000 m² - 3 funcionários | E18: mês | F18: 1 | G18: 8346 | H18: 8346 | I18: 0.01807194451
B19: 6.1 | C19: Despesa mensal com Energia Elétrica | E19: mês | F19: 1 | G19: 8000 | H19: 8000 | I19: 0.0168860223
B20: 5.2 | C20: Equipe de manutenção Civil | D20: Ajudante de Pedreiro - 2 funcionários | E20: mês | F20: 1 | G20: 7626 | H20: 7626 | I20: 0.01572841123
B21: 12.1 | C21: Mão de obra de Apoio - Apenados | D21: Utilizar equipe dos Apenados para serviços gerais - Equipe com 6 pessoas | E21: mês | F21: 1 | G21: 6182 | H21: 6182 | I21: 0.0139794119
B22: 11.1 | C22: Combustível para Carros | D22: Ver composição - considerando 3 automóveis por mês | E22: mês | F22: 1 | G22: 6041 | H22: 6041 | I22: 0.01332196431
B23: 7.4 | C23: Manutenção de comunicação visual e estratégia de Marketing | D23: Considerado contrato de R$ 20.000 - dividido pelos 5 parques | E23: mês | F23: 1 | G23: 6000 | H23: 6000 | I23: 0.01332196431
B24: 10.1 | C24: Caminhão | D24: 1 caminhão | E24: mês | F24: 1 | G24: 6000 | H24: 6000 | I24: 0.01312693201
B25: 10.2 | C25: Carro de passeio | D25: Aluguel mensal de Carro - 3 carros | E25: mês | F25: 1 | G25: 6000 | H25: 6000 | I25: 0.01258272899
B26: 9.50 | C26: Varredeira Urbana MC-50 | E26: unit. | F26: 2 | G26: 2641 | H26: 5282 | I26: 0.01199448641
B27: 9.38 | C27: Serra Circular de Bancada 255mm 1650W | E27: unit. | F27: 1 | G27: 5253 | H27: 5253 | I27: 0.009918336123
B28: 9.43 | C28: Multímetro modelo 289 | E28: unit. | F28: 1 | G28: 5200 | H28: 5200 | I28: 0.009723303824
B29: 5.6 | C29: Eletricista | D29: 1 funcionário | E29: mês | F29: 1 | G29: 5140 | H29: 5140 | I29: 0.009501533225
B30: 9.16 | C30: Consumíveis dos sanitários - papeis e sabonetes (pela população diária média de 500 pessoas) | E30: verba | F30: 1 | G30: 4670 | H30: 4670 | I30: 0.009437046739
B31: 14.1 | C31: Gerente GERAL | D31: Considerado 1 funcionário - Ref. Cataratas | E31: mês | F31: 0.14 | G31: 32987 | H31: 4618.18 | I31: 0.009437046739
B32: 14.7 | C32: Gerente de Operações | D32: Considerado 1 funcionário - Ref. Cataratas | E32: mês | F32: 0.14 | G32: 32987 | H32: 4618.18 | I32: 0.009437046739
B33: 4.6 | C33: Trabalhos com Varrição | D33: 1 funcionário | E33: mês | F33: 1 | G33: 4300 | H33: 4300 | I33: 0.008307746813
B34: 3.2 | C34: Equipe de Limpeza | D34: Encarregado de Limpeza - 1 funcionário | E34: mês | F34: 1 | G34: 4222 | H34: 4222 | I34: 0.00826213442
B35: 4.5 | C35: Operador de Equipamentos | D35: 1 funcionário | E35: mês | F35: 1 | G35: 4133 | H35: 4133 | I35: 0.008178773841
B36: 5.7 | C36: Técnico Eletromecânico | D36: 1 funcionário | E36: mês | F36: 1 | G36: 4079 | H36: 4079 | I36: 0.008084403373
B37: 5.1 | C37: Equipe de manutenção Civil | D37: Pedreiro - 1 funcionário | E37: mês | F37: 1 | G37: 4078 | H37: 4078 | I37: 0.007345168045
B38: 14.3 | C38: Analista de RH | D38: Considerado 3 funcionário - Ref. Cataratas | E38: mês | F38: 0.14 | G38: 28944 | H38: 4052.16 | I38: 0.00676321683
B39: 3.1 | C39: Material - Limpeza | D39: Custo mensal com materiais: produtos de limpeza | E39: mês | F39: 1 | G39: 4000 | H39: 4000 | I39: 0.006640535222
B40: 5.3 | C40: Equipe de manutenção Civil | D40: Pintor - 1 funcionário | E40: mês | F40: 1 | G40: 3808 | H40: 3808 | I40: 0.006500552362
B41: 9.45 | C41: Carro de Ferramentas com 380 Peças e 7 Gavetas FG6100 | E41: unit. | F41: 1 | G41: 3666 | H41: 3666 | I41: 0.006415618941
B42: 4.4 | C42: Encarregado de Jardinagem | D42: 1 funcionário | E42: mês | F42: 1 | G42: 3629 | H42: 3629 | I42: 0.0064140461
B43: 9.32 | C43: Equipamentos das equipes de manutenção, limpeza, jardinagem e vigilância | E43: verba | F43: 1 | G43: 2997 | H43: 2997 | I43: 0.006291364493
B44: 9.48 | C44: Caixa de ferramenta Predial | E44: unit. | F44: 1 | G44: 2800 | H44: 2800 | I44: 0.005989378997
B45: 9.9 | C45: Pesticidas (produtos para a equipe de jardinagem em seu plano de Controle de Pragas) | E45: litro | F45: 3 | G45: 930 | H45: 2790 | I45: 0.005766035558
B46: 9.46 | C46: Caixa de ferramenta Marcenaria | E46: unit. | F46: 1 | G46: 2790 | H46: 2790 | I46: 0.005707840436
B47: 9.31 | C47: Ferramental das equipes de manutenção, limpeza, jardinagem e vigilância | E47: verba | F47: 1 | G47: 2707 | H47: 2707 | I47: 0.004713804846
B48: 9.8 | C48: Tintas, vernizes e selador acrílico (estoque para manutenção periódica) | E48: lata | F48: 2 | G48: 1350 | H48: 2700 | I48: 0.004403955145
B49: 9.41 | C49: Gerador à Gasolina 6kva Trif Part. Elétrica - Nagano | E49: unit. | F49: 1 | G49: 2699 | H49: 2699 | I49: 0.004388226734
B50: 5.8 | C50: EPI's e EPC's | D50: Verba mensal | E50: mês | F50: 1 | G50: 2500 | H50: 2500 | I50: 0.004388226734
B51: 4.9 | C51: Limpeza de Espelhos D´Água | E51: mês | F51: 1 | G51: 2200 | H51: 2200 | I51: 0.00425768092
B52: 14.2 | C52: Assistente Financeiro | D52: Considerado 3 funcionários - Ref. Cataratas | E52: mês | F52: 0.14 | G52: 15707 | H52: 2198.98 | I52: 0.004246671033
B53: 9.25 | C53: EPI´s e EPC´s (conjuntos das equipes com equipamentos de proteção individual e coletiva) | E53: verba | F53: 1 | G53: 2150 | H53: 2150 | I53: 0.004245098191
B54: 7.1 | C54: Despesa mensal com Telefone | E54: mês | F54: 1 | G54: 2000 | H54: 2000 | I54: 0.003932102808
B55: 9.24 | C55: Bebedouros - purificadores de água | E55: unit. | F55: 3 | G55: 650 | H55: 1950 | I55: 0.003460250471
B56: 9.11 | C56: Areia e Saibro rosa (estoque para a substituição quando necessário) | E56: m3 | F56: 6 | G56: 298 | H56: 1788 | I56: 0.003381608415
B57: 14.4 | C57: Técnico Segurança do Trabalho | D57: Considerado 2 funcionários - Ref. Cataratas | E57: mês | F57: 0.14 | G57: 11490 | H57: 1608.6 | I57: 0.003145682246
B58: 14.5 | C58: Analista de Marketing | D58: Considerado 2 funcionários - Ref. Cataratas | E58: mês | F58: 0.14 | G58: 10736 | H58: 1503.04 | I58: 0.00306704019
B59: 9.30 | C59: Trator com reboque para carrinho e roçadeira (custo de aquisição, manutenção e substituição) | E59: unit. | F59: 1 | G59: 1384 | H59: 1384 | I59: 0.002812239928
B60: 9.47 | C60: Caixa de ferramenta Hidráulica | E60: unit. | F60: 1 | G60: 1300 | H60: 1300 | I60: 0.002176812114
B61: 9.49 | C61: Caixa de ferramenta Elétrica | E61: unit. | F61: 1 | G61: 1300 | H61: 1300 | I61: 0.00204469346
B62: 1.2 | C62: Material Educação Ambiental | D62: Folder, insumos, material geral (15 mil ano, p/ 30 anos) | E62: mês | F62: 1 | G62: 1250 | H62: 1250 | I62: 0.00204469346
B63: 9.35 | C63: Serra Policorte 12" Alumínio s/ Disco s/ Motor CH SCAP-120N - Motomil - RR MAQUINAS | E63: unit. | F63: 1 | G63: 1049 | H63: 1049 | I63: 0.001966051404
B64: 9.42 | C64: Andaime - Torre de 10 m | E64: unit. | F64: 1 | G64: 950 | H64: 950 | I64: 0.001649910338
B65: 9.37 | C65: Furadeira de Bancada 1/2HP 5/8 Fbm160t Motomil 220/380V - RR MAQUINAS | E65: unit. | F65: 1 | G65: 935 | H65: 935 | I65: 0.001494199067
B66: 14.6 | C66: Jovem Aprendiz | D66: Considerado 10 funcionários - Ref. Cataratas | E66: mês | F66: 0.14 | G66: 6306 | H66: 882.84 | I66: 0.00147060645
B67: 9.44 | C67: Bancada c/ 3 Gavetas, Tampo Madeira Compensada 40mm 200 x 60 x 92 cm | E67: unit. | F67: 1 | G67: 880 | H67: 880 | I67: 0.001384100188
B68: 9.23 | C68: Borracha clorada (estoque para manutenção periódica) | E68: verba | F68: 1 | G68: 836 | H68: 836 | I68: 0.001314895179
B69: 9.26 | C69: Maquinas corte de grama e podas de árvores (aquisição, estoque - manutenção e substituição) | E69: verba | F69: 1 | G69: 798 | H69: 798 | I69: 0.001255127216
B70: 9.40 | C70: Martelete Rompedor 0-5100imp 800W c/ Maleta 220V - GBH 2-24DF - Bosch | E70: unit. | F70: 1 | G70: 773 | H70: 773 | I70: 0.001215806188
B71: 9.34 | C71: Máquina de Solda Mig-150 Eletrônica-V8 Brasil-Mig-150br - DUTRA MAQUINAS | E71: unit. | F71: 1 | G71: 759 | H71: 759 | I71: 0.001193786413
B72: 9.22 | C72: Torneiras , ferragens e metais de sanitários * (substituição de 2 unidades cada 6 meses) | E72: conj. | F72: 1 | G72: 650 | H72: 650 | I72: 0.00102234673
B73: 9.27 | C73: Maquina limpeza: praias, quadras de vôlei e parquinhos (aquisição, estoque - manut e substituição) | E73: unit. | F73: 1 | G73: 634 | H73: 634 | I73: 0.0009971812721
B74: 1.4 | C74: Veterinários e Ajudantes | D74: Laudos anuais (R$ 1.500,00 p/dia, por 5 dias p/ano, p/ 30 anos) | E74: mês | F74: 1 | G74: 625 | H74: 625 | I74: 0.000983025702
B75: 11.2 | C75: Combustível para Equipamentos | D75: Diesel - escavadeiras, pás carregadeiras, retroescavadeiras, tratores de esteiras e gerador | E75: mês | F75: 1 | G75: 600 | H75: 600 | I75: 0.0009437046739
B76: 7.3 | C76: Suprimentos e insumos informática | E76: mês | F76: 1 | G76: 500 | H76: 500 | I76: 0.0007864205616
B77: 9.4 | C77: Boias de flutuação (estoque para substituição a partir do 3° ano) | E77: unid | F77: 1 | G77: 480 | H77: 480 | I77: 0.0007549637391
B78: 9.36 | C78: Serra Mármore Profissional 125mm 1500W c/ Kit Refrigeração,Disco e Maleta - BOSCH -GCD-151 | E78: unit. | F78: 1 | G78: 440 | H78: 440 | I78: 0.0006920500942
B79: 9.28 | C79: Dispensers dos sanitários - porta papéis e sabonetes (aquisição, estoque - manut e substituição) | E79: verba | F79: 1 | G79: 424 | H79: 424 | I79: 0.0006668846362
B80: 13.1 | C80: Seguro Patrimonial | D80: (% do valor do patrimônio) - 5% | E80: mês | F80: 1 | G80: 387 | H80: 387 | I80: 0.0006086895147
B81: 9.29 | C81: Lixeiras de reposição (aquisição, estoque - manut e substituição) | E81: verba | F81: 1 | G81: 375 | H81: 375 | I81: 0.0005898154212
B82: 9.1 | C82: Colas químicas (estoque para manutenção anual) | E82: tubo | F82: 1 | G82: 350 | H82: 350 | I82: 0.0005504943931
B83: 9.5 | C83: Placas de gesso (estoque para manutenções periódicas) | E83: unid | F83: 2 | G83: 167 | H83: 334 | I83: 0.0005253289351
B84: 9.39 | C84: Furadeira Parafusadeira Impacto GSB 16 Re + Maleta - Bosch | E84: unit. | F84: 1 | G84: 329 | H84: 329 | I84: 0.0005174647295
B85: 9.6 | C85: Espelhos e vidros * (substituição por quebra de 1 unidade cada 6 meses) | E85: unid | F85: 1 | G85: 300 | H85: 300 | I85: 0.000471852337
B86: 9.14 | C86: Chuveiros, fios e cabos elétricos * (2 chuveiros, disjuntores, fios e resistências semestralmente) | E86: verba | F86: 1 | G86: 275 | H86: 275 | I86: 0.0004325313089
B87: 9.7 | C87: Lâmpadas, reatores, luminárias (estoque para manutenções periódicas) | E87: conj. | F87: 1 | G87: 250 | H87: 250 | I87: 0.0003932102808
B88: 9.3 | C88: Corda ancoradouro e boias (substituição total em 36 meses) | E88: conj. | F88: 1 | G88: 247 | H88: 247 | I88: 0.0003884917574
B89: 12.2 | C89: Alimentação | D89: Alimentação dos Apenados - Equipe com 6 pessoas | E89: mês | F89: 1 | G89: 240 | H89: 240 | I89: 0.0003774818696
B90: 9.33 | C90: Assentos das bacias sanitárias * (estoque para substituição) | E90: verba | F90: 1 | G90: 239 | H90: 239 | I90: 0.0003759090284
B91: 9.10 | C91: Eletrobombas (verba para compra de peças e manutenções ao longo do tempo) | E91: verba | F91: 1 | G91: 234 | H91: 234 | I91: 0.0003680448228
B92: 9.20 | C92: Vidro temperado * (substituição de uma peça cada 6 meses) | E92: unid | F92: 1 | G92: 233 | H92: 233 | I92: 0.0003664719817
B93: 13.2 | C93: Responsabilidade Civil | D93: (% da receita) - 3% | E93: mês | F93: 1 | G93: 232 | H93: 232 | I93: 0.0003648991406
B94: 9.18 | C94: Portas de madeira completas * (substituição cada 6 meses de 2 unidades) | E94: unid | F94: 1 | G94: 194 | H94: 194 | I94: 0.0003051311779
B95: 7.2 | C95: Despesa mensal com Wi-fi | E95: mês | F95: 1 | G95: 180 | H95: 180 | I95: 0.0002831114022
B96: 9.12 | C96: Piso podotátil (estoque para substituição periódica) | E96: unid | F96: 2 | G96: 90 | H96: 180 | I96: 0.0002831114022
B97: 1.1 | C97: Árvores | D97: Recuperação de perdas, conforme planilha Para o período de 30 anos | E97: mês | F97: 1 | G97: 139 | H97: 139 | I97: 0.0002186249161
B98: 9.2 | C98: Fechaduras e ferragens * (substituição de 2 unidades cada 6 meses) | E98: conj. | F98: 1 | G98: 125 | H98: 125 | I98: 0.0001966051404
B99: 9.15 | C99: Granitos de pias * (substituição por quebra de 1 unidade cada 2 anos) | E99: unid | F99: 1 | G99: 103 | H99: 103 | I99: 0.0001620026357
B100: 9.17 | C100: Divisórias Sanitárias de Granito * (substituição por quebra de 1 unidade cada 2 anos) | E100: unid | F100: 1 | G100: 96 | H100: 96 | I100: 0.0001509927478
B101: 9.19 | C101: Barras de apoio PNE's * (substituição cada 12 meses de 1 unidade) | E101: unid | F101: 1 | G101: 89 | H101: 89 | I101: 0.00013998286
B102: 9.21 | C102: Pastilhas de vidro para reposição de revestimento (estoque para manutenção periódica) | E102: verba | F102: 1 | G102: 74 | H102: 74 | I102: 0.0001163902431
B103: 9.13 | C103: Blocos autônomos * - iluminação de emergência (substituição de 1 unid. cada 4 meses) | E103: unid | F103: 1 | G103: 54 | H103: 54 | I103: 8.493342065e-05
C104: Outros | E104: vb | F104: 1 | G104: 0 | H104: =SUM(H15:H103) -> 214861.98 | I104: =SUM(I15:I103) -> 0.4337880089

Sheet CURVA ABC TRECHO 3
B2: OPEX - CURVA ABC PARQUE ORLA DO GUAIBA (TRECHO 3)
B3: ITEM | C3: DESCRIÇÃO PARQUE | D3: PREMISSAS | E3: UNID. | F3: QUANTIDADE | G3: VALOR UNIT. | H3: VALOR TOTAL | I3: % | N3: CURVA ABC OPEX - PARQUE ORLA GUAÍBA
G4: TOTAL MENSAL: | H4: ='RESUMO OPEX'!H22 -> 373022.41
B5: 2.3 | C5: Vigilância - Ronda Diurna | D5: 1 vigia a cada 10.000m², apenas no período diurno - 15 funcionários | E5: mês | F5: 1 | G5: 140662 | H5: 140662 | I5: 0.2404351222
B6: 4.3 | C6: Poda | D6: Poda com supressão - Estimativa Contrato Atual | E6: mês | F6: 1 | G6: 57996 | H6: 57996 | I6: 0.09913320833
B7: 2.1 | C7: Portaria 24 horas | D7: Considerado portaria 24 horas - Equipe com turnos de 12 horas (incluso folguistas) - 6 funcionários | E7: mês | F7: 1 | G7: 26946 | H7: 26946 | I7: 0.05638504626
B8: 10.3 | C8: Motorista | D8: 6 funcionários | E8: mês | F8: 1 | G8: 26359 | H8: 26359 | I8: 0.05638504626
B9: 3.3 | C9: Equipe de Limpeza | D9: Auxiliar de Limpeza - 5 funcionários | E9: mês | F9: 1 | G9: 21500 | H9: 21500 | I9: 0.04947430136
B10: 3.4 | C10: Equipe de Limpeza | D10: Coletor de Lixo - 5 funcionários | E10: mês | F10: 1 | G10: 16365 | H10: 16365 | I10: 0.04605909772
B11: 4.2 | C11: Jardinagem - Trabalho Diário | D11: Auxiliar de Jardinagem - 1 funcionário a cada 50.000 m² | E11: mês | F11: 1 | G11: 10886 | H11: 10886 | I11: 0.04505573209
B12: 9.50 | C12: Varredeira Urbana MC-50 | E12: unit. | F12: 4 | G12: 2641 | H12: 10564 | I12: 0.03675018931
B13: 4.7 | C13: Transbordo do lixo | E13: mês | F13: 1 | G13: 9000 | H13: 9000 | I13: 0.02797287665
B14: 2.2 | C14: Vigilância - Líder | D14: 1 funcionário | E14: mês | F14: 1 | G14: 8888 | H14: 8888 | I14: 0.02684814993
B15: 4.6 | C15: Trabalhos com Varrição | D15: 2 funcionários | E15: mês | F15: 1 | G15: 8600 | H15: 8600 | I15: 0.01963998489
B16: 5.4 | C16: Bombeiro Civil | D16: 1 funcionário | E16: mês | F16: 1 | G16: 8470 | H16: 8470 | I16: 0.01860756097
B17: 5.5 | C17: Bombeiro Hidráulico | D17: 1 funcionário | E17: mês | F17: 1 | G17: 8470 | H17: 8470 | I17: 0.0183511643
B18: 8.1 | C18: Despesa Mensal com Água e Esgoto | E18: mês | F18: 1 | G18: 7500 | H18: 7500 | I18: 0.01805716278
B19: 7.4 | C19: Manutenção de comunicação visual e estratégia de Marketing | D19: Considerado contrato de R$ 20.000 - dividido pelos 5 parques | E19: mês | F19: 1 | G19: 6000 | H19: 6000 | I19: 0.01538380017
B20: 10.1 | C20: Caminhão | D20: 1 caminhão | E20: mês | F20: 1 | G20: 6000 | H20: 6000 | I20: 0.01519235733
B21: 6.1 | C21: Despesa mensal com Energia Elétrica | E21: mês | F21: 1 | G21: 5000 | H21: 5000 | I21: 0.01470007572
B22: 14.1 | C22: Gerente GERAL | D22: Considerado 1 funcionário - Ref. Cataratas | E22: mês | F22: 0.13 | G22: 32987 | H22: 4288.31 | I22: 0.01447786528
B23: 14.7 | C23: Gerente de Operações | D23: Considerado 1 funcionário - Ref. Cataratas | E23: mês | F23: 0.13 | G23: 32987 | H23: 4288.31 | I23: 0.01447786528
B24: 3.2 | C24: Equipe de Limpeza | D24: Encarregado de Limpeza - 1 funcionário | E24: mês | F24: 1 | G24: 4222 | H24: 4222 | I24: 0.01281983348
B25: 4.5 | C25: Operador de Equipamentos | D25: 1 funcionário | E25: mês | F25: 1 | G25: 4133 | H25: 4133 | I25: 0.01077891599
B26: 5.1 | C26: Equipe de manutenção Civil | D26: Pedreiro - 1 funcionário | E26: mês | F26: 1 | G26: 4078 | H26: 4078 | I26: 0.01025586678
B27: 5.2 | C27: Equipe de manutenção Civil | D27: Ajudante de Pedreiro - 1 funcionário | E27: mês | F27: 1 | G27: 3813 | H27: 3813 | I27: 0.01025586678
B28: 14.3 | C28: Analista de RH | D28: Considerado 3 funcionário - Ref. Cataratas | E28: mês | F28: 0.13 | G28: 28944 | H28: 3762.72 | I28: 0.008546555653
B29: 4.4 | C29: Encarregado de Jardinagem | D29: 1 funcionário | E29: mês | F29: 1 | G29: 3629 | H29: 3629 | I29: 0.007216711593
B30: 9.24 | C30: Bebedouros - purificadores de água | E30: unit. | F30: 5 | G30: 650 | H30: 3250 | I30: 0.007064582902
B31: 3.1 | C31: Material - Limpeza | D31: Custo mensal com materiais: produtos de limpeza | E31: mês | F31: 1 | G31: 3000 | H31: 3000 | I31: 0.00697057079
B32: 7.1 | C32: Despesa mensal com Telefone | E32: mês | F32: 1 | G32: 3000 | H32: 3000 | I32: 0.006517603341
B33: 9.32 | C33: Equipamentos das equipes de manutenção, limpeza, jardinagem e vigilância | E33: verba | F33: 1 | G33: 2997 | H33: 2997 | I33: 0.006203090093
B34: 9.48 | C34: Caixa de ferramenta Predial | E34: unit. | F34: 1 | G34: 2800 | H34: 2800 | I34: 0.005555261174
B35: 9.9 | C35: Pesticidas (produtos para a equipe de jardinagem em seu plano de Controle de Pragas) | E35: litro | F35: 3 | G35: 930 | H35: 2790 | I35: 0.005127933392
B36: 9.31 | C36: Ferramental das equipes de manutenção, limpeza, jardinagem e vigilância | E36: verba | F36: 1 | G36: 2707 | H36: 2707 | I36: 0.005127933392
B37: 9.8 | C37: Tintas, vernizes e selador acrílico (estoque para manutenção periódica) | E37: lata | F37: 2 | G37: 1350 | H37: 2700 | I37: 0.005122805458
B38: 9.41 | C38: Gerador à Gasolina 6kva Trif Part. Elétrica - Nagano | E38: unit. | F38: 1 | G38: 2699 | H38: 2699 | I38: 0.004786071165
B39: 9.16 | C39: Consumíveis dos sanitários - papeis e sabonetes (pela população diária média de 500 pessoas) | E39: verba | F39: 1 | G39: 2335 | H39: 2335 | I39: 0.004768978054
B40: 9.25 | C40: EPI´s e EPC´s (conjuntos das equipes com equipamentos de proteção individual e coletiva) | E40: verba | F40: 1 | G40: 2150 | H40: 2150 | I40: 0.00462710523
B41: 14.2 | C41: Assistente Financeiro | D41: Considerado 3 funcionários - Ref. Cataratas | E41: mês | F41: 0.13 | G41: 15707 | H41: 2041.91 | I41: 0.004615140052
B42: 5.8 | C42: EPI's e EPC's | D42: verba mensal | E42: mês | F42: 1 | G42: 1500 | H42: 1500 | I42: 0.004613430741
B43: 14.4 | C43: Técnico Segurança do Trabalho | D43: Considerado 2 funcionários - Ref. Cataratas | E43: mês | F43: 0.13 | G43: 11490 | H43: 1493.7 | I43: 0.00399124149
B44: 14.5 | C44: Analista de Marketing | D44: Considerado 2 funcionários - Ref. Cataratas | E44: mês | F44: 0.13 | G44: 10736 | H44: 1395.68 | I44: 0.003675018931
B45: 9.49 | C45: Caixa de ferramenta Elétrica | E45: unit. | F45: 1 | G45: 1300 | H45: 1300 | I45: 0.002563966696
B46: 1.2 | C46: Material Educação Ambiental | D46: Folder, insumos, material geral (15 mil ano, p/ 30 anos) | E46: mês | F46: 1 | G46: 1250 | H46: 1250 | I46: 0.00222210447
B47: 9.4 | C47: Boias de flutuação (estoque para substituição a partir do 3° ano) | E47: unid | F47: 2 | G47: 480 | H47: 960 | I47: 0.002136638913
B48: 9.42 | C48: Andaime - Torre de 10 m | E48: unit. | F48: 1 | G48: 950 | H48: 950 | I48: 0.001640938685
B49: 9.37 | C49: Furadeira de Bancada 1/2HP 5/8 Fbm160t Motomil 220/380V - RR MAQUINAS | E49: unit. | F49: 1 | G49: 935 | H49: 935 | I49: 0.001623845574
B50: 9.23 | C50: Borracha clorada (estoque para manutenção periódica) | E50: verba | F50: 1 | G50: 836 | H50: 836 | I50: 0.001598205907
B51: 14.6 | C51: Jovem Aprendiz | D51: Considerado 10 funcionários - Ref. Cataratas | E51: mês | F51: 0.13 | G51: 6306 | H51: 819.78 | I51: 0.001428984105
B52: 9.26 | C52: Maquinas corte de grama e podas de árvores (aquisição, estoque - manutenção e substituição) | E52: verba | F52: 1 | G52: 798 | H52: 798 | I52: 0.001364030282
B53: 9.40 | C53: Martelete Rompedor 0-5100imp 800W c/ Maleta 220V - GBH 2-24DF - Bosch | E53: unit. | F53: 1 | G53: 773 | H53: 773 | I53: 0.001321297504
B54: 9.5 | C54: Placas de gesso (estoque para manutenções periódicas) | E54: unid | F54: 4 | G54: 167 | H54: 668 | I54: 0.001141819835
B55: 9.22 | C55: Torneiras , ferragens e metais de sanitários * (substituição de 2 unidades cada 6 meses) | E55: conj. | F55: 1 | G55: 650 | H55: 650 | I55: 0.001111052235
B56: 9.27 | C56: Maquina limpeza: praias, quadras de vôlei e parquinhos (aquisição, estoque - manut e substituição) | E56: unit. | F56: 1 | G56: 634 | H56: 634 | I56: 0.001083703257
B57: 7.3 | C57: Suprimentos e insumos informática | E57: mês | F57: 1 | G57: 500 | H57: 500 | I57: 0.0008546555653
B58: 9.7 | C58: Lâmpadas, reatores, luminárias (estoque para manutenções periódicas) | E58: conj. | F58: 2 | G58: 250 | H58: 500 | I58: 0.0008546555653
B59: 9.28 | C59: Dispensers dos sanitários - porta papéis e sabonetes (aquisição, estoque - manut e substituição) | E59: verba | F59: 1 | G59: 424 | H59: 424 | I59: 0.0007247479193
B60: 9.29 | C60: Lixeiras de reposição (aquisição, estoque - manut e substituição) | E60: verba | F60: 1 | G60: 375 | H60: 375 | I60: 0.0006409916739
B61: 9.1 | C61: Colas químicas (estoque para manutenção anual) | E61: tubo | F61: 1 | G61: 350 | H61: 350 | I61: 0.0005982588957
B62: 9.39 | C62: Furadeira Parafusadeira Impacto GSB 16 Re + Maleta - Bosch | E62: unit. | F62: 1 | G62: 329 | H62: 329 | I62: 0.0005623633619
B63: 9.6 | C63: Espelhos e vidros * (substituição por quebra de 1 unidade cada 6 meses) | E63: unid | F63: 1 | G63: 300 | H63: 300 | I63: 0.0005127933392
B64: 13.1 | C64: Seguro Patrimonial | D64: (% do valor do patrimônio) - 5% | E64: mês | F64: 1 | G64: 288 | H64: 288 | I64: 0.0004922816056
B65: 9.14 | C65: Chuveiros, fios e cabos elétricos * (2 chuveiros, disjuntores, fios e resistências semestralmente) | E65: verba | F65: 1 | G65: 275 | H65: 275 | I65: 0.0004700605609
B66: 9.3 | C66: Corda ancoradouro e boias (substituição total em 36 meses) | E66: conj. | F66: 1 | G66: 247 | H66: 247 | I66: 0.0004221998492
B67: 9.33 | C67: Assentos das bacias sanitárias * (estoque para substituição) | E67: verba | F67: 1 | G67: 239 | H67: 239 | I67: 0.0004085253602
B68: 9.10 | C68: Eletrobombas (verba para compra de peças e manutenções ao longo do tempo) | E68: verba | F68: 1 | G68: 234 | H68: 234 | I68: 0.0003999788045
B69: 9.18 | C69: Portas de madeira completas * (substituição cada 6 meses de 2 unidades) | E69: unid | F69: 1 | G69: 194 | H69: 194 | I69: 0.0003316063593
B70: 7.2 | C70: Despesa mensal com Wi-fi | E70: mês | F70: 1 | G70: 180 | H70: 180 | I70: 0.0003076760035
B71: 13.2 | C71: Responsabilidade Civil | D71: (% da receita) - 3% | E71: mês | F71: 1 | G71: 173 | H71: 173 | I71: 0.0002957108256
B72: 1.1 | C72: Árvores | D72: Recuperação de perdas, conforme planilha Para o período de 30 anos | E72: mês | F72: 1 | G72: 139 | H72: 139 | I72: 0.0002375942471
B73: 9.2 | C73: Fechaduras e ferragens * (substituição de 2 unidades cada 6 meses) | E73: conj. | F73: 1 | G73: 125 | H73: 125 | I73: 0.0002136638913
B74: 9.17 | C74: Divisórias Sanitárias de Granito * (substituição por quebra de 1 unidade cada 2 anos) | E74: unid | F74: 1 | G74: 96 | H74: 96 | I74: 0.0001640938685
B75: 9.19 | C75: Barras de apoio PNE's * (substituição cada 12 meses de 1 unidade) | E75: unid | F75: 1 | G75: 89 | H75: 89 | I75: 0.0001521286906
B76: 9.13 | C76: Blocos autônomos * - iluminação de emergência (substituição de 1 unid. cada 4 meses) | E76: unid | F76: 1 | G76: 54 | H76: 54 | I76: 9.230280105e-05
C77: Outros | E77: vb | F77: 1 | G77: 0 | H77: =SUM(H21:H76) -> 89758.41 | I77: =SUM(I15:I76) -> 0.3155012298

Sheet CURVA ABC MARINHA
B2: OPEX CURVA ABC PARQUE MARINHA DO BRASIL
B3: ITEM | C3: DESCRIÇÃO PARQUE | D3: PREMISSAS | E3: UNID. | F3: QUANTIDADE | G3: VALOR UNIT. | H3: VALOR TOTAL | I3: % | O3: CURVA ABC OPEX - PARQUE MARINHA DO BRASIL
G4: TOTAL MENSAL: | H4: ='RESUMO OPEX'!I22 -> 1703015.26
B5: 2.3 | C5: Vigilância - Ronda Diurna | D5: 1 vigia a cada 10.000m², apenas no período diurno | E5: mês | F5: 1 | G5: 665799 | H5: 665799 | I5: 0.3490589667
B6: 4.3 | C6: Poda | D6: Poda com supressão - Estimativa Contrato Atual | E6: mês | F6: 1 | G6: 205885 | H6: 205885 | I6: 0.1079394913
B7: 4.1 | C7: Roçada / capina dos gramados | D7: 1 x mês - inverno / outono 2 x mês - primavera / verão | E7: m² | F7: 376926 | G7: 0.375 | H7: 141347.25 | I7: 0.07410423421
B8: 4.8 | C8: Limpeza de Lagos | D8: Tratamento de água, resíduos e efluentes, operação, limpeza e manutenção de espelhos d'água, imunização e controle de pragas, análises laboratoriais - programa agua/icmbio, limpeza e higiene das caixas d'água e cisternas. | E8: mês | F8: 1 | G8: 85000 | H8: 85000 | I8: 0.04456301702
B9: 3.3 | C9: Equipe de Limpeza | D9: Auxiliar de Limpeza - 15 funcionários | E9: mês | F9: 1 | G9: 64499 | H9: 64499 | I9: 0.03381494159
B10: 4.2 | C10: Jardinagem - Trabalho Diário | D10: Auxiliar de Jardinagem - 1 funcionário a cada 50.000 m² - 14 funcionários | E10: mês | F10: 1 | G10: 51526 | H10: 51526 | I10: 0.02701357665
B11: 3.4 | C11: Equipe de Limpeza | D11: Coletor de Lixo - 15 funcionários | E11: mês | F11: 1 | G11: 49093 | H11: 49093 | I11: 0.02573802582
B12: 2.1 | C12: Portaria 24 horas | D12: Considerado portaria 24 horas - Equipe com turnos de 12 horas (incluso folguistas) - 6 funcionários | E12: mês | F12: 1 | G12: 26946 | H12: 26946 | I12: 0.0172941205
B13: 10.3 | C13: Motorista | D13: 6 funcionários | E13: mês | F13: 1 | G13: 26359 | H13: 26359 | I13: 0.0172941205
B14: 5.4 | C14: Bombeiro Civil | D14: 3 funcionários | E14: mês | F14: 1 | G14: 25408 | H14: 25408 | I14: 0.0151744937
B15: 5.5 | C15: Bombeiro Hidráulico | D15: 3 funcionários | E15: mês | F15: 1 | G15: 25408 | H15: 25408 | I15: 0.01412700067
B16: 5.2 | C16: Equipe de manutenção Civil | D16: Ajudante de Pedreiro - 6 funcionários | E16: mês | F16: 1 | G16: 22878 | H16: 22878 | I16: 0.01381925371
B17: 8.1 | C17: Despesa Mensal com Água e Esgoto | E17: mês | F17: 1 | G17: 20000 | H17: 20000 | I17: 0.01332067219
B18: 4.7 | C18: Transbordo do lixo | E18: mês | F18: 1 | G18: 18000 | H18: 18000 | I18: 0.01332067219
B19: 10.4 | C19: Retroescavadeira | D19: Limpeza dos lagos | E19: mês | F19: 1 | G19: 18000 | H19: 18000 | I19: 0.0119942671
B20: 2.2 | C20: Vigilância - Líder | D20: 2 funcionários | E20: mês | F20: 1 | G20: 17775 | H20: 17775 | I20: 0.01048541577
B21: 4.6 | C21: Trabalhos com Varrição | D21: 4 funcionários | E21: mês | F21: 1 | G21: 17200 | H21: 17200 | I21: 0.009436874193
B22: 4.5 | C22: Operador de Equipamentos | D22: 4 funcionários | E22: mês | F22: 1 | G22: 16530 | H22: 16530 | I22: 0.009436874193
B23: 3.1 | C23: Material - Limpeza | D23: Custo mensal com materiais: produtos de limpeza | E23: mês | F23: 1 | G23: 16000 | H23: 16000 | I23: 0.009318913265
B24: 6.1 | C24: Despesa mensal com Energia Elétrica | E24: mês | F24: 1 | G24: 16000 | H24: 16000 | I24: 0.009017457562
B25: 9.50 | C25: Varredeira Urbana MC-50 | E25: unit. | F25: 6 | G25: 2641 | H25: 15846 | I25: 0.008666196134
B26: 12.1 | C26: Mão de obra de Apoio - Apenados | D26: Utilizar equipe dos Apenados para serviços gerais - Equipe com 15 pessoas | E26: mês | F26: 1 | G26: 15453 | H26: 15453 | I26: 0.008388332616
B27: 5.6 | C27: Eletricista | D27: 3 funcionários | E27: mês | F27: 1 | G27: 15419 | H27: 15419 | I27: 0.008388332616
B28: 14.1 | C28: Gerente GERAL | D28: Considerado 1 funcionário - Ref. Cataratas | E28: mês | F28: 0.41 | G28: 32987 | H28: 13524.67 | I28: 0.008307594914
B29: 14.7 | C29: Gerente de Operações | D29: Considerado 1 funcionário - Ref. Cataratas | E29: mês | F29: 0.41 | G29: 32987 | H29: 13524.67 | I29: 0.008234721275
B30: 5.7 | C30: Técnico Eletromecânico | D30: 3 funcionários | E30: mês | F30: 1 | G30: 12236 | H30: 12236 | I30: 0.008101556494
B31: 5.1 | C31: Equipe de manutenção Civil | D31: Pedreiro - 3 funcionários | E31: mês | F31: 1 | G31: 12233 | H31: 12233 | I31: 0.008083731288
B32: 14.3 | C32: Analista de RH | D32: Considerado 3 funcionário - Ref. Cataratas | E32: mês | F32: 0.41 | G32: 28944 | H32: 11867.04 | I32: 0.006414977368
B33: 5.3 | C33: Equipe de manutenção Civil | D33: Pintor - 3 funcionários | E33: mês | F33: 1 | G33: 11422 | H33: 11422 | I33: 0.006413404556
B34: 11.1 | C34: Combustível para Carros | D34: Ver composição - considerando 5 automóveis por mês | E34: mês | F34: 1 | G34: 10068 | H34: 10068 | I34: 0.00602387136
B35: 10.2 | C35: Carro de passeio | D35: Aluguel mensal de Carro - 5 carros | E35: mês | F35: 1 | G35: 10000 | H35: 10000 | I35: 0.005988220946
B36: 3.2 | C36: Equipe de Limpeza | D36: Encarregado de Limpeza - 2 funcionários | E36: mês | F36: 1 | G36: 8444 | H36: 8444 | I36: 0.005628571185
B37: 9.9 | C37: Pesticidas (produtos para a equipe de jardinagem em seu plano de Controle de Pragas) | E37: litro | F37: 9 | G37: 930 | H37: 8370 | I37: 0.005278358298
B38: 9.8 | C38: Tintas, vernizes e selador acrílico (estoque para manutenção periódica) | E38: lata | F38: 6 | G38: 1350 | H38: 8100 | I38: 0.005242707885
B39: 4.4 | C39: Encarregado de Jardinagem | D39: 2 funcionários | E39: mês | F39: 1 | G39: 7258 | H39: 7258 | I39: 0.004426942538
B40: 14.2 | C40: Assistente Financeiro | D40: Considerado 3 funcionários - Ref. Cataratas | E40: mês | F40: 0.41 | G40: 15707 | H40: 6439.87 | I40: 0.0043881465
B41: 7.4 | C41: Manutenção de comunicação visual e estratégia de Marketing | D41: Considerado contrato de R$ 20.000 - dividido pelos 5 parques | E41: mês | F41: 1 | G41: 6000 | H41: 6000 | I41: 0.004246593387
B42: 10.1 | C42: Caminhão | D42: 1 caminhão | E42: mês | F42: 1 | G42: 6000 | H42: 6000 | I42: 0.003805157383
B43: 5.8 | C43: EPI's e EPC's | D43: verba mensal | E43: mês | F43: 1 | G43: 5500 | H43: 5500 | I43: 0.003306051592
B44: 9.11 | C44: Areia e Saibro rosa (estoque para a substituição quando necessário) | E44: m3 | F44: 18 | G44: 298 | H44: 5364 | I44: 0.003145624731
B45: 9.38 | C45: Serra Circular de Bancada 255mm 1650W | E45: unit. | F45: 1 | G45: 5253 | H45: 5253 | I45: 0.003145624731
B46: 9.24 | C46: Bebedouros - purificadores de água | E46: unit. | F46: 8 | G46: 650 | H46: 5200 | I46: 0.002883489337
B47: 9.43 | C47: Multímetro modelo 289 | E47: unit. | F47: 1 | G47: 5200 | H47: 5200 | I47: 0.002812188509
B48: 14.4 | C48: Técnico Segurança do Trabalho | D48: Considerado 2 funcionários - Ref. Cataratas | E48: mês | F48: 0.41 | G48: 11490 | H48: 4710.9 | I48: 0.002753994452
B49: 9.16 | C49: Consumíveis dos sanitários - papeis e sabonetes (pela população diária média de 500 pessoas) | E49: verba | F49: 1 | G49: 4670 | H49: 4670 | I49: 0.0027262081
B50: 7.1 | C50: Despesa mensal com Telefone | E50: mês | F50: 1 | G50: 4500 | H50: 4500 | I50: 0.0027262081
B51: 14.5 | C51: Analista de Marketing | D51: Considerado 2 funcionários - Ref. Cataratas | E51: mês | F51: 0.41 | G51: 10736 | H51: 4401.76 | I51: 0.002448344582
B52: 10.5 | C52: Operador de Retroescavadeira | E52: mês | F52: 1 | G52: 4300 | H52: 4300 | I52: 0.002359218548
B53: 9.45 | C53: Carro de Ferramentas com 380 Peças e 7 Gavetas FG6100 | E53: unit. | F53: 1 | G53: 3666 | H53: 3666 | I53: 0.00225436439
B54: 2022-01-15 | C54: Despesa com manutenção e limpeza de obra arte | E54: mês | F54: 1 | G54: 3000 | H54: 3000 | I54: 0.001921976711
B55: 9.32 | C55: Equipamentos das equipes de manutenção, limpeza, jardinagem e vigilância | E55: verba | F55: 1 | G55: 2997 | H55: 2997 | I55: 0.001572812365
B56: 9.48 | C56: Caixa de ferramenta Predial | E56: unit. | F56: 1 | G56: 2800 | H56: 2800 | I56: 0.001571239553
B57: 9.46 | C57: Caixa de ferramenta Marcenaria | E57: unit. | F57: 1 | G57: 2790 | H57: 2790 | I57: 0.001467958208
B58: 9.31 | C58: Ferramental das equipes de manutenção, limpeza, jardinagem e vigilância | E58: verba | F58: 1 | G58: 2707 | H58: 2707 | I58: 0.0014627155
B59: 9.41 | C59: Gerador à Gasolina 6kva Trif Part. Elétrica - Nagano | E59: unit. | F59: 1 | G59: 2699 | H59: 2699 | I59: 0.001419201024
B60: 14.6 | C60: Jovem Aprendiz | D60: Considerado 10 funcionários - Ref. Cataratas | E60: mês | F60: 0.41 | G60: 6306 | H60: 2585.46 | I60: 0.001415006858
B61: 4.9 | C61: Limpeza de Espelhos D´Água | E61: mês | F61: 1 | G61: 2200 | H61: 2200 | I61: 0.001153395735
B62: 9.25 | C62: EPI´s e EPC´s (conjuntos das equipes com equipamentos de proteção individual e coletiva) | E62: verba | F62: 1 | G62: 2150 | H62: 2150 | I62: 0.001127182195
B63: 9.4 | C63: Boias de flutuação (estoque para substituição a partir do 3° ano) | E63: unid | F63: 3 | G63: 480 | H63: 1440 | I63: 0.0007549499354
B64: 9.30 | C64: Trator com reboque para carrinho e roçadeira (custo de aquisição, manutenção e substituição) | E64: unit. | F64: 1 | G64: 1384 | H64: 1384 | I64: 0.0007255907713
B65: 9.47 | C65: Caixa de ferramenta Hidráulica | E65: unit. | F65: 1 | G65: 1300 | H65: 1300 | I65: 0.000681552025
B66: 9.49 | C66: Caixa de ferramenta Elétrica | E66: unit. | F66: 1 | G66: 1300 | H66: 1300 | I66: 0.000681552025
B67: 1.2 | C67: Material Educação Ambiental | D67: Folder, insumos, material geral (15 mil ano, p/ 30 anos) | E67: mês | F67: 1 | G67: 1250 | H67: 1250 | I67: 0.0006553384856
B68: 13.1 | C68: Seguro Patrimonial | D68: (% do valor do patrimônio) - 5% | E68: mês | F68: 1 | G68: 1067 | H68: 1067 | I68: 0.0005593969313
B69: 9.1 | C69: Colas químicas (estoque para manutenção anual) | E69: tubo | F69: 3 | G69: 350 | H69: 1050 | I69: 0.0005504843279
B70: 9.35 | C70: Serra Policorte 12" Alumínio s/ Disco s/ Motor CH SCAP-120N - Motomil - RR MAQUINAS | E70: unit. | F70: 1 | G70: 1049 | H70: 1049 | I70: 0.0005499600571
B71: 9.5 | C71: Placas de gesso (estoque para manutenções periódicas) | E71: unid | F71: 6 | G71: 167 | H71: 1002 | I71: 0.0005253193301
B72: 7.3 | C72: Suprimentos e insumos informática | E72: mês | F72: 1 | G72: 1000 | H72: 1000 | I72: 0.0005242707885
B73: 9.42 | C73: Andaime - Torre de 10 m | E73: unit. | F73: 1 | G73: 950 | H73: 950 | I73: 0.0004980572491
B74: 9.37 | C74: Furadeira de Bancada 1/2HP 5/8 Fbm160t Motomil 220/380V - RR MAQUINAS | E74: unit. | F74: 1 | G74: 935 | H74: 935 | I74: 0.0004901931872
B75: 9.44 | C75: Bancada c/ 3 Gavetas, Tampo Madeira Compensada 40mm 200 x 60 x 92 cm | E75: unit. | F75: 1 | G75: 880 | H75: 880 | I75: 0.0004613582939
B76: 9.23 | C76: Borracha clorada (estoque para manutenção periódica) | E76: verba | F76: 1 | G76: 836 | H76: 836 | I76: 0.0004382903792
B77: 9.26 | C77: Maquinas corte de grama e podas de árvores (aquisição, estoque - manutenção e substituição) | E77: verba | F77: 1 | G77: 798 | H77: 798 | I77: 0.0004183680892
B78: 9.40 | C78: Martelete Rompedor 0-5100imp 800W c/ Maleta 220V - GBH 2-24DF - Bosch | E78: unit. | F78: 1 | G78: 773 | H78: 773 | I78: 0.0004052613195
B79: 9.34 | C79: Máquina de Solda Mig-150 Eletrônica-V8 Brasil-Mig-150br - DUTRA MAQUINAS | E79: unit. | F79: 1 | G79: 759 | H79: 759 | I79: 0.0003979215285
B80: 9.7 | C80: Lâmpadas, reatores, luminárias (estoque para manutenções periódicas) | E80: conj. | F80: 3 | G80: 250 | H80: 750 | I80: 0.0003932030914
B81: 9.39 | C81: Furadeira Parafusadeira Impacto GSB 16 Re + Maleta - Bosch | E81: unit. | F81: 2 | G81: 329 | H81: 658 | I81: 0.0003449701788
B82: 9.22 | C82: Torneiras , ferragens e metais de sanitários * (substituição de 2 unidades cada 6 meses) | E82: conj. | F82: 1 | G82: 650 | H82: 650 | I82: 0.0003407760125
B83: 13.2 | C83: Responsabilidade Civil | D83: (% da receita) - 3% | E83: mês | F83: 1 | G83: 640 | H83: 640 | I83: 0.0003355333046
B84: 9.27 | C84: Maquina limpeza: praias, quadras de vôlei e parquinhos (aquisição, estoque - manut e substituição) | E84: unit. | F84: 1 | G84: 634 | H84: 634 | I84: 0.0003323876799
B85: 11.2 | C85: Combustível para Equipamentos | D85: Diesel - escavadeiras, pás carregadeiras, retroescavadeiras, tratores de esteiras e gerador | E85: mês | F85: 1 | G85: 600 | H85: 600 | I85: 0.0003145624731
B86: 12.2 | C86: Alimentação | D86: Alimentação dos Apenados - Equipe com 15 pessoas | E86: mês | F86: 1 | G86: 600 | H86: 600 | I86: 0.0003145624731
B87: 9.12 | C87: Piso podotátil (estoque para substituição periódica) | E87: unid | F87: 5 | G87: 90 | H87: 450 | I87: 0.0002359218548
B88: 9.36 | C88: Serra Mármore Profissional 125mm 1500W c/ Kit Refrigeração,Disco e Maleta - BOSCH -GCD-151 | E88: unit. | F88: 1 | G88: 440 | H88: 440 | I88: 0.0002306791469
B89: 9.28 | C89: Dispensers dos sanitários - porta papéis e sabonetes (aquisição, estoque - manut e substituição) | E89: verba | F89: 1 | G89: 424 | H89: 424 | I89: 0.0002222908143
B90: 9.29 | C90: Lixeiras de reposição (aquisição, estoque - manut e substituição) | E90: verba | F90: 1 | G90: 375 | H90: 375 | I90: 0.0001966015457
B91: 7.2 | C91: Despesa mensal com Wi-fi | E91: mês | F91: 1 | G91: 360 | H91: 360 | I91: 0.0001887374839
B92: 9.6 | C92: Espelhos e vidros * (substituição por quebra de 1 unidade cada 6 meses) | E92: unid | F92: 1 | G92: 300 | H92: 300 | I92: 0.0001572812365
B93: 9.14 | C93: Chuveiros, fios e cabos elétricos * (2 chuveiros, disjuntores, fios e resistências semestralmente) | E93: verba | F93: 1 | G93: 275 | H93: 275 | I93: 0.0001441744668
B94: 9.3 | C94: Corda ancoradouro e boias (substituição total em 36 meses) | E94: conj. | F94: 1 | G94: 247 | H94: 247 | I94: 0.0001294948848
B95: 9.33 | C95: Assentos das bacias sanitárias * (estoque para substituição) | E95: verba | F95: 1 | G95: 239 | H95: 239 | I95: 0.0001253007184
B96: 9.10 | C96: Eletrobombas (verba para compra de peças e manutenções ao longo do tempo) | E96: verba | F96: 1 | G96: 234 | H96: 234 | I96: 0.0001226793645
B97: 9.20 | C97: Vidro temperado * (substituição de uma peça cada 6 meses) | E97: unid | F97: 1 | G97: 233 | H97: 233 | I97: 0.0001221550937
B98: 9.18 | C98: Portas de madeira completas * (substituição cada 6 meses de 2 unidades) | E98: unid | F98: 1 | G98: 194 | H98: 194 | I98: 0.000101708533
B99: 1.1 | C99: Árvores | D99: Recuperação de perdas, conforme planilha Para o período de 30 anos | E99: mês | F99: 1 | G99: 139 | H99: 139 | I99: 7.28736396e-05
B100: 9.2 | C100: Fechaduras e ferragens * (substituição de 2 unidades cada 6 meses) | E100: conj. | F100: 1 | G100: 125 | H100: 125 | I100: 6.553384856e-05
B101: 9.15 | C101: Granitos de pias * (substituição por quebra de 1 unidade cada 2 anos) | E101: unid | F101: 1 | G101: 103 | H101: 103 | I101: 5.399989121e-05
B102: 9.17 | C102: Divisórias Sanitárias de Granito * (substituição por quebra de 1 unidade cada 2 anos) | E102: unid | F102: 1 | G102: 96 | H102: 96 | I102: 5.032999569e-05
B103: 9.19 | C103: Barras de apoio PNE's * (substituição cada 12 meses de 1 unidade) | E103: unid | F103: 1 | G103: 89 | H103: 89 | I103: 4.666010018e-05
B104: 9.21 | C104: Pastilhas de vidro para reposição de revestimento (estoque para manutenção periódica) | E104: verba | F104: 1 | G104: 74 | H104: 74 | I104: 3.879603835e-05
B105: 9.13 | C105: Blocos autônomos * - iluminação de emergência (substituição de 1 unid. cada 4 meses) | E105: unid | F105: 1 | G105: 54 | H105: 54 | I105: 2.831062258e-05
C106: Outros | E106: vb | F106: 1 | G106: 0 | H106: =SUM(H15:H105) -> 483446.37 | I106: =SUM(I12:I105) -> 0.3377677467

Sheet CURVA ABC LAMI
B2: OPEX CURVA ABC CALÇADÃO DO LAMI
B3: ITEM | C3: DESCRIÇÃO PARQUE | D3: PREMISSAS | E3: UNID. | F3: QUANTIDADE | G3: VALOR UNIT. | H3: VALOR TOTAL | I3: % | N3: CURVA ABC OPEX - LAMI
G4: TOTAL MENSAL: | H4: ='RESUMO OPEX'!J22 -> 127156.27
B5: 4.3 | C5: Poda | D5: Poda com supressão - Estimativa Contrato Atual | E5: mês | F5: 1 | G5: 12760 | H5: 12760 | I5: 0.1324316404
B6: 2.2 | C6: Vigilância - Líder | D6: 1 funcionário | E6: mês | F6: 1 | G6: 8888 | H6: 8888 | I6: 0.1324316404
B7: 2.4 | C7: Salva-vidas | D7: - | E7: mês | F7: 1 | G7: 8888 | H7: 8888 | I7: 0.1162003637
B8: 4.5 | C8: Operador de Equipamentos | D8: 2 funcionários | E8: mês | F8: 1 | G8: 8265 | H8: 8265 | I8: 0.06305828887
B9: 7.4 | C9: Manutenção de comunicação visual e estratégia de Marketing | D9: Considerado contrato de R$ 20.000 - dividido pelos 5 parques | E9: mês | F9: 1 | G9: 6000 | H9: 6000 | I9: 0.0512270813
B10: 10.1 | C10: Caminhão | D10: 1 caminhão | E10: mês | F10: 1 | G10: 6000 | H10: 6000 | I10: 0.04612846114
B11: 9.11 | C11: Areia e Grama | D11: (estoque para a substituição quando necessário) | E11: m3 | F11: 20 | G11: 298 | H11: 5960 | I11: 0.04310140634
B12: 4.9 | C12: Manutenção e Conservação de Pier | D12: Aplicação de verniz náutico e manutenção | E12: mês | F12: 1 | G12: 5000 | H12: 5000 | I12: 0.0356823118
B13: 9.16 | C13: Consumíveis dos sanitários | D13: papeis e sabonetes (pela população diária média de 500 pessoas) | E13: verba | F13: 1 | G13: 4670 | H13: 4670 | I13: 0.0356823118
B14: 10.3 | C14: Motorista | D14: 1 funcionários - caminhão | E14: mês | F14: 1 | G14: 4394 | H14: 4394 | I14: 0.03318117766
B15: 3.3 | C15: Equipe de Limpeza | D15: Auxiliar de Limpeza - 10 funcionários | E15: mês | F15: 1 | G15: 4300 | H15: 4300 | I15: 0.0253164557
B16: 4.6 | C16: Trabalhos com Varrição | D16: 1 funcionário | E16: mês | F16: 1 | G16: 4300 | H16: 4300 | I16: 0.02408796926
B17: 3.2 | C17: Equipe de Limpeza | D17: Encarregado de Limpeza - 1 funcionário | E17: mês | F17: 1 | G17: 4222 | H17: 4222 | I17: 0.02408796926
B18: 4.4 | C18: Encarregado de Jardinagem | D18: 1 funcionário | E18: mês | F18: 1 | G18: 3629 | H18: 3629 | I18: 0.0239273828
B19: 9.31 | C19: Ferramental das equipes de manutenção, limpeza, jardinagem e vigilância | E19: verba | F19: 1 | G19: 2707 | H19: 2707 | I19: 0.02007330772
B20: 9.41 | C20: Gerador à Gasolina 6kva Trif Part. Elétrica - Nagano | E20: unit. | F20: 1 | G20: 2699 | H20: 2699 | I20: 0.01874846941
B21: 9.50 | C21: Varredeira Urbana MC-50 | E21: unit. | F21: 1 | G21: 2641 | H21: 2641 | I21: 0.01764042282
B22: 4.2 | C22: Jardinagem - Trabalho Diário | D22: Auxiliar de Jardinagem - 1 funcionário a cada 50.000 m² | E22: mês | F22: 1 | G22: 2395 | H22: 2395 | I22: 0.01726304464
B23: 9.25 | C23: EPI´s e EPC´s (conjuntos das equipes com equipamentos de proteção individual e coletiva) | E23: verba | F23: 1 | G23: 2150 | H23: 2150 | I23: 0.01726304464
B24: 14.1 | C24: Gerente GERAL | D24: Considerado 1 funcionário - Ref. Cataratas | E24: mês | F24: 0.05 | G24: 32987 | H24: 1649.35 | I24: 0.01694990104
B25: 14.7 | C25: Gerente de Operações | D25: Considerado 1 funcionário - Ref. Cataratas | E25: mês | F25: 0.05 | G25: 32987 | H25: 1649.35 | I25: 0.01456920674
B26: 14.3 | C26: Analista de RH | D26: Considerado 3 funcionário - Ref. Cataratas | E26: mês | F26: 0.05 | G26: 28944 | H26: 1447.2 | I26: 0.0108676888
B27: 9.8 | C27: Tintas, vernizes e selador acrílico (estoque para manutenção periódica) | E27: lata | F27: 1 | G27: 1350 | H27: 1350 | I27: 0.01083557151
B28: 9.49 | C28: Caixa de ferramenta Elétrica | E28: unit. | F28: 1 | G28: 1300 | H28: 1300 | I28: 0.01060272114
B29: 1.2 | C29: Material Educação Ambiental | D29: Folder, insumos, material geral (15 mil ano, p/ 30 anos) | E29: mês | F29: 1 | G29: 1250 | H29: 1250 | I29: 0.009615114398
B30: 9.4 | C30: Boias de flutuação (estoque para substituição a partir do 3° ano) | E30: unid | F30: 2 | G30: 480 | H30: 960 | I30: 0.00863152232
B31: 3.1 | C31: Material - Limpeza | D31: Custo mensal com materiais: produtos de limpeza | E31: mês | F31: 1 | G31: 800 | H31: 800 | I31: 0.005419793084
B32: 9.26 | C32: Maquinas corte de grama e podas de árvores (aquisição, estoque - manutenção e substituição) | E32: verba | F32: 1 | G32: 798 | H32: 798 | I32: 0.005219060007
B33: 14.2 | C33: Assistente Financeiro | D33: Considerado 3 funcionários - Ref. Cataratas | E33: mês | F33: 0.05 | G33: 15707 | H33: 785.35 | I33: 0.00501832693
B34: 9.22 | C34: Torneiras , ferragens e metais de sanitários * (substituição de 2 unidades cada 6 meses) | E34: conj. | F34: 1 | G34: 650 | H34: 650 | I34: 0.003854075082
B35: 14.4 | C35: Técnico Segurança do Trabalho | D35: Considerado 2 funcionários - Ref. Cataratas | E35: mês | F35: 0.05 | G35: 11490 | H35: 574.5 | I35: 0.003211729235
B36: 14.5 | C36: Analista de Marketing | D36: Considerado 2 funcionários - Ref. Cataratas | E36: mês | F36: 0.05 | G36: 10736 | H36: 536.8 | I36: 0.003203699912
B37: 9.28 | C37: Dispensers dos sanitários - porta papéis e sabonetes (aquisição, estoque - manut e substituição) | E37: verba | F37: 1 | G37: 424 | H37: 424 | I37: 0.002609530004
B38: 9.29 | C38: Lixeiras de reposição (aquisição, estoque - manut e substituição) | E38: verba | F38: 1 | G38: 375 | H38: 375 | I38: 0.001702216495
B39: 14.6 | C39: Jovem Aprendiz | D39: Considerado 10 funcionários - Ref. Cataratas | E39: mês | F39: 0.05 | G39: 6306 | H39: 315.3 | I39: 0.001505498079
B40: 8.1 | C40: Despesa Mensal com Água e Esgoto | D40: Banheiro e Quiosque | E40: mês | F40: 1 | G40: 300 | H40: 300 | I40: 0.001204398463
B41: 9.14 | C41: Chuveiros, fios e cabos elétricos * (2 chuveiros, disjuntores, fios e resistências semestralmente) | E41: verba | F41: 1 | G41: 275 | H41: 275 | I41: 0.001104031925
B42: 9.7 | C42: Lâmpadas, reatores, luminárias (estoque para manutenções periódicas) | E42: conj. | F42: 1 | G42: 250 | H42: 250 | I42: 0.001003665386
B43: 9.3 | C43: Corda ancoradouro e boias (substituição total em 36 meses) | E43: conj. | F43: 1 | G43: 247 | H43: 247 | I43: 0.0009916214014
B44: 9.33 | C44: Assentos das bacias sanitárias * (estoque para substituição) | E44: verba | F44: 1 | G44: 239 | H44: 239 | I44: 0.000959504109
B45: 6.1 | C45: Despesa mensal com Energia Elétrica | E45: mês | F45: 1 | G45: 200 | H45: 200 | I45: 0.0008029323088
B46: 1.1 | C46: Árvores | D46: Recuperação de perdas, conforme planilha Para o período de 30 anos | E46: mês | F46: 1 | G46: 139 | H46: 139 | I46: 0.0005580379546
B47: 9.2 | C47: Fechaduras e ferragens * (substituição de 2 unidades cada 6 meses) | E47: conj. | F47: 1 | G47: 125 | H47: 125 | I47: 0.000501832693
B48: 13.1 | C48: Seguro Patrimonial | D48: (% do valor do patrimônio) - 5% | E48: mês | F48: 1 | G48: 125 | H48: 125 | I48: 0.000501832693
B49: 9.17 | C49: Divisórias Sanitárias de Granito * (substituição por quebra de 1 unidade cada 2 anos) | E49: unid | F49: 0 | G49: 96 | H49: 96 | I49: 0.0003010996158
B50: 13.2 | C50: Responsabilidade Civil | D50: (% da receita) - 3% | E50: mês | F50: 1 | G50: 75 | H50: 75 | I50: 0.0002167917234
B51: 9.13 | C51: Blocos autônomos * - iluminação de emergência (substituição de 1 unid. cada 4 meses) | E51: unid | F51: 1 | G51: 54 | H51: 54 | I51: 0.0001204398463
B52: 5.8 | C52: EPI's e EPC's | D52: verba mensal | E52: mês | F52: 1 | G52: 30 | H52: 30 | I52: 0
C53: Outros | E53: vb | F53: 1 | G53: 0 | H53: =SUM(H25:H52) -> 15370.5 | I53: =SUM(I16:I52) -> 0.2851734535

Sheet Cargos e Salários
E2: Opções | F2: ALTERNATIVAS DOS ADICIONAIS
I3: até 26h/s | K3: sobre SM
H4: EST | I4: 20h/s | K4: 1045 | AH4: Cadterc -V20
H5: SDF | I5: 24h/s | N5: 0 | P5: 0 | AH5: 590.91
E6: 0 | G6: D | H6: 12x36 | I6: 30h/s | K6: 0 | L6: 0 | N6: 0.05 | P6: 0 | AH6: Cadterc-V1 | AI6: SINDESP-PR | AK6: SINDESP-PR | AL6: SINDESP-PR | AM6: SINDESP-PR | AN6: SINDESP-PR | AO6: Valor/pessoa | AP6: SINDESP-PR
E7: 0 | G7: N | H7: 5x2 | I7: 40h/s | J7: 0 | K7: 0.2 | L7: 931.5 | N7: 0.1177 | P7: 0 | AH7: R$75,13 | AI7: 25.032 | AK7: R$146,79 | AL7: R$75,00 | AM7: R$90,00 | AN7: R$0,00 | AO7: 50000 | AP7: 0 | AQ7: CBO - Classificação Brasileira de Ocupações
E8: 0 | G8: SDF | H8: 6x1 | I8: 44h/s | J8: 0.3 | K8: 0.3 | L8: 0.12 | M8: 0 | N8: 0.7471 | O8: 0.1 | P8: 0.2 | U8: SEAC-PR | AB8: 0.02 | AH8: Cadterc-V3 | AI8: SEAC-PR | AK8: SEAC-PR | AL8: SEAC-PR | AM8: SEAC-PR | AN8: SEAC-PR | AO8: % premio | AP8: SEAC-PR
D9: SALÁRIO | F9: ADICIONAIS | K9: 0.4 | U9: 0.7952 | W9: 0.05 | X9: 0.1 | Y9: 0.076 | Z9: 0.01 | AA9: 0.0165 | AB9: 0.05 | AH9: 48.5 | AI9: 12.74 | AJ9: 4.2 | AK9: 110.94 | AL9: 129.55 | AM9: 62.5 | AN9: 20.5 | AO9: 0.0005 | AP9: 0
A10: Terceiro (T) ou Orgânico (O) | B10: Categoria do Serviço | C10: Cargo | D10: Salário Base | E10: Fator de atratividade | F10: Salário Base + Fator de atratividade | G10: Turno | H10: Escala de Trabalho | I10: Carga Horária Semanal | J10: Periculosidade (30% do salário) | K10: Insalubridade (% sobre o salário base) | L10: Liderança ou Gratificação Executiva | M10: Condutor Veículo Motorizado | N10: Monitoramento ou Operação de Drone | O10: Brigadista | P10: Adicional Noturno | Q10: Somatória dos Adicionais (R$) | R10: Salário Total Líquido (R$) | S10: Adicionais (R$) | T10: Benefícios (R$) | U10: Encargos Trabalhistas (R$) | V10: DA+Lucro (R$) | W10: Lucro (%) | X10: Desp. Adm. (DA) (%) | Y10: COFINS | Z10: IRRF | AA10: PIS | AB10: ISSQN | AC10: R$/MÊS (UNITÁRIO) | AD10: R$/ANO (UNITÁRIO) | AE10: FATOR | AF10: TOTAL | AG10: Dias trab/mês | AH10: Uniforme + EPI | AI10: Vale Alimentação | AJ10: VT | AK10: Cesta Básica | AL10: Treinamento | AM10: Assistência Médica | AN10: Assistência Social Familiar | AO10: Seguro de vida em grupo | AP10: PPR | AQ10: Nome do cargo (pela CBO) | AR10: #CBO | AS10: Sindicato (buscar a última versão convenção coletiva de trabalho - CCT) | AT10: Referência
A11: O | B11: ADM | C11: Advogado | D11: 9680 | E11: 0 | F11: 9680 | G11: D | H11: 5x2 | I11: 40h/s | J11: 0 | K11: 0 | L11: 0 | M11: 0 | N11: 0 | O11: 0 | P11: 0 | Q11: - | R11: 9680 | S11: - | T11: 671.69 | U11: 7697.95 | V11: - | W11: 0 | X11: 0 | Y11: 0 | Z11: 0 | AA11: 0 | AB11: 0 | AC11: 18049.64 | AD11: 216595.68 | AE11: 1.86 | AF11: 671.69 | AG11: 22 | AH11: 48.5 | AI11: 280.25 | AJ11: 0 | AK11: 105.39 | AL11: 129.55 | AM11: 62.5 | AN11: 20.5 | AO11: 25 | AP11: 0 | AQ11: Auxiliar Administrativo | AR11: 411005 | AS11: Cataratas SA | AT11: 2020-12-01
A12: O | B12: ADM | C12: Analista ambiental | D12: 3333.63 | E12: 0.2 | F12: 4000.36 | G12: D | H12: 5x2 | I12: 40h/s | J12: 0 | K12: 0 | L12: 0 | M12: 0 | N12: 0 | O12: 0 | P12: 0 | Q12: - | R12: 4000.36 | S12: - | T12: 671.69 | U12: 3181.26 | V12: - | W12: 0 | X12: 0 | Y12: 0 | Z12: 0 | AA12: 0 | AB12: 0 | AC12: 7853.31 | AD12: 94239.71 | AE12: 1.96 | AF12: 671.69 | AG12: 22 | AH12: 48.5 | AI12: 280.25 | AJ12: 0 | AK12: 105.39 | AL12: 129.55 | AM12: 62.5 | AN12: 20.5 | AO12: 25 | AP12: 0 | AQ12: Analista Ambiental | AR12: 352205 | AS12: www.salario.com.br | AT12: 2020-09-01
A13: O | B13: ADM | C13: Analista contábil | D13: 4838.31 | E13: 0.25 | F13: 6047.88 | G13: D | H13: 5x2 | I13: 40h/s | J13: 0 | K13: 0 | L13: 0 | M13: 0 | N13: 0 | O13: 0 | P13: 0 | Q13: - | R13: 6047.88 | S13: - | T13: 671.69 | U13: 4809.54 | V13: - | W13: 0 | X13: 0 | Y13: 0 | Z13: 0 | AA13: 0 | AB13: 0 | AC13: 11529.11 | AD13: 138349.28 | AE13: 1.91 | AF13: 671.69 | AG13: 22 | AH13: 48.5 | AI13: 280.25 | AJ13: 0 | AK13: 105.39 | AL13: 129.55 | AM13: 62.5 | AN13: 20.5 | AO13: 25 | AP13: 0 | AQ13: Auxiliar Administrativo | AR13: 411005 | AS13: www.salario.com.br | AT13: 2020-09-01
A14: O | B14: ADM | C14: Analista de controladoria | D14: 5095.76 | E14: 0.19 | F14: 6063.95 | G14: D | H14: 5x2 | I14: 40h/s | J14: 0 | K14: 0 | L14: 0 | M14: 0 | N14: 0 | O14: 0 | P14: 0 | Q14: - | R14: 6063.95 | S14: - | T14: 671.69 | U14: 4822.32 | V14: - | W14: 0 | X14: 0 | Y14: 0 | Z14: 0 | AA14: 0 | AB14: 0 | AC14: 11557.95 | AD14: 138695.45 | AE14: 1.91 | AF14: 671.69 | AG14: 22 | AH14: 48.5 | AI14: 280.25 | AJ14: 0 | AK14: 105.39 | AL14: 129.55 | AM14: 62.5 | AN14: 20.5 | AO14: 25 | AP14: 0 | AQ14: Auxiliar Administrativo | AR14: 411005 | AS14: www.salario.com.br | AT14: 2020-11-01
A15: O | B15: ADM | C15: Analista de marketing | D15: 2946.41 | E15: 0.45 | F15: 4272.3 | G15: D | H15: 5x2 | I15: 40h/s | J15: 0 | K15: 0 | L15: 0 | M15: 0 | N15: 0 | O15: 0 | P15: 0 | Q15: - | R15: 4272.3 | S15: - | T15: 679.7 | U15: 3397.51 | V15: - | W15: 0 | X15: 0 | Y15: 0 | Z15: 0 | AA15: 0 | AB15: 0 | AC15: 8349.51 | AD15: 100194.13 | AE15: 1.95 | AF15: 679.7 | AG15: 22 | AH15: 48.5 | AI15: 280.25 | AJ15: 8.02 | AK15: 105.39 | AL15: 129.55 | AM15: 62.5 | AN15: 20.5 | AO15: 25 | AP15: 0 | AQ15: Analista administrativo | AR15: 252105 | AS15: www.salario.com.br | AT15: 2020-11-01
A16: O | B16: ADM | C16: Analista de RH | D16: 6050 | E16: 0 | F16: 6050 | G16: D | H16: 5x2 | I16: 40h/s | J16: 0 | K16: 0 | L16: 0 | M16: 0 | N16: 0 | O16: 0 | P16: 0 | Q16: - | R16: 6050 | S16: - | T16: 671.69 | U16: 4811.22 | V16: - | W16: 0 | X16: 0 | Y16: 0 | Z16: 0 | AA16: 0 | AB16: 0 | AC16: 11532.91 | AD16: 138394.9 | AE16: 1.91 | AF16: 671.69 | AG16: 22 | AH16: 48.5 | AI16: 280.25 | AJ16: 0 | AK16: 105.39 | AL16: 129.55 | AM16: 62.5 | AN16: 20.5 | AO16: 25 | AP16: 0 | AQ16: Auxiliar Administrativo | AR16: 411005 | AS16: Cataratas SA | AT16: 2020-12-01
A17: O | B17: ADM | C17: Analista de vendas | D17: 4235 | E17: 0 | F17: 4235 | G17: D | H17: 5x2 | I17: 40h/s | J17: 0 | K17: 0 | L17: 0 | M17: 0 | N17: 0 | O17: 0 | P17: 0 | Q17: - | R17: 4235 | S17: - | T17: 671.69 | U17: 3367.85 | V17: - | W17: 0 | X17: 0 | Y17: 0 | Z17: 0 | AA17: 0 | AB17: 0 | AC17: 8274.54 | AD17: 99294.5 | AE17: 1.95 | AF17: 671.69 | AG17: 22 | AH17: 48.5 | AI17: 280.25 | AJ17: 0 | AK17: 105.39 | AL17: 129.55 | AM17: 62.5 | AN17: 20.5 | AO17: 25 | AP17: 0 | AQ17: Auxiliar Administrativo | AR17: 411005 | AS17: Cataratas SA | AT17: 2020-12-01
A18: O | B18: ADM | C18: Assistente Administrativo | D18: 2159.83 | E18: 0.4 | F18: 3023.76 | G18: D | H18: 5x2 | I18: 40h/s | J18: 0 | K18: 0 | L18: 0 | M18: 0 | N18: 0 | O18: 0 | P18: 0 | Q18: - | R18: 3023.76 | S18: - | T18: 726.9 | U18: 2404.62 | V18: - | W18: 0 | X18: 0 | Y18: 0 | Z18: 0 | AA18: 0 | AB18: 0 | AC18: 6155.28 | AD18: 73863.3 | AE18: 2.04 | AF18: 726.9 | AG18: 22 | AH18: 48.5 | AI18: 280.25 | AJ18: 55.21 | AK18: 105.39 | AL18: 129.55 | AM18: 62.5 | AN18: 20.5 | AO18: 25 | AP18: 0 | AQ18: Assistente Admininstrativo | AR18: 411010 | AS18: www.salario.com.br | AT18: 2020-08-01
A19: O | B19: ADM | C19: Assistente de bilheteria | D19: 3025 | E19: 0 | F19: 3025 | G19: D | H19: 6x1 | I19: 44h/s | J19: 0 | K19: 0 | L19: 0 | M19: 0 | N19: 0 | O19: 0 | P19: 0 | Q19: - | R19: 3025 | S19: - | T19: 759.54 | U19: 2405.61 | V19: - | W19: 0 | X19: 0 | Y19: 0 | Z19: 0 | AA19: 0 | AB19: 0 | AC19: 6190.15 | AD19: 74281.82 | AE19: 2.05 | AF19: 759.54 | AG19: 26 | AH19: 48.5 | AI19: 331.2 | AJ19: 36.9 | AK19: 105.39 | AL19: 129.55 | AM19: 62.5 | AN19: 20.5 | AO19: 25 | AP19: 0 | AQ19: Auxiliar Administrativo | AR19: 411005 | AS19: Cataratas SA | AT19: 2020-12-01
A20: O | B20: ADM | C20: Assistente de operações | D20: 3025 | E20: 0 | F20: 3025 | G20: D | H20: 5x2 | I20: 40h/s | J20: 0 | K20: 0 | L20: 0 | M20: 0 | N20: 0 | O20: 0 | P20: 0 | Q20: - | R20: 3025 | S20: - | T20: 674.99 | U20: 2405.61 | V20: - | W20: 0 | X20: 0 | Y20: 0 | Z20: 0 | AA20: 0 | AB20: 0 | AC20: 6105.6 | AD20: 73267.17 | AE20: 2.02 | AF20: 674.99 | AG20: 22 | AH20: 48.5 | AI20: 280.25 | AJ20: 3.3 | AK20: 105.39 | AL20: 129.55 | AM20: 62.5 | AN20: 20.5 | AO20: 25 | AP20: 0 | AQ20: Auxiliar Administrativo | AR20: 411005 | AS20: Cataratas SA | AT20: 2020-12-01
A21: O | B21: ADM | C21: Assistente de TI | D21: 3630 | E21: 0 | F21: 3630 | G21: D | H21: 6x1 | I21: 44h/s | J21: 0 | K21: 0 | L21: 0 | M21: 0 | N21: 0 | O21: 0 | P21: 0 | Q21: - | R21: 3630 | S21: - | T21: 723.24 | U21: 2886.73 | V21: - | W21: 0 | X21: 0 | Y21: 0 | Z21: 0 | AA21: 0 | AB21: 0 | AC21: 7239.97 | AD21: 86879.68 | AE21: 1.99 | AF21: 723.24 | AG21: 26 | AH21: 48.5 | AI21: 331.2 | AJ21: 0.6 | AK21: 105.39 | AL21: 129.55 | AM21: 62.5 | AN21: 20.5 | AO21: 25 | AP21: 0 | AQ21: Auxiliar Administrativo | AR21: 411005 | AS21: Cataratas SA | AT21: 2020-12-01
A22: O | B22: ADM | C22: Assistente contábil | D22: 3630 | E22: 0 | F22: 3630 | G22: D | H22: 5x2 | I22: 40h/s | J22: 0 | K22: 0 | L22: 0 | M22: 0 | N22: 0 | O22: 0 | P22: 0 | Q22: - | R22: 3630 | S22: - | T22: 671.69 | U22: 2886.73 | V22: - | W22: 0 | X22: 0 | Y22: 0 | Z22: 0 | AA22: 0 | AB22: 0 | AC22: 7188.42 | AD22: 86261.04 | AE22: 1.98 | AF22: 671.69 | AG22: 22 | AH22: 48.5 | AI22: 280.25 | AJ22: 0 | AK22: 105.39 | AL22: 129.55 | AM22: 62.5 | AN22: 20.5 | AO22: 25 | AP22: 0 | AQ22: Auxiliar Administrativo | AR22: 411005 | AS22: Cataratas SA | AT22: 2020-12-01
A23: O | B23: ADM | C23: Assistente executivo | D23: 4235 | E23: 0 | F23: 4235 | G23: D | H23: 5x2 | I23: 40h/s | J23: 0 | K23: 0 | L23: 0 | M23: 0 | N23: 0 | O23: 0 | P23: 0 | Q23: - | R23: 4235 | S23: - | T23: 671.69 | U23: 3367.85 | V23: - | W23: 0 | X23: 0 | Y23: 0 | Z23: 0 | AA23: 0 | AB23: 0 | AC23: 8274.54 | AD23: 99294.5 | AE23: 1.95 | AF23: 671.69 | AG23: 22 | AH23: 48.5 | AI23: 280.25 | AJ23: 0 | AK23: 105.39 | AL23: 129.55 | AM23: 62.5 | AN23: 20.5 | AO23: 25 | AP23: 0 | AQ23: Auxiliar Administrativo | AR23: 411005 | AS23: Cataratas SA | AT23: 2020-12-01
A24: O | B24: ADM | C24: Assistente financeiro | D24: 3630 | E24: 0 | F24: 3630 | G24: D | H24: 5x2 | I24: 40h/s | J24: 0 | K24: 0 | L24: 0 | M24: 0 | N24: 0 | O24: 0 | P24: 0 | Q24: - | R24: 3630 | S24: - | T24: 671.69 | U24: 2886.73 | V24: - | W24: 0 | X24: 0 | Y24: 0 | Z24: 0 | AA24: 0 | AB24: 0 | AC24: 7188.42 | AD24: 86261.04 | AE24: 1.98 | AF24: 671.69 | AG24: 22 | AH24: 48.5 | AI24: 280.25 | AJ24: 0 | AK24: 105.39 | AL24: 129.55 | AM24: 62.5 | AN24: 20.5 | AO24: 25 | AP24: 0 | AQ24: Auxiliar Administrativo | AR24: 411005 | AS24: Cataratas SA | AT24: 2020-12-01
A25: O | B25: ADM | C25: Assistente fiscal | D25: 3630 | E25: 0 | F25: 3630 | G25: D | H25: 5x2 | I25: 40h/s | J25: 0 | K25: 0 | L25: 0 | M25: 0 | N25: 0 | O25: 0 | P25: 0 | Q25: - | R25: 3630 | S25: - | T25: 671.69 | U25: 2886.73 | V25: - | W25: 0 | X25: 0 | Y25: 0 | Z25: 0 | AA25: 0 | AB25: 0 | AC25: 7188.42 | AD25: 86261.04 | AE25: 1.98 | AF25: 671.69 | AG25: 22 | AH25: 48.5 | AI25: 280.25 | AJ25: 0 | AK25: 105.39 | AL25: 129.55 | AM25: 62.5 | AN25: 20.5 | AO25: 25 | AP25: 0 | AQ25: Auxiliar Administrativo | AR25: 411005 | AS25: Cataratas SA | AT25: 2020-12-01
A26: O | B26: ADM | C26: Assistente jurídico | D26: 3630 | E26: 0 | F26: 3630 | G26: D | H26: 5x2 | I26: 40h/s | J26: 0 | K26: 0 | L26: 0 | M26: 0 | N26: 0 | O26: 0 | P26: 0 | Q26: - | R26: 3630 | S26: - | T26: 671.69 | U26: 2886.73 | V26: - | W26: 0 | X26: 0 | Y26: 0 | Z26: 0 | AA26: 0 | AB26: 0 | AC26: 7188.42 | AD26: 86261.04 | AE26: 1.98 | AF26: 671.69 | AG26: 22 | AH26: 48.5 | AI26: 280.25 | AJ26: 0 | AK26: 105.39 | AL26: 129.55 | AM26: 62.5 | AN26: 20.5 | AO26: 25 | AP26: 0 | AQ26: Auxiliar Administrativo | AR26: 411005 | AS26: Cataratas SA | AT26: 2020-12-01
A27: O | B27: ADM | C27: Assistente regulatório | D27: 3630 | E27: 0 | F27: 3630 | G27: D | H27: 5x2 | I27: 40h/s | J27: 0 | K27: 0 | L27: 0 | M27: 0 | N27: 0 | O27: 0 | P27: 0 | Q27: - | R27: 3630 | S27: - | T27: 671.69 | U27: 2886.73 | V27: - | W27: 0 | X27: 0 | Y27: 0 | Z27: 0 | AA27: 0 | AB27: 0 | AC27: 7188.42 | AD27: 86261.04 | AE27: 1.98 | AF27: 671.69 | AG27: 22 | AH27: 48.5 | AI27: 280.25 | AJ27: 0 | AK27: 105.39 | AL27: 129.55 | AM27: 62.5 | AN27: 20.5 | AO27: 25 | AP27: 0 | AQ27: Auxiliar Administrativo | AR27: 411005 | AS27: Cataratas SA | AT27: 2020-12-01
A28: O | B28: ADM | C28: Atendente online | D28: 2420 | E28: 0 | F28: 2420 | G28: D | H28: 6x1 | I28: 44h/s | J28: 0 | K28: 0 | L28: 0 | M28: 0 | N28: 0 | O28: 0 | P28: 0 | Q28: - | R28: 2420 | S28: - | T28: 795.84 | U28: 1924.49 | V28: - | W28: 0 | X28: 0 | Y28: 0 | Z28: 0 | AA28: 0 | AB28: 0 | AC28: 5140.33 | AD28: 61683.96 | AE28: 2.12 | AF28: 795.84 | AG28: 26 | AH28: 48.5 | AI28: 331.2 | AJ28: 73.2 | AK28: 105.39 | AL28: 129.55 | AM28: 62.5 | AN28: 20.5 | AO28: 25 | AP28: 0 | AQ28: Auxiliar Administrativo | AR28: 411005 | AS28: Cataratas SA | AT28: 2020-12-01
A29: O | B29: ADM | C29: Auxiliar administrativo | D29: 1866.73 | E29: 0.15 | F29: 2146.74 | G29: D | H29: 5x2 | I29: 40h/s | J29: 0 | K29: 0 | L29: 0 | M29: 0 | N29: 0 | O29: 0 | P29: 0 | Q29: - | R29: 2146.74 | S29: - | T29: 744.48 | U29: 1707.18 | V29: - | W29: 0 | X29: 0 | Y29: 0 | Z29: 0 | AA29: 0 | AB29: 0 | AC29: 4598.4 | AD29: 55180.78 | AE29: 2.14 | AF29: 744.48 | AG29: 22 | AH29: 48.5 | AI29: 280.25 | AJ29: 72.8 | AK29: 105.39 | AL29: 129.55 | AM29: 62.5 | AN29: 20.5 | AO29: 25 | AP29: 0 | AQ29: Auxiliar Administrativo | AR29: 411005 | AS29: www.salario.com.br | AT29: 2020-08-01
A30: O | B30: ADM | C30: Auxiliar de almoxarifado | D30: 1907.31 | E30: 0 | F30: 1907.31 | G30: D | H30: 5x2 | I30: 40h/s | J30: 0 | K30: 0 | L30: 0 | M30: 0 | N30: 0 | O30: 0 | P30: 0 | Q30: - | R30: 1907.31 | S30: - | T30: 742.05 | U30: 1516.78 | V30: - | W30: 0 | X30: 0 | Y30: 0 | Z30: 0 | AA30: 0 | AB30: 0 | AC30: 4166.14 | AD30: 49993.63 | AE30: 2.18 | AF30: 742.05 | AG30: 22 | AH30: 48.5 | AI30: 280.25 | AJ30: 70.36 | AK30: 105.39 | AL30: 129.55 | AM30: 62.5 | AN30: 20.5 | AO30: 25 | AP30: 0 | AQ30: Auxiliar de Almoxarifado | AR30: 414105 | AS30: www.salario.com.br | AT30: 2020-09-01
A31: O | B31: ADM | C31: Auxiliar de compras | D31: 1866.73 | E31: 0 | F31: 1866.73 | G31: D | H31: 5x2 | I31: 40h/s | J31: 0 | K31: 0 | L31: 0 | M31: 0 | N31: 0 | O31: 0 | P31: 0 | Q31: - | R31: 1866.73 | S31: - | T31: 744.48 | U31: 1484.5 | V31: - | W31: 0 | X31: 0 | Y31: 0 | Z31: 0 | AA31: 0 | AB31: 0 | AC31: 4095.71 | AD31: 49148.56 | AE31: 2.19 | AF31: 744.48 | AG31: 22 | AH31: 48.5 | AI31: 280.25 | AJ31: 72.8 | AK31: 105.39 | AL31: 129.55 | AM31: 62.5 | AN31: 20.5 | AO31: 25 | AP31: 0 | AQ31: Auxiliar de compras | AR31: 411005 | AS31: www.salario.com.br | AT31: 2020-09-01
A32: O | B32: ADM | C32: Auxiliar de enfermagem | D32: 1722.52 | E32: 0 | F32: 1722.52 | G32: D | H32: 5x2 | I32: 40h/s | J32: 0 | K32: 0.18 | L32: 0 | M32: 0 | N32: 0 | O32: 0 | P32: 0 | Q32: 313.5 | R32: 2036.02 | S32: - | T32: 753.14 | U32: 1619.13 | V32: - | W32: 0 | X32: 0 | Y32: 0 | Z32: 0 | AA32: 0 | AB32: 0 | AC32: 4408.29 | AD32: 52899.44 | AE32: 2.56 | AF32: 753.14 | AG32: 22 | AH32: 48.5 | AI32: 280.25 | AJ32: 81.45 | AK32: 105.39 | AL32: 129.55 | AM32: 62.5 | AN32: 20.5 | AO32: 25 | AP32: 0 | AQ32: Auxiliar de Enfermagem | AR32: 322230 | AS32: www.salario.com.br | AT32: 2020-09-01
A33: O | B33: ADM | C33: Auxiliar de escritório | D33: 1866.73 | E33: 0.6 | F33: 2986.76 | G33: D | H33: 5x2 | I33: 40h/s | J33: 0 | K33: 0 | L33: 0 | M33: 0 | N33: 0 | O33: 0 | P33: 0 | Q33: - | R33: 2986.76 | S33: - | T33: 744.48 | U33: 2375.2 | V33: - | W33: 0 | X33: 0 | Y33: 0 | Z33: 0 | AA33: 0 | AB33: 0 | AC33: 6106.45 | AD33: 73277.42 | AE33: 2.04 | AF33: 744.48 | AG33: 22 | AH33: 48.5 | AI33: 280.25 | AJ33: 72.8 | AK33: 105.39 | AL33: 129.55 | AM33: 62.5 | AN33: 20.5 | AO33: 25 | AP33: 0 | AQ33: Auxiliar Administrativo | AR33: 411005 | AS33: www.salario.com.br | AT33: 2020-09-01
A34: O | B34: ADM | C34: Auxiliar de marketing | D34: 3025 | E34: 0.15 | F34: 3478.75 | G34: D | H34: 5x2 | I34: 40h/s | J34: 0 | K34: 0 | L34: 0 | M34: 0 | N34: 0 | O34: 0 | P34: 0 | Q34: - | R34: 3478.75 | S34: - | T34: 674.99 | U34: 2766.45 | V34: - | W34: 0 | X34: 0 | Y34: 0 | Z34: 0 | AA34: 0 | AB34: 0 | AC34: 6920.19 | AD34: 83042.27 | AE34: 1.99 | AF34: 674.99 | AG34: 22 | AH34: 48.5 | AI34: 280.25 | AJ34: 3.3 | AK34: 105.39 | AL34: 129.55 | AM34: 62.5 | AN34: 20.5 | AO34: 25 | AP34: 0 | AQ34: Auxiliar Administrativo | AR34: 411005 | AS34: Cataratas SA | AT34: 2020-12-01
A35: O | B35: ADM | C35: Auxiliar de RH | D35: 3630 | E35: 0.15 | F35: 4174.5 | G35: D | H35: 5x2 | I35: 40h/s | J35: 0 | K35: 0 | L35: 0 | M35: 0 | N35: 0 | O35: 0 | P35: 0 | Q35: - | R35: 4174.5 | S35: - | T35: 671.69 | U35: 3319.74 | V35: - | W35: 0 | X35: 0 | Y35: 0 | Z35: 0 | AA35: 0 | AB35: 0 | AC35: 8165.93 | AD35: 97991.16 | AE35: 1.96 | AF35: 671.69 | AG35: 22 | AH35: 48.5 | AI35: 280.25 | AJ35: 0 | AK35: 105.39 | AL35: 129.55 | AM35: 62.5 | AN35: 20.5 | AO35: 25 | AP35: 0 | AQ35: Auxiliar Administrativo | AR35: 411005 | AS35: Cataratas SA | AT35: 2020-12-01
A36: O | B36: ADM | C36: Auxiliar de TI | D36: 2420 | E36: 0 | F36: 2420 | G36: D | H36: 6x1 | I36: 44h/s | J36: 0 | K36: 0 | L36: 0 | M36: 0 | N36: 0 | O36: 0 | P36: 0 | Q36: - | R36: 2420 | S36: - | T36: 795.84 | U36: 1924.49 | V36: - | W36: 0 | X36: 0 | Y36: 0 | Z36: 0 | AA36: 0 | AB36: 0 | AC36: 5140.33 | AD36: 61683.96 | AE36: 2.12 | AF36: 795.84 | AG36: 26 | AH36: 48.5 | AI36: 331.2 | AJ36: 73.2 | AK36: 105.39 | AL36: 129.55 | AM36: 62.5 | AN36: 20.5 | AO36: 25 | AP36: 0 | AQ36: Auxiliar Administrativo | AR36: 411005 | AS36: Cataratas SA | AT36: 2020-12-01
A37: O | B37: ADM | C37: Auxiliar de vendas | D37: 2420 | E37: 0 | F37: 2420 | G37: D | H37: 6x1 | I37: 44h/s | J37: 0 | K37: 0 | L37: 0 | M37: 0 | N37: 0 | O37: 0 | P37: 0 | Q37: - | R37: 2420 | S37: - | T37: 795.84 | U37: 1924.49 | V37: - | W37: 0 | X37: 0 | Y37: 0 | Z37: 0 | AA37: 0 | AB37: 0 | AC37: 5140.33 | AD37: 61683.96 | AE37: 2.12 | AF37: 795.84 | AG37: 26 | AH37: 48.5 | AI37: 331.2 | AJ37: 73.2 | AK37: 105.39 | AL37: 129.55 | AM37: 62.5 | AN37: 20.5 | AO37: 25 | AP37: 0 | AQ37: Auxiliar Administrativo | AR37: 411005 | AS37: Cataratas SA | AT37: 2020-12-01
A38: O | B38: ADM | C38: Bilheteiro | D38: 1792.81 | E38: 0.25 | F38: 2241.01 | G38: D | H38: 6x1 | I38: 44h/s | J38: 0 | K38: 0 | L38: 0 | M38: 0 | N38: 0 | O38: 0 | P38: 0 | Q38: - | R38: 2241.01 | S38: - | T38: 833.47 | U38: 1782.15 | V38: - | W38: 0 | X38: 0 | Y38: 0 | Z38: 0 | AA38: 0 | AB38: 0 | AC38: 4856.63 | AD38: 58279.58 | AE38: 2.17 | AF38: 833.47 | AG38: 26 | AH38: 48.5 | AI38: 331.2 | AJ38: 110.83 | AK38: 105.39 | AL38: 129.55 | AM38: 62.5 | AN38: 20.5 | AO38: 25 | AP38: 0 | AQ38: Bilheteiro no serviço de diversões | AR38: 421115 | AS38: SEAC-PR | AT38: 2021-01-01
A39: O | B39: ADM | C39: Bilheteiro - SDF | D39: 1059.37 | E39: 0.25 | F39: 1324.21 | G39: D | H39: SDF | I39: até 26h/s | J39: 0 | K39: 0 | L39: 0 | M39: 0 | N39: 0 | O39: 0 | P39: 0 | Q39: - | R39: 1324.21 | S39: - | T39: 539.26 | U39: 1053.07 | V39: - | W39: 0 | X39: 0 | Y39: 0 | Z39: 0 | AA39: 0 | AB39: 0 | AC39: 2916.55 | AD39: 34998.58 | AE39: 2.2 | AF39: 539.26 | AG39: 10 | AH39: 48.5 | AI39: 127.38 | AJ39: 20.44 | AK39: 105.39 | AL39: 129.55 | AM39: 62.5 | AN39: 20.5 | AO39: 25 | AP39: 0 | AQ39: Bilheteiro no serviço de diversões | AR39: 421115 | AS39: SEAC-PR | AT39: 2021-01-01
A40: O | B40: ADM | C40: Biólogo | D40: 5036.02 | E40: 0.2 | F40: 6043.22 | G40: D | H40: 5x2 | I40: 40h/s | J40: 0 | K40: 0 | L40: 0 | M40: 0 | N40: 0 | O40: 0 | P40: 0 | Q40: - | R40: 6043.22 | S40: - | T40: 671.69 | U40: 4805.83 | V40: - | W40: 0 | X40: 0 | Y40: 0 | Z40: 0 | AA40: 0 | AB40: 0 | AC40: 11520.74 | AD40: 138248.92 | AE40: 1.91 | AF40: 671.69 | AG40: 22 | AH40: 48.5 | AI40: 280.25 | AJ40: 0 | AK40: 105.39 | AL40: 129.55 | AM40: 62.5 | AN40: 20.5 | AO40: 25 | AP40: 0 | AQ40: Biólogo | AR40: 221105 | AS40: www.salario.com.br | AT40: 2020-09-01
A41: O | B41: ADM | C41: Caixa atendente | D41: 1694 | E41: 0 | F41: 1694 | G41: D | H41: 6x1 | I41: 44h/s | J41: 0 | K41: 0 | L41: 0 | M41: 0 | N41: 0 | O41: 0 | P41: 0 | Q41: - | R41: 1694 | S41: - | T41: 839.4 | U41: 1347.14 | V41: - | W41: 0 | X41: 0 | Y41: 0 | Z41: 0 | AA41: 0 | AB41: 0 | AC41: 3880.54 | AD41: 46566.52 | AE41: 2.29 | AF41: 839.4 | AG41: 26 | AH41: 48.5 | AI41: 331.2 | AJ41: 116.76 | AK41: 105.39 | AL41: 129.55 | AM41: 62.5 | AN41: 20.5 | AO41: 25 | AP41: 0 | AQ41: Gerente de Compras | AR41: 142405 | AS41: Cataratas SA | AT41: 2019-12-01
A42: O | B42: ADM | C42: Comprador | D42: 4235 | E42: 0 | F42: 4235 | G42: D | H42: 5x2 | I42: 40h/s | J42: 0 | K42: 0 | L42: 0 | M42: 0 | N42: 0 | O42: 0 | P42: 0 | Q42: - | R42: 4235 | S42: - | T42: 671.69 | U42: 3367.85 | V42: - | W42: 0 | X42: 0 | Y42: 0 | Z42: 0 | AA42: 0 | AB42: 0 | AC42: 8274.54 | AD42: 99294.5 | AE42: 1.95 | AF42: 671.69 | AG42: 22 | AH42: 48.5 | AI42: 280.25 | AJ42: 0 | AK42: 105.39 | AL42: 129.55 | AM42: 62.5 | AN42: 20.5 | AO42: 25 | AP42: 0 | AQ42: Gerente de Compras | AR42: 142405 | AS42: Cataratas SA | AT42: 2019-12-01
A43: O | B43: ADM | C43: Controlador de acesso | D43: 1839.96 | E43: 0.15 | F43: 2115.96 | G43: D | H43: 6x1 | I43: 44h/s | J43: 0 | K43: 0 | L43: 0 | M43: 0 | N43: 0 | O43: 0 | P43: 0 | Q43: - | R43: 2115.96 | S43: - | T43: 830.64 | U43: 1682.7 | V43: - | W43: 0 | X43: 0 | Y43: 0 | Z43: 0 | AA43: 0 | AB43: 0 | AC43: 4629.3 | AD43: 55551.6 | AE43: 2.19 | AF43: 830.64 | AG43: 26 | AH43: 48.5 | AI43: 331.2 | AJ43: 108 | AK43: 105.39 | AL43: 129.55 | AM43: 62.5 | AN43: 20.5 | AO43: 25 | AP43: 0 | AQ43: Controlador de acesso | AR43: 517410 | AS43: www.salario.com.br | AT43: 2020-09-01
A44: O | B44: ADM | C44: Controlador de acesso - SDF | D44: 1087.23 | E44: 0.15 | F44: 1250.32 | G44: D | H44: SDF | I44: até 26h/s | J44: 0 | K44: 0 | L44: 0 | M44: 0 | N44: 0 | O44: 0 | P44: 0 | Q44: - | R44: 1250.32 | S44: - | T44: 537.59 | U44: 994.31 | V44: - | W44: 0 | X44: 0 | Y44: 0 | Z44: 0 | AA44: 0 | AB44: 0 | AC44: 2782.22 | AD44: 33386.62 | AE44: 2.23 | AF44: 537.59 | AG44: 10 | AH44: 48.5 | AI44: 127.38 | AJ44: 18.77 | AK44: 105.39 | AL44: 129.55 | AM44: 62.5 | AN44: 20.5 | AO44: 25 | AP44: 0 | AQ44: Controlador de acesso | AR44: 517410 | AS44: www.salario.com.br | AT44: 2020-09-01
A45: O | B45: ADM | C45: Controlador de tráfego | D45: 2420 | E45: 0 | F45: 2420 | G45: D | H45: 6x1 | I45: 44h/s | J45: 0 | K45: 0 | L45: 0 | M45: 0 | N45: 0 | O45: 0 | P45: 0 | Q45: - | R45: 2420 | S45: - | T45: 795.84 | U45: 1924.49 | V45: - | W45: 0 | X45: 0 | Y45: 0 | Z45: 0 | AA45: 0 | AB45: 0 | AC45: 5140.33 | AD45: 61683.96 | AE45: 2.12 | AF45: 795.84 | AG45: 26 | AH45: 48.5 | AI45: 331.2 | AJ45: 73.2 | AK45: 105.39 | AL45: 129.55 | AM45: 62.5 | AN45: 20.5 | AO45: 25 | AP45: 0 | AQ45: NA | AR45: NA | AS45: Cataratas SA | AT45: 2019-12-01
A46: O | B46: ADM | C46: Controller | D46: 14520 | E46: 0 | F46: 14520 | G46: D | H46: 5x2 | I46: 40h/s | J46: 0 | K46: 0 | L46: 0 | M46: 0 | N46: 0 | O46: 0 | P46: 0 | Q46: - | R46: 14520 | S46: - | T46: 671.69 | U46: 11546.93 | V46: - | W46: 0 | X46: 0 | Y46: 0 | Z46: 0 | AA46: 0 | AB46: 0 | AC46: 26738.62 | AD46: 320863.39 | AE46: 1.84 | AF46: 671.69 | AG46: 22 | AH46: 48.5 | AI46: 280.25 | AJ46: 0 | AK46: 105.39 | AL46: 129.55 | AM46: 62.5 | AN46: 20.5 | AO46: 25 | AP46: 0 | AQ46: NA | AR46: NA | AS46: Cataratas SA | AT46: 2019-12-01
A47: O | B47: ADM | C47: Coordenador de RH | D47: 7064.67 | E47: 0.37 | F47: 9678.6 | G47: D | H47: 5x2 | I47: 40h/s | J47: 0 | K47: 0 | L47: 0 | M47: 0 | N47: 0 | O47: 0 | P47: 0 | Q47: - | R47: 9678.6 | S47: - | T47: 671.69 | U47: 7696.84 | V47: - | W47: 0 | X47: 0 | Y47: 0 | Z47: 0 | AA47: 0 | AB47: 0 | AC47: 18047.12 | AD47: 216565.47 | AE47: 1.86 | AF47: 671.69 | AG47: 22 | AH47: 48.5 | AI47: 280.25 | AJ47: 0 | AK47: 105.39 | AL47: 129.55 | AM47: 62.5 | AN47: 20.5 | AO47: 25 | AP47: 0 | AQ47: Gerente de Recursos Humanos | AR47: 142205 | AS47: www.salario.com.br | AT47: 2019-12-01
A48: O | B48: ADM | C48: Coordenador de Eventos | D48: 5493.56 | E48: 0 | F48: 5493.56 | G48: D | H48: 6x1 | I48: 44h/s | J48: 0 | K48: 0.08 | L48: 0 | M48: 0 | N48: 0 | O48: 0 | P48: 0 | Q48: 418 | R48: 5911.56 | S48: - | T48: 722.64 | U48: 4701.12 | V48: - | W48: 0 | X48: 0 | Y48: 0 | Z48: 0 | AA48: 0 | AB48: 0 | AC48: 11335.32 | AD48: 136023.88 | AE48: 2.06 | AF48: 722.64 | AG48: 26 | AH48: 48.5 | AI48: 331.2 | AJ48: 0 | AK48: 105.39 | AL48: 129.55 | AM48: 62.5 | AN48: 20.5 | AO48: 25 | AP48: 0 | AQ48: Coordenador de eventos | AR48: 354820 | AS48: www.salario.com.br | AT48: 2020-08-01
A49: O | B49: ADM | C49: Diretor SPE | D49: 48400 | E49: 0 | F49: 48400 | G49: D | H49: 5x2 | I49: 40h/s | J49: 0 | K49: 0 | L49: 0 | M49: 0 | N49: 0 | O49: 0 | P49: 0 | Q49: - | R49: 48400 | S49: - | T49: 671.69 | U49: 38489.76 | V49: - | W49: 0 | X49: 0 | Y49: 0 | Z49: 0 | AA49: 0 | AB49: 0 | AC49: 87561.45 | AD49: 1050737.39 | AE49: 1.81 | AF49: 671.69 | AG49: 22 | AH49: 48.5 | AI49: 280.25 | AJ49: 0 | AK49: 105.39 | AL49: 129.55 | AM49: 62.5 | AN49: 20.5 | AO49: 25 | AP49: 0 | AQ49: NA | AR49: NA | AS49: Cataratas SA | AT49: 2019-12-01
A50: O | B50: ADM | C50: Encarregado contábil | D50: 6050 | E50: 0 | F50: 6050 | G50: D | H50: 5x2 | I50: 40h/s | J50: 0 | K50: 0 | L50: 0 | M50: 0 | N50: 0 | O50: 0 | P50: 0 | Q50: - | R50: 6050 | S50: - | T50: 671.69 | U50: 4811.22 | V50: - | W50: 0 | X50: 0 | Y50: 0 | Z50: 0 | AA50: 0 | AB50: 0 | AC50: 11532.91 | AD50: 138394.9 | AE50: 1.91 | AF50: 671.69 | AG50: 22 | AH50: 48.5 | AI50: 280.25 | AJ50: 0 | AK50: 105.39 | AL50: 129.55 | AM50: 62.5 | AN50: 20.5 | AO50: 25 | AP50: 0 | AQ50: Gerente Comercial | AR50: 142305 | AS50: Cataratas SA | AT50: 2019-12-01
A51: O | B51: ADM | C51: Encarregado de almoxarifado | D51: 4235 | E51: 0 | F51: 4235 | G51: D | H51: 5x2 | I51: 40h/s | J51: 0 | K51: 0 | L51: 0 | M51: 0 | N51: 0 | O51: 0 | P51: 0 | Q51: - | R51: 4235 | S51: - | T51: 671.69 | U51: 3367.85 | V51: - | W51: 0 | X51: 0 | Y51: 0 | Z51: 0 | AA51: 0 | AB51: 0 | AC51: 8274.54 | AD51: 99294.5 | AE51: 1.95 | AF51: 671.69 | AG51: 22 | AH51: 48.5 | AI51: 280.25 | AJ51: 0 | AK51: 105.39 | AL51: 129.55 | AM51: 62.5 | AN51: 20.5 | AO51: 25 | AP51: 0 | AQ51: Gerente Comercial | AR51: 142305 | AS51: Cataratas SA | AT51: 2019-12-01
A52: O | B52: ADM | C52: Encarregado de controladoria | D52: 6050 | E52: 0 | F52: 6050 | G52: D | H52: 5x2 | I52: 40h/s | J52: 0 | K52: 0 | L52: 0 | M52: 0 | N52: 0 | O52: 0 | P52: 0 | Q52: - | R52: 6050 | S52: - | T52: 671.69 | U52: 4811.22 | V52: - | W52: 0 | X52: 0 | Y52: 0 | Z52: 0 | AA52: 0 | AB52: 0 | AC52: 11532.91 | AD52: 138394.9 | AE52: 1.91 | AF52: 671.69 | AG52: 22 | AH52: 48.5 | AI52: 280.25 | AJ52: 0 | AK52: 105.39 | AL52: 129.55 | AM52: 62.5 | AN52: 20.5 | AO52: 25 | AP52: 0 | AQ52: Gerente Comercial | AR52: 142305 | AS52: Cataratas SA | AT52: 2019-12-01
A53: O | B53: ADM | C53: Encarregado de RH | D53: 9680 | E53: 0 | F53: 9680 | G53: D | H53: 5x2 | I53: 40h/s | J53: 0 | K53: 0 | L53: 0 | M53: 0 | N53: 0 | O53: 0 | P53: 0 | Q53: - | R53: 9680 | S53: - | T53: 671.69 | U53: 7697.95 | V53: - | W53: 0 | X53: 0 | Y53: 0 | Z53: 0 | AA53: 0 | AB53: 0 | AC53: 18049.64 | AD53: 216595.68 | AE53: 1.86 | AF53: 671.69 | AG53: 22 | AH53: 48.5 | AI53: 280.25 | AJ53: 0 | AK53: 105.39 | AL53: 129.55 | AM53: 62.5 | AN53: 20.5 | AO53: 25 | AP53: 0 | AQ53: Gerente Comercial | AR53: 142305 | AS53: Cataratas SA | AT53: 2019-12-01
A54: O | B54: ADM | C54: Encarregado financeiro | D54: 6050 | E54: 0 | F54: 6050 | G54: D | H54: 5x2 | I54: 40h/s | J54: 0 | K54: 0 | L54: 0 | M54: 0 | N54: 0 | O54: 0 | P54: 0 | Q54: - | R54: 6050 | S54: - | T54: 671.69 | U54: 4811.22 | V54: - | W54: 0 | X54: 0 | Y54: 0 | Z54: 0 | AA54: 0 | AB54: 0 | AC54: 11532.91 | AD54: 138394.9 | AE54: 1.91 | AF54: 671.69 | AG54: 22 | AH54: 48.5 | AI54: 280.25 | AJ54: 0 | AK54: 105.39 | AL54: 129.55 | AM54: 62.5 | AN54: 20.5 | AO54: 25 | AP54: 0 | AQ54: Gerente Comercial | AR54: 142305 | AS54: Cataratas SA | AT54: 2019-12-01
A55: O | B55: ADM | C55: Encarregado fiscal | D55: 6050 | E55: 0 | F55: 6050 | G55: D | H55: 5x2 | I55: 40h/s | J55: 0 | K55: 0 | L55: 0 | M55: 0 | N55: 0 | O55: 0 | P55: 0 | Q55: - | R55: 6050 | S55: - | T55: 671.69 | U55: 4811.22 | V55: - | W55: 0 | X55: 0 | Y55: 0 | Z55: 0 | AA55: 0 | AB55: 0 | AC55: 11532.91 | AD55: 138394.9 | AE55: 1.91 | AF55: 671.69 | AG55: 22 | AH55: 48.5 | AI55: 280.25 | AJ55: 0 | AK55: 105.39 | AL55: 129.55 | AM55: 62.5 | AN55: 20.5 | AO55: 25 | AP55: 0 | AQ55: Gerente Comercial | AR55: 142305 | AS55: Cataratas SA | AT55: 2019-12-01
A56: O | B56: ADM | C56: Encarregado regulatório | D56: 6050 | E56: 0 | F56: 6050 | G56: D | H56: 5x2 | I56: 40h/s | J56: 0 | K56: 0 | L56: 0 | M56: 0 | N56: 0 | O56: 0 | P56: 0 | Q56: - | R56: 6050 | S56: - | T56: 671.69 | U56: 4811.22 | V56: - | W56: 0 | X56: 0 | Y56: 0 | Z56: 0 | AA56: 0 | AB56: 0 | AC56: 11532.91 | AD56: 138394.9 | AE56: 1.91 | AF56: 671.69 | AG56: 22 | AH56: 48.5 | AI56: 280.25 | AJ56: 0 | AK56: 105.39 | AL56: 129.55 | AM56: 62.5 | AN56: 20.5 | AO56: 25 | AP56: 0 | AQ56: Gerente Comercial | AR56: 142305 | AS56: Cataratas SA | AT56: 2019-12-01
A57: O | B57: ADM | C57: Engenheiro ambiental | D57: 9680 | E57: 0 | F57: 9680 | G57: D | H57: 6x1 | I57: 44h/s | J57: 0 | K57: 0 | L57: 0 | M57: 0 | N57: 0 | O57: 0 | P57: 0 | Q57: - | R57: 9680 | S57: - | T57: 722.64 | U57: 7697.95 | V57: - | W57: 0 | X57: 0 | Y57: 0 | Z57: 0 | AA57: 0 | AB57: 0 | AC57: 18100.59 | AD57: 217207.13 | AE57: 1.87 | AF57: 722.64 | AG57: 26 | AH57: 48.5 | AI57: 331.2 | AJ57: 0 | AK57: 105.39 | AL57: 129.55 | AM57: 62.5 | AN57: 20.5 | AO57: 25 | AP57: 0 | AQ57: Gerente Comercial | AR57: 142305 | AS57: Cataratas SA | AT57: 2019-12-01
A58: O | B58: ADM | C58: Enfermeiro | D58: 3885.94 | E58: 0 | F58: 3885.94 | G58: D | H58: 5x2 | I58: 40h/s | J58: 0 | K58: 0.08 | L58: 0 | M58: 0 | N58: 0 | O58: 0 | P58: 0 | Q58: 313.5 | R58: 4199.44 | S58: - | T58: 671.69 | U58: 3339.57 | V58: - | W58: 0 | X58: 0 | Y58: 0 | Z58: 0 | AA58: 0 | AB58: 0 | AC58: 8210.7 | AD58: 98528.42 | AE58: 2.11 | AF58: 671.69 | AG58: 22 | AH58: 48.5 | AI58: 280.25 | AJ58: 0 | AK58: 105.39 | AL58: 129.55 | AM58: 62.5 | AN58: 20.5 | AO58: 25 | AP58: 0 | AQ58: Enfermeiro | AR58: 223505 | AS58: www.salario.com.br | AT58: 2020-09-01
A59: O | B59: ADM | C59: Enfermeiro-chefe | D59: 3885.94 | E59: 0 | F59: 3885.94 | G59: D | H59: 5x2 | I59: 40h/s | J59: 0 | K59: 0.08 | L59: 0.2 | M59: 0 | N59: 0 | O59: 0 | P59: 0 | Q59: 1090.69 | R59: 4976.63 | S59: - | T59: 671.69 | U59: 3957.63 | V59: - | W59: 0 | X59: 0 | Y59: 0 | Z59: 0 | AA59: 0 | AB59: 0 | AC59: 9605.94 | AD59: 115271.31 | AE59: 2.47 | AF59: 671.69 | AG59: 22 | AH59: 48.5 | AI59: 280.25 | AJ59: 0 | AK59: 105.39 | AL59: 129.55 | AM59: 62.5 | AN59: 20.5 | AO59: 25 | AP59: 0 | AQ59: Enfermeiro | AR59: 223505 | AS59: www.salario.com.br | AT59: 2020-09-01
A60: O | B60: ADM | C60: Estagiário (n. sup.) | D60: 1210 | E60: 0.25 | F60: 1512.5 | G60: D | H60: EST | J60: 0 | K60: 0 | L60: 0 | M60: 0 | N60: 0 | O60: 0 | P60: 0 | Q60: - | R60: 1512.5 | S60: - | T60: 738.39 | U60: - | V60: - | W60: 0 | X60: 0 | Y60: 0 | Z60: 0 | AA60: 0 | AB60: 0 | AC60: 2250.89 | AD60: 27010.65 | AE60: 1.49 | AF60: 738.39 | AG60: 22 | AH60: 48.5 | AI60: 280.25 | AJ60: 112.2 | AK60: 105.39 | AL60: 129.55 | AM60: 62.5 | AN60: 0 | AO60: 0 | AP60: 0 | AQ60: Estagiário | AS60: Cataratas SA | AT60: 2019-12-01
A61: O | B61: ADM | C61: Gerente administrativo-financeiro | D61: 21780 | E61: 0 | F61: 21780 | G61: D | H61: 5x2 | I61: 40h/s | J61: 0 | K61: 0 | L61: 0 | M61: 0 | N61: 0 | O61: 0 | P61: 0 | Q61: - | R61: 21780 | S61: - | T61: 671.69 | U61: 17320.39 | V61: - | W61: 0 | X61: 0 | Y61: 0 | Z61: 0 | AA61: 0 | AB61: 0 | AC61: 39772.08 | AD61: 477264.96 | AE61: 1.83 | AF61: 671.69 | AG61: 22 | AH61: 48.5 | AI61: 280.25 | AJ61: 0 | AK61: 105.39 | AL61: 129.55 | AM61: 62.5 | AN61: 20.5 | AO61: 25 | AP61: 0 | AQ61: Gerente Comercial | AR61: 142305 | AS61: Cataratas SA | AT61: 2019-12-01
A62: O | B62: ADM | C62: Gerente comercial | D62: 3076.7 | E62: 1 | F62: 6153.41 | G62: D | H62: 5x2 | I62: 40h/s | J62: 0 | K62: 0 | L62: 0 | M62: 0 | N62: 0 | O62: 0 | P62: 0 | Q62: - | R62: 6153.41 | S62: - | T62: 671.89 | U62: 4893.45 | V62: - | W62: 0 | X62: 0 | Y62: 0 | Z62: 0 | AA62: 0 | AB62: 0 | AC62: 11718.75 | AD62: 140624.95 | AE62: 1.9 | AF62: 671.89 | AG62: 22 | AH62: 48.5 | AI62: 280.25 | AJ62: 0.2 | AK62: 105.39 | AL62: 129.55 | AM62: 62.5 | AN62: 20.5 | AO62: 25 | AP62: 0 | AQ62: Gerente Comercial | AR62: 142305 | AS62: www.salario.com.br | AT62: 2020-08-01
A63: O | B63: ADM | C63: Gerente de operações | D63: 14520 | E63: 0 | F63: 14520 | G63: D | H63: 6x1 | I63: 44h/s | J63: 0 | K63: 0 | L63: 0 | M63: 0 | N63: 0 | O63: 0 | P63: 0 | Q63: - | R63: 14520 | S63: - | T63: 722.64 | U63: 11546.93 | V63: - | W63: 0 | X63: 0 | Y63: 0 | Z63: 0 | AA63: 0 | AB63: 0 | AC63: 26789.57 | AD63: 321474.84 | AE63: 1.85 | AF63: 722.64 | AG63: 26 | AH63: 48.5 | AI63: 331.2 | AJ63: 0 | AK63: 105.39 | AL63: 129.55 | AM63: 62.5 | AN63: 20.5 | AO63: 25 | AP63: 0 | AQ63: Gerente Comercial | AR63: 142305 | AS63: Cataratas SA | AT63: 2019-12-01
A64: O | B64: ADM | C64: Gerente de marketing e vendas | D64: 21780 | E64: 0 | F64: 21780 | G64: D | H64: 5x2 | I64: 40h/s | J64: 0 | K64: 0 | L64: 0 | M64: 0 | N64: 0 | O64: 0 | P64: 0 | Q64: - | R64: 21780 | S64: - | T64: 671.69 | U64: 17320.39 | V64: - | W64: 0 | X64: 0 | Y64: 0 | Z64: 0 | AA64: 0 | AB64: 0 | AC64: 39772.08 | AD64: 477264.96 | AE64: 1.83 | AF64: 671.69 | AG64: 22 | AH64: 48.5 | AI64: 280.25 | AJ64: 0 | AK64: 105.39 | AL64: 129.55 | AM64: 62.5 | AN64: 20.5 | AO64: 25 | AP64: 0 | AQ64: Gerente Comercial | AR64: 142305 | AS64: Cataratas SA | AT64: 2019-12-01
A65: T | B65: ADM | C65: Guarda-vidas | D65: 1904.59 | E65: 0 | F65: 1904.59 | G65: D | H65: 5x2 | I65: 40h/s | J65: 0 | K65: 0 | L65: 0 | M65: 0 | N65: 0 | O65: 0 | P65: 0 | Q65: - | R65: 1904.59 | S65: 1439.1 | T65: 612.67 | U65: 1514.61 | V65: 604.78 | W65: 0.05 | X65: 0.1 | Y65: 0.076 | Z65: 0.01 | AA65: 0.0165 | AB65: 0.05 | AC65: 5470.97 | AD65: 65651.62 | AE65: 2.87 | AF65: 612.67 | AG65: 22 | AH65: 48.5 | AI65: 280.25 | AJ65: 70.52 | AK65: 105.39 | AL65: 0 | AM65: 62.5 | AN65: 20.5 | AO65: 25 | AP65: 0 | AQ65: Salva-vidas | AR65: 517115 | AS65: www.salario.com.br | AT65: 2020-09-01
A66: T | B66: ADM | C66: Guarda-vidas - SDF | D66: 1352.26 | E66: 0 | F66: 1352.26 | G66: D | H66: SDF | I66: até 26h/s | J66: 0 | K66: 0 | L66: 0 | M66: 0 | N66: 0 | O66: 0 | P66: 0 | Q66: - | R66: 1352.26 | S66: 1006.47 | T66: 392.15 | U66: 1075.37 | V66: 422.97 | W66: 0.05 | X66: 0.1 | Y66: 0.076 | Z66: 0.01 | AA66: 0.0165 | AB66: 0.05 | AC66: 3826.25 | AD66: 45914.94 | AE66: 2.83 | AF66: 392.15 | AG66: 10 | AH66: 48.5 | AI66: 127.38 | AJ66: 2.86 | AK66: 105.39 | AL66: 0 | AM66: 62.5 | AN66: 20.5 | AO66: 25 | AP66: 0 | AQ66: Salva-vidas | AR66: 517115 | AS66: www.salario.com.br | AT66: 2020-09-01
A67: O | B67: ADM | C67: Jovem aprendiz | D67: 748.99 | E67: 0 | F67: 748.99 | G67: D | H67: 5x2 | I67: 40h/s | J67: 0 | K67: 0 | L67: 0 | M67: 0 | N67: 0 | O67: 0 | P67: 0 | Q67: - | R67: 748.99 | S67: - | T67: 811.55 | U67: 595.63 | V67: - | W67: 0 | X67: 0 | Y67: 0 | Z67: 0 | AA67: 0 | AB67: 0 | AC67: 2156.17 | AD67: 25874.01 | AE67: 2.88 | AF67: 811.55 | AG67: 22 | AH67: 48.5 | AI67: 280.25 | AJ67: 139.86 | AK67: 105.39 | AL67: 129.55 | AM67: 62.5 | AN67: 20.5 | AO67: 25 | AP67: 0 | AQ67: Jardineiro | AR67: 622010 | AS67: www.glassdor.com | AT67: 2020-11-01
A68: T | B68: ADM | C68: Monitor ambiental | D68: 1792.81 | E68: 0.25 | F68: 2241.01 | G68: D | H68: 6x1 | I68: 44h/s | J68: 0 | K68: 0 | L68: 0 | M68: 0 | N68: 0 | O68: 0 | P68: 0 | Q68: - | R68: 2241.01 | S68: 1687.25 | T68: 703.93 | U68: 1782.15 | V68: 709.06 | W68: 0.05 | X68: 0.1 | Y68: 0.076 | Z68: 0.01 | AA68: 0.0165 | AB68: 0.05 | AC68: 6414.34 | AD68: 76972.02 | AE68: 2.86 | AF68: 703.93 | AG68: 26 | AH68: 48.5 | AI68: 331.2 | AJ68: 110.83 | AK68: 105.39 | AL68: 0 | AM68: 62.5 | AN68: 20.5 | AO68: 25 | AP68: 0 | AQ68: Monitor Ambiental | AS68: SEAC-PR | AT68: 2021-01-01
A69: T | B69: ADM | C69: Monitor ambiental - SDF | D69: 1272.89 | E69: 0.25 | F69: 1591.12 | G69: D | H69: SDF | I69: até 26h/s | J69: 0 | K69: 0 | L69: 0 | M69: 0 | N69: 0 | O69: 0 | P69: 0 | Q69: - | R69: 1591.12 | S69: 1161.23 | T69: 396.91 | U69: 1265.33 | V69: 488 | W69: 0.05 | X69: 0.1 | Y69: 0.076 | Z69: 0.01 | AA69: 0.0165 | AB69: 0.05 | AC69: 4414.57 | AD69: 52974.9 | AE69: 2.77 | AF69: 396.91 | AG69: 10 | AH69: 48.5 | AI69: 127.38 | AJ69: 7.63 | AK69: 105.39 | AL69: 0 | AM69: 62.5 | AN69: 20.5 | AO69: 25 | AP69: 0 | AQ69: Monitor Ambiental | AS69: SEAC-PR | AT69: 2021-01-01
A70: T | B70: ADM | C70: Monitor cultural | D70: 1792.81 | E70: 0.25 | F70: 2241.01 | G70: D | H70: 6x1 | I70: 44h/s | J70: 0 | K70: 0 | L70: 0 | M70: 0 | N70: 0 | O70: 0 | P70: 0 | Q70: - | R70: 2241.01 | S70: 1687.25 | T70: 703.93 | U70: 1782.15 | V70: 709.06 | W70: 0.05 | X70: 0.1 | Y70: 0.076 | Z70: 0.01 | AA70: 0.0165 | AB70: 0.05 | AC70: 6414.34 | AD70: 76972.02 | AE70: 2.86 | AF70: 703.93 | AG70: 26 | AH70: 48.5 | AI70: 331.2 | AJ70: 110.83 | AK70: 105.39 | AL70: 0 | AM70: 62.5 | AN70: 20.5 | AO70: 25 | AP70: 0 | AQ70: Monitor Ambiental | AS70: SEAC-PR | AT70: 2021-01-01
A71: T | B71: ADM | C71: Monitor cultural - SDF | D71: 1272.89 | E71: 0.25 | F71: 1591.12 | G71: D | H71: SDF | I71: até 26h/s | J71: 0 | K71: 0 | L71: 0 | M71: 0 | N71: 0 | O71: 0 | P71: 0 | Q71: - | R71: 1591.12 | S71: 1161.23 | T71: 396.91 | U71: 1265.33 | V71: 488 | W71: 0.05 | X71: 0.1 | Y71: 0.076 | Z71: 0.01 | AA71: 0.0165 | AB71: 0.05 | AC71: 4414.57 | AD71: 52974.9 | AE71: 2.77 | AF71: 396.91 | AG71: 10 | AH71: 48.5 | AI71: 127.38 | AJ71: 7.63 | AK71: 105.39 | AL71: 0 | AM71: 62.5 | AN71: 20.5 | AO71: 25 | AP71: 0 | AQ71: Monitor Ambiental | AS71: SEAC-PR | AT71: 2021-01-01
A72: T | B72: ADM | C72: Monitor turístico | D72: 1792.81 | E72: 0.25 | F72: 2241.01 | G72: D | H72: 6x1 | I72: 44h/s | J72: 0 | K72: 0 | L72: 0 | M72: 0 | N72: 0 | O72: 0 | P72: 0 | Q72: - | R72: 2241.01 | S72: 1687.25 | T72: 703.93 | U72: 1782.15 | V72: 709.06 | W72: 0.05 | X72: 0.1 | Y72: 0.076 | Z72: 0.01 | AA72: 0.0165 | AB72: 0.05 | AC72: 6414.34 | AD72: 76972.02 | AE72: 2.86 | AF72: 703.93 | AG72: 26 | AH72: 48.5 | AI72: 331.2 | AJ72: 110.83 | AK72: 105.39 | AL72: 0 | AM72: 62.5 | AN72: 20.5 | AO72: 25 | AP72: 0 | AQ72: Monitor Ambiental | AS72: SEAC-PR | AT72: 2021-01-01
A73: T | B73: ADM | C73: Monitor turístico - SDF | D73: 1272.89 | E73: 0.25 | F73: 1591.12 | G73: D | H73: SDF | I73: até 26h/s | J73: 0 | K73: 0 | L73: 0 | M73: 0 | N73: 0 | O73: 0 | P73: 0 | Q73: - | R73: 1591.12 | S73: 1161.23 | T73: 396.91 | U73: 1265.33 | V73: 488 | W73: 0.05 | X73: 0.1 | Y73: 0.076 | Z73: 0.01 | AA73: 0.0165 | AB73: 0.05 | AC73: 4414.57 | AD73: 52974.9 | AE73: 2.77 | AF73: 396.91 | AG73: 10 | AH73: 48.5 | AI73: 127.38 | AJ73: 7.63 | AK73: 105.39 | AL73: 0 | AM73: 62.5 | AN73: 20.5 | AO73: 25 | AP73: 0 | AQ73: Monitor Ambiental | AS73: SEAC-PR | AT73: 2021-01-01
A74: O | B74: ADM | C74: Piloto de helicóptero | D74: 8246.05 | E74: 0 | F74: 8246.05 | G74: D | H74: 6x1 | I74: 44h/s | J74: 0 | K74: 0 | L74: 0 | M74: 0 | N74: 0 | O74: 0 | P74: 0 | Q74: - | R74: 8246.05 | S74: - | T74: 722.64 | U74: 6557.62 | V74: - | W74: 0 | X74: 0 | Y74: 0 | Z74: 0 | AA74: 0 | AB74: 0 | AC74: 15526.31 | AD74: 186315.73 | AE74: 1.88 | AF74: 722.64 | AG74: 26 | AH74: 48.5 | AI74: 331.2 | AJ74: 0 | AK74: 105.39 | AL74: 129.55 | AM74: 62.5 | AN74: 20.5 | AO74: 25 | AP74: 0 | AQ74: Piloto de balão | AR74: 215305 | AS74: www.salario.com.br | AT74: 2020-09-01
A75: O | B75: ADM | C75: Piloto fluvial | D75: 2863.4 | E75: 0 | F75: 2863.4 | G75: D | H75: 6x1 | I75: 44h/s | J75: 0 | K75: 0 | L75: 0 | M75: 0 | N75: 0 | O75: 0 | P75: 0 | Q75: - | R75: 2863.4 | S75: - | T75: 769.24 | U75: 2277.1 | V75: - | W75: 0 | X75: 0 | Y75: 0 | Z75: 0 | AA75: 0 | AB75: 0 | AC75: 5909.74 | AD75: 70916.93 | AE75: 2.06 | AF75: 769.24 | AG75: 26 | AH75: 48.5 | AI75: 331.2 | AJ75: 46.6 | AK75: 105.39 | AL75: 129.55 | AM75: 62.5 | AN75: 20.5 | AO75: 25 | AP75: 0 | AQ75: Piloto fluvial | AR75: 341230 | AS75: www.salario.com.br | AT75: 2020-09-01
A76: T | B76: ADM | C76: Recepcionista | D76: 1792.81 | E76: 0 | F76: 1792.81 | G76: D | H76: 6x1 | I76: 44h/s | J76: 0 | K76: 0 | L76: 0 | M76: 0 | N76: 0 | O76: 0 | P76: 0 | Q76: - | R76: 1792.81 | S76: 1400.05 | T76: 703.93 | U76: 1425.72 | V76: 588.37 | W76: 0.05 | X76: 0.1 | Y76: 0.076 | Z76: 0.01 | AA76: 0.0165 | AB76: 0.05 | AC76: 5322.5 | AD76: 63870.05 | AE76: 2.97 | AF76: 703.93 | AG76: 26 | AH76: 48.5 | AI76: 331.2 | AJ76: 110.83 | AK76: 105.39 | AL76: 0 | AM76: 62.5 | AN76: 20.5 | AO76: 25 | AP76: 0 | AQ76: Recepcionista | AR76: 422105 | AS76: SEAC-PR | AT76: 2021-01-01
A77: T | B77: ADM | C77: Recepcionista - SDF | D77: 1272.89 | E77: 0 | F77: 1272.89 | G77: D | H77: SDF | I77: até 26h/s | J77: 0 | K77: 0 | L77: 0 | M77: 0 | N77: 0 | O77: 0 | P77: 0 | Q77: - | R77: 1272.89 | S77: 957.31 | T77: 396.91 | U77: 1012.26 | V77: 402.31 | W77: 0.05 | X77: 0.1 | Y77: 0.076 | Z77: 0.01 | AA77: 0.0165 | AB77: 0.05 | AC77: 3639.37 | AD77: 43672.5 | AE77: 2.86 | AF77: 396.91 | AG77: 10 | AH77: 48.5 | AI77: 127.38 | AJ77: 7.63 | AK77: 105.39 | AL77: 0 | AM77: 62.5 | AN77: 20.5 | AO77: 25 | AP77: 0 | AQ77: Recepcionista | AR77: 422105 | AS77: SEAC-PR | AT77: 2021-01-01
A78: O | B78: ADM | C78: Supervisor ambulatorial | D78: 4840 | E78: 0 | F78: 4840 | G78: D | H78: 5x2 | I78: 40h/s | J78: 0 | K78: 0 | L78: 0 | M78: 0 | N78: 0 | O78: 0 | P78: 0 | Q78: - | R78: 4840 | S78: - | T78: 671.69 | U78: 3848.98 | V78: - | W78: 0 | X78: 0 | Y78: 0 | Z78: 0 | AA78: 0 | AB78: 0 | AC78: 9360.66 | AD78: 112327.97 | AE78: 1.93 | AF78: 671.69 | AG78: 22 | AH78: 48.5 | AI78: 280.25 | AJ78: 0 | AK78: 105.39 | AL78: 129.55 | AM78: 62.5 | AN78: 20.5 | AO78: 25 | AP78: 0 | AQ78: Auxiliar Administrativo | AR78: 411005 | AS78: Cataratas SA | AT78: 2020-12-01
A79: O | B79: ADM | C79: Supervisor de bilheteria | D79: 4235 | E79: 0 | F79: 4235 | G79: D | H79: 6x1 | I79: 44h/s | J79: 0 | K79: 0 | L79: 0 | M79: 0 | N79: 0 | O79: 0 | P79: 0 | Q79: - | R79: 4235 | S79: - | T79: 722.64 | U79: 3367.85 | V79: - | W79: 0 | X79: 0 | Y79: 0 | Z79: 0 | AA79: 0 | AB79: 0 | AC79: 8325.5 | AD79: 99905.95 | AE79: 1.97 | AF79: 722.64 | AG79: 26 | AH79: 48.5 | AI79: 331.2 | AJ79: 0 | AK79: 105.39 | AL79: 129.55 | AM79: 62.5 | AN79: 20.5 | AO79: 25 | AP79: 0 | AQ79: Auxiliar Administrativo | AR79: 411005 | AS79: Cataratas SA | AT79: 2020-12-01
A80: O | B80: ADM | C80: Supervisor de marketing | D80: 9680 | E80: 0 | F80: 9680 | G80: D | H80: 5x2 | I80: 40h/s | J80: 0 | K80: 0 | L80: 0 | M80: 0 | N80: 0 | O80: 0 | P80: 0 | Q80: - | R80: 9680 | S80: - | T80: 671.69 | U80: 7697.95 | V80: - | W80: 0 | X80: 0 | Y80: 0 | Z80: 0 | AA80: 0 | AB80: 0 | AC80: 18049.64 | AD80: 216595.68 | AE80: 1.86 | AF80: 671.69 | AG80: 22 | AH80: 48.5 | AI80: 280.25 | AJ80: 0 | AK80: 105.39 | AL80: 129.55 | AM80: 62.5 | AN80: 20.5 | AO80: 25 | AP80: 0 | AQ80: Auxiliar Administrativo | AR80: 411005 | AS80: Cataratas SA | AT80: 2020-12-01
A81: O | B81: ADM | C81: Supervisor de operações | D81: 4235 | E81: 0 | F81: 4235 | G81: D | H81: 6x1 | I81: 44h/s | J81: 0 | K81: 0 | L81: 0 | M81: 0 | N81: 0 | O81: 0 | P81: 0 | Q81: - | R81: 4235 | S81: - | T81: 722.64 | U81: 3367.85 | V81: - | W81: 0 | X81: 0 | Y81: 0 | Z81: 0 | AA81: 0 | AB81: 0 | AC81: 8325.5 | AD81: 99905.95 | AE81: 1.97 | AF81: 722.64 | AG81: 26 | AH81: 48.5 | AI81: 331.2 | AJ81: 0 | AK81: 105.39 | AL81: 129.55 | AM81: 62.5 | AN81: 20.5 | AO81: 25 | AP81: 0 | AQ81: Auxiliar Administrativo | AR81: 411005 | AS81: Cataratas SA | AT81: 2020-12-01
A82: O | B82: ADM | C82: Supervisor de transporte | D82: 4235 | E82: 0 | F82: 4235 | G82: D | H82: 5x2 | I82: 40h/s | J82: 0 | K82: 0 | L82: 0 | M82: 0 | N82: 0 | O82: 0 | P82: 0 | Q82: - | R82: 4235 | S82: - | T82: 671.69 | U82: 3367.85 | V82: - | W82: 0 | X82: 0 | Y82: 0 | Z82: 0 | AA82: 0 | AB82: 0 | AC82: 8274.54 | AD82: 99294.5 | AE82: 1.95 | AF82: 671.69 | AG82: 22 | AH82: 48.5 | AI82: 280.25 | AJ82: 0 | AK82: 105.39 | AL82: 129.55 | AM82: 62.5 | AN82: 20.5 | AO82: 25 | AP82: 0 | AQ82: Auxiliar Administrativo | AR82: 411005 | AS82: Cataratas SA | AT82: 2020-12-01
A83: O | B83: ADM | C83: Supervisor de vendas | D83: 9680 | E83: 0 | F83: 9680 | G83: D | H83: 5x2 | I83: 40h/s | J83: 0 | K83: 0 | L83: 0 | M83: 0 | N83: 0 | O83: 0 | P83: 0 | Q83: - | R83: 9680 | S83: - | T83: 671.69 | U83: 7697.95 | V83: - | W83: 0 | X83: 0 | Y83: 0 | Z83: 0 | AA83: 0 | AB83: 0 | AC83: 18049.64 | AD83: 216595.68 | AE83: 1.86 | AF83: 671.69 | AG83: 22 | AH83: 48.5 | AI83: 280.25 | AJ83: 0 | AK83: 105.39 | AL83: 129.55 | AM83: 62.5 | AN83: 20.5 | AO83: 25 | AP83: 0 | AQ83: Auxiliar Administrativo | AR83: 411005 | AS83: Cataratas SA | AT83: 2020-12-01
A84: O | B84: ADM | C84: Técnico em segurança do trabalho | D84: 2950.69 | E84: 0.15 | F84: 3393.3 | G84: D | H84: 5x2 | I84: 40h/s | J84: 0 | K84: 0 | L84: 0 | M84: 0 | N84: 0 | O84: 0 | P84: 0 | Q84: - | R84: 3393.3 | S84: - | T84: 679.45 | U84: 2698.5 | V84: - | W84: 0 | X84: 0 | Y84: 0 | Z84: 0 | AA84: 0 | AB84: 0 | AC84: 6771.24 | AD84: 81254.89 | AE84: 2 | AF84: 679.45 | AG84: 22 | AH84: 48.5 | AI84: 280.25 | AJ84: 7.76 | AK84: 105.39 | AL84: 129.55 | AM84: 62.5 | AN84: 20.5 | AO84: 25 | AP84: 0 | AQ84: Técnico em segurança do trabalho | AR84: 351605 | AS84: www.salario.com.br | AT84: 2020-09-01
A85: O | B85: ADM | C85: Telefonista | D85: 2160.87 | E85: 0 | F85: 2160.87 | G85: D | H85: 5x2 | I85: 40h/s | J85: 0 | K85: 0 | L85: 0 | M85: 0 | N85: 0 | O85: 0 | P85: 0 | Q85: - | R85: 2160.87 | S85: - | T85: 726.84 | U85: 1718.41 | V85: - | W85: 0 | X85: 0 | Y85: 0 | Z85: 0 | AA85: 0 | AB85: 0 | AC85: 4606.12 | AD85: 55273.39 | AE85: 2.13 | AF85: 726.84 | AG85: 22 | AH85: 48.5 | AI85: 280.25 | AJ85: 55.15 | AK85: 105.39 | AL85: 129.55 | AM85: 62.5 | AN85: 20.5 | AO85: 25 | AP85: 0 | AQ85: Telefonista | AR85: 422205 | AS85: www.salario.com.br | AT85: 2020-09-01
A86: O | B86: ALI | C86: Atendente de bar/lanchonete | D86: 1854.16 | E86: 0 | F86: 1854.16 | G86: D | H86: 6x1 | I86: 44h/s | J86: 0 | K86: 0 | L86: 0 | M86: 0 | N86: 0 | O86: 0 | P86: 0 | Q86: - | R86: 1854.16 | S86: - | T86: 829.79 | U86: 1474.5 | V86: - | W86: 0 | X86: 0 | Y86: 0 | Z86: 0 | AA86: 0 | AB86: 0 | AC86: 4158.45 | AD86: 49901.43 | AE86: 2.24 | AF86: 829.79 | AG86: 26 | AH86: 48.5 | AI86: 331.2 | AJ86: 107.15 | AK86: 105.39 | AL86: 129.55 | AM86: 62.5 | AN86: 20.5 | AO86: 25 | AP86: 0 | AQ86: Auxiliar Administrativo | AR86: 411005 | AS86: www.salario.com.br | AT86: 2020-08-01
A87: O | B87: ALI | C87: Auxiliar de cozinha | D87: 1586.62 | E87: 0 | F87: 1586.62 | G87: D | H87: 6x1 | I87: 44h/s | J87: 0 | K87: 0 | L87: 0 | M87: 0 | N87: 0 | O87: 0 | P87: 0 | Q87: - | R87: 1586.62 | S87: - | T87: 845.84 | U87: 1261.75 | V87: - | W87: 0 | X87: 0 | Y87: 0 | Z87: 0 | AA87: 0 | AB87: 0 | AC87: 3694.22 | AD87: 44330.65 | AE87: 2.33 | AF87: 845.84 | AG87: 26 | AH87: 48.5 | AI87: 331.2 | AJ87: 123.2 | AK87: 105.39 | AL87: 129.55 | AM87: 62.5 | AN87: 20.5 | AO87: 25 | AP87: 0 | AQ87: Auxiliar de cozinha | AR87: 513505 | AS87: SEAC-PR | AT87: 2020-08-01
A88: O | B88: ALI | C88: Auxiliar de maitre | D88: 1815 | E88: 0 | F88: 1815 | G88: D | H88: 6x1 | I88: 44h/s | J88: 0 | K88: 0 | L88: 0 | M88: 0 | N88: 0 | O88: 0 | P88: 0 | Q88: - | R88: 1815 | S88: - | T88: 832.14 | U88: 1443.37 | V88: - | W88: 0 | X88: 0 | Y88: 0 | Z88: 0 | AA88: 0 | AB88: 0 | AC88: 4090.51 | AD88: 49086.09 | AE88: 2.25 | AF88: 832.14 | AG88: 26 | AH88: 48.5 | AI88: 331.2 | AJ88: 109.5 | AK88: 105.39 | AL88: 129.55 | AM88: 62.5 | AN88: 20.5 | AO88: 25 | AP88: 0 | AQ88: Auxiliar Administrativo | AR88: 411005 | AS88: Cataratas SA | AT88: 2020-12-01
A89: O | B89: ALI | C89: Barman | D89: 1854.16 | E89: 0 | F89: 1854.16 | G89: D | H89: 6x1 | I89: 44h/s | J89: 0 | K89: 0 | L89: 0 | M89: 0 | N89: 0 | O89: 0 | P89: 0 | Q89: - | R89: 1854.16 | S89: - | T89: 829.79 | U89: 1474.5 | V89: - | W89: 0 | X89: 0 | Y89: 0 | Z89: 0 | AA89: 0 | AB89: 0 | AC89: 4158.45 | AD89: 49901.43 | AE89: 2.24 | AF89: 829.79 | AG89: 26 | AH89: 48.5 | AI89: 331.2 | AJ89: 107.15 | AK89: 105.39 | AL89: 129.55 | AM89: 62.5 | AN89: 20.5 | AO89: 25 | AP89: 0 | AQ89: Auxiliar de Manutenção Predial | AR89: 514310 | AS89: www.salario.com.br | AT89: 2020-09-01
A90: O | B90: ALI | C90: Chefe de cozinha | D90: 2982.11 | E90: 0.4 | F90: 4174.95 | G90: D | H90: 5x2 | I90: 40h/s | J90: 0 | K90: 0 | L90: 0 | M90: 0 | N90: 0 | O90: 0 | P90: 0 | Q90: - | R90: 4174.95 | S90: - | T90: 677.56 | U90: 3320.1 | V90: - | W90: 0 | X90: 0 | Y90: 0 | Z90: 0 | AA90: 0 | AB90: 0 | AC90: 8172.61 | AD90: 98071.28 | AE90: 1.96 | AF90: 677.56 | AG90: 22 | AH90: 48.5 | AI90: 280.25 | AJ90: 5.87 | AK90: 105.39 | AL90: 129.55 | AM90: 62.5 | AN90: 20.5 | AO90: 25 | AP90: 0 | AQ90: Caixa no Comércio | AR90: 513315 | AS90: www.salario.com.br | AT90: 2020-09-01
A91: O | B91: ALI | C91: Confeiteiro | D91: 2063.1 | E91: 0.2 | F91: 2475.72 | G91: D | H91: 5x2 | I91: 40h/s | J91: 0 | K91: 0 | L91: 0 | M91: 0 | N91: 0 | O91: 0 | P91: 0 | Q91: - | R91: 2475.72 | S91: - | T91: 732.7 | U91: 1968.8 | V91: - | W91: 0 | X91: 0 | Y91: 0 | Z91: 0 | AA91: 0 | AB91: 0 | AC91: 5177.22 | AD91: 62126.61 | AE91: 2.09 | AF91: 732.7 | AG91: 22 | AH91: 48.5 | AI91: 280.25 | AJ91: 61.01 | AK91: 105.39 | AL91: 129.55 | AM91: 62.5 | AN91: 20.5 | AO91: 25 | AP91: 0 | AQ91: Gerente de Recursos Humanos | AR91: 142205 | AS91: www.salario.com.br | AT91: 2020-09-01
A92: O | B92: ALI | C92: Copeiro | D92: 1586.62 | E92: 0 | F92: 1586.62 | G92: D | H92: 6x1 | I92: 44h/s | J92: 0 | K92: 0 | L92: 0 | M92: 0 | N92: 0 | O92: 0 | P92: 0 | Q92: - | R92: 1586.62 | S92: - | T92: 845.84 | U92: 1261.75 | V92: - | W92: 0 | X92: 0 | Y92: 0 | Z92: 0 | AA92: 0 | AB92: 0 | AC92: 3694.22 | AD92: 44330.65 | AE92: 2.33 | AF92: 845.84 | AG92: 26 | AH92: 48.5 | AI92: 331.2 | AJ92: 123.2 | AK92: 105.39 | AL92: 129.55 | AM92: 62.5 | AN92: 20.5 | AO92: 25 | AP92: 0 | AQ92: Caixa no Comércio | AR92: 421115 | AS92: SEAC-PR | AT92: 2021-01-01
A93: O | B93: ALI | C93: Copeiro - SDF | D93: 1126.5 | E93: 0 | F93: 1126.5 | G93: D | H93: SDF | I93: até 26h/s | J93: 0 | K93: 0 | L93: 0 | M93: 0 | N93: 0 | O93: 0 | P93: 0 | Q93: - | R93: 1126.5 | S93: - | T93: 535.24 | U93: 895.84 | V93: - | W93: 0 | X93: 0 | Y93: 0 | Z93: 0 | AA93: 0 | AB93: 0 | AC93: 2557.58 | AD93: 30691 | AE93: 2.27 | AF93: 535.24 | AG93: 10 | AH93: 48.5 | AI93: 127.38 | AJ93: 16.41 | AK93: 105.39 | AL93: 129.55 | AM93: 62.5 | AN93: 20.5 | AO93: 25 | AP93: 0 | AQ93: Caixa no Comércio | AR93: 421115 | AS93: SEAC-PR | AT93: 2021-01-01
A94: O | B94: ALI | C94: Cozinheiro geral | D94: 1910.09 | E94: 0 | F94: 1910.09 | G94: D | H94: 6x1 | I94: 44h/s | J94: 0 | K94: 0 | L94: 0 | M94: 0 | N94: 0 | O94: 0 | P94: 0 | Q94: - | R94: 1910.09 | S94: - | T94: 826.44 | U94: 1518.99 | V94: - | W94: 0 | X94: 0 | Y94: 0 | Z94: 0 | AA94: 0 | AB94: 0 | AC94: 4255.52 | AD94: 51066.22 | AE94: 2.23 | AF94: 826.44 | AG94: 26 | AH94: 48.5 | AI94: 331.2 | AJ94: 103.79 | AK94: 105.39 | AL94: 129.55 | AM94: 62.5 | AN94: 20.5 | AO94: 25 | AP94: 0 | AQ94: Conzinheiro de embarcações | AR94: 513225 | AS94: www.salario.com.br | AT94: 2020-09-01
A95: O | B95: ALI | C95: Garçom | D95: 1847.08 | E95: 0 | F95: 1847.08 | G95: D | H95: 5x2 | I95: 40h/s | J95: 0 | K95: 0 | L95: 0 | M95: 0 | N95: 0 | O95: 0 | P95: 0 | Q95: - | R95: 1847.08 | S95: - | T95: 745.66 | U95: 1468.88 | V95: - | W95: 0 | X95: 0 | Y95: 0 | Z95: 0 | AA95: 0 | AB95: 0 | AC95: 4061.62 | AD95: 48739.38 | AE95: 2.2 | AF95: 745.66 | AG95: 22 | AH95: 48.5 | AI95: 280.25 | AJ95: 73.98 | AK95: 105.39 | AL95: 129.55 | AM95: 62.5 | AN95: 20.5 | AO95: 25 | AP95: 0 | AQ95: Gerente Administrativo-Financeiro | AR95: 142105 | AS95: www.salario.com.br | AT95: 2020-09-01
A96: O | B96: ALI | C96: Gerente comercial A&B | D96: 6050 | E96: 0 | F96: 6050 | G96: D | H96: 6x1 | I96: 44h/s | J96: 0 | K96: 0 | L96: 0 | M96: 0 | N96: 0 | O96: 0 | P96: 0 | Q96: - | R96: 6050 | S96: - | T96: 722.64 | U96: 4811.22 | V96: - | W96: 0 | X96: 0 | Y96: 0 | Z96: 0 | AA96: 0 | AB96: 0 | AC96: 11583.86 | AD96: 139006.34 | AE96: 1.91 | AF96: 722.64 | AG96: 26 | AH96: 48.5 | AI96: 331.2 | AJ96: 0 | AK96: 105.39 | AL96: 129.55 | AM96: 62.5 | AN96: 20.5 | AO96: 25 | AP96: 0 | AQ96: Gerente Comercial | AR96: 142305 | AS96: Cataratas SA | AT96: 2019-12-01
A97: O | B97: ALI | C97: Maitre | D97: 3630 | E97: 0 | F97: 3630 | G97: D | H97: 5x2 | I97: 40h/s | J97: 0 | K97: 0 | L97: 0 | M97: 0 | N97: 0 | O97: 0 | P97: 0 | Q97: - | R97: 3630 | S97: - | T97: 671.69 | U97: 2886.73 | V97: - | W97: 0 | X97: 0 | Y97: 0 | Z97: 0 | AA97: 0 | AB97: 0 | AC97: 7188.42 | AD97: 86261.04 | AE97: 1.98 | AF97: 671.69 | AG97: 22 | AH97: 48.5 | AI97: 280.25 | AJ97: 0 | AK97: 105.39 | AL97: 129.55 | AM97: 62.5 | AN97: 20.5 | AO97: 25 | AP97: 0 | AQ97: Marceneiro | AR97: 771105 | AS97: www.salario.com.br | AT97: 2020-09-01
A98: O | B98: ALI | C98: Sous chef | D98: 3025 | E98: 0 | F98: 3025 | G98: D | H98: 6x1 | I98: 44h/s | J98: 0 | K98: 0 | L98: 0 | M98: 0 | N98: 0 | O98: 0 | P98: 0 | Q98: - | R98: 3025 | S98: - | T98: 759.54 | U98: 2405.61 | V98: - | W98: 0 | X98: 0 | Y98: 0 | Z98: 0 | AA98: 0 | AB98: 0 | AC98: 6190.15 | AD98: 74281.82 | AE98: 2.05 | AF98: 759.54 | AG98: 26 | AH98: 48.5 | AI98: 331.2 | AJ98: 36.9 | AK98: 105.39 | AL98: 129.55 | AM98: 62.5 | AN98: 20.5 | AO98: 25 | AP98: 0 | AQ98: Auxiliar Administrativo | AR98: 411005 | AS98: Cataratas SA | AT98: 2020-12-01
A99: O | B99: ALI | C99: Supervisor de lanchonete | D99: 3025 | E99: 0 | F99: 3025 | G99: D | H99: 6x1 | I99: 44h/s | J99: 0 | K99: 0 | L99: 0 | M99: 0 | N99: 0 | O99: 0 | P99: 0 | Q99: - | R99: 3025 | S99: - | T99: 759.54 | U99: 2405.61 | V99: - | W99: 0 | X99: 0 | Y99: 0 | Z99: 0 | AA99: 0 | AB99: 0 | AC99: 6190.15 | AD99: 74281.82 | AE99: 2.05 | AF99: 759.54 | AG99: 26 | AH99: 48.5 | AI99: 331.2 | AJ99: 36.9 | AK99: 105.39 | AL99: 129.55 | AM99: 62.5 | AN99: 20.5 | AO99: 25 | AP99: 0 | AQ99: Auxiliar Administrativo | AR99: 411005 | AS99: Cataratas SA | AT99: 2020-12-01
A100: O | B100: ALI | C100: Supervisor de quiosque | D100: 3025 | E100: 0 | F100: 3025 | G100: D | H100: 6x1 | I100: 44h/s | J100: 0 | K100: 0 | L100: 0 | M100: 0 | N100: 0 | O100: 0 | P100: 0 | Q100: - | R100: 3025 | S100: - | T100: 759.54 | U100: 2405.61 | V100: - | W100: 0 | X100: 0 | Y100: 0 | Z100: 0 | AA100: 0 | AB100: 0 | AC100: 6190.15 | AD100: 74281.82 | AE100: 2.05 | AF100: 759.54 | AG100: 26 | AH100: 48.5 | AI100: 331.2 | AJ100: 36.9 | AK100: 105.39 | AL100: 129.55 | AM100: 62.5 | AN100: 20.5 | AO100: 25 | AP100: 0 | AQ100: Auxiliar Administrativo | AR100: 411005 | AS100: Cataratas SA | AT100: 2020-12-01
A101: O | B101: COM | C101: Assistente comercial (loja) | D101: 3025 | E101: 0 | F101: 3025 | G101: D | H101: 5x2 | I101: 40h/s | J101: 0 | K101: 0 | L101: 0 | M101: 0 | N101: 0 | O101: 0 | P101: 0 | Q101: - | R101: 3025 | S101: - | T101: 674.99 | U101: 2405.61 | V101: - | W101: 0 | X101: 0 | Y101: 0 | Z101: 0 | AA101: 0 | AB101: 0 | AC101: 6105.6 | AD101: 73267.17 | AE101: 2.02 | AF101: 674.99 | AG101: 22 | AH101: 48.5 | AI101: 280.25 | AJ101: 3.3 | AK101: 105.39 | AL101: 129.55 | AM101: 62.5 | AN101: 20.5 | AO101: 25 | AP101: 0 | AQ101: Auxiliar Administrativo | AR101: 411005 | AS101: Cataratas SA | AT101: 2020-12-01
A102: O | B102: COM | C102: Atendente de loja (cx. atendente) | D102: 1654.94 | E102: 0.05 | F102: 1737.69 | G102: D | H102: 6x1 | I102: 44h/s | J102: 0 | K102: 0 | L102: 0 | M102: 0 | N102: 0 | O102: 0 | P102: 0 | Q102: - | R102: 1737.69 | S102: - | T102: 841.75 | U102: 1381.88 | V102: - | W102: 0 | X102: 0 | Y102: 0 | Z102: 0 | AA102: 0 | AB102: 0 | AC102: 3961.32 | AD102: 47535.81 | AE102: 2.28 | AF102: 841.75 | AG102: 26 | AH102: 48.5 | AI102: 331.2 | AJ102: 119.1 | AK102: 105.39 | AL102: 129.55 | AM102: 62.5 | AN102: 20.5 | AO102: 25 | AP102: 0 | AQ102: Auxiliar Administrativo | AR102: 411005 | AS102: www.salario.com.br | AT102: 2020-08-01
A103: O | B103: COM | C103: Balconista | D103: 1654.94 | E103: 0 | F103: 1654.94 | G103: D | H103: 6x1 | I103: 44h/s | J103: 0 | K103: 0 | L103: 0 | M103: 0 | N103: 0 | O103: 0 | P103: 0 | Q103: - | R103: 1654.94 | S103: - | T103: 841.75 | U103: 1316.08 | V103: - | W103: 0 | X103: 0 | Y103: 0 | Z103: 0 | AA103: 0 | AB103: 0 | AC103: 3812.77 | AD103: 45753.2 | AE103: 2.3 | AF103: 841.75 | AG103: 26 | AH103: 48.5 | AI103: 331.2 | AJ103: 119.1 | AK103: 105.39 | AL103: 129.55 | AM103: 62.5 | AN103: 20.5 | AO103: 25 | AP103: 0 | AQ103: Auxiliar de Manutenção Predial | AR103: 514310 | AS103: www.salario.com.br | AT103: 2020-09-01
A104: O | B104: COM | C104: Fotógrafo | D104: 3025 | E104: 0 | F104: 3025 | G104: D | H104: 6x1 | I104: 44h/s | J104: 0 | K104: 0 | L104: 0 | M104: 0 | N104: 0 | O104: 0 | P104: 0 | Q104: - | R104: 3025 | S104: - | T104: 759.54 | U104: 2405.61 | V104: - | W104: 0 | X104: 0 | Y104: 0 | Z104: 0 | AA104: 0 | AB104: 0 | AC104: 6190.15 | AD104: 74281.82 | AE104: 2.05 | AF104: 759.54 | AG104: 26 | AH104: 48.5 | AI104: 331.2 | AJ104: 36.9 | AK104: 105.39 | AL104: 129.55 | AM104: 62.5 | AN104: 20.5 | AO104: 25 | AP104: 0 | AQ104: Gerente Comercial | AR104: 142305 | AS104: Cataratas SA | AT104: 2019-12-01
A105: O | B105: COM | C105: Gerente comercial Loja | D105: 6050 | E105: 0 | F105: 6050 | G105: D | H105: 6x1 | I105: 44h/s | J105: 0 | K105: 0 | L105: 0 | M105: 0 | N105: 0 | O105: 0 | P105: 0 | Q105: - | R105: 6050 | S105: - | T105: 722.64 | U105: 4811.22 | V105: - | W105: 0 | X105: 0 | Y105: 0 | Z105: 0 | AA105: 0 | AB105: 0 | AC105: 11583.86 | AD105: 139006.34 | AE105: 1.91 | AF105: 722.64 | AG105: 26 | AH105: 48.5 | AI105: 331.2 | AJ105: 0 | AK105: 105.39 | AL105: 129.55 | AM105: 62.5 | AN105: 20.5 | AO105: 25 | AP105: 0 | AQ105: Gerente Comercial | AR105: 142305 | AS105: Cataratas SA | AT105: 2019-12-01
A106: O | B106: COM | C106: Impressor de fotos | D106: 1815 | E106: 0 | F106: 1815 | G106: D | H106: 5x2 | I106: 40h/s | J106: 0 | K106: 0 | L106: 0 | M106: 0 | N106: 0 | O106: 0 | P106: 0 | Q106: - | R106: 1815 | S106: - | T106: 747.59 | U106: 1443.37 | V106: - | W106: 0 | X106: 0 | Y106: 0 | Z106: 0 | AA106: 0 | AB106: 0 | AC106: 4005.95 | AD106: 48071.45 | AE106: 2.21 | AF106: 747.59 | AG106: 22 | AH106: 48.5 | AI106: 280.25 | AJ106: 75.9 | AK106: 105.39 | AL106: 129.55 | AM106: 62.5 | AN106: 20.5 | AO106: 25 | AP106: 0 | AQ106: Gerente Comercial | AR106: 142305 | AS106: Cataratas SA | AT106: 2019-12-01
A107: O | B107: COM | C107: Repositor de mercadoria | D107: 3025 | E107: 0 | F107: 3025 | G107: D | H107: 6x1 | I107: 44h/s | J107: 0 | K107: 0 | L107: 0 | M107: 0 | N107: 0 | O107: 0 | P107: 0 | Q107: - | R107: 3025 | S107: - | T107: 759.54 | U107: 2405.61 | V107: - | W107: 0 | X107: 0 | Y107: 0 | Z107: 0 | AA107: 0 | AB107: 0 | AC107: 6190.15 | AD107: 74281.82 | AE107: 2.05 | AF107: 759.54 | AG107: 26 | AH107: 48.5 | AI107: 331.2 | AJ107: 36.9 | AK107: 105.39 | AL107: 129.55 | AM107: 62.5 | AN107: 20.5 | AO107: 25 | AP107: 0 | AQ107: Auxiliar Administrativo | AR107: 411005 | AS107: Cataratas SA | AT107: 2020-12-01
A108: O | B108: COM | C108: Supervisor de fotos | D108: 3630 | E108: 0 | F108: 3630 | G108: D | H108: 6x1 | I108: 44h/s | J108: 0 | K108: 0 | L108: 0 | M108: 0 | N108: 0 | O108: 0 | P108: 0 | Q108: - | R108: 3630 | S108: - | T108: 723.24 | U108: 2886.73 | V108: - | W108: 0 | X108: 0 | Y108: 0 | Z108: 0 | AA108: 0 | AB108: 0 | AC108: 7239.97 | AD108: 86879.68 | AE108: 1.99 | AF108: 723.24 | AG108: 26 | AH108: 48.5 | AI108: 331.2 | AJ108: 0.6 | AK108: 105.39 | AL108: 129.55 | AM108: 62.5 | AN108: 20.5 | AO108: 25 | AP108: 0 | AQ108: Auxiliar Administrativo | AR108: 411005 | AS108: Cataratas SA | AT108: 2020-12-01
A109: O | B109: COM | C109: Supervisor de loja | D109: 3630 | E109: 0 | F109: 3630 | G109: D | H109: 6x1 | I109: 44h/s | J109: 0 | K109: 0 | L109: 0 | M109: 0 | N109: 0 | O109: 0 | P109: 0 | Q109: - | R109: 3630 | S109: - | T109: 723.24 | U109: 2886.73 | V109: - | W109: 0 | X109: 0 | Y109: 0 | Z109: 0 | AA109: 0 | AB109: 0 | AC109: 7239.97 | AD109: 86879.68 | AE109: 1.99 | AF109: 723.24 | AG109: 26 | AH109: 48.5 | AI109: 331.2 | AJ109: 0.6 | AK109: 105.39 | AL109: 129.55 | AM109: 62.5 | AN109: 20.5 | AO109: 25 | AP109: 0 | AQ109: Auxiliar Administrativo | AR109: 411005 | AS109: Cataratas SA | AT109: 2020-12-01
A110: O | B110: HOS | C110: Camareira | D110: 1586.62 | E110: 0 | F110: 1586.62 | G110: D | H110: 5x2 | I110: 40h/s | J110: 0 | K110: 0 | L110: 0 | M110: 0 | N110: 0 | O110: 0 | P110: 0 | Q110: - | R110: 1586.62 | S110: - | T110: 761.29 | U110: 1261.75 | V110: - | W110: 0 | X110: 0 | Y110: 0 | Z110: 0 | AA110: 0 | AB110: 0 | AC110: 3609.67 | AD110: 43316 | AE110: 2.28 | AF110: 761.29 | AG110: 22 | AH110: 48.5 | AI110: 280.25 | AJ110: 89.6 | AK110: 105.39 | AL110: 129.55 | AM110: 62.5 | AN110: 20.5 | AO110: 25 | AP110: 0 | AQ110: Caixa no Comércio | AR110: 513315 | AS110: SEAC-PR | AT110: 2021-01-01
A111: O | B111: HOS | C111: Camareira - SDF | D111: 937.54 | E111: 0 | F111: 937.54 | G111: D | H111: 5x2 | I111: 40h/s | J111: 0 | K111: 0 | L111: 0 | M111: 0 | N111: 0 | O111: 0 | P111: 0 | Q111: - | R111: 937.54 | S111: - | T111: 800.24 | U111: 745.57 | V111: - | W111: 0 | X111: 0 | Y111: 0 | Z111: 0 | AA111: 0 | AB111: 0 | AC111: 2483.34 | AD111: 29800.1 | AE111: 2.65 | AF111: 800.24 | AG111: 22 | AH111: 48.5 | AI111: 280.25 | AJ111: 128.55 | AK111: 105.39 | AL111: 129.55 | AM111: 62.5 | AN111: 20.5 | AO111: 25 | AP111: 0 | AQ111: Caixa no Comércio | AR111: 513315 | AS111: SEAC-PR | AT111: 2021-01-01
A112: O | B112: JAR | C112: Jardineiro | D112: 1673.31 | E112: 0.15 | F112: 1924.31 | G112: D | H112: 5x2 | I112: 40h/s | J112: 0 | K112: 0 | L112: 0 | M112: 0 | N112: 0 | O112: 0 | P112: 0 | Q112: - | R112: 1924.31 | S112: - | T112: 756.09 | U112: 1530.29 | V112: - | W112: 0 | X112: 0 | Y112: 0 | Z112: 0 | AA112: 0 | AB112: 0 | AC112: 4210.68 | AD112: 50528.22 | AE112: 2.19 | AF112: 756.09 | AG112: 22 | AH112: 48.5 | AI112: 280.25 | AJ112: 84.4 | AK112: 105.39 | AL112: 129.55 | AM112: 62.5 | AN112: 20.5 | AO112: 25 | AP112: 0 | AQ112: Jardineiro | AR112: 622010 | AS112: SEAC-PR | AT112: 2021-01-01
A113: O | B113: JAR | C113: Operador de motosserra | D113: 1792.81 | E113: 0.15 | F113: 2061.73 | G113: D | H113: 5x2 | I113: 40h/s | J113: 0 | K113: 0 | L113: 0 | M113: 0.1 | N113: 0 | O113: 0 | P113: 0 | Q113: 206.17 | R113: 2267.9 | S113: - | T113: 748.92 | U113: 1803.53 | V113: - | W113: 0 | X113: 0 | Y113: 0 | Z113: 0 | AA113: 0 | AB113: 0 | AC113: 4820.36 | AD113: 57844.27 | AE113: 2.34 | AF113: 748.92 | AG113: 22 | AH113: 48.5 | AI113: 280.25 | AJ113: 77.23 | AK113: 105.39 | AL113: 129.55 | AM113: 62.5 | AN113: 20.5 | AO113: 25 | AP113: 0 | AQ113: Operador de Motosserra | AR113: 632120 | AS113: SEAC-PR | AT113: 2021-01-01
A114: O | B114: JAR | C114: Operador de roçadeira | D114: 1792.81 | E114: 0.15 | F114: 2061.73 | G114: D | H114: 5x2 | I114: 40h/s | J114: 0 | K114: 0 | L114: 0 | M114: 0.1 | N114: 0 | O114: 0 | P114: 0 | Q114: 206.17 | R114: 2267.9 | S114: - | T114: 748.92 | U114: 1803.53 | V114: - | W114: 0 | X114: 0 | Y114: 0 | Z114: 0 | AA114: 0 | AB114: 0 | AC114: 4820.36 | AD114: 57844.27 | AE114: 2.34 | AF114: 748.92 | AG114: 22 | AH114: 48.5 | AI114: 280.25 | AJ114: 77.23 | AK114: 105.39 | AL114: 129.55 | AM114: 62.5 | AN114: 20.5 | AO114: 25 | AP114: 0 | AQ114: Tratorista Operador de Roçadeira | AR114: 641015 | AS114: SEAC-PR | AT114: 2021-01-01
A115: O | B115: JAR | C115: Tratorista | D115: 2000.34 | E115: 0.15 | F115: 2300.39 | G115: D | H115: 5x2 | I115: 40h/s | J115: 0 | K115: 0 | L115: 0 | M115: 0.1 | N115: 0 | O115: 0 | P115: 0 | Q115: 230.04 | R115: 2530.42 | S115: - | T115: 736.47 | U115: 2012.3 | V115: - | W115: 0 | X115: 0 | Y115: 0 | Z115: 0 | AA115: 0 | AB115: 0 | AC115: 5279.19 | AD115: 63350.34 | AE115: 2.29 | AF115: 736.47 | AG115: 22 | AH115: 48.5 | AI115: 280.25 | AJ115: 64.78 | AK115: 105.39 | AL115: 129.55 | AM115: 62.5 | AN115: 20.5 | AO115: 25 | AP115: 0 | AQ115: Tratorista Agrícola | AR115: 641015 | AS115: SEAC-PR | AT115: 2021-01-01
A116: O | B116: LIM | C116: Auxiliar de limpeza | D116: 1626 | E116: 0.15 | F116: 1869.9 | G116: D | H116: 6x1 | I116: 44h/s | J116: 0 | K116: 0.22 | L116: 0 | M116: 0 | N116: 0 | O116: 0 | P116: 0 | Q116: 418 | R116: 2287.9 | S116: - | T116: 762.48 | U116: 1819.43 | V116: - | W116: 0 | X116: 0 | Y116: 0 | Z116: 0 | AA116: 0 | AB116: 0 | AC116: 4869.81 | AD116: 58437.73 | AE116: 2.6 | AF116: 762.48 | AG116: 26 | AH116: 48.5 | AI116: 331.2 | AJ116: 120.84 | AK116: 24.39 | AL116: 129.55 | AM116: 62.5 | AN116: 20.5 | AO116: 25 | AP116: 0 | AQ116: Faxineiro | AR116: 514320 | AS116: SEAC-PR | AT116: 2020-12-01
A117: O | B117: LIM | C117: Auxiliar de limpeza - SDF | D117: 1032.04 | E117: 0.15 | F117: 1186.84 | G117: D | H117: SDF | I117: até 26h/s | J117: 0 | K117: 0.35 | L117: 0 | M117: 0 | N117: 0 | O117: 0 | P117: 0 | Q117: 418 | R117: 1604.84 | S117: - | T117: 450.99 | U117: 1276.24 | V117: - | W117: 0 | X117: 0 | Y117: 0 | Z117: 0 | AA117: 0 | AB117: 0 | AC117: 3332.07 | AD117: 39984.88 | AE117: 2.81 | AF117: 450.99 | AG117: 10 | AH117: 48.5 | AI117: 127.38 | AJ117: 22.08 | AK117: 15.48 | AL117: 129.55 | AM117: 62.5 | AN117: 20.5 | AO117: 25 | AP117: 0 | AQ117: Almoxarife | AR117: 414105 | AS117: SEAC-PR | AT117: 2020-12-01
A118: O | B118: LIM | C118: Coletor de lixo | D118: 1626 | E118: 0 | F118: 1626 | G118: D | H118: 6x1 | I118: 44h/s | J118: 0 | K118: 0 | L118: 0 | M118: 0 | N118: 0 | O118: 0 | P118: 0 | Q118: - | R118: 1626 | S118: - | T118: 843.48 | U118: 1293.06 | V118: - | W118: 0 | X118: 0 | Y118: 0 | Z118: 0 | AA118: 0 | AB118: 0 | AC118: 3762.54 | AD118: 45150.52 | AE118: 2.31 | AF118: 843.48 | AG118: 26 | AH118: 48.5 | AI118: 331.2 | AJ118: 120.84 | AK118: 105.39 | AL118: 129.55 | AM118: 62.5 | AN118: 20.5 | AO118: 25 | AP118: 0 | AQ118: Coletor de Lixo | AR118: 514205 | AS118: SEAC-PR | AT118: 2021-01-01
A119: O | B119: LIM | C119: Coletor de lixo - SDF | D119: 1215.52 | E119: 0 | F119: 1215.52 | G119: D | H119: SDF | I119: até 26h/s | J119: 0 | K119: 0 | L119: 0 | M119: 0 | N119: 0 | O119: 0 | P119: 0 | Q119: - | R119: 1215.52 | S119: - | T119: 529.89 | U119: 966.64 | V119: - | W119: 0 | X119: 0 | Y119: 0 | Z119: 0 | AA119: 0 | AB119: 0 | AC119: 2712.05 | AD119: 32544.66 | AE119: 2.23 | AF119: 529.89 | AG119: 10 | AH119: 48.5 | AI119: 127.38 | AJ119: 11.07 | AK119: 105.39 | AL119: 129.55 | AM119: 62.5 | AN119: 20.5 | AO119: 25 | AP119: 0 | AQ119: Coletor de Lixo | AR119: 517410 | AS119: SEAC-PR | AT119: 2021-01-01
A120: O | B120: LIM | C120: Encarregado de serviços de limpeza | D120: 1895.24 | E120: 0 | F120: 1895.24 | G120: D | H120: 6x1 | I120: 44h/s | J120: 0 | K120: 0.17 | L120: 0 | M120: 0 | N120: 0 | O120: 0 | P120: 0 | Q120: 313.5 | R120: 2208.74 | S120: - | T120: 827.33 | U120: 1756.48 | V120: - | W120: 0 | X120: 0 | Y120: 0 | Z120: 0 | AA120: 0 | AB120: 0 | AC120: 4792.54 | AD120: 57510.52 | AE120: 2.53 | AF120: 827.33 | AG120: 26 | AH120: 48.5 | AI120: 331.2 | AJ120: 104.69 | AK120: 105.39 | AL120: 129.55 | AM120: 62.5 | AN120: 20.5 | AO120: 25 | AP120: 0 | AQ120: Supervisor Administrativo | AR120: 410105 | AS120: SEAC-PR | AT120: 2021-01-01
A121: O | B121: LIM | C121: Limpador de vidros | D121: 1626 | E121: 0 | F121: 1626 | G121: D | H121: 5x2 | I121: 40h/s | J121: 0 | K121: 0 | L121: 0 | M121: 0 | N121: 0 | O121: 0 | P121: 0 | Q121: - | R121: 1626 | S121: - | T121: 758.93 | U121: 1293.06 | V121: - | W121: 0 | X121: 0 | Y121: 0 | Z121: 0 | AA121: 0 | AB121: 0 | AC121: 3677.99 | AD121: 44135.87 | AE121: 2.26 | AF121: 758.93 | AG121: 22 | AH121: 48.5 | AI121: 280.25 | AJ121: 87.24 | AK121: 105.39 | AL121: 129.55 | AM121: 62.5 | AN121: 20.5 | AO121: 25 | AP121: 0 | AQ121: Limpador de vidro | AR121: 622010 | AS121: SEAC-PR | AT121: 2021-01-01
A122: O | B122: LIM | C122: Supervisor de limpeza e manutenção | D122: 4235 | E122: 0 | F122: 4235 | G122: D | H122: 6x1 | I122: 44h/s | J122: 0 | K122: 0 | L122: 0 | M122: 0 | N122: 0 | O122: 0 | P122: 0 | Q122: - | R122: 4235 | S122: - | T122: 722.64 | U122: 3367.85 | V122: - | W122: 0 | X122: 0 | Y122: 0 | Z122: 0 | AA122: 0 | AB122: 0 | AC122: 8325.5 | AD122: 99905.95 | AE122: 1.97 | AF122: 722.64 | AG122: 26 | AH122: 48.5 | AI122: 331.2 | AJ122: 0 | AK122: 105.39 | AL122: 129.55 | AM122: 62.5 | AN122: 20.5 | AO122: 25 | AP122: 0 | AQ122: Auxiliar Administrativo | AR122: 411005 | AS122: Cataratas SA | AT122: 2020-12-01
A123: O | B123: LIM | C123: Varredor | D123: 1626 | E123: 0 | F123: 1626 | G123: D | H123: 6x1 | I123: 44h/s | J123: 0 | K123: 0 | L123: 0 | M123: 0 | N123: 0 | O123: 0 | P123: 0 | Q123: - | R123: 1626 | S123: - | T123: 843.48 | U123: 1293.06 | V123: - | W123: 0 | X123: 0 | Y123: 0 | Z123: 0 | AA123: 0 | AB123: 0 | AC123: 3762.54 | AD123: 45150.52 | AE123: 2.31 | AF123: 843.48 | AG123: 26 | AH123: 48.5 | AI123: 331.2 | AJ123: 120.84 | AK123: 105.39 | AL123: 129.55 | AM123: 62.5 | AN123: 20.5 | AO123: 25 | AP123: 0 | AQ123: Almoxarife | AR123: 414105 | AS123: SEAC-PR | AT123: 2021-01-01
A124: O | B124: MAN | C124: Ajudante de eletricista | D124: 2061.54 | E124: 0 | F124: 2061.54 | G124: D | H124: 5x2 | I124: 40h/s | J124: 0 | K124: 0 | L124: 0 | M124: 0 | N124: 0 | O124: 0 | P124: 0 | Q124: - | R124: 2061.54 | S124: - | T124: 732.8 | U124: 1639.42 | V124: - | W124: 0 | X124: 0 | Y124: 0 | Z124: 0 | AA124: 0 | AB124: 0 | AC124: 4433.76 | AD124: 53205.08 | AE124: 2.15 | AF124: 732.8 | AG124: 22 | AH124: 48.5 | AI124: 280.25 | AJ124: 61.11 | AK124: 105.39 | AL124: 129.55 | AM124: 62.5 | AN124: 20.5 | AO124: 25 | AP124: 0 | AQ124: Auxiliar Administrativo | AR124: 715615 | AS124: www.salario.com.br | AT124: 2020-09-01 | AU124: Ponta Grossa-PR
A125: O | B125: MAN | C125: Assistente de manutenção predial | D125: 2420 | E125: 0 | F125: 2420 | G125: D | H125: 5x2 | I125: 40h/s | J125: 0 | K125: 0 | L125: 0 | M125: 0 | N125: 0 | O125: 0 | P125: 0 | Q125: - | R125: 2420 | S125: - | T125: 711.29 | U125: 1924.49 | V125: - | W125: 0 | X125: 0 | Y125: 0 | Z125: 0 | AA125: 0 | AB125: 0 | AC125: 5055.78 | AD125: 60669.31 | AE125: 2.09 | AF125: 711.29 | AG125: 22 | AH125: 48.5 | AI125: 280.25 | AJ125: 39.6 | AK125: 105.39 | AL125: 129.55 | AM125: 62.5 | AN125: 20.5 | AO125: 25 | AP125: 0 | AQ125: Auxiliar Administrativo | AR125: 411005 | AS125: Cataratas SA | AT125: 2020-12-01
A126: O | B126: MAN | C126: Auxiliar de embarque/desembarque | D126: 1946.04 | E126: 0 | F126: 1946.04 | G126: D | H126: 5x2 | I126: 40h/s | J126: 0 | K126: 0 | L126: 0 | M126: 0 | N126: 0 | O126: 0 | P126: 0 | Q126: - | R126: 1946.04 | S126: - | T126: 739.73 | U126: 1547.58 | V126: - | W126: 0 | X126: 0 | Y126: 0 | Z126: 0 | AA126: 0 | AB126: 0 | AC126: 4233.35 | AD126: 50800.14 | AE126: 2.18 | AF126: 739.73 | AG126: 22 | AH126: 48.5 | AI126: 280.25 | AJ126: 68.04 | AK126: 105.39 | AL126: 129.55 | AM126: 62.5 | AN126: 20.5 | AO126: 25 | AP126: 0 | AQ126: Auxiliar de Manutenção Predial | AR126: 514310 | AS126: www.salario.com.br | AT126: 2020-09-01
A127: O | B127: MAN | C127: Auxiliar de manutenção predial | D127: 1946.04 | E127: 0 | F127: 1946.04 | G127: D | H127: 5x2 | I127: 40h/s | J127: 0 | K127: 0 | L127: 0 | M127: 0 | N127: 0 | O127: 0 | P127: 0 | Q127: - | R127: 1946.04 | S127: - | T127: 739.73 | U127: 1547.58 | V127: - | W127: 0 | X127: 0 | Y127: 0 | Z127: 0 | AA127: 0 | AB127: 0 | AC127: 4233.35 | AD127: 50800.14 | AE127: 2.18 | AF127: 739.73 | AG127: 22 | AH127: 48.5 | AI127: 280.25 | AJ127: 68.04 | AK127: 105.39 | AL127: 129.55 | AM127: 62.5 | AN127: 20.5 | AO127: 25 | AP127: 0 | AQ127: Auxiliar de Manutenção Predial | AR127: 514310 | AS127: www.salario.com.br | AT127: 2020-09-01
A128: O | B128: MAN | C128: Auxiliar de serviços gerais | D128: 1745.67 | E128: 0 | F128: 1745.67 | G128: D | H128: 5x2 | I128: 40h/s | J128: 0 | K128: 0 | L128: 0 | M128: 0 | N128: 0 | O128: 0 | P128: 0 | Q128: - | R128: 1745.67 | S128: - | T128: 751.75 | U128: 1388.23 | V128: - | W128: 0 | X128: 0 | Y128: 0 | Z128: 0 | AA128: 0 | AB128: 0 | AC128: 3885.64 | AD128: 46627.73 | AE128: 2.23 | AF128: 751.75 | AG128: 22 | AH128: 48.5 | AI128: 280.25 | AJ128: 80.06 | AK128: 105.39 | AL128: 129.55 | AM128: 62.5 | AN128: 20.5 | AO128: 25 | AP128: 0 | AQ128: Auxiliar de Manutenção Predial | AR128: 514310 | AS128: www.salario.com.br | AT128: 2020-09-01
A129: O | B129: MAN | C129: Eletricista | D129: 2472.64 | E129: 0.25 | F129: 3090.79 | G129: D | H129: 5x2 | I129: 40h/s | J129: 0 | K129: 0 | L129: 0 | M129: 0 | N129: 0 | O129: 0 | P129: 0 | Q129: - | R129: 3090.79 | S129: - | T129: 708.13 | U129: 2457.93 | V129: - | W129: 0 | X129: 0 | Y129: 0 | Z129: 0 | AA129: 0 | AB129: 0 | AC129: 6256.86 | AD129: 75082.27 | AE129: 2.02 | AF129: 708.13 | AG129: 22 | AH129: 48.5 | AI129: 280.25 | AJ129: 36.44 | AK129: 105.39 | AL129: 129.55 | AM129: 62.5 | AN129: 20.5 | AO129: 25 | AP129: 0 | AQ129: Eletricista de Instalações | AR129: 715615 | AS129: www.salario.com.br | AT129: 2020-09-01
A130: O | B130: MAN | C130: Encanador (bombeiro hidráulico) | D130: 2178.64 | E130: 0 | F130: 2178.64 | G130: D | H130: 5x2 | I130: 40h/s | J130: 0 | K130: 0.1 | L130: 0 | M130: 0 | N130: 0 | O130: 0 | P130: 0 | Q130: 209 | R130: 2387.64 | S130: - | T130: 725.77 | U130: 1898.76 | V130: - | W130: 0 | X130: 0 | Y130: 0 | Z130: 0 | AA130: 0 | AB130: 0 | AC130: 5012.17 | AD130: 60145.99 | AE130: 2.3 | AF130: 725.77 | AG130: 22 | AH130: 48.5 | AI130: 280.25 | AJ130: 54.08 | AK130: 105.39 | AL130: 129.55 | AM130: 62.5 | AN130: 20.5 | AO130: 25 | AP130: 0 | AQ130: Instalador hidráulico | AR130: 724110 | AS130: www.salario.com.br | AT130: 2020-09-01
A131: O | B131: MAN | C131: Encarregado de manutenção | D131: 3781.09 | E131: 0 | F131: 3781.09 | G131: D | H131: 5x2 | I131: 40h/s | J131: 0 | K131: 0.06 | L131: 0 | M131: 0 | N131: 0 | O131: 0 | P131: 0 | Q131: 209 | R131: 3990.09 | S131: - | T131: 671.69 | U131: 3173.09 | V131: - | W131: 0 | X131: 0 | Y131: 0 | Z131: 0 | AA131: 0 | AB131: 0 | AC131: 7834.87 | AD131: 94018.49 | AE131: 2.07 | AF131: 671.69 | AG131: 22 | AH131: 48.5 | AI131: 280.25 | AJ131: 0 | AK131: 105.39 | AL131: 129.55 | AM131: 62.5 | AN131: 20.5 | AO131: 25 | AP131: 0 | AQ131: Encarregado de Manutenção | AR131: 313115 | AS131: www.salario.com.br | AT131: 2020-09-01
A132: O | B132: MAN | C132: Lavador de veículos | D132: 2408.23 | E132: 0 | F132: 2408.23 | G132: D | H132: 6x1 | I132: 44h/s | J132: 0 | K132: 0 | L132: 0 | M132: 0 | N132: 0 | O132: 0 | P132: 0 | Q132: - | R132: 2408.23 | S132: - | T132: 796.55 | U132: 1915.13 | V132: - | W132: 0 | X132: 0 | Y132: 0 | Z132: 0 | AA132: 0 | AB132: 0 | AC132: 5119.9 | AD132: 61438.8 | AE132: 2.13 | AF132: 796.55 | AG132: 26 | AH132: 48.5 | AI132: 331.2 | AJ132: 73.91 | AK132: 105.39 | AL132: 129.55 | AM132: 62.5 | AN132: 20.5 | AO132: 25 | AP132: 0 | AQ132: Lavador de veículos | AR132: 519935 | AS132: www.salario.com.br | AT132: 2020-09-01
A133: O | B133: MAN | C133: Marceneiro | D133: 1928.59 | E133: 0 | F133: 1928.59 | G133: D | H133: 5x2 | I133: 40h/s | J133: 0 | K133: 0 | L133: 0 | M133: 0 | N133: 0 | O133: 0 | P133: 0 | Q133: - | R133: 1928.59 | S133: - | T133: 740.77 | U133: 1533.7 | V133: - | W133: 0 | X133: 0 | Y133: 0 | Z133: 0 | AA133: 0 | AB133: 0 | AC133: 4203.07 | AD133: 50436.82 | AE133: 2.18 | AF133: 740.77 | AG133: 22 | AH133: 48.5 | AI133: 280.25 | AJ133: 69.08 | AK133: 105.39 | AL133: 129.55 | AM133: 62.5 | AN133: 20.5 | AO133: 25 | AP133: 0 | AQ133: Marceneiro | AR133: 771105 | AS133: www.salario.com.br | AT133: 2020-09-01
A134: O | B134: MAN | C134: Mecânico | D134: 3630 | E134: 0 | F134: 3630 | G134: D | H134: 5x2 | I134: 40h/s | J134: 0 | K134: 0 | L134: 0 | M134: 0 | N134: 0 | O134: 0 | P134: 0 | Q134: - | R134: 3630 | S134: - | T134: 671.69 | U134: 2886.73 | V134: - | W134: 0 | X134: 0 | Y134: 0 | Z134: 0 | AA134: 0 | AB134: 0 | AC134: 7188.42 | AD134: 86261.04 | AE134: 1.98 | AF134: 671.69 | AG134: 22 | AH134: 48.5 | AI134: 280.25 | AJ134: 0 | AK134: 105.39 | AL134: 129.55 | AM134: 62.5 | AN134: 20.5 | AO134: 25 | AP134: 0 | AQ134: Marceneiro | AR134: 771105 | AS134: www.salario.com.br | AT134: 2020-09-01
A135: O | B135: MAN | C135: Operador de máquina | D135: 1881.03 | E135: 0 | F135: 1881.03 | G135: D | H135: 6x1 | I135: 44h/s | J135: 0 | K135: 0 | L135: 0 | M135: 0 | N135: 0 | O135: 0 | P135: 0 | Q135: - | R135: 1881.03 | S135: - | T135: 828.18 | U135: 1495.88 | V135: - | W135: 0 | X135: 0 | Y135: 0 | Z135: 0 | AA135: 0 | AB135: 0 | AC135: 4205.09 | AD135: 50461.02 | AE135: 2.24 | AF135: 828.18 | AG135: 26 | AH135: 48.5 | AI135: 331.2 | AJ135: 105.54 | AK135: 105.39 | AL135: 129.55 | AM135: 62.5 | AN135: 20.5 | AO135: 25 | AP135: 0 | AQ135: Operador de máquina fixa | AR135: 862150 | AS135: www.salario.com.br | AT135: 2020-09-01
A136: O | B136: MAN | C136: Pedreiro | D136: 2246.1 | E136: 0 | F136: 2246.1 | G136: D | H136: 5x2 | I136: 40h/s | J136: 0 | K136: 0 | L136: 0 | M136: 0 | N136: 0 | O136: 0 | P136: 0 | Q136: - | R136: 2246.1 | S136: - | T136: 721.72 | U136: 1786.19 | V136: - | W136: 0 | X136: 0 | Y136: 0 | Z136: 0 | AA136: 0 | AB136: 0 | AC136: 4754.01 | AD136: 57048.18 | AE136: 2.12 | AF136: 721.72 | AG136: 22 | AH136: 48.5 | AI136: 280.25 | AJ136: 50.03 | AK136: 105.39 | AL136: 129.55 | AM136: 62.5 | AN136: 20.5 | AO136: 25 | AP136: 0 | AQ136: Pedreiro | AR136: 715210 | AS136: www.salario.com.br | AT136: 2020-09-01
A137: O | B137: MAN | C137: Piloto fluvial | D137: 5243.33 | E137: 0 | F137: 5243.33 | G137: D | H137: 5x2 | I137: 40h/s | J137: 0 | K137: 0 | L137: 0 | M137: 0 | N137: 0 | O137: 0 | P137: 0 | Q137: - | R137: 5243.33 | S137: - | T137: 671.69 | U137: 4169.72 | V137: - | W137: 0 | X137: 0 | Y137: 0 | Z137: 0 | AA137: 0 | AB137: 0 | AC137: 10084.74 | AD137: 121016.86 | AE137: 1.92 | AF137: 671.69 | AG137: 22 | AH137: 48.5 | AI137: 280.25 | AJ137: 0 | AK137: 105.39 | AL137: 129.55 | AM137: 62.5 | AN137: 20.5 | AO137: 25 | AP137: 0 | AQ137: Piloto fluvial | AS137: www.cargos.com.br | AT137: 2020-09-01 | AU137: Foz do Iguaçu-PR
A138: O | B138: MAN | C138: Pintor | D138: 2057.44 | E138: 0 | F138: 2057.44 | G138: D | H138: 5x2 | I138: 40h/s | J138: 0 | K138: 0 | L138: 0 | M138: 0 | N138: 0 | O138: 0 | P138: 0 | Q138: - | R138: 2057.44 | S138: - | T138: 733.04 | U138: 1636.16 | V138: - | W138: 0 | X138: 0 | Y138: 0 | Z138: 0 | AA138: 0 | AB138: 0 | AC138: 4426.64 | AD138: 53119.66 | AE138: 2.15 | AF138: 733.04 | AG138: 22 | AH138: 48.5 | AI138: 280.25 | AJ138: 61.35 | AK138: 105.39 | AL138: 129.55 | AM138: 62.5 | AN138: 20.5 | AO138: 25 | AP138: 0 | AQ138: Pintor de obras | AR138: 716610 | AS138: www.salario.com.br | AT138: 2020-09-01
A139: O | B139: MAN | C139: Serralheiro | D139: 2291.22 | E139: 0 | F139: 2291.22 | G139: D | H139: 5x2 | I139: 40h/s | J139: 0 | K139: 0 | L139: 0 | M139: 0 | N139: 0 | O139: 0 | P139: 0 | Q139: - | R139: 2291.22 | S139: - | T139: 719.01 | U139: 1822.08 | V139: - | W139: 0 | X139: 0 | Y139: 0 | Z139: 0 | AA139: 0 | AB139: 0 | AC139: 4832.31 | AD139: 57987.73 | AE139: 2.11 | AF139: 719.01 | AG139: 22 | AH139: 48.5 | AI139: 280.25 | AJ139: 47.33 | AK139: 105.39 | AL139: 129.55 | AM139: 62.5 | AN139: 20.5 | AO139: 25 | AP139: 0 | AQ139: Serralheiro | AR139: 724440 | AS139: www.salario.com.br | AT139: 2020-09-01
A140: O | B140: MAN | C140: Supervisor de manutenção de áreas verdes | D140: 4235 | E140: 0 | F140: 4235 | G140: D | H140: 6x1 | I140: 44h/s | J140: 0 | K140: 0 | L140: 0 | M140: 0 | N140: 0 | O140: 0 | P140: 0 | Q140: - | R140: 4235 | S140: - | T140: 722.64 | U140: 3367.85 | V140: - | W140: 0 | X140: 0 | Y140: 0 | Z140: 0 | AA140: 0 | AB140: 0 | AC140: 8325.5 | AD140: 99905.95 | AE140: 1.97 | AF140: 722.64 | AG140: 26 | AH140: 48.5 | AI140: 331.2 | AJ140: 0 | AK140: 105.39 | AL140: 129.55 | AM140: 62.5 | AN140: 20.5 | AO140: 25 | AP140: 0 | AQ140: Auxiliar Administrativo | AR140: 411005 | AS140: Cataratas SA | AT140: 2020-12-01
A141: O | B141: MAN | C141: Supervisor de manutenção máq. e equip. | D141: 4875.17 | E141: 0 | F141: 4875.17 | G141: D | H141: 5x2 | I141: 40h/s | J141: 0 | K141: 0 | L141: 0 | M141: 0 | N141: 0 | O141: 0 | P141: 0 | Q141: - | R141: 4875.17 | S141: - | T141: 671.69 | U141: 3876.95 | V141: - | W141: 0 | X141: 0 | Y141: 0 | Z141: 0 | AA141: 0 | AB141: 0 | AC141: 9423.81 | AD141: 113085.73 | AE141: 1.93 | AF141: 671.69 | AG141: 22 | AH141: 48.5 | AI141: 280.25 | AJ141: 0 | AK141: 105.39 | AL141: 129.55 | AM141: 62.5 | AN141: 20.5 | AO141: 25 | AP141: 0 | AQ141: Encarregado de Manutenção | AR141: 950110 | AS141: www.salario.com.br | AT141: 2020-08-01
A142: O | B142: MAN | C142: Supervisor de TI | D142: 9680 | E142: 0 | F142: 9680 | G142: D | H142: 5x2 | I142: 40h/s | J142: 0 | K142: 0 | L142: 0 | M142: 0 | N142: 0 | O142: 0 | P142: 0 | Q142: - | R142: 9680 | S142: - | T142: 671.69 | U142: 7697.95 | V142: - | W142: 0 | X142: 0 | Y142: 0 | Z142: 0 | AA142: 0 | AB142: 0 | AC142: 18049.64 | AD142: 216595.68 | AE142: 1.86 | AF142: 671.69 | AG142: 22 | AH142: 48.5 | AI142: 280.25 | AJ142: 0 | AK142: 105.39 | AL142: 129.55 | AM142: 62.5 | AN142: 20.5 | AO142: 25 | AP142: 0 | AQ142: Auxiliar Administrativo | AR142: 411005 | AS142: Cataratas SA | AT142: 2020-12-01
A143: O | B143: MAN | C143: Oficial de manutenção predial | D143: 1812.19 | E143: 0.3 | F143: 2355.85 | G143: D | H143: 6x1 | I143: 44h/s | J143: 0 | K143: 0 | L143: 0 | M143: 0 | N143: 0 | O143: 0 | P143: 0 | Q143: - | R143: 2355.85 | S143: - | T143: 832.31 | U143: 1873.47 | V143: - | W143: 0 | X143: 0 | Y143: 0 | Z143: 0 | AA143: 0 | AB143: 0 | AC143: 5061.63 | AD143: 60739.61 | AE143: 2.15 | AF143: 832.31 | AG143: 26 | AH143: 48.5 | AI143: 331.2 | AJ143: 109.67 | AK143: 105.39 | AL143: 129.55 | AM143: 62.5 | AN143: 20.5 | AO143: 25 | AP143: 0 | AQ143: Auxiliar Administrativo | AR143: 514325 | AS143: www.salario.com.br | AT143: 2020-09-01
A144: O | B144: MAN | C144: Técnico em eletromecânica | D144: 2246.73 | E144: 0 | F144: 2246.73 | G144: D | H144: 5x2 | I144: 40h/s | J144: 0 | K144: 0 | L144: 0 | M144: 0 | N144: 0 | O144: 0 | P144: 0 | Q144: - | R144: 2246.73 | S144: - | T144: 721.68 | U144: 1786.69 | V144: - | W144: 0 | X144: 0 | Y144: 0 | Z144: 0 | AA144: 0 | AB144: 0 | AC144: 4755.11 | AD144: 57061.28 | AE144: 2.12 | AF144: 721.68 | AG144: 22 | AH144: 48.5 | AI144: 280.25 | AJ144: 50 | AK144: 105.39 | AL144: 129.55 | AM144: 62.5 | AN144: 20.5 | AO144: 25 | AP144: 0 | AQ144: Técnico de Helpdesk | AS144: www.salario.com.br | AT144: 2020-11-01
A145: O | B145: MAN | C145: Técnico em manutenção de equip. TI | D145: 2083.89 | E145: 0 | F145: 2083.89 | G145: D | H145: 5x2 | I145: 40h/s | J145: 0 | K145: 0 | L145: 0 | M145: 0 | N145: 0 | O145: 0 | P145: 0 | Q145: - | R145: 2083.89 | S145: - | T145: 731.45 | U145: 1657.2 | V145: - | W145: 0 | X145: 0 | Y145: 0 | Z145: 0 | AA145: 0 | AB145: 0 | AC145: 4472.54 | AD145: 53670.44 | AE145: 2.15 | AF145: 731.45 | AG145: 22 | AH145: 48.5 | AI145: 280.25 | AJ145: 59.77 | AK145: 105.39 | AL145: 129.55 | AM145: 62.5 | AN145: 20.5 | AO145: 25 | AP145: 0 | AQ145: Técnico de Helpdesk | AS145: www.salario.com.br | AT145: 2020-09-01
A146: O | B146: MAN | C146: Técnico em eletrônica | D146: 2624.05 | E146: 0 | F146: 2624.05 | G146: D | H146: 5x2 | I146: 40h/s | J146: 0 | K146: 0 | L146: 0 | M146: 0 | N146: 0 | O146: 0 | P146: 0 | Q146: - | R146: 2624.05 | S146: - | T146: 699.04 | U146: 2086.76 | V146: - | W146: 0 | X146: 0 | Y146: 0 | Z146: 0 | AA146: 0 | AB146: 0 | AC146: 5409.86 | AD146: 64918.32 | AE146: 2.06 | AF146: 699.04 | AG146: 22 | AH146: 48.5 | AI146: 280.25 | AJ146: 27.36 | AK146: 105.39 | AL146: 129.55 | AM146: 62.5 | AN146: 20.5 | AO146: 25 | AP146: 0 | AQ146: Eletrônico de manutenção | AR146: 313205 | AS146: www.salario.com.br | AT146: 2020-09-01
A147: O | B147: SEG | C147: Bombeiro civil (brigadista) | D147: 3685.18 | E147: 0 | F147: 3685.18 | G147: D | H147: 6x1 | I147: 44h/s | J147: 0 | K147: 0 | L147: 0.3 | M147: 0 | N147: 0 | O147: 0 | P147: 0 | Q147: 1105.55 | R147: 4790.73 | S147: - | T147: 1325.58 | U147: 3809.79 | V147: - | W147: 0 | X147: 0 | Y147: 0 | Z147: 0 | AA147: 0 | AB147: 0 | AC147: 9926.11 | AD147: 119113.26 | AE147: 2.69 | AF147: 1325.58 | AG147: 26 | AH147: 590.91 | AI147: 331.2 | AJ147: 0 | AK147: 105.39 | AL147: 190.08 | AM147: 62.5 | AN147: 20.5 | AO147: 25 | AP147: 0 | AQ147: Controlador de Acesso | AR147: 517410 | AS147: www.salario.com.br | AT147: 2020-11-01
A148: O | B148: SEG | C148: Controlador de acesso (Porteiro) | D148: 2050.95 | E148: 0.2 | F148: 2461.14 | G148: D | H148: 6x1 | I148: 44h/s | J148: 0 | K148: 0 | L148: 0 | M148: 0 | N148: 0 | O148: 0 | P148: 0 | Q148: - | R148: 2461.14 | S148: - | T148: 817.98 | U148: 1957.2 | V148: - | W148: 0 | X148: 0 | Y148: 0 | Z148: 0 | AA148: 0 | AB148: 0 | AC148: 5236.33 | AD148: 62835.95 | AE148: 2.13 | AF148: 817.98 | AG148: 26 | AH148: 48.5 | AI148: 331.2 | AJ148: 95.34 | AK148: 105.39 | AL148: 129.55 | AM148: 62.5 | AN148: 20.5 | AO148: 25 | AP148: 0 | AQ148: Controlador de Acesso | AR148: 517410 | AS148: SEAC-PR | AT148: 2021-01-01
A149: O | B149: SEG | C149: Controlador de acesso (Porteiro) - SDF | D149: 1465.35 | E149: 0.2 | F149: 1758.42 | G149: D | H149: SDF | I149: até 26h/s | J149: 0 | K149: 0 | L149: 0 | M149: 0 | N149: 0 | O149: 0 | P149: 0 | Q149: - | R149: 1758.42 | S149: - | T149: 518.83 | U149: 1398.37 | V149: - | W149: 0 | X149: 0 | Y149: 0 | Z149: 0 | AA149: 0 | AB149: 0 | AC149: 3675.61 | AD149: 44107.31 | AE149: 2.09 | AF149: 518.83 | AG149: 10 | AH149: 48.5 | AI149: 127.38 | AJ149: 0 | AK149: 105.39 | AL149: 129.55 | AM149: 62.5 | AN149: 20.5 | AO149: 25 | AP149: 0 | AQ149: Controlador de Acesso | AR149: 517410 | AS149: SEAC-PR | AT149: 2021-01-01
A150: T | B150: SEG | C150: Vigilante líder - D | D150: 2191.99 | E150: 0.15 | F150: 2520.79 | G150: D | H150: 12x36 | J150: 0.3 | K150: 0 | L150: 0.3 | M150: 0 | N150: 0 | O150: 0 | P150: 0 | Q150: 1512.47 | R150: 4033.26 | S150: 2490.77 | T150: 780.06 | U150: 3207.42 | V150: 1203.11 | W150: 0.05 | X150: 0.1 | Y150: 0.076 | Z150: 0.01 | AA150: 0.0165 | AB150: 0.02 | AC150: 10511.5 | AD150: 126138.02 | AE150: 4.17 | AF150: 780.06 | AG150: 15 | AH150: 75.13 | AI150: 375.48 | AJ150: 0 | AK150: 139.45 | AL150: 75 | AM150: 90 | AN150: 0 | AO150: 25 | AP150: 0 | AQ150: Vigilante | AR150: 517330 | AS150: SINDESP-PR | AT150: 2021-01-01
A151: T | B151: SEG | C151: Vigilante líder - D - SDF | D151: 1295.25 | E151: 0.15 | F151: 1489.53 | G151: D | H151: SDF | I151: até 26h/s | J151: 0.3 | K151: 0 | L151: 0.3 | M151: 0 | N151: 0 | O151: 0 | P151: 0 | Q151: 893.72 | R151: 2383.25 | S151: 1533.98 | T151: 661.18 | U151: 1895.26 | V151: 740.95 | W151: 0.05 | X151: 0.1 | Y151: 0.076 | Z151: 0.01 | AA151: 0.0165 | AB151: 0.02 | AC151: 6473.68 | AD151: 77684.13 | AE151: 4.35 | AF151: 661.18 | AG151: 10 | AH151: 75.13 | AI151: 250.32 | AJ151: 6.29 | AK151: 139.45 | AL151: 75 | AM151: 90 | AN151: 0 | AO151: 25 | AP151: 0 | AQ151: Vigilante | AR151: 517330 | AS151: SINDESP-PR | AT151: 2021-01-01
A152: T | B152: SEG | C152: Vigilante líder - N | D152: 2191.99 | E152: 0.15 | F152: 2520.79 | G152: N | H152: 12x36 | J152: 0.3 | K152: 0 | L152: 0.3 | M152: 0 | N152: 0 | O152: 0 | P152: 0.2 | Q152: 2016.63 | R152: 4537.41 | S152: 2771.84 | T152: 780.06 | U152: 3608.35 | V152: 1338.87 | W152: 0.05 | X152: 0.1 | Y152: 0.076 | Z152: 0.01 | AA152: 0.0165 | AB152: 0.02 | AC152: 11697.65 | AD152: 140371.83 | AE152: 4.64 | AF152: 780.06 | AG152: 15 | AH152: 75.13 | AI152: 375.48 | AJ152: 0 | AK152: 139.45 | AL152: 75 | AM152: 90 | AN152: 0 | AO152: 25 | AP152: 0 | AQ152: Vigilante | AR152: 517330 | AS152: SINDESP-PR | AT152: 2021-01-01
A153: T | B153: SEG | C153: Vigilante - D | D153: 2191.99 | E153: 0.15 | F153: 2520.79 | G153: D | H153: 12x36 | J153: 0.3 | K153: 0 | L153: 0.3 | M153: 0 | N153: 0 | O153: 0.25 | P153: 0 | Q153: 2142.67 | R153: 4663.45 | S153: 2842.1 | T153: 780.06 | U153: 3708.58 | V153: 1372.81 | W153: 0.05 | X153: 0.1 | Y153: 0.076 | Z153: 0.01 | AA153: 0.0165 | AB153: 0.02 | AC153: 11994.19 | AD153: 143930.28 | AE153: 4.76 | AF153: 780.06 | AG153: 15 | AH153: 75.13 | AI153: 375.48 | AJ153: 0 | AK153: 139.45 | AL153: 75 | AM153: 90 | AN153: 0 | AO153: 25 | AP153: 0 | AQ153: Vigilante | AR153: 517330 | AS153: SINDESP-PR | AT153: 2021-01-01
A154: T | B154: SEG | C154: Vigilante - D - SDF | D154: 1295.25 | E154: 0.15 | F154: 1489.53 | G154: D | H154: SDF | I154: até 26h/s | J154: 0.3 | K154: 0 | L154: 0.3 | M154: 0 | N154: 0 | O154: 0.25 | P154: 0 | Q154: 1266.1 | R154: 2755.63 | S154: 1741.58 | T154: 661.18 | U154: 2191.4 | V154: 841.23 | W154: 0.05 | X154: 0.1 | Y154: 0.076 | Z154: 0.01 | AA154: 0.0165 | AB154: 0.02 | AC154: 7349.8 | AD154: 88197.57 | AE154: 4.93 | AF154: 661.18 | AG154: 10 | AH154: 75.13 | AI154: 250.32 | AJ154: 6.29 | AK154: 139.45 | AL154: 75 | AM154: 90 | AN154: 0 | AO154: 25 | AP154: 0 | AQ154: Vigilante | AR154: 517330 | AS154: SINDESP-PR | AT154: 2021-01-01
A155: T | B155: SEG | C155: Vigilante - N | D155: 2191.99 | E155: 0.15 | F155: 2520.79 | G155: N | H155: 12x36 | J155: 0.3 | K155: 0 | L155: 0.3 | M155: 0 | N155: 0 | O155: 0 | P155: 0.2 | Q155: 2016.63 | R155: 4537.41 | S155: 2771.84 | T155: 780.06 | U155: 3608.35 | V155: 1338.87 | W155: 0.05 | X155: 0.1 | Y155: 0.076 | Z155: 0.01 | AA155: 0.0165 | AB155: 0.02 | AC155: 11697.65 | AD155: 140371.83 | AE155: 4.64 | AF155: 780.06 | AG155: 15 | AH155: 75.13 | AI155: 375.48 | AJ155: 0 | AK155: 139.45 | AL155: 75 | AM155: 90 | AN155: 0 | AO155: 25 | AP155: 0 | AQ155: Vigilante | AR155: 517330 | AS155: SINDESP-PR | AT155: 2021-01-01
A156: T | B156: SEG | C156: Vigilante - D - 40h/sem | D156: 2191.99 | E156: 0.15 | F156: 2520.79 | G156: D | H156: 6x1 | I156: 44h/s | J156: 0.3 | K156: 0 | L156: 0.3 | M156: 0 | N156: 0 | O156: 0 | P156: 0 | Q156: 1512.47 | R156: 4033.26 | S156: 2603.26 | T156: 1142.29 | U156: 3207.42 | V156: 1257.44 | W156: 0.05 | X156: 0.1 | Y156: 0.076 | Z156: 0.01 | AA156: 0.0165 | AB156: 0.02 | AC156: 10986.22 | AD156: 131834.67 | AE156: 4.36 | AF156: 1142.29 | AG156: 26 | AH156: 75.13 | AI156: 650.83 | AJ156: 86.88 | AK156: 139.45 | AL156: 75 | AM156: 90 | AN156: 0 | AO156: 25 | AP156: 0 | AQ156: Vigilante | AR156: 517330 | AS156: SINDESP-PR | AT156: 2021-01-01
A157: T | B157: SEG | C157: Vigilante - D - 40h/sem - SDF | D157: 1295.25 | E157: 0.15 | F157: 1489.53 | G157: D | H157: SDF | I157: até 26h/s | J157: 0.3 | K157: 0 | L157: 0.3 | M157: 0 | N157: 0 | O157: 0 | P157: 0 | Q157: 893.72 | R157: 2383.25 | S157: 1533.98 | T157: 661.18 | U157: 1895.26 | V157: 740.95 | W157: 0.05 | X157: 0.1 | Y157: 0.076 | Z157: 0.01 | AA157: 0.0165 | AB157: 0.02 | AC157: 6473.68 | AD157: 77684.13 | AE157: 4.35 | AF157: 661.18 | AG157: 10 | AH157: 75.13 | AI157: 250.32 | AJ157: 6.29 | AK157: 139.45 | AL157: 75 | AM157: 90 | AN157: 0 | AO157: 25 | AP157: 0 | AQ157: Vigilante | AR157: 517330 | AS157: SINDESP-PR | AT157: 2021-01-01
A158: T | B158: SEG | C158: Vigilante - N - 40h/sem | D158: 2191.99 | E158: 0.15 | F158: 2520.79 | G158: N | H158: 6x1 | I158: 44h/s | J158: 0.3 | K158: 0 | L158: 0.3 | M158: 0 | N158: 0 | O158: 0 | P158: 0 | Q158: 1512.47 | R158: 4033.26 | S158: 2603.26 | T158: 1142.29 | U158: 3207.42 | V158: 1257.44 | W158: 0.05 | X158: 0.1 | Y158: 0.076 | Z158: 0.01 | AA158: 0.0165 | AB158: 0.02 | AC158: 10986.22 | AD158: 131834.67 | AE158: 4.36 | AF158: 1142.29 | AG158: 26 | AH158: 75.13 | AI158: 650.83 | AJ158: 86.88 | AK158: 139.45 | AL158: 75 | AM158: 90 | AN158: 0 | AO158: 25 | AP158: 0 | AQ158: Vigilante | AR158: 517330 | AS158: SINDESP-PR | AT158: 2021-01-01
A159: T | B159: SEG | C159: Vigilante - Rondista - D | D159: 2191.99 | E159: 0.15 | F159: 2520.79 | G159: D | H159: 12x36 | J159: 0.3 | K159: 0 | L159: 0.3 | M159: 0.1 | N159: 0 | O159: 0 | P159: 0 | Q159: 1764.55 | R159: 4285.34 | S159: 2631.3 | T159: 780.06 | U159: 3407.88 | V159: 1270.99 | W159: 0.05 | X159: 0.1 | Y159: 0.076 | Z159: 0.01 | AA159: 0.0165 | AB159: 0.02 | AC159: 11104.58 | AD159: 133254.92 | AE159: 4.41 | AF159: 780.06 | AG159: 15 | AH159: 75.13 | AI159: 375.48 | AJ159: 0 | AK159: 139.45 | AL159: 75 | AM159: 90 | AN159: 0 | AO159: 25 | AP159: 0 | AQ159: Vigilante | AR159: 517330 | AS159: SINDESP-PR | AT159: 2021-01-01
A160: T | B160: SEG | C160: Vigilante - Rondista - N | D160: 2191.99 | E160: 0.15 | F160: 2520.79 | G160: N | H160: 12x36 | J160: 0.3 | K160: 0 | L160: 0.3 | M160: 0.1 | N160: 0 | O160: 0 | P160: 0.2 | Q160: 2268.71 | R160: 4789.49 | S160: 2912.37 | T160: 780.06 | U160: 3808.81 | V160: 1406.75 | W160: 0.05 | X160: 0.1 | Y160: 0.076 | Z160: 0.01 | AA160: 0.0165 | AB160: 0.02 | AC160: 12290.73 | AD160: 147488.73 | AE160: 4.88 | AF160: 780.06 | AG160: 15 | AH160: 75.13 | AI160: 375.48 | AJ160: 0 | AK160: 139.45 | AL160: 75 | AM160: 90 | AN160: 0 | AO160: 25 | AP160: 0 | AQ160: Vigilante | AR160: 517330 | AS160: SINDESP-PR | AT160: 2021-01-01
A161: T | B161: SEG | C161: Vigilante - D - SDF | D161: 2179.38 | E161: 0.15 | F161: 2506.29 | G161: D | H161: SDF | I161: até 26h/s | J161: 0.3 | K161: 0 | L161: 0.3 | M161: 0 | N161: 0 | O161: 0 | P161: 0 | Q161: 1503.77 | R161: 4010.06 | S161: 2438.97 | T161: 654.9 | U161: 3188.97 | V161: 1178.09 | W161: 0.05 | X161: 0.1 | Y161: 0.076 | Z161: 0.01 | AA161: 0.0165 | AB161: 0.02 | AC161: 10292.89 | AD161: 123514.71 | AE161: 4.11 | AF161: 654.9 | AG161: 10 | AH161: 75.13 | AI161: 250.32 | AJ161: 0 | AK161: 139.45 | AL161: 75 | AM161: 90 | AN161: 0 | AO161: 25 | AP161: 0 | AQ161: Vigilante | AR161: 517330 | AS161: SINDESP-PR | AT161: 2021-01-01
A162: T | B162: SEG | C162: Vigilante op. monitoramento eletrônico - D | D162: 2191.99 | E162: 0.15 | F162: 2520.79 | G162: D | H162: 12x36 | J162: 0 | K162: 0 | L162: 0 | M162: 0 | N162: 0.12 | O162: 0 | P162: 0 | Q162: 302.49 | R162: 2823.28 | S162: 1816.21 | T162: 780.06 | U162: 2245.19 | V162: 877.28 | W162: 0.05 | X162: 0.1 | Y162: 0.076 | Z162: 0.01 | AA162: 0.0165 | AB162: 0.02 | AC162: 7664.74 | AD162: 91976.88 | AE162: 3.04 | AF162: 780.06 | AG162: 15 | AH162: 75.13 | AI162: 375.48 | AJ162: 0 | AK162: 139.45 | AL162: 75 | AM162: 90 | AN162: 0 | AO162: 25 | AP162: 0 | AQ162: Vigilante | AR162: 517330 | AS162: SINDESP-PR | AT162: 2021-01-01
A163: T | B163: SEG | C163: Vigilante op. monitoramento eletrônico - N | D163: 2191.99 | E163: 0.15 | F163: 2520.79 | G163: N | H163: 12x36 | J163: 0 | K163: 0 | L163: 0 | M163: 0 | N163: 0.12 | O163: 0 | P163: 0.2 | Q163: 806.65 | R163: 3327.44 | S163: 2097.28 | T163: 780.06 | U163: 2646.12 | V163: 1013.04 | W163: 0.05 | X163: 0.1 | Y163: 0.076 | Z163: 0.01 | AA163: 0.0165 | AB163: 0.02 | AC163: 8850.89 | AD163: 106210.69 | AE163: 3.51 | AF163: 780.06 | AG163: 15 | AH163: 75.13 | AI163: 375.48 | AJ163: 0 | AK163: 139.45 | AL163: 75 | AM163: 90 | AN163: 0 | AO163: 25 | AP163: 0 | AQ163: Vigilante | AR163: 517330 | AS163: SINDESP-PR | AT163: 2021-01-01
A164: T | B164: SEG | C164: Vigilante operador de drone ou VANT | D164: 2191.99 | E164: 0.15 | F164: 2520.79 | G164: D | H164: 6x1 | I164: 44h/s | J164: 0.3 | K164: 0 | L164: 0.3 | M164: 0 | N164: 0.12 | O164: 0 | P164: 0 | Q164: 1814.97 | R164: 4335.75 | S164: 2771.9 | T164: 1142.29 | U164: 3447.98 | V164: 1338.9 | W164: 0.05 | X164: 0.1 | Y164: 0.076 | Z164: 0.01 | AA164: 0.0165 | AB164: 0.02 | AC164: 11697.91 | AD164: 140374.96 | AE164: 4.64 | AF164: 1142.29 | AG164: 26 | AH164: 75.13 | AI164: 650.83 | AJ164: 86.88 | AK164: 139.45 | AL164: 75 | AM164: 90 | AN164: 0 | AO164: 25 | AP164: 0 | AQ164: Vigilante | AR164: 517330 | AS164: SINDESP-PR | AT164: 2021-01-01
A165: O | B165: TRA | C165: Motorista de ônibus urbano | D165: 2571.9 | E165: 0.3 | F165: 3343.47 | G165: D | H165: 6x1 | I165: 44h/s | J165: 0 | K165: 0 | L165: 0.3 | M165: 0.1 | N165: 0 | O165: 0 | P165: 0 | Q165: 1337.39 | R165: 4680.86 | S165: - | T165: 786.73 | U165: 3722.42 | V165: - | W165: 0 | X165: 0 | Y165: 0 | Z165: 0 | AA165: 0 | AB165: 0 | AC165: 9190.02 | AD165: 110280.19 | AE165: 2.75 | AF165: 786.73 | AG165: 26 | AH165: 48.5 | AI165: 331.2 | AJ165: 64.09 | AK165: 105.39 | AL165: 129.55 | AM165: 62.5 | AN165: 20.5 | AO165: 25 | AP165: 0 | AQ165: Motorista de Ônibus Urbano | AR165: 782410 | AS165: www.salario.com.br | AT165: 2020-09-01
A166: O | B166: TRA | C166: Motorista de ônibus urbano - SDF | D166: 1826.05 | E166: 0.3 | F166: 2373.87 | G166: D | H166: SDF | I166: até 26h/s | J166: 0 | K166: 0 | L166: 0 | M166: 0.1 | N166: 0 | O166: 0 | P166: 0 | Q166: 237.39 | R166: 2611.25 | S166: - | T166: 518.83 | U166: 2076.58 | V166: - | W166: 0 | X166: 0 | Y166: 0 | Z166: 0 | AA166: 0 | AB166: 0 | AC166: 5206.66 | AD166: 62479.93 | AE166: 2.19 | AF166: 518.83 | AG166: 10 | AH166: 48.5 | AI166: 127.38 | AJ166: 0 | AK166: 105.39 | AL166: 129.55 | AM166: 62.5 | AN166: 20.5 | AO166: 25 | AP166: 0 | AQ166: Motorista de Ônibus Urbano | AR166: 782410 | AS166: www.salario.com.br | AT166: 2020-09-01
A167: O | B167: TRA | C167: Motorista de ambulância | D167: 2168.19 | E167: 0.55 | F167: 3360.69 | G167: D | H167: 5x2 | I167: 40h/s | J167: 0 | K167: 0.06 | L167: 0 | M167: 0 | N167: 0 | O167: 0 | P167: 0 | Q167: 209 | R167: 3569.69 | S167: - | T167: 726.4 | U167: 2838.77 | V167: - | W167: 0 | X167: 0 | Y167: 0 | Z167: 0 | AA167: 0 | AB167: 0 | AC167: 7134.86 | AD167: 85618.28 | AE167: 2.12 | AF167: 726.4 | AG167: 22 | AH167: 48.5 | AI167: 280.25 | AJ167: 54.71 | AK167: 105.39 | AL167: 129.55 | AM167: 62.5 | AN167: 20.5 | AO167: 25 | AP167: 0 | AQ167: Motorista de Ônibus Urbano | AR167: 782410 | AS167: www.salario.com.br | AT167: 2020-09-01
A168: O | B168: TRA | C168: Auxiliar de Embarque/Desembarque Teleférico | D168: 1837.26 | E168: 0.15 | F168: 2112.85 | G168: D | H168: 6x1 | I168: 44h/s | J168: 0 | K168: 0.1 | L168: 0 | M168: 0 | N168: 0 | O168: 0 | P168: 0 | Q168: 209 | R168: 2321.85 | S168: - | T168: 830.81 | U168: 1846.44 | V168: - | W168: 0 | X168: 0 | Y168: 0 | Z168: 0 | AA168: 0 | AB168: 0 | AC168: 4999.1 | AD168: 59989.17 | AE168: 2.37 | AF168: 830.81 | AG168: 26 | AH168: 48.5 | AI168: 331.2 | AJ168: 108.16 | AK168: 105.39 | AL168: 129.55 | AM168: 62.5 | AN168: 20.5 | AO168: 25 | AP168: 0 | AQ168: Motorista de Ônibus Urbano | AR168: 782410 | AS168: www.salario.com.br | AT168: 2020-09-01
A169: O | B169: TRA | C169: Operador de Teleférico | D169: 2585.9 | E169: 0.15 | F169: 2973.79 | G169: D | H169: 6x1 | I169: 44h/s | J169: 0 | K169: 0.07 | L169: 0 | M169: 0 | N169: 0 | O169: 0 | P169: 0 | Q169: 209 | R169: 3182.79 | S169: - | T169: 785.89 | U169: 2531.09 | V169: - | W169: 0 | X169: 0 | Y169: 0 | Z169: 0 | AA169: 0 | AB169: 0 | AC169: 6499.77 | AD169: 77997.2 | AE169: 2.19 | AF169: 785.89 | AG169: 26 | AH169: 48.5 | AI169: 331.2 | AJ169: 63.25 | AK169: 105.39 | AL169: 129.55 | AM169: 62.5 | AN169: 20.5 | AO169: 25 | AP169: 0 | AQ169: Motorista de Ônibus Urbano | AR169: 782410 | AS169: www.salario.com.br | AT169: 2020-09-01
A193: O | B193: ADM | C193: Advogado | D193: 8000 | E193: 0 | F193: =D193*(1+E193) -> 8000 | G193: D | H193: =H$7 -> 5x2 | I193: =IF(H193="5x2","40h/s",IF(H193="6x1","44h/s",IF(H193="12x36","",IF(H193="SDF","até 26h/s","")))) -> 40h/s | J193: 0 | K193: =K$4*K$6/F193 -> 0 | L193: 0 | M193: 0 | N193: 0 | O193: 0 | P193: =IF(G193<>"N",0,1)*IF(H193<>"12x36",P$7,P$8) -> 0 | Q193: =SUM(J193:P193)*F193 -> 0 | R193: =Q193+F193 -> 8000 | S193: =AC193-T193-U193-R193 -> 0 | T193: =AF193 -> 671.723 | U193: =R193*U$9 -> 6361.6 | V193: =((R193+U193+T193)*W193+(R193+U193+T193)*X193) -> 0 | W193: =IF(A193="T",1,0)*W$9 -> 0 | X193: =IF(A193="T",1,0)*X$9 -> 0 | Y193: =IF(A193="T",1,0)*Y$9 -> 0 | Z193: =IF(A193="T",1,0)*Z$9 -> 0 | AA193: =IF(A193="T",1,0)*AA$9 -> 0 | AB193: =IF(B193="LIM",AB$8,IF(B193="SEG",AB$8,AB$9))*IF(A193="T",1,0) -> 0 | AC193: =(R193+U193+T193+V193)/(1-(Y193+Z193+AA193+AB193)) -> 15033.323 | AD193: =AC193*12 -> 180399.876 | AE193: =AC193/F193 -> 1.879165375 | AF193: =SUM(AH193:AP193) -> 671.723 | AG193: =IF(H193="12x36",15,IF(H193="6x1",26,IF(H193="SDF",10,22))) -> 22 | AH193: =AH$9 -> 48.5 | AI193: =AI$9*AG193 -> 280.28 | AJ193: =IF((2*AG193*AJ$9-6%*D193)<=0,0,(2*AG193*AJ$9-6%*D193)) -> 0 | AK193: =AK$9*(1-5%) -> 105.393 | AL193: =IF(A193="O",AL$9,0) -> 129.55 | AM193: =AM$9 -> 62.5 | AN193: 20.5 | AO193: =AO$7*AO$9 -> 25 | AP193: =AP$9/12 -> 0 | AQ193: Auxiliar Administrativo | AR193: 411005 | AS193: Cataratas SA | AT193: 2020-12-01

Sheet Manut.Automovel
B3: RESUMO GERAL OPEX
B4: DESPESAS COM AUTOMOVEL
B5: MODALIDADE : COMPRA - CONSIDERANDO A COMPRA A VISTA DE 50.000 OU CARRO EXISTENTE
B6: Localização | C6: Porto Alegre / RS | F6: DATA: | G6: 2022-04-15
B7: ITEM | C7: DESCRIÇÃO PARQUE | D7: QUANTIDADE | E7: UNID. | F7: PREÇO unit | G7: PREÇO TOTAL
B8: - | C8: VALOR COMBUSTIVEL | D8: 1 | E8: litro | F8: 7 | G8: =+G46 -> 0
B9: - | C9: CONSUMO POR AUTOMOVEL | D9: 10 | E9: Km/litro | G9: =+G66 -> 0
B10: - | C10: CUSTO POR KM | D10: 1 | E10: Km | F10: =D9/F8 -> 1.428571429 | G10: =+G86 -> 0
B11: - | C11: CUSTO POR KM POR MÊS | D11: =10*30 -> 300 | E11: Km/mês | F11: =F10 -> 1.428571429 | G11: =D11*F11 -> 428.5714286
B12: 1 | C12: MANUTENÇÃO - Considerando 1,5% a.a. em um carro 50.000 | D12: 1 | E12: mês | F12: 65 | G12: 65
B13: 2 | C13: SEGURO | D13: =1/12 -> 0.08333333333 | E13: mês | F13: 1500 | G13: 125
B14: 3 | C14: ALUGUEL | D14: 1 | E14: mês | G14: 0
B15: 4 | C15: PEDAGIO | F15: =G15/30 -> 0
B16: 5 | C16: LIMPEZA | D16: 1 | E16: mês | F16: 50 | G16: =D16*F16 -> 50
B17: 6 | C17: IMPOSTOS | D17: =1/12 -> 0.08333333333 | E17: mês | F17: 900 | G17: 75
B18: 7 | C18: DEPRECIAÇÃO - 5 ANOS CONSIDERANDO VALOR 50.000 | D18: 0.08333333333 | E18: mês | F18: =50000/5 -> 10000 | G18: 833.3333333
B19: 8 | C19: PARCELA VEICULO NOVO | E19: mês | G19: 0
B21: TOTAL DE 01 AUTOMOVEL POR MES: | G21: =SUM(G8:G19) -> 1576.904762
B24: RESUMO GERAL OPEX
B25: DESPESAS COM AUTOMOVEL
B26: MODALIDADE : ALUGUEL
B27: Localização | C27: Porto Alegre / RS | F27: DATA: | G27: 2022-04-15
B28: ITEM | C28: DESCRIÇÃO PARQUE | D28: QUANTIDADE | E28: UNID. | F28: PREÇO unit | G28: PREÇO TOTAL
B29: - | C29: VALOR COMBUSTIVEL | D29: 1 | E29: litro | F29: 7 | G29: =+G66 -> 0
B30: - | C30: CONSUMO POR AUTOMOVEL | D30: 10 | E30: Km/litro | G30: =+G86 -> 0
B31: - | C31: CUSTO POR KM | D31: 1 | E31: Km | F31: =D30/F29 -> 1.428571429 | G31: =+G106 -> 0
B32: - | C32: CUSTO POR KM POR MÊS | D32: =10*30 -> 300 | E32: Km/mês | F32: =F31 -> 1.428571429 | G32: =D32*F32 -> 428.5714286
B33: 1 | C33: MANUTENÇÃO - Considerando 1,5% a.a. em um carro 50.000 | D33: 1 | E33: mês | F33: 65 | G33: 65
B34: 2 | C34: SEGURO | D34: =1/12 -> 0.08333333333 | E34: mês | G34: 0
B35: 3 | C35: ALUGUEL | D35: 1 | E35: mês | F35: 1470 | G35: 1470 | H35: referencia MOVIDA, Consulta 16 de abril 2022 para Fiat UNO
B36: 4 | C36: PEDAGIO | F36: =G36/30 -> 0
B37: 5 | C37: LIMPEZA | D37: 1 | E37: mês | F37: 50 | G37: =D37*F37 -> 50
B38: 6 | C38: IMPOSTOS | D38: =1/12 -> 0.08333333333 | E38: mês | G38: 0
B39: 7 | C39: DEPRECIAÇÃO - 5 ANOS CONSIDERANDO VALOR 50.000 | D39: 0.08333333333 | E39: mês | G39: 0
B40: 8 | C40: PARCELA VEICULO NOVO | E40: mês | G40: 0
B42: TOTAL DE 01 AUTOMOVEL POR MES: | G42: =SUM(G29:G39) -> 2013.571429

Sheet RESUMO (hidden)
B2: RESUMO GERAL
B4: CUSTOS DE DEMANDA E PROPOSIÇÃO - PARQUES POA
B6: Localização | C6: Porto Alegre / RS | E6: DATA: | F6: 2022-04-02
B7: ITEM | C7: DESCRIÇÃO PARQUE | D7: QUANTIDADE | E7: UNID. | F7: PREÇO TOTAL
B8: 1 | C8: PARQUE FARROUPILHA | D8: 1 | E8: vb | F8: 31429007.45
B9: 2 | C9: PARQUE MOINHOS DE VENTO | D9: 1 | E9: vb | F9: 15825736.89
B10: 3 | C10: PARQUE ORLA DO GUAÌBA | D10: 1 | E10: vb | F10: 12736281.11
B11: 4 | C11: PARQUE MARINHA DO BRASIL | D11: 1 | E11: vb | F11: 49273702.01
B12: 5 | C12: PARQUE CALÇADÃO DO LAMI | D12: 1 | E12: vb | F12: 7650932.338
D14: TOTAL: | F14: 116915659.8

Sheet RESUMOS CUSTOS (hidden)
A1: RESUMO GERAL
A3: APRESENTAÇÃO DOS CUSTOS DEMANDA - PARQUES POA
